Workbook

Sheet Инф-я
A6: Расчет НВВ на услуги по передаче электрической энергии, устанавливаемых с применением метода долгосрочной индексации необходимой валовой выручки
B9: Информация об организации
A11: № п/п | B11: Требуемая информация | C11: Данные об организации
A12: 1. | B12: Наименование организации в соответствии с уставом:
B13: сокращенное название организации | C13: ООО "МОНОСТРОЙ"
B14: полное наименование организации | C14: Общество с ограниченной ответственностью "МОНОСТРОЙ"
A15: 2. | B15: Муниципальное образование | C15: город Владимир
A16: 3. | B16: Адрес организации:
B17: юридический адрес | C17: 600020, город Владимир, улица Большая Нижегородская , дом 88
B18: фактический адрес (месторасположение) | C18: 600020, город Владимир, улица Большая Нижегородская , дом 88
A19: 4. | B19: ИНН | C19: 3329011322
A20: 5. | B20: КПП | C20: 332901001
A21: 6. | B21: ФИО руководителя организации | C21: Чижов Олег Александрович
B22: контактный телефон/факс | C22: (4922) 32-53-98
B23: е-mail | C23: glav-monostroi@yandex.ru
A24: 7. | B24: ФИО начальника ПЭО | C24: Хромова Ирина Анатольевна
B25: контактный телефон/факс | C25: (4922) 32-53-98
A26: 8. | B26: ФИО ответственного за электрохозяйство | C26: Коровин Алексей Евгеньевич
B27: контактный телефон/факс | C27: (4922) 32-53-98
A28: 9. | B28: ФИО главного бухгалтера | C28: Кокувина Елена Серафимовна
B29: контактный телефон/факс | C29: (4922) 32-53-98
A30: 10. | B30: ФИО непосредственного исполнителя | C30: Король Татьяна Александровна
B31: контактный телефон/факс | C31: (4922) 32-53-98
B32: е-mail | C32: monostroj-peo@mail.ru
A33: 11. | B33: Банковские реквизиты:
B34: расчетный счет | C34: 40702810841120000006
B35: банк | C35: Владимирский РФ ОАО "Россельхозбанк" г. Владимир
B36: корреспондентский счет | C36: 301018106000000008772
B37: БИК | C37: 041708772
A39: Предложение о размере цен (тарифов), долгосрочных параметров регулирования (при применении метода доходности инвестированного капитала или метода долгосрочной необходимой валовой выручки), подлежит раскрытию на официальных сайтах регулируемых организаций или на ином официальном сайте в сети Интернет, определяемом Правительством Российской Федерации, и (или) в периодическом печатном издании, в котором публикуются нормативные правовые акты органа исполнительной власти в области регулирования тарифов, - за 10 дней до представления в регулирующий орган предложения об установлении цен (тарифов) и (или) их предельных уровней, содержащего такую информацию. ( п. 9 Постановления Правительства РФ от 21.01.2004 г. № 24 "Об утверждении стандартов раскрытия информации субъектами оптового и розничных рынков электрической энергии": )
A40: В случае если регулируемая организация не опубликовала предложение о размере цен (тарифов) и долгосрочных параметров регулирования , подлежащих регулированию или указанное опубликованное предложение не соответствует предложению, представляемому в орган регулирования Регулирующий орган отказывает в открытии дела об установлении цены (тарифа).
A98: 1 | B98: ООО «Радугагорэнерго»
A99: 2 | B99: МУП «Горэлектросеть» г. Муром
A100: 3 | B100: МУП «Александровэлектросеть»
A101: 4 | B101: ООО «СтройГарант»
A102: 5 | B102: ООО «Костеревские городские электрические сети»
A103: 6 | B103: ООО «Ковровэлектросетьремонт»
A104: 7 | B104: ООО «ПромРЭС»
A105: 8 | B105: ООО «ПромЭнерго» г. Судогда
A106: 9 | B106: ОАО «Энергетик» г. Карабаново
A107: 10 | B107: ООО «Электросистемы»
A108: 11 | B108: ООО «Ярцево-Энерго»
A109: 12 | B109: ПАО «Ставровский завод АТО»
A110: 13 | B110: ООО «ЭнергоАктив»

Sheet Соответствие критериям
A2: Критерии отнесения владельцев объектов электросетевого хозяйства к территориальным сетевым организациям (утв. постановлением Правительства РФ от 28 февраля 2015 г. N 184)
A4: ='Инф-я'!C13 -> ООО "МОНОСТРОЙ"
A6: № п./п. | B6: Наименование показателя | C6: Ед. измерения | D6: По данным организации | E6: По данным экспертов | F6: Представляемые обосновывающие материалы
A7: 1 | B7: 2 | C7: 3 | D7: 4 | E7: 5 | F7: 6
A8: 1. | B8: Владение на праве собственности и (или) на ином законном основании на срок не менее долгосрочного периода регулирования трансформаторными и иными подстанциями с установленными силовыми трансформаторами (автотрансформаторами), расположенными и используемыми для осуществления регулируемой деятельности в административных границах субъекта Российской Федерации, сумма номинальных мощностей которых составляет не менее 10 МВА. | C8: МВА | D8: 14.56 | F8: Согласно пункта 17 Правил государственного регулирования (пересмотра, применения) цен (тарифов) в электроэнергетике, утвержденных Постановлением Правительства РФ от 29 декабря 2011 г. N 1178: К заявлениям, направленным в соответствии с пунктами 12, 14 и 16 настоящих Правил, организации, осуществляющие регулируемую деятельность, и органы исполнительной власти субъектов Российской Федерации в области государственного регулирования тарифов прилагают следующие обосновывающие материалы: . . . 13) документы, подтверждающие осуществление (фактическое или планируемое) регулируемой деятельности, - документы, подтверждающие право собственности или иные законные основания владения в отношении объектов, используемых для осуществления деятельности, и (или) договоры на осуществление регулируемой деятельности (при реорганизации юридического лица - передаточные акты); . . . 15) справка о наличии официального сайта в сети Интернет и выделенного абонентского номера для обращений потребителей услуг по передаче электрической энергии и (или) технологическому присоединению, подписанная руководителем или иным уполномоченным лицом заявителя и заверенная печатью заявителя; 16) утвержденные руководителем или иным уполномоченным лицом заявителя и заверенные печатью заявителя (при наличии печати) схемы соединений электрической сети заявителя с обозначением трансформаторных и иных подстанций, а также линий электропередачи, указанных в пунктах 1 и 2 критериев отнесения владельцев объектов электросетевого хозяйства к территориальным сетевым организациям, утвержденных постановлением Правительства Российской Федерации от 28 февраля 2015 г. N 184 "Об отнесении владельцев объектов электросетевого хозяйства к территориальным сетевым организациям" (далее - критерии отнесения владельцев объектов электросетевого хозяйства к территориальным сетевым организациям).
A9: 2. | B9: Владение на праве собственности и (или) на ином законном основании на срок не менее долгосрочного периода регулирования линиями электропередачи (воздушными и (или) кабельными), расположенными и используемыми для осуществления регулируемой деятельности в административных границах субъекта Российской Федерации, непосредственно соединенными с трансформаторными и иными подстанциями, указанными в пункте 1 настоящих критериев, сумма протяженностей которых по трассе составляет не менее 15 км, не менее 2 из следующих проектных номинальных классов напряжения: | C9: км | D9: =D10+D11+D12+D13 -> 22.195 | E9: =E10+E11+E12+E13 -> 0
B10: 110 кВ и выше; | C10: км
B11: 35 кВ; | C11: км
B12: 1 - 20 кВ; | C12: км | D12: =10.577+3.37 -> 13.947
B13: ниже 1 кВ - трехфазных участков линий электропередачи. | C13: км | D13: =8.248 -> 8.248
A14: 3. | B14: 3. Отсутствие за 3 предшествующих расчетных периода регулирования 3 фактов применения органами исполнительной власти субъектов Российской Федерации в области государственного регулирования тарифов понижающих коэффициентов, позволяющих обеспечить соответствие уровня тарифов, установленных для владельца объектов электросетевого хозяйства, уровню надежности и качества поставляемых товаров и оказываемых услуг, а также корректировки цен (тарифов), установленных на долгосрочный период регулирования, в случае представления владельцем объектов электросетевого хозяйства, для которого такие цены (тарифы) установлены, недостоверных отчетных данных, используемых при расчете фактических значений показателей надежности и качества поставляемых товаров и оказываемых услуг, или непредставления таких данных. | C14: х | D14: отсутсвует
A15: 4. | B15: 4. Наличие выделенного абонентского номера для обращений потребителей услуг по передаче электрической энергии и (или) технологическому присоединению. | C15: х | D15: (4922) 32-53-98
A16: 5. | B16: 5. Наличие официального сайта в информационно-телекоммуникационной сети "Интернет". | C16: х | D16: http://monostroy33.ru/
A17: 6. | B17: 6. Отсутствие во владении и (или) пользовании объектов электросетевого хозяйства, расположенных в административных границах субъекта Российской Федерации и используемых для осуществления регулируемой деятельности в указанных границах, принадлежащих на праве собственности или ином законном основании иному лицу, владеющему объектом по производству электрической энергии (мощности), который расположен в административных границах соответствующего субъекта Российской Федерации и с использованием которого осуществляется производство электрической энергии и мощности с целью ее продажи на оптовом рынке электрической энергии (мощности) и (или) розничных рынках электрической энергии. | C17: х | D17: отсутствует
B19: Руководитель организации | D19: ='Инф-я'!C21 -> Чижов Олег Александрович

Sheet Баланс энергии
A1: Заполняется в тыс. кВт.ч. ! | AF1: тыс. кВт.ч.
A4: Баланс электрической энергии по сетям ВН, СН1, СН2, и НН | H4: ='Инф-я'!C13 -> ООО "МОНОСТРОЙ"
A6: № п.п. | B6: Показатели | C6: Принято регулирующим органом на 2018 год | H6: Факт за 2018 год | M6: Принято регулирующим органом на 2019 год | R6: По данным организации на 2020 год | W6: По данным организации на 1 полугодие 2020 года | AB6: По данным организации на 2 полугодие 2020 года | AG6: По данным экспертов на 2020 год | AL6: По данным экспертов на 1 полугодие 2020 года | AQ6: По данным экспертов на 2 полугодие 2020 года
C7: Всего | D7: ВН | E7: СН1 | F7: СН2 | G7: НН | H7: Всего | I7: ВН | J7: СН1 | K7: СН2 | L7: НН | M7: Всего | N7: ВН | O7: СН1 | P7: СН2 | Q7: НН | R7: Всего | S7: ВН | T7: СН1 | U7: СН2 | V7: НН | W7: Всего | X7: ВН | Y7: СН1 | Z7: СН2 | AA7: НН | AB7: Всего | AC7: ВН | AD7: СН1 | AE7: СН2 | AF7: НН | AG7: Всего | AH7: ВН | AI7: СН1 | AJ7: СН2 | AK7: НН | AL7: Всего | AM7: ВН | AN7: СН1 | AO7: СН2 | AP7: НН | AQ7: Всего | AR7: ВН | AS7: СН1 | AT7: СН2 | AU7: НН
A8: 1 | B8: 2 | C8: 3 | D8: 4 | E8: 5 | F8: 6 | G8: 7 | H8: 18 | I8: 19 | J8: 20 | K8: 21 | L8: 22 | M8: 33 | N8: 34 | O8: 35 | P8: 36 | Q8: 37 | R8: 48 | S8: 49 | T8: 50 | U8: 51 | V8: 52 | W8: 53 | X8: 54 | Y8: 55 | Z8: 56 | AA8: 57 | AB8: 58 | AC8: 59 | AD8: 60 | AE8: 61 | AF8: 62 | AG8: 63 | AH8: 64 | AI8: 65 | AJ8: 66 | AK8: 67 | AL8: 53 | AM8: 54 | AN8: 55 | AO8: 56 | AP8: 57 | AQ8: 58 | AR8: 59 | AS8: 60 | AT8: 61 | AU8: 62
A9: 1. | B9: Поступление эл.энергии в сеть , ВСЕГО | C9: =C19+C21+C22 -> 6745.996581 | D9: =D15+D16+D17+D18 -> 2647.6 | E9: =E10+E15+E16+E17+E18 -> 0 | F9: =F10+F15+F16+F17+F18 -> 6746 | G9: =G10+G15+G16+G17+G18 -> 151.2298 | H9: =H19+H21+H22 -> 9615.214411 | I9: =I15+I16+I17+I18 -> 0 | J9: =J10+J15+J16+J17+J18 -> 0 | K9: =K10+K15+K16+K17+K18 -> 9615.219 | L9: =L10+L15+L16+L17+L18 -> 4048.433001 | M9: =M19+M21+M22 -> 12602.92008 | N9: =N15+N16+N17+N18 -> 0 | O9: =O10+O15+O16+O17+O18 -> 0 | P9: =P10+P15+P16+P17+P18 -> 12602.9 | Q9: =Q10+Q15+Q16+Q17+Q18 -> 3306.86777 | R9: =R19+R21+R22 -> 11499.9758 | S9: =S15+S16+S17+S18 -> 0 | T9: =T10+T15+T16+T17+T18 -> 0 | U9: =U10+U15+U16+U17+U18 -> 11500 | V9: =V10+V15+V16+V17+V18 -> 5940 | W9: =W19+W21+W22 -> 5500.0076 | X9: =X15+X16+X17+X18 -> 0 | Y9: =Y10+Y15+Y16+Y17+Y18 -> 0 | Z9: =Z10+Z15+Z16+Z17+Z18 -> 5500 | AA9: =AA10+AA15+AA16+AA17+AA18 -> 2680 | AB9: =AB19+AB21+AB22 -> 5999.9682 | AC9: =AC15+AC16+AC17+AC18 -> 0 | AD9: =AD10+AD15+AD16+AD17+AD18 -> 6000 | AE9: =AE10+AE15+AE16+AE17+AE18 -> 6000 | AF9: =AF10+AF15+AF16+AF17+AF18 -> 3260 | AG9: =AG19+AG21+AG22 -> 0 | AH9: =AH15+AH16+AH17+AH18 -> 0 | AI9: =AI10+AI15+AI16+AI17+AI18 -> 0 | AJ9: =AJ10+AJ15+AJ16+AJ17+AJ18 -> 0 | AK9: =AK10+AK15+AK16+AK17+AK18 -> 0 | AL9: =AL19+AL21+AL22 -> 0 | AM9: =AM15+AM16+AM17+AM18 -> 0 | AN9: =AN10+AN15+AN16+AN17+AN18 -> 0 | AO9: =AO10+AO15+AO16+AO17+AO18 -> 0 | AP9: =AP10+AP15+AP16+AP17+AP18 -> 0 | AQ9: =AQ19+AQ21+AQ22 -> 0 | AR9: =AR15+AR16+AR17+AR18 -> 0 | AS9: =AS10+AS15+AS16+AS17+AS18 -> 0 | AT9: =AT10+AT15+AT16+AT17+AT18 -> 0 | AU9: =AU10+AU15+AU16+AU17+AU18 -> 0
A10: 1.1. | B10: из смежной сети, всего | C10: х | D10: х | E10: =E12 -> 0 | F10: =F12+F13 -> 2647.6 | G10: =G12+G13+G14 -> 151.2298 | H10: х | I10: х | J10: =J12 -> 0 | K10: =K12+K13 -> 0 | L10: =L12+L13+L14 -> 4048.433001 | M10: х | N10: х | O10: =O12 -> 0 | P10: =P12+P13 -> 0 | Q10: =Q12+Q13+Q14 -> 3306.86777 | R10: х | S10: х | T10: =T12 -> 0 | U10: =U12+U13 -> 0 | V10: =V12+V13+V14 -> 5940 | W10: х | X10: х | Y10: =Y12 -> 0 | Z10: =Z12+Z13 -> 0 | AA10: =AA12+AA13+AA14 -> 2680 | AB10: х | AC10: х | AD10: =AD12 -> 0 | AE10: =AE12+AE13 -> 6000 | AF10: =AF12+AF13+AF14 -> 3260 | AG10: х | AH10: х | AI10: =AI12 -> 0 | AJ10: =AJ12+AJ13 -> 0 | AK10: =AK12+AK13+AK14 -> 0 | AL10: х | AM10: х | AN10: =AN12 -> 0 | AO10: =AO12+AO13 -> 0 | AP10: =AP12+AP13+AP14 -> 0 | AQ10: х | AR10: х | AS10: =AS12 -> 0 | AT10: =AT12+AT13 -> 0 | AU10: =AU12+AU13+AU14 -> 0
B11: в том числе из сети | C11: х | D11: х | E11: х | F11: х | G11: х | H11: х | I11: х | J11: х | K11: х | L11: х | M11: х | N11: х | O11: х | P11: х | Q11: х | R11: х | S11: х | T11: х | U11: х | V11: х | W11: х | X11: х | Y11: х | Z11: х | AA11: х | AB11: х | AC11: х | AD11: х | AE11: х | AF11: х | AG11: х | AH11: х | AI11: х | AJ11: х | AK11: х | AL11: х | AM11: х | AN11: х | AO11: х | AP11: х | AQ11: х | AR11: х | AS11: х | AT11: х | AU11: х
A12: 1.1.1. | B12: ВН | C12: х | D12: х | F12: =D9-D19-D21-D22-E12-G12 -> 2647.6 | H12: х | I12: х | K12: =I9-I19-I21-I22-J12-L12 -> 0 | M12: х | N12: х | P12: =N9-N19-N21-N22-O12-Q12 -> 0 | R12: х | S12: х | U12: =S9-S19-S21-S22-T12-V12 -> 0 | W12: х | X12: х | Z12: =X9-X19-X21-X22-Y12-AA12 -> 0 | AB12: х | AC12: х | AE12: =AC9-AC19-AC21-AC22-AD12-AF12 -> 0 | AG12: х | AH12: х | AJ12: =AH9-AH19-AH21-AH22-AI12-AK12 -> 0 | AL12: х | AM12: х | AO12: =AM9-AM19-AM21-AM22-AN12-AP12 -> 0 | AQ12: х | AR12: х | AT12: =AR9-AR19-AR21-AR22-AS12-AU12 -> 0
A13: 1.1.2. | B13: СН1 | C13: х | D13: х | E13: х | F13: =E9-E19-E21-E22-G13 -> 0 | H13: х | I13: х | J13: х | K13: =J9-J19-J21-J22-L13 -> 0 | M13: х | N13: х | O13: х | P13: =O9-O19-O21-O22-Q13 -> 0 | R13: х | S13: х | T13: х | U13: =T9-T19-T21-T22-V13 -> 0 | W13: х | X13: х | Y13: х | Z13: =Y9-Y19-Y21-Y22-AA13 -> 0 | AB13: х | AC13: х | AD13: х | AE13: =AD9-AD19-AD21-AD22-AF13 -> 6000 | AG13: х | AH13: х | AI13: х | AJ13: =AI9-AI19-AI21-AI22-AK13 -> 0 | AL13: х | AM13: х | AN13: х | AO13: =AN9-AN19-AN21-AN22-AP13 -> 0 | AQ13: х | AR13: х | AS13: х | AT13: =AS9-AS19-AS21-AS22-AU13 -> 0
A14: 1.1.3. | B14: СН2 | C14: х | D14: х | E14: х | F14: х | G14: =F9-F19-F21-F22 -> 151.2298 | H14: х | I14: х | J14: х | K14: х | L14: =K9-K19-K21-K22 -> 4048.433001 | M14: х | N14: х | O14: х | P14: х | Q14: =P9-P19-P21-P22 -> 3306.86777 | R14: х | S14: х | T14: х | U14: х | V14: =U9-U19-U21-U22 -> 5940 | W14: х | X14: х | Y14: х | Z14: х | AA14: =Z9-Z19-Z21-Z22 -> 2680 | AB14: х | AC14: х | AD14: х | AE14: х | AF14: =AE9-AE19-AE21-AE22 -> 3260 | AG14: х | AH14: х | AI14: х | AJ14: х | AK14: =AJ9-AJ19-AJ21-AJ22 -> 0 | AL14: х | AM14: х | AN14: х | AO14: х | AP14: =AO9-AO19-AO21-AO22 -> 0 | AQ14: х | AR14: х | AS14: х | AT14: х | AU14: =AT9-AT19-AT21-AT22 -> 0
A15: 1.2. | B15: от электростанций | C15: =SUM(D15:G15) -> 0 | H15: =SUM(I15:L15) -> 0 | M15: =SUM(N15:Q15) -> 0 | R15: =SUM(S15:V15) -> 0 | W15: =SUM(X15:AA15) -> 0 | AB15: =SUM(AC15:AF15) -> 0 | AG15: =SUM(AH15:AK15) -> 0 | AL15: =SUM(AM15:AP15) -> 0 | AQ15: =SUM(AR15:AU15) -> 0
A16: 1.3. | B16: от ОАО "ФСК ЕЭС" | C16: =SUM(D16:G16) -> 0 | H16: =SUM(I16:L16) -> 0 | M16: =SUM(N16:Q16) -> 0 | R16: =SUM(S16:V16) -> 0 | W16: =SUM(X16:AA16) -> 0 | AB16: =SUM(AC16:AF16) -> 0 | AG16: =SUM(AH16:AK16) -> 0 | AL16: =SUM(AM16:AP16) -> 0 | AQ16: =SUM(AR16:AU16) -> 0
A17: 1.4. | B17: от филиала "Владимирэнерго" ОАО "МРСК Центра и Приволжья" | C17: =SUM(D17:G17) -> 0 | H17: =SUM(I17:L17) -> 9615.219 | K17: 9615.219 | M17: =SUM(N17:Q17) -> 0 | R17: =SUM(S17:V17) -> 11500 | U17: 11500 | W17: =SUM(X17:AA17) -> 5500 | Z17: 5500 | AB17: =SUM(AC17:AF17) -> 6000 | AD17: 6000 | AG17: =SUM(AH17:AK17) -> 0 | AL17: =SUM(AM17:AP17) -> 0 | AQ17: =SUM(AR17:AU17) -> 0
A18: 1.5. | B18: от других сетевых организаций | C18: =SUM(D18:G18) -> 6746 | D18: 2647.6 | F18: 4098.4 | H18: =SUM(I18:L18) -> 0 | M18: =SUM(N18:Q18) -> 12602.9 | P18: 12602.9 | R18: =SUM(S18:V18) -> 0 | W18: =SUM(X18:AA18) -> 0 | AB18: =SUM(AC18:AF18) -> 0 | AG18: =SUM(AH18:AK18) -> 0 | AL18: =SUM(AM18:AP18) -> 0 | AQ18: =SUM(AR18:AU18) -> 0
A19: 2. | B19: Потери электроэнергии в сети | C19: =SUM(D19:G19) -> 275.9965813 | D19: =D9*D20/100 -> 0 | E19: =E9*E20/100 -> 0 | F19: =F9*F20/100 -> 261.0702 | G19: =G9*G20/100 -> 14.92638126 | H19: =SUM(I19:L19) -> 715.5264113 | I19: =I9*I20/100 -> 0 | J19: =J9*J20/100 -> 0 | K19: =K9*K20/100 -> 397.5219991 | L19: =L9*L20/100 -> 318.0044122 | M19: =SUM(N19:Q19) -> 814.1200789 | N19: =N9*N20/100 -> 0 | O19: =O9*O20/100 -> 0 | P19: =P9*P20/100 -> 487.73223 | Q19: =Q9*Q20/100 -> 326.3878489 | R19: =SUM(S19:V19) -> 899.9758 | S19: =S9*S20/100 -> 0 | T19: =T9*T20/100 -> 0 | U19: =U9*U20/100 -> 460 | V19: =V9*V20/100 -> 439.9758 | W19: =SUM(X19:AA19) -> 418.5076 | X19: =X9*X20/100 -> 0 | Y19: =Y9*Y20/100 -> 0 | Z19: =Z9*Z20/100 -> 220 | AA19: =AA9*AA20/100 -> 198.5076 | AB19: =SUM(AC19:AF19) -> 481.4682 | AC19: =AC9*AC20/100 -> 0 | AD19: =AD9*AD20/100 -> 0 | AE19: =AE9*AE20/100 -> 240 | AF19: =AF9*AF20/100 -> 241.4682 | AG19: =SUM(AH19:AK19) -> 0 | AH19: =AH9*AH20/100 -> 0 | AI19: =AI9*AI20/100 -> 0 | AJ19: =AJ9*AJ20/100 -> 0 | AK19: =AK9*AK20/100 -> 0 | AL19: =SUM(AM19:AP19) -> 0 | AM19: =AM9*AM20/100 -> 0 | AN19: =AN9*AN20/100 -> 0 | AO19: =AO9*AO20/100 -> 0 | AP19: =AP9*AP20/100 -> 0 | AQ19: =SUM(AR19:AU19) -> 0 | AR19: =AR9*AR20/100 -> 0 | AS19: =AS9*AS20/100 -> 0 | AT19: =AT9*AT20/100 -> 0 | AU19: =AU9*AU20/100 -> 0
A20: 2.1. | B20: то же в % (п.2./п.1.) | C20: =IF(C9=0,0,C19/C9*100) -> 4.091264766 | F20: 3.87 | G20: 9.87 | H20: =IF(H9=0,0,H19/H9*100) -> 7.441606403 | K20: 4.1343 | L20: 7.855 | M20: =IF(M9=0,0,M19/M9*100) -> 6.4597734 | P20: 3.87 | Q20: 9.87 | R20: =IF(R9=0,0,R19/R9*100) -> 7.82589299 | U20: 4 | V20: 7.407 | W20: =IF(W9=0,0,W19/W9*100) -> 7.609218576 | Z20: 4 | AA20: 7.407 | AB20: =IF(AB9=0,0,AB19/AB9*100) -> 8.02451253 | AD20: =Y20 -> 0 | AE20: 4 | AF20: 7.407 | AG20: =IF(AG9=0,0,AG19/AG9*100) -> 0 | AL20: =IF(AL9=0,0,AL19/AL9*100) -> 0 | AQ20: =IF(AQ9=0,0,AQ19/AQ9*100) -> 0
A21: 3. | B21: Расход электроэнергии на производственные и хознужды | C21: =SUM(D21:G21) -> 0 | H21: =SUM(I21:L21) -> 0 | M21: =SUM(N21:Q21) -> 0 | R21: =SUM(S21:V21) -> 0 | W21: =SUM(X21:AA21) -> 0 | AB21: =SUM(AC21:AF21) -> 0 | AG21: =SUM(AH21:AK21) -> 0 | AL21: =SUM(AM21:AP21) -> 0 | AQ21: =SUM(AR21:AU21) -> 0
A22: 4. | B22: Полезный отпуск из сети | C22: 6470 | D22: =D23+D24+D25+D26 -> 0 | E22: =E23+E24+E25+E26 -> 0 | F22: 6333.7 | G22: 136.3 | H22: 8899.688 | I22: =I23+I24+I25+I26 -> 0 | J22: =J23+J24+J25+J26 -> 0 | K22: =K23+K24+K25+K26 -> 5169.264 | L22: =L23+L24+L25+L26 -> 3730.424 | M22: 11788.8 | N22: =N23+N24+N25+N26 -> 0 | O22: =O23+O24+O25+O26 -> 0 | P22: =P23+P24+P25+P26 -> 8808.3 | Q22: =Q23+Q24+Q25+Q26 -> 2980.5 | R22: 10600 | S22: =S23+S24+S25+S26 -> 0 | T22: =T23+T24+T25+T26 -> 0 | U22: =U23+U24+U25+U26 -> 5100 | V22: =V23+V24+V25+V26 -> 5500 | W22: 5081.5 | X22: =X23+X24+X25+X26 -> 0 | Y22: =Y23+Y24+Y25+Y26 -> 0 | Z22: =Z23+Z24+Z25+Z26 -> 2600 | AA22: =AA23+AA24+AA25+AA26 -> 2481.5 | AB22: 5518.5 | AC22: =AC23+AC24+AC25+AC26 -> 0 | AD22: =AD23+AD24+AD25+AD26 -> 0 | AE22: =AE23+AE24+AE25+AE26 -> 2500 | AF22: =AF23+AF24+AF25+AF26 -> 3018.5 | AG22: 0 | AH22: =AH23+AH24+AH25+AH26 -> 0 | AI22: =AI23+AI24+AI25+AI26 -> 0 | AJ22: =AJ23+AJ24+AJ25+AJ26 -> 0 | AK22: =AK23+AK24+AK25+AK26 -> 0 | AL22: 0 | AM22: =AM23+AM24+AM25+AM26 -> 0 | AN22: =AN23+AN24+AN25+AN26 -> 0 | AO22: =AO23+AO24+AO25+AO26 -> 0 | AP22: =AP23+AP24+AP25+AP26 -> 0 | AQ22: 0 | AR22: =AR23+AR24+AR25+AR26 -> 0 | AS22: =AS23+AS24+AS25+AS26 -> 0 | AT22: =AT23+AT24+AT25+AT26 -> 0 | AU22: =AU23+AU24+AU25+AU26 -> 0
A23: 4.1. | B23: собственное потребление | C23: 4108.6 | F23: 3972.3 | G23: 136.3 | H23: 1774.407 | K23: 1774.407 | M23: 1831.1 | P23: 1831.1 | R23: 1700 | U23: 1700 | W23: 900 | Z23: 900 | AB23: 800 | AD23: =Y23 -> 0 | AE23: 800 | AG23: 0 | AL23: 0 | AQ23: 0
A24: 4.2. | B24: потребителям, присоединенным к сети | C24: 0 | H24: 6733.881 | K24: =2796.388+207.069 -> 3003.457 | L24: 3730.424 | M24: 8724 | P24: 5743.5 | Q24: 2980.5 | R24: 8500 | U24: 3000 | V24: 5500 | W24: 3981.5 | Z24: =U24/2 -> 1500 | AA24: =2666.9-185.4 -> 2481.5 | AB24: 4518.5 | AD24: =Y24 -> 0 | AE24: =Z24 -> 1500 | AF24: =3203.3-184.8 -> 3018.5 | AG24: 0 | AL24: 0 | AQ24: 0
A25: 4.3. | B25: переток в филиал "Владимирэнерго" ОАО "МРСК Центра и Приволжья" | C25: 2361.4 | F25: 2361.4 | H25: 0 | M25: 0 | R25: 0 | W25: 0 | AB25: 0 | AG25: 0 | AL25: 0 | AQ25: 0
A26: 4.4. | B26: переток в другие сетевые организации | C26: 0 | H26: 391.4 | K26: 391.4 | M26: 1233.7 | P26: 1233.7 | R26: 400 | U26: 400 | W26: 200 | Z26: =U26/2 -> 200 | AB26: 200 | AD26: =Y26 -> 0 | AE26: =Z26 -> 200 | AG26: 0 | AL26: 0 | AQ26: 0
B27: Проверка | D27: =D9-D19-D21-D24-D25-D26-E12-F12-G12-D23 -> 0 | E27: =E9-E19-E21-E24-E25-E26-F13-G13-E23 -> 0 | F27: =F9-F19-F21-F24-F25-F26-G14-F23 -> 0 | G27: =G9-G19-G21-G24-G25-G26-G23 -> 0.003418739999 | I27: =I9-I19-I21-I24-I25-I26-J12-K12-L12-I23 -> 0 | J27: =J9-J19-J21-J24-J25-J26-K13-L13-J23 -> 0 | K27: =K9-K19-K21-K24-K25-K26-L14-K23 -> 0 | L27: =L9-L19-L21-L24-L25-L26-L23 -> 0.004588663641 | N27: =N9-N19-N21-N24-N25-N26-O12-P12-Q12-N23 -> 0 | O27: =O9-O19-O21-O24-O25-O26-P13-Q13-O23 -> 0 | P27: =P9-P19-P21-P24-P25-P26-Q14-P23 -> 0 | Q27: =Q9-Q19-Q21-Q24-Q25-Q26-Q23 -> -0.020078899 | S27: =S9-S19-S21-S24-S25-S26-T12-U12-V12-S23 -> 0 | T27: =T9-T19-T21-T24-T25-T26-U13-V13-T23 -> 0 | U27: =U9-U19-U21-U24-U25-U26-V14-U23 -> 0 | V27: =V9-V19-V21-V24-V25-V26-V23 -> 0.0242 | X27: =X9-X19-X21-X24-X25-X26-Y12-Z12-AA12-X23 -> 0 | Y27: =Y9-Y19-Y21-Y24-Y25-Y26-Z13-AA13-Y23 -> 0 | Z27: =Z9-Z19-Z21-Z24-Z25-Z26-AA14-Z23 -> 0 | AA27: =AA9-AA19-AA21-AA24-AA25-AA26-AA23 -> -0.0076 | AC27: =AC9-AC19-AC21-AC24-AC25-AC26-AD12-AE12-AF12-AC23 -> 0 | AD27: =AD9-AD19-AD21-AD24-AD25-AD26-AE13-AF13-AD23 -> 0 | AE27: =AE9-AE19-AE21-AE24-AE25-AE26-AF14-AE23 -> 0 | AF27: =AF9-AF19-AF21-AF24-AF25-AF26-AF23 -> 0.0318 | AH27: =AH9-AH19-AH21-AH24-AH25-AH26-AI12-AJ12-AK12-AH23 -> 0 | AI27: =AI9-AI19-AI21-AI24-AI25-AI26-AJ13-AK13-AI23 -> 0 | AJ27: =AJ9-AJ19-AJ21-AJ24-AJ25-AJ26-AK14-AJ23 -> 0 | AK27: =AK9-AK19-AK21-AK24-AK25-AK26-AK23 -> 0 | AM27: =AM9-AM19-AM21-AM24-AM25-AM26-AN12-AO12-AP12-AM23 -> 0 | AN27: =AN9-AN19-AN21-AN24-AN25-AN26-AO13-AP13-AN23 -> 0 | AO27: =AO9-AO19-AO21-AO24-AO25-AO26-AP14-AO23 -> 0 | AP27: =AP9-AP19-AP21-AP24-AP25-AP26-AP23 -> 0 | AR27: =AR9-AR19-AR21-AR24-AR25-AR26-AS12-AT12-AU12-AR23 -> 0 | AS27: =AS9-AS19-AS21-AS24-AS25-AS26-AT13-AU13-AS23 -> 0 | AT27: =AT9-AT19-AT21-AT24-AT25-AT26-AU14-AT23 -> 0 | AU27: =AU9-AU19-AU21-AU24-AU25-AU26-AU23 -> 0
B29: Руководитель организации | D29: ='Инф-я'!C21 -> Чижов Олег Александрович

Sheet Баланс энергии (транзит)
A3: Баланс электрической энергии, передаваемой потребителям энергосбытов и в смежные сетевые организации по сетям ВН, СН1, СН2, и НН
A4: ='Инф-я'!C13 -> ООО "МОНОСТРОЙ"
A6: № п.п. | B6: Показатели | C6: Принято регулирующим органом на 2018 год | H6: Факт за 2018 год | M6: Принято регулирующим органом на 2019 год | R6: По данным организации на 2020 год | W6: По данным организации на 1 полугодие 2020 года | AB6: По данным организации на 2 полугодие 2020 года | AG6: По данным экспертов на 2020 год | AL6: По данным экспертов на 1 полугодие 2020 года | AQ6: По данным экспертов на 2 полугодие 2020 года
C7: Всего | D7: ВН | E7: СН1 | F7: СН2 | G7: НН | H7: Всего | I7: ВН | J7: СН1 | K7: СН2 | L7: НН | M7: Всего | N7: ВН | O7: СН1 | P7: СН2 | Q7: НН | R7: Всего | S7: ВН | T7: СН1 | U7: СН2 | V7: НН | W7: Всего | X7: ВН | Y7: СН1 | Z7: СН2 | AA7: НН | AB7: Всего | AC7: ВН | AD7: СН1 | AE7: СН2 | AF7: НН | AG7: Всего | AH7: ВН | AI7: СН1 | AJ7: СН2 | AK7: НН | AL7: Всего | AM7: ВН | AN7: СН1 | AO7: СН2 | AP7: НН | AQ7: Всего | AR7: ВН | AS7: СН1 | AT7: СН2 | AU7: НН
A8: 1 | B8: 2 | C8: 3 | D8: 4 | E8: 5 | F8: 6 | G8: 7 | H8: 8 | I8: 9 | J8: 10 | K8: 11 | L8: 12 | M8: 13 | N8: 14 | O8: 15 | P8: 16 | Q8: 17 | R8: 18 | S8: 19 | T8: 20 | U8: 21 | V8: 22 | W8: 23 | X8: 24 | Y8: 25 | Z8: 26 | AA8: 27 | AB8: 28 | AC8: 29 | AD8: 30 | AE8: 31 | AF8: 32 | AG8: 33 | AH8: 34 | AI8: 35 | AJ8: 36 | AK8: 37 | AL8: 38 | AM8: 39 | AN8: 40 | AO8: 41 | AP8: 42 | AQ8: 43 | AR8: 44 | AS8: 45 | AT8: 46 | AU8: 47
A9: 1. | B9: Поступление эл.энергии в сеть , ВСЕГО | C9: =C17+C18+C16+C15 -> 2456.465203 | D9: =(D22+D21+E12+F12+G12)/(100-D20)*100 -> 964.0879443 | E9: =(E22+E21+F13+G13)/(100-E20)*100 -> 0 | F9: =(F22+F21+G14)/(100-F20)*100 -> 2456.465203 | G9: =(G21+G22)/(100-G20)*100 -> 0 | H9: =H17+H18+H16+H15 -> 7764.283806 | I9: =(I22+I21+J12+K12+L12)/(100-I20)*100 -> 0 | J9: =(J22+J21+K13+L13)/(100-J20)*100 -> 0 | K9: =(K22+K21+L14)/(100-K20)*100 -> 7764.283806 | L9: =(L21+L22)/(100-L20)*100 -> 4048.428021 | M9: =M17+M18+M16+M15 -> 10698.10678 | N9: =(N22+N21+O12+P12+Q12)/(100-N20)*100 -> 0 | O9: =(O22+O21+P13+Q13)/(100-O20)*100 -> 0 | P9: =(P22+P21+Q14)/(100-P20)*100 -> 10698.10678 | Q9: =(Q21+Q22)/(100-Q20)*100 -> 3306.890048 | R9: =R17+R18+R16+R15 -> 9729.139442 | S9: =(S22+S21+T12+U12+V12)/(100-S20)*100 -> 0 | T9: =(T22+T21+U13+V13)/(100-T20)*100 -> 0 | U9: =(U22+U21+V14)/(100-U20)*100 -> 9729.139442 | V9: =(V21+V22)/(100-V20)*100 -> 5939.973864 | W9: =W17+W18+W16+W15 -> 4562.50855 | X9: =(X22+X21+Y12+Z12+AA12)/(100-X20)*100 -> 0 | Y9: =(Y22+Y21+Z13+AA13)/(100-Y20)*100 -> 0 | Z9: =(Z22+Z21+AA14)/(100-Z20)*100 -> 4562.50855 | AA9: =(AA21+AA22)/(100-AA20)*100 -> 2680.008208 | AB9: =AB17+AB18+AB16+AB15 -> 5166.630892 | AC9: =(AC22+AC21+AD12+AE12+AF12)/(100-AC20)*100 -> 30999785.35 | AD9: =(AD22+AD21+AE13+AF13)/(100-AD20)*100 -> 5166.630892 | AE9: =(AE22+AE21+AF14)/(100-AE20)*100 -> 5166.630892 | AF9: =(AF21+AF22)/(100-AF20)*100 -> 3259.965656 | AG9: =AG17+AG18+AG16+AG15 -> 0 | AH9: =(AH22+AH21+AI12+AJ12+AK12)/(100-AH20)*100 -> 0 | AI9: =(AI22+AI21+AJ13+AK13)/(100-AI20)*100 -> 0 | AJ9: =(AJ22+AJ21+AK14)/(100-AJ20)*100 -> 0 | AK9: =(AK21+AK22)/(100-AK20)*100 -> 0 | AL9: =AL17+AL18+AL16+AL15 -> 0 | AM9: =(AM22+AM21+AN12+AO12+AP12)/(100-AM20)*100 -> 0 | AN9: =(AN22+AN21+AO13+AP13)/(100-AN20)*100 -> 0 | AO9: =(AO22+AO21+AP14)/(100-AO20)*100 -> 0 | AP9: =(AP21+AP22)/(100-AP20)*100 -> 0 | AQ9: =AQ17+AQ18+AQ16+AQ15 -> 0 | AR9: =(AR22+AR21+AS12+AT12+AU12)/(100-AR20)*100 -> 0 | AS9: =(AS22+AS21+AT13+AU13)/(100-AS20)*100 -> 0 | AT9: =(AT22+AT21+AU14)/(100-AT20)*100 -> 0 | AU9: =(AU21+AU22)/(100-AU20)*100 -> 0
A10: 1.1. | B10: из смежной сети, всего | C10: х | D10: х | E10: =E12 -> 0 | F10: =F12+F13 -> 964.0879443 | G10: =G12+G13+G14 -> 0 | H10: х | I10: х | J10: =J12 -> 0 | K10: =K12+K13 -> 0 | L10: =L12+L13+L14 -> 4048.428021 | M10: х | N10: х | O10: =O12 -> 0 | P10: =P12+P13 -> 0 | Q10: =Q12+Q13+Q14 -> 3306.890048 | R10: х | S10: х | T10: =T12 -> 0 | U10: =U12+U13 -> 0 | V10: =V12+V13+V14 -> 5939.973864 | W10: х | X10: х | Y10: =Y12 -> 0 | Z10: =Z12+Z13 -> 0 | AA10: =AA12+AA13+AA14 -> 2680.008208 | AB10: х | AC10: х | AD10: =AD12 -> 30999785.35 | AE10: =AE12+AE13 -> 5166.630892 | AF10: =AF12+AF13+AF14 -> 3259.965656 | AG10: х | AH10: х | AI10: =AI12 -> 0 | AJ10: =AJ12+AJ13 -> 0 | AK10: =AK12+AK13+AK14 -> 0 | AL10: х | AM10: х | AN10: =AN12 -> 0 | AO10: =AO12+AO13 -> 0 | AP10: =AP12+AP13+AP14 -> 0 | AQ10: х | AR10: х | AS10: =AS12 -> 0 | AT10: =AT12+AT13 -> 0 | AU10: =AU12+AU13+AU14 -> 0
B11: в том числе из сети | C11: х | D11: х | E11: х | F11: х | G11: х | H11: х | I11: х | J11: х | K11: х | L11: х | M11: х | N11: х | O11: х | P11: х | Q11: х | R11: х | S11: х | T11: х | U11: х | V11: х | W11: х | X11: х | Y11: х | Z11: х | AA11: х | AB11: х | AC11: х | AD11: х | AE11: х | AF11: х | AG11: х | AH11: х | AI11: х | AJ11: х | AK11: х | AL11: х | AM11: х | AN11: х | AO11: х | AP11: х | AQ11: х | AR11: х | AS11: х | AT11: х | AU11: х
A12: 1.1.1. | B12: ВН | C12: х | D12: х | E12: =IF('Баланс энергии'!E$9=0,0,'Баланс энергии'!E$9*E$9) -> 0 | F12: =IF('Баланс энергии'!F$9=0,0,'Баланс энергии'!F12/'Баланс энергии'!F$9*F$9) -> 964.0879443 | G12: =IF('Баланс энергии'!G$9=0,0,'Баланс энергии'!G12/'Баланс энергии'!G$9*G$9) -> 0 | H12: х | I12: х | J12: =IF('Баланс энергии'!J$9=0,0,'Баланс энергии'!J$9*J$9) -> 0 | K12: =IF('Баланс энергии'!K$9=0,0,'Баланс энергии'!K12/'Баланс энергии'!K$9*K$9) -> 0 | L12: =IF('Баланс энергии'!L$9=0,0,'Баланс энергии'!L12/'Баланс энергии'!L$9*L$9) -> 0 | M12: х | N12: х | O12: =IF('Баланс энергии'!O$9=0,0,'Баланс энергии'!O$9*O$9) -> 0 | P12: =IF('Баланс энергии'!P$9=0,0,'Баланс энергии'!P12/'Баланс энергии'!P$9*P$9) -> 0 | Q12: =IF('Баланс энергии'!Q$9=0,0,'Баланс энергии'!Q12/'Баланс энергии'!Q$9*Q$9) -> 0 | R12: х | S12: х | T12: =IF('Баланс энергии'!T$9=0,0,'Баланс энергии'!T$9*T$9) -> 0 | U12: =IF('Баланс энергии'!U$9=0,0,'Баланс энергии'!U12/'Баланс энергии'!U$9*U$9) -> 0 | V12: =IF('Баланс энергии'!V$9=0,0,'Баланс энергии'!V12/'Баланс энергии'!V$9*V$9) -> 0 | W12: х | X12: х | Y12: =IF('Баланс энергии'!Y$9=0,0,'Баланс энергии'!Y$9*Y$9) -> 0 | Z12: =IF('Баланс энергии'!Z$9=0,0,'Баланс энергии'!Z12/'Баланс энергии'!Z$9*Z$9) -> 0 | AA12: =IF('Баланс энергии'!AA$9=0,0,'Баланс энергии'!AA12/'Баланс энергии'!AA$9*AA$9) -> 0 | AB12: х | AC12: х | AD12: =IF('Баланс энергии'!AD$9=0,0,'Баланс энергии'!AD$9*AD$9) -> 30999785.35 | AE12: =IF('Баланс энергии'!AE$9=0,0,'Баланс энергии'!AE12/'Баланс энергии'!AE$9*AE$9) -> 0 | AF12: =IF('Баланс энергии'!AF$9=0,0,'Баланс энергии'!AF12/'Баланс энергии'!AF$9*AF$9) -> 0 | AG12: х | AH12: х | AI12: =IF('Баланс энергии'!AI$9=0,0,'Баланс энергии'!AI$9*AI$9) -> 0 | AJ12: =IF('Баланс энергии'!AJ$9=0,0,'Баланс энергии'!AJ12/'Баланс энергии'!AJ$9*AJ$9) -> 0 | AK12: =IF('Баланс энергии'!AK$9=0,0,'Баланс энергии'!AK12/'Баланс энергии'!AK$9*AK$9) -> 0 | AL12: х | AM12: х | AN12: =IF('Баланс энергии'!AN$9=0,0,'Баланс энергии'!AN$9*AN$9) -> 0 | AO12: =IF('Баланс энергии'!AO$9=0,0,'Баланс энергии'!AO12/'Баланс энергии'!AO$9*AO$9) -> 0 | AP12: =IF('Баланс энергии'!AP$9=0,0,'Баланс энергии'!AP12/'Баланс энергии'!AP$9*AP$9) -> 0 | AQ12: х | AR12: х | AS12: =IF('Баланс энергии'!AS$9=0,0,'Баланс энергии'!AS$9*AS$9) -> 0 | AT12: =IF('Баланс энергии'!AT$9=0,0,'Баланс энергии'!AT12/'Баланс энергии'!AT$9*AT$9) -> 0 | AU12: =IF('Баланс энергии'!AU$9=0,0,'Баланс энергии'!AU12/'Баланс энергии'!AU$9*AU$9) -> 0
A13: 1.1.2. | B13: СН1 | C13: х | D13: х | E13: х | F13: =IF('Баланс энергии'!F$9=0,0,'Баланс энергии'!F13/'Баланс энергии'!F$9*F$9) -> 0 | G13: =IF('Баланс энергии'!G$9=0,0,'Баланс энергии'!G13/'Баланс энергии'!G$9*G$9) -> 0 | H13: х | I13: х | J13: х | K13: =IF('Баланс энергии'!K$9=0,0,'Баланс энергии'!K13/'Баланс энергии'!K$9*K$9) -> 0 | L13: =IF('Баланс энергии'!L$9=0,0,'Баланс энергии'!L13/'Баланс энергии'!L$9*L$9) -> 0 | M13: х | N13: х | O13: х | P13: =IF('Баланс энергии'!P$9=0,0,'Баланс энергии'!P13/'Баланс энергии'!P$9*P$9) -> 0 | Q13: =IF('Баланс энергии'!Q$9=0,0,'Баланс энергии'!Q13/'Баланс энергии'!Q$9*Q$9) -> 0 | R13: х | S13: х | T13: х | U13: =IF('Баланс энергии'!U$9=0,0,'Баланс энергии'!U13/'Баланс энергии'!U$9*U$9) -> 0 | V13: =IF('Баланс энергии'!V$9=0,0,'Баланс энергии'!V13/'Баланс энергии'!V$9*V$9) -> 0 | W13: х | X13: х | Y13: х | Z13: =IF('Баланс энергии'!Z$9=0,0,'Баланс энергии'!Z13/'Баланс энергии'!Z$9*Z$9) -> 0 | AA13: =IF('Баланс энергии'!AA$9=0,0,'Баланс энергии'!AA13/'Баланс энергии'!AA$9*AA$9) -> 0 | AB13: х | AC13: х | AD13: х | AE13: =IF('Баланс энергии'!AE$9=0,0,'Баланс энергии'!AE13/'Баланс энергии'!AE$9*AE$9) -> 5166.630892 | AF13: =IF('Баланс энергии'!AF$9=0,0,'Баланс энергии'!AF13/'Баланс энергии'!AF$9*AF$9) -> 0 | AG13: х | AH13: х | AI13: х | AJ13: =IF('Баланс энергии'!AJ$9=0,0,'Баланс энергии'!AJ13/'Баланс энергии'!AJ$9*AJ$9) -> 0 | AK13: =IF('Баланс энергии'!AK$9=0,0,'Баланс энергии'!AK13/'Баланс энергии'!AK$9*AK$9) -> 0 | AL13: х | AM13: х | AN13: х | AO13: =IF('Баланс энергии'!AO$9=0,0,'Баланс энергии'!AO13/'Баланс энергии'!AO$9*AO$9) -> 0 | AP13: =IF('Баланс энергии'!AP$9=0,0,'Баланс энергии'!AP13/'Баланс энергии'!AP$9*AP$9) -> 0 | AQ13: х | AR13: х | AS13: х | AT13: =IF('Баланс энергии'!AT$9=0,0,'Баланс энергии'!AT13/'Баланс энергии'!AT$9*AT$9) -> 0 | AU13: =IF('Баланс энергии'!AU$9=0,0,'Баланс энергии'!AU13/'Баланс энергии'!AU$9*AU$9) -> 0
A14: 1.1.3. | B14: СН2 | C14: х | D14: х | E14: х | F14: х | G14: =IF('Баланс энергии'!G9=0,0,'Баланс энергии'!G14/'Баланс энергии'!G9*G9) -> 0 | H14: х | I14: х | J14: х | K14: х | L14: =IF('Баланс энергии'!L9=0,0,'Баланс энергии'!L14/'Баланс энергии'!L9*L9) -> 4048.428021 | M14: х | N14: х | O14: х | P14: х | Q14: =IF('Баланс энергии'!Q9=0,0,'Баланс энергии'!Q14/'Баланс энергии'!Q9*Q9) -> 3306.890048 | R14: х | S14: х | T14: х | U14: х | V14: =IF('Баланс энергии'!V9=0,0,'Баланс энергии'!V14/'Баланс энергии'!V9*V9) -> 5939.973864 | W14: х | X14: х | Y14: х | Z14: х | AA14: =IF('Баланс энергии'!AA9=0,0,'Баланс энергии'!AA14/'Баланс энергии'!AA9*AA9) -> 2680.008208 | AB14: х | AC14: х | AD14: х | AE14: х | AF14: =IF('Баланс энергии'!AF9=0,0,'Баланс энергии'!AF14/'Баланс энергии'!AF9*AF9) -> 3259.965656 | AG14: х | AH14: х | AI14: х | AJ14: х | AK14: =IF('Баланс энергии'!AK9=0,0,'Баланс энергии'!AK14/'Баланс энергии'!AK9*AK9) -> 0 | AL14: х | AM14: х | AN14: х | AO14: х | AP14: =IF('Баланс энергии'!AP9=0,0,'Баланс энергии'!AP14/'Баланс энергии'!AP9*AP9) -> 0 | AQ14: х | AR14: х | AS14: х | AT14: х | AU14: =IF('Баланс энергии'!AU9=0,0,'Баланс энергии'!AU14/'Баланс энергии'!AU9*AU9) -> 0
A15: 1.2. | B15: от электростанций | C15: =SUM(D15:G15) -> 0 | D15: =IF('Баланс энергии'!D$9=0,0,'Баланс энергии'!D15/'Баланс энергии'!D$9*D$9) -> 0 | E15: =IF('Баланс энергии'!E$9=0,0,'Баланс энергии'!E15/'Баланс энергии'!E$9*E$9) -> 0 | F15: =IF('Баланс энергии'!F$9=0,0,'Баланс энергии'!F15/'Баланс энергии'!F$9*F$9) -> 0 | G15: =IF('Баланс энергии'!$G$9=0,0,'Баланс энергии'!G15/'Баланс энергии'!$G$9*$G$9) -> 0 | H15: =SUM(I15:L15) -> 0 | I15: =IF('Баланс энергии'!I$9=0,0,'Баланс энергии'!I15/'Баланс энергии'!I$9*I$9) -> 0 | J15: =IF('Баланс энергии'!J$9=0,0,'Баланс энергии'!J15/'Баланс энергии'!J$9*J$9) -> 0 | K15: =IF('Баланс энергии'!K$9=0,0,'Баланс энергии'!K15/'Баланс энергии'!K$9*K$9) -> 0 | L15: =IF('Баланс энергии'!$G$9=0,0,'Баланс энергии'!L15/'Баланс энергии'!$G$9*$G$9) -> 0 | M15: =SUM(N15:Q15) -> 0 | N15: =IF('Баланс энергии'!N$9=0,0,'Баланс энергии'!N15/'Баланс энергии'!N$9*N$9) -> 0 | O15: =IF('Баланс энергии'!O$9=0,0,'Баланс энергии'!O15/'Баланс энергии'!O$9*O$9) -> 0 | P15: =IF('Баланс энергии'!P$9=0,0,'Баланс энергии'!P15/'Баланс энергии'!P$9*P$9) -> 0 | Q15: =IF('Баланс энергии'!$G$9=0,0,'Баланс энергии'!Q15/'Баланс энергии'!$G$9*$G$9) -> 0 | R15: =SUM(S15:V15) -> 0 | S15: =IF('Баланс энергии'!S$9=0,0,'Баланс энергии'!S15/'Баланс энергии'!S$9*S$9) -> 0 | T15: =IF('Баланс энергии'!T$9=0,0,'Баланс энергии'!T15/'Баланс энергии'!T$9*T$9) -> 0 | U15: =IF('Баланс энергии'!U$9=0,0,'Баланс энергии'!U15/'Баланс энергии'!U$9*U$9) -> 0 | V15: =IF('Баланс энергии'!$G$9=0,0,'Баланс энергии'!V15/'Баланс энергии'!$G$9*$G$9) -> 0 | W15: =SUM(X15:AA15) -> 0 | X15: =IF('Баланс энергии'!X$9=0,0,'Баланс энергии'!X15/'Баланс энергии'!X$9*X$9) -> 0 | Y15: =IF('Баланс энергии'!Y$9=0,0,'Баланс энергии'!Y15/'Баланс энергии'!Y$9*Y$9) -> 0 | Z15: =IF('Баланс энергии'!Z$9=0,0,'Баланс энергии'!Z15/'Баланс энергии'!Z$9*Z$9) -> 0 | AA15: =IF('Баланс энергии'!$G$9=0,0,'Баланс энергии'!AA15/'Баланс энергии'!$G$9*$G$9) -> 0 | AB15: =SUM(AC15:AF15) -> 0 | AC15: =IF('Баланс энергии'!AC$9=0,0,'Баланс энергии'!AC15/'Баланс энергии'!AC$9*AC$9) -> 0 | AD15: =IF('Баланс энергии'!AD$9=0,0,'Баланс энергии'!AD15/'Баланс энергии'!AD$9*AD$9) -> 0 | AE15: =IF('Баланс энергии'!AE$9=0,0,'Баланс энергии'!AE15/'Баланс энергии'!AE$9*AE$9) -> 0 | AF15: =IF('Баланс энергии'!$G$9=0,0,'Баланс энергии'!AF15/'Баланс энергии'!$G$9*$G$9) -> 0 | AG15: =SUM(AH15:AK15) -> 0 | AH15: =IF('Баланс энергии'!AH$9=0,0,'Баланс энергии'!AH15/'Баланс энергии'!AH$9*AH$9) -> 0 | AI15: =IF('Баланс энергии'!AI$9=0,0,'Баланс энергии'!AI15/'Баланс энергии'!AI$9*AI$9) -> 0 | AJ15: =IF('Баланс энергии'!AJ$9=0,0,'Баланс энергии'!AJ15/'Баланс энергии'!AJ$9*AJ$9) -> 0 | AK15: =IF('Баланс энергии'!$G$9=0,0,'Баланс энергии'!AK15/'Баланс энергии'!$G$9*$G$9) -> 0 | AL15: =SUM(AM15:AP15) -> 0 | AM15: =IF('Баланс энергии'!AM$9=0,0,'Баланс энергии'!AM15/'Баланс энергии'!AM$9*AM$9) -> 0 | AN15: =IF('Баланс энергии'!AN$9=0,0,'Баланс энергии'!AN15/'Баланс энергии'!AN$9*AN$9) -> 0 | AO15: =IF('Баланс энергии'!AO$9=0,0,'Баланс энергии'!AO15/'Баланс энергии'!AO$9*AO$9) -> 0 | AP15: =IF('Баланс энергии'!$G$9=0,0,'Баланс энергии'!AP15/'Баланс энергии'!$G$9*$G$9) -> 0 | AQ15: =SUM(AR15:AU15) -> 0 | AR15: =IF('Баланс энергии'!AR$9=0,0,'Баланс энергии'!AR15/'Баланс энергии'!AR$9*AR$9) -> 0 | AS15: =IF('Баланс энергии'!AS$9=0,0,'Баланс энергии'!AS15/'Баланс энергии'!AS$9*AS$9) -> 0 | AT15: =IF('Баланс энергии'!AT$9=0,0,'Баланс энергии'!AT15/'Баланс энергии'!AT$9*AT$9) -> 0 | AU15: =IF('Баланс энергии'!$G$9=0,0,'Баланс энергии'!AU15/'Баланс энергии'!$G$9*$G$9) -> 0
A16: 1.3. | B16: от ОАО "ФСК ЕЭС" | C16: =SUM(D16:G16) -> 0 | D16: =IF('Баланс энергии'!D$9=0,0,'Баланс энергии'!D16/'Баланс энергии'!D$9*D$9) -> 0 | E16: =IF('Баланс энергии'!E$9=0,0,'Баланс энергии'!E16/'Баланс энергии'!E$9*E$9) -> 0 | F16: =IF('Баланс энергии'!F$9=0,0,'Баланс энергии'!F16/'Баланс энергии'!F$9*F$9) -> 0 | G16: =IF('Баланс энергии'!G$9=0,0,'Баланс энергии'!G16/'Баланс энергии'!G$9*G$9) -> 0 | H16: =SUM(I16:L16) -> 0 | I16: =IF('Баланс энергии'!I$9=0,0,'Баланс энергии'!I16/'Баланс энергии'!I$9*I$9) -> 0 | J16: =IF('Баланс энергии'!J$9=0,0,'Баланс энергии'!J16/'Баланс энергии'!J$9*J$9) -> 0 | K16: =IF('Баланс энергии'!K$9=0,0,'Баланс энергии'!K16/'Баланс энергии'!K$9*K$9) -> 0 | L16: =IF('Баланс энергии'!L$9=0,0,'Баланс энергии'!L16/'Баланс энергии'!L$9*L$9) -> 0 | M16: =SUM(N16:Q16) -> 0 | N16: =IF('Баланс энергии'!N$9=0,0,'Баланс энергии'!N16/'Баланс энергии'!N$9*N$9) -> 0 | O16: =IF('Баланс энергии'!O$9=0,0,'Баланс энергии'!O16/'Баланс энергии'!O$9*O$9) -> 0 | P16: =IF('Баланс энергии'!P$9=0,0,'Баланс энергии'!P16/'Баланс энергии'!P$9*P$9) -> 0 | Q16: =IF('Баланс энергии'!Q$9=0,0,'Баланс энергии'!Q16/'Баланс энергии'!Q$9*Q$9) -> 0 | R16: =SUM(S16:V16) -> 0 | S16: =IF('Баланс энергии'!S$9=0,0,'Баланс энергии'!S16/'Баланс энергии'!S$9*S$9) -> 0 | T16: =IF('Баланс энергии'!T$9=0,0,'Баланс энергии'!T16/'Баланс энергии'!T$9*T$9) -> 0 | U16: =IF('Баланс энергии'!U$9=0,0,'Баланс энергии'!U16/'Баланс энергии'!U$9*U$9) -> 0 | V16: =IF('Баланс энергии'!V$9=0,0,'Баланс энергии'!V16/'Баланс энергии'!V$9*V$9) -> 0 | W16: =SUM(X16:AA16) -> 0 | X16: =IF('Баланс энергии'!X$9=0,0,'Баланс энергии'!X16/'Баланс энергии'!X$9*X$9) -> 0 | Y16: =IF('Баланс энергии'!Y$9=0,0,'Баланс энергии'!Y16/'Баланс энергии'!Y$9*Y$9) -> 0 | Z16: =IF('Баланс энергии'!Z$9=0,0,'Баланс энергии'!Z16/'Баланс энергии'!Z$9*Z$9) -> 0 | AA16: =IF('Баланс энергии'!AA$9=0,0,'Баланс энергии'!AA16/'Баланс энергии'!AA$9*AA$9) -> 0 | AB16: =SUM(AC16:AF16) -> 0 | AC16: =IF('Баланс энергии'!AC$9=0,0,'Баланс энергии'!AC16/'Баланс энергии'!AC$9*AC$9) -> 0 | AD16: =IF('Баланс энергии'!AD$9=0,0,'Баланс энергии'!AD16/'Баланс энергии'!AD$9*AD$9) -> 0 | AE16: =IF('Баланс энергии'!AE$9=0,0,'Баланс энергии'!AE16/'Баланс энергии'!AE$9*AE$9) -> 0 | AF16: =IF('Баланс энергии'!AF$9=0,0,'Баланс энергии'!AF16/'Баланс энергии'!AF$9*AF$9) -> 0 | AG16: =SUM(AH16:AK16) -> 0 | AH16: =IF('Баланс энергии'!AH$9=0,0,'Баланс энергии'!AH16/'Баланс энергии'!AH$9*AH$9) -> 0 | AI16: =IF('Баланс энергии'!AI$9=0,0,'Баланс энергии'!AI16/'Баланс энергии'!AI$9*AI$9) -> 0 | AJ16: =IF('Баланс энергии'!AJ$9=0,0,'Баланс энергии'!AJ16/'Баланс энергии'!AJ$9*AJ$9) -> 0 | AK16: =IF('Баланс энергии'!AK$9=0,0,'Баланс энергии'!AK16/'Баланс энергии'!AK$9*AK$9) -> 0 | AL16: =SUM(AM16:AP16) -> 0 | AM16: =IF('Баланс энергии'!AM$9=0,0,'Баланс энергии'!AM16/'Баланс энергии'!AM$9*AM$9) -> 0 | AN16: =IF('Баланс энергии'!AN$9=0,0,'Баланс энергии'!AN16/'Баланс энергии'!AN$9*AN$9) -> 0 | AO16: =IF('Баланс энергии'!AO$9=0,0,'Баланс энергии'!AO16/'Баланс энергии'!AO$9*AO$9) -> 0 | AP16: =IF('Баланс энергии'!AP$9=0,0,'Баланс энергии'!AP16/'Баланс энергии'!AP$9*AP$9) -> 0 | AQ16: =SUM(AR16:AU16) -> 0 | AR16: =IF('Баланс энергии'!AR$9=0,0,'Баланс энергии'!AR16/'Баланс энергии'!AR$9*AR$9) -> 0 | AS16: =IF('Баланс энергии'!AS$9=0,0,'Баланс энергии'!AS16/'Баланс энергии'!AS$9*AS$9) -> 0 | AT16: =IF('Баланс энергии'!AT$9=0,0,'Баланс энергии'!AT16/'Баланс энергии'!AT$9*AT$9) -> 0 | AU16: =IF('Баланс энергии'!AU$9=0,0,'Баланс энергии'!AU16/'Баланс энергии'!AU$9*AU$9) -> 0
A17: 1.4. | B17: от филиала "Владимирэнерго" ОАО "МРСК Центра и Приволжья" | C17: =SUM(D17:G17) -> 0 | D17: =IF('Баланс энергии'!D$9=0,0,'Баланс энергии'!D17/'Баланс энергии'!D$9*D$9) -> 0 | E17: =IF('Баланс энергии'!E$9=0,0,'Баланс энергии'!E17/'Баланс энергии'!E$9*E$9) -> 0 | F17: =IF('Баланс энергии'!F$9=0,0,'Баланс энергии'!F17/'Баланс энергии'!F$9*F$9) -> 0 | G17: =IF('Баланс энергии'!G$9=0,0,'Баланс энергии'!G17/'Баланс энергии'!G$9*G$9) -> 0 | H17: =SUM(I17:L17) -> 7764.283806 | I17: =IF('Баланс энергии'!I$9=0,0,'Баланс энергии'!I17/'Баланс энергии'!I$9*I$9) -> 0 | J17: =IF('Баланс энергии'!J$9=0,0,'Баланс энергии'!J17/'Баланс энергии'!J$9*J$9) -> 0 | K17: =IF('Баланс энергии'!K$9=0,0,'Баланс энергии'!K17/'Баланс энергии'!K$9*K$9) -> 7764.283806 | L17: =IF('Баланс энергии'!L$9=0,0,'Баланс энергии'!L17/'Баланс энергии'!L$9*L$9) -> 0 | M17: =SUM(N17:Q17) -> 0 | N17: =IF('Баланс энергии'!N$9=0,0,'Баланс энергии'!N17/'Баланс энергии'!N$9*N$9) -> 0 | O17: =IF('Баланс энергии'!O$9=0,0,'Баланс энергии'!O17/'Баланс энергии'!O$9*O$9) -> 0 | P17: =IF('Баланс энергии'!P$9=0,0,'Баланс энергии'!P17/'Баланс энергии'!P$9*P$9) -> 0 | Q17: =IF('Баланс энергии'!Q$9=0,0,'Баланс энергии'!Q17/'Баланс энергии'!Q$9*Q$9) -> 0 | R17: =SUM(S17:V17) -> 9729.139442 | S17: =IF('Баланс энергии'!S$9=0,0,'Баланс энергии'!S17/'Баланс энергии'!S$9*S$9) -> 0 | T17: =IF('Баланс энергии'!T$9=0,0,'Баланс энергии'!T17/'Баланс энергии'!T$9*T$9) -> 0 | U17: =IF('Баланс энергии'!U$9=0,0,'Баланс энергии'!U17/'Баланс энергии'!U$9*U$9) -> 9729.139442 | V17: =IF('Баланс энергии'!V$9=0,0,'Баланс энергии'!V17/'Баланс энергии'!V$9*V$9) -> 0 | W17: =SUM(X17:AA17) -> 4562.50855 | X17: =IF('Баланс энергии'!X$9=0,0,'Баланс энергии'!X17/'Баланс энергии'!X$9*X$9) -> 0 | Y17: =IF('Баланс энергии'!Y$9=0,0,'Баланс энергии'!Y17/'Баланс энергии'!Y$9*Y$9) -> 0 | Z17: =IF('Баланс энергии'!Z$9=0,0,'Баланс энергии'!Z17/'Баланс энергии'!Z$9*Z$9) -> 4562.50855 | AA17: =IF('Баланс энергии'!AA$9=0,0,'Баланс энергии'!AA17/'Баланс энергии'!AA$9*AA$9) -> 0 | AB17: =SUM(AC17:AF17) -> 5166.630892 | AC17: =IF('Баланс энергии'!AC$9=0,0,'Баланс энергии'!AC17/'Баланс энергии'!AC$9*AC$9) -> 0 | AD17: =IF('Баланс энергии'!AD$9=0,0,'Баланс энергии'!AD17/'Баланс энергии'!AD$9*AD$9) -> 5166.630892 | AE17: =IF('Баланс энергии'!AE$9=0,0,'Баланс энергии'!AE17/'Баланс энергии'!AE$9*AE$9) -> 0 | AF17: =IF('Баланс энергии'!AF$9=0,0,'Баланс энергии'!AF17/'Баланс энергии'!AF$9*AF$9) -> 0 | AG17: =SUM(AH17:AK17) -> 0 | AH17: =IF('Баланс энергии'!AH$9=0,0,'Баланс энергии'!AH17/'Баланс энергии'!AH$9*AH$9) -> 0 | AI17: =IF('Баланс энергии'!AI$9=0,0,'Баланс энергии'!AI17/'Баланс энергии'!AI$9*AI$9) -> 0 | AJ17: =IF('Баланс энергии'!AJ$9=0,0,'Баланс энергии'!AJ17/'Баланс энергии'!AJ$9*AJ$9) -> 0 | AK17: =IF('Баланс энергии'!AK$9=0,0,'Баланс энергии'!AK17/'Баланс энергии'!AK$9*AK$9) -> 0 | AL17: =SUM(AM17:AP17) -> 0 | AM17: =IF('Баланс энергии'!AM$9=0,0,'Баланс энергии'!AM17/'Баланс энергии'!AM$9*AM$9) -> 0 | AN17: =IF('Баланс энергии'!AN$9=0,0,'Баланс энергии'!AN17/'Баланс энергии'!AN$9*AN$9) -> 0 | AO17: =IF('Баланс энергии'!AO$9=0,0,'Баланс энергии'!AO17/'Баланс энергии'!AO$9*AO$9) -> 0 | AP17: =IF('Баланс энергии'!AP$9=0,0,'Баланс энергии'!AP17/'Баланс энергии'!AP$9*AP$9) -> 0 | AQ17: =SUM(AR17:AU17) -> 0 | AR17: =IF('Баланс энергии'!AR$9=0,0,'Баланс энергии'!AR17/'Баланс энергии'!AR$9*AR$9) -> 0 | AS17: =IF('Баланс энергии'!AS$9=0,0,'Баланс энергии'!AS17/'Баланс энергии'!AS$9*AS$9) -> 0 | AT17: =IF('Баланс энергии'!AT$9=0,0,'Баланс энергии'!AT17/'Баланс энергии'!AT$9*AT$9) -> 0 | AU17: =IF('Баланс энергии'!AU$9=0,0,'Баланс энергии'!AU17/'Баланс энергии'!AU$9*AU$9) -> 0
A18: 1.5. | B18: от других сетевых организаций | C18: =SUM(D18:G18) -> 2456.465203 | D18: =IF('Баланс энергии'!D$9=0,0,'Баланс энергии'!D18/'Баланс энергии'!D$9*D$9) -> 964.0879443 | E18: =IF('Баланс энергии'!E$9=0,0,'Баланс энергии'!E18/'Баланс энергии'!E$9*E$9) -> 0 | F18: =IF('Баланс энергии'!F$9=0,0,'Баланс энергии'!F18/'Баланс энергии'!F$9*F$9) -> 1492.377259 | G18: =IF('Баланс энергии'!G$9=0,0,'Баланс энергии'!G18/'Баланс энергии'!G$9*G$9) -> 0 | H18: =SUM(I18:L18) -> 0 | I18: =IF('Баланс энергии'!I$9=0,0,'Баланс энергии'!I18/'Баланс энергии'!I$9*I$9) -> 0 | J18: =IF('Баланс энергии'!J$9=0,0,'Баланс энергии'!J18/'Баланс энергии'!J$9*J$9) -> 0 | K18: =IF('Баланс энергии'!K$9=0,0,'Баланс энергии'!K18/'Баланс энергии'!K$9*K$9) -> 0 | L18: =IF('Баланс энергии'!L$9=0,0,'Баланс энергии'!L18/'Баланс энергии'!L$9*L$9) -> 0 | M18: =SUM(N18:Q18) -> 10698.10678 | N18: =IF('Баланс энергии'!N$9=0,0,'Баланс энергии'!N18/'Баланс энергии'!N$9*N$9) -> 0 | O18: =IF('Баланс энергии'!O$9=0,0,'Баланс энергии'!O18/'Баланс энергии'!O$9*O$9) -> 0 | P18: =IF('Баланс энергии'!P$9=0,0,'Баланс энергии'!P18/'Баланс энергии'!P$9*P$9) -> 10698.10678 | Q18: =IF('Баланс энергии'!Q$9=0,0,'Баланс энергии'!Q18/'Баланс энергии'!Q$9*Q$9) -> 0 | R18: =SUM(S18:V18) -> 0 | S18: =IF('Баланс энергии'!S$9=0,0,'Баланс энергии'!S18/'Баланс энергии'!S$9*S$9) -> 0 | T18: =IF('Баланс энергии'!T$9=0,0,'Баланс энергии'!T18/'Баланс энергии'!T$9*T$9) -> 0 | U18: =IF('Баланс энергии'!U$9=0,0,'Баланс энергии'!U18/'Баланс энергии'!U$9*U$9) -> 0 | V18: =IF('Баланс энергии'!V$9=0,0,'Баланс энергии'!V18/'Баланс энергии'!V$9*V$9) -> 0 | W18: =SUM(X18:AA18) -> 0 | X18: =IF('Баланс энергии'!X$9=0,0,'Баланс энергии'!X18/'Баланс энергии'!X$9*X$9) -> 0 | Y18: =IF('Баланс энергии'!Y$9=0,0,'Баланс энергии'!Y18/'Баланс энергии'!Y$9*Y$9) -> 0 | Z18: =IF('Баланс энергии'!Z$9=0,0,'Баланс энергии'!Z18/'Баланс энергии'!Z$9*Z$9) -> 0 | AA18: =IF('Баланс энергии'!AA$9=0,0,'Баланс энергии'!AA18/'Баланс энергии'!AA$9*AA$9) -> 0 | AB18: =SUM(AC18:AF18) -> 0 | AC18: =IF('Баланс энергии'!AC$9=0,0,'Баланс энергии'!AC18/'Баланс энергии'!AC$9*AC$9) -> 0 | AD18: =IF('Баланс энергии'!AD$9=0,0,'Баланс энергии'!AD18/'Баланс энергии'!AD$9*AD$9) -> 0 | AE18: =IF('Баланс энергии'!AE$9=0,0,'Баланс энергии'!AE18/'Баланс энергии'!AE$9*AE$9) -> 0 | AF18: =IF('Баланс энергии'!AF$9=0,0,'Баланс энергии'!AF18/'Баланс энергии'!AF$9*AF$9) -> 0 | AG18: =SUM(AH18:AK18) -> 0 | AH18: =IF('Баланс энергии'!AH$9=0,0,'Баланс энергии'!AH18/'Баланс энергии'!AH$9*AH$9) -> 0 | AI18: =IF('Баланс энергии'!AI$9=0,0,'Баланс энергии'!AI18/'Баланс энергии'!AI$9*AI$9) -> 0 | AJ18: =IF('Баланс энергии'!AJ$9=0,0,'Баланс энергии'!AJ18/'Баланс энергии'!AJ$9*AJ$9) -> 0 | AK18: =IF('Баланс энергии'!AK$9=0,0,'Баланс энергии'!AK18/'Баланс энергии'!AK$9*AK$9) -> 0 | AL18: =SUM(AM18:AP18) -> 0 | AM18: =IF('Баланс энергии'!AM$9=0,0,'Баланс энергии'!AM18/'Баланс энергии'!AM$9*AM$9) -> 0 | AN18: =IF('Баланс энергии'!AN$9=0,0,'Баланс энергии'!AN18/'Баланс энергии'!AN$9*AN$9) -> 0 | AO18: =IF('Баланс энергии'!AO$9=0,0,'Баланс энергии'!AO18/'Баланс энергии'!AO$9*AO$9) -> 0 | AP18: =IF('Баланс энергии'!AP$9=0,0,'Баланс энергии'!AP18/'Баланс энергии'!AP$9*AP$9) -> 0 | AQ18: =SUM(AR18:AU18) -> 0 | AR18: =IF('Баланс энергии'!AR$9=0,0,'Баланс энергии'!AR18/'Баланс энергии'!AR$9*AR$9) -> 0 | AS18: =IF('Баланс энергии'!AS$9=0,0,'Баланс энергии'!AS18/'Баланс энергии'!AS$9*AS$9) -> 0 | AT18: =IF('Баланс энергии'!AT$9=0,0,'Баланс энергии'!AT18/'Баланс энергии'!AT$9*AT$9) -> 0 | AU18: =IF('Баланс энергии'!AU$9=0,0,'Баланс энергии'!AU18/'Баланс энергии'!AU$9*AU$9) -> 0
A19: 2. | B19: Потери электроэнергии в сети | C19: =D19+E19+F19+G19 -> 95.06520337 | D19: =D9*D20/100 -> 0 | E19: =E9*E20/100 -> 0 | F19: =F9*F20/100 -> 95.06520337 | G19: =G9*G20/100 -> 0 | H19: =I19+J19+K19+L19 -> 639.0028065 | I19: =I9*I20/100 -> 0 | J19: =J9*J20/100 -> 0 | K19: =K9*K20/100 -> 320.9987854 | L19: =L9*L20/100 -> 318.0040211 | M19: =N19+O19+P19+Q19 -> 740.4067801 | N19: =N9*N20/100 -> 0 | O19: =O9*O20/100 -> 0 | P19: =P9*P20/100 -> 414.0167324 | Q19: =Q9*Q20/100 -> 326.3900477 | R19: =S19+T19+U19+V19 -> 829.1394418 | S19: =S9*S20/100 -> 0 | T19: =T9*T20/100 -> 0 | U19: =U9*U20/100 -> 389.1655777 | V19: =V9*V20/100 -> 439.9738641 | W19: =X19+Y19+Z19+AA19 -> 381.00855 | X19: =X9*X20/100 -> 0 | Y19: =Y9*Y20/100 -> 0 | Z19: =Z9*Z20/100 -> 182.500342 | AA19: =AA9*AA20/100 -> 198.508208 | AB19: =AC19+AD19+AE19+AF19 -> 448.1308918 | AC19: =AC9*AC20/100 -> 0 | AD19: =AD9*AD20/100 -> 0 | AE19: =AE9*AE20/100 -> 206.6652357 | AF19: =AF9*AF20/100 -> 241.4656562 | AG19: =AH19+AI19+AJ19+AK19 -> 0 | AH19: =AH9*AH20/100 -> 0 | AI19: =AI9*AI20/100 -> 0 | AJ19: =AJ9*AJ20/100 -> 0 | AK19: =AK9*AK20/100 -> 0 | AL19: =AM19+AN19+AO19+AP19 -> 0 | AM19: =AM9*AM20/100 -> 0 | AN19: =AN9*AN20/100 -> 0 | AO19: =AO9*AO20/100 -> 0 | AP19: =AP9*AP20/100 -> 0 | AQ19: =AR19+AS19+AT19+AU19 -> 0 | AR19: =AR9*AR20/100 -> 0 | AS19: =AS9*AS20/100 -> 0 | AT19: =AT9*AT20/100 -> 0 | AU19: =AU9*AU20/100 -> 0
A20: 2.1. | B20: то же в % (п.2./п.1.) | C20: =IF(C9=0,0,C19/C9*100) -> 3.87 | F20: ='Баланс энергии'!F20 -> 3.87 | G20: ='Баланс энергии'!G20 -> 9.87 | H20: =IF(H9=0,0,H19/H9*100) -> 8.230028968 | K20: ='Баланс энергии'!K20 -> 4.1343 | L20: ='Баланс энергии'!L20 -> 7.855 | M20: =IF(M9=0,0,M19/M9*100) -> 6.920914096 | P20: ='Баланс энергии'!P20 -> 3.87 | Q20: ='Баланс энергии'!Q20 -> 9.87 | R20: =IF(R9=0,0,R19/R9*100) -> 8.52222796 | U20: ='Баланс энергии'!U20 -> 4 | V20: ='Баланс энергии'!V20 -> 7.407 | W20: =IF(W9=0,0,W19/W9*100) -> 8.350856679 | Z20: ='Баланс энергии'!Z20 -> 4 | AA20: ='Баланс энергии'!AA20 -> 7.407 | AB20: =IF(AB9=0,0,AB19/AB9*100) -> 8.673561189 | AE20: ='Баланс энергии'!AE20 -> 4 | AF20: ='Баланс энергии'!AF20 -> 7.407 | AG20: =IF(AG9=0,0,AG19/AG9*100) -> 0 | AL20: =IF(AL9=0,0,AL19/AL9*100) -> 0 | AQ20: =IF(AQ9=0,0,AQ19/AQ9*100) -> 0
A21: 3. | B21: Расход электроэнергии на производственные и хознужды | C21: =SUM(D21:G21) -> 0 | H21: =SUM(I21:L21) -> 0 | M21: =SUM(N21:Q21) -> 0 | R21: =SUM(S21:V21) -> 0 | W21: =SUM(X21:AA21) -> 0 | AB21: =SUM(AC21:AF21) -> 0 | AG21: =SUM(AH21:AK21) -> 0 | AL21: =SUM(AM21:AP21) -> 0 | AQ21: =SUM(AR21:AU21) -> 0
A22: 4. | B22: Полезный отпуск из сети | C22: =SUM(D22:G22) -> 2361.4 | D22: =D23+D24+D25 -> 0 | E22: =E23+E24+E25 -> 0 | F22: 2361.4 | G22: 0 | H22: =SUM(I22:L22) -> 7125.281 | I22: =I23+I24+I25 -> 0 | J22: =J23+J24+J25 -> 0 | K22: 3394.857 | L22: 3730.424 | M22: =SUM(N22:Q22) -> 9957.7 | N22: =N23+N24+N25 -> 0 | O22: =O23+O24+O25 -> 0 | P22: 6977.2 | Q22: 2980.5 | R22: =SUM(S22:V22) -> 8900 | S22: =S23+S24+S25 -> 0 | T22: =T23+T24+T25 -> 0 | U22: 3400 | V22: 5500 | W22: =SUM(X22:AA22) -> 4181.5 | X22: =X23+X24+X25 -> 0 | Y22: =Y23+Y24+Y25 -> 0 | Z22: 1700 | AA22: 2481.5 | AB22: =SUM(AC22:AF22) -> 4718.5 | AC22: =AC23+AC24+AC25 -> 0 | AD22: =AD23+AD24+AD25 -> 0 | AE22: 1700 | AF22: 3018.5 | AG22: =SUM(AH22:AK22) -> 0 | AH22: =AH23+AH24+AH25 -> 0 | AI22: =AI23+AI24+AI25 -> 0 | AJ22: 0 | AK22: 0 | AL22: =SUM(AM22:AP22) -> 0 | AM22: =AM23+AM24+AM25 -> 0 | AN22: =AN23+AN24+AN25 -> 0 | AO22: 0 | AP22: 0 | AQ22: =SUM(AR22:AU22) -> 0 | AR22: =AR23+AR24+AR25 -> 0 | AS22: =AS23+AS24+AS25 -> 0 | AT22: 0 | AU22: 0
A23: 4.1. | B23: потребителям, присоединенным к сети | C23: =SUM(D23:G23) -> 0 | D23: ='Баланс энергии'!D24 -> 0 | E23: ='Баланс энергии'!E24 -> 0 | F23: ='Баланс энергии'!F24 -> 0 | G23: ='Баланс энергии'!G24 -> 0 | H23: =SUM(I23:L23) -> 6733.881 | I23: ='Баланс энергии'!I24 -> 0 | J23: ='Баланс энергии'!J24 -> 0 | K23: ='Баланс энергии'!K24 -> 3003.457 | L23: ='Баланс энергии'!L24 -> 3730.424 | M23: =SUM(N23:Q23) -> 8724 | N23: ='Баланс энергии'!N24 -> 0 | O23: ='Баланс энергии'!O24 -> 0 | P23: ='Баланс энергии'!P24 -> 5743.5 | Q23: ='Баланс энергии'!Q24 -> 2980.5 | R23: =SUM(S23:V23) -> 8500 | S23: ='Баланс энергии'!S24 -> 0 | T23: ='Баланс энергии'!T24 -> 0 | U23: ='Баланс энергии'!U24 -> 3000 | V23: ='Баланс энергии'!V24 -> 5500 | W23: =SUM(X23:AA23) -> 3981.5 | X23: ='Баланс энергии'!X24 -> 0 | Y23: ='Баланс энергии'!Y24 -> 0 | Z23: ='Баланс энергии'!Z24 -> 1500 | AA23: ='Баланс энергии'!AA24 -> 2481.5 | AB23: =SUM(AC23:AF23) -> 4518.5 | AC23: ='Баланс энергии'!AC24 -> 0 | AD23: ='Баланс энергии'!AD24 -> 0 | AE23: ='Баланс энергии'!AE24 -> 1500 | AF23: ='Баланс энергии'!AF24 -> 3018.5 | AG23: =SUM(AH23:AK23) -> 0 | AH23: ='Баланс энергии'!AH24 -> 0 | AI23: ='Баланс энергии'!AI24 -> 0 | AJ23: ='Баланс энергии'!AJ24 -> 0 | AK23: ='Баланс энергии'!AK24 -> 0 | AL23: =SUM(AM23:AP23) -> 0 | AM23: ='Баланс энергии'!AM24 -> 0 | AN23: ='Баланс энергии'!AN24 -> 0 | AO23: ='Баланс энергии'!AO24 -> 0 | AP23: ='Баланс энергии'!AP24 -> 0 | AQ23: =SUM(AR23:AU23) -> 0 | AR23: ='Баланс энергии'!AR24 -> 0 | AS23: ='Баланс энергии'!AS24 -> 0 | AT23: ='Баланс энергии'!AT24 -> 0 | AU23: ='Баланс энергии'!AU24 -> 0
A24: 4.2. | B24: переток в филиал"Владимирэнерго" ОАО "МРСК Центра и Приволжья" | C24: =SUM(D24:G24) -> 2361.4 | D24: ='Баланс энергии'!D25 -> 0 | E24: ='Баланс энергии'!E25 -> 0 | F24: ='Баланс энергии'!F25 -> 2361.4 | G24: ='Баланс энергии'!G25 -> 0 | H24: =SUM(I24:L24) -> 0 | I24: ='Баланс энергии'!I25 -> 0 | J24: ='Баланс энергии'!J25 -> 0 | K24: ='Баланс энергии'!K25 -> 0 | L24: ='Баланс энергии'!L25 -> 0 | M24: =SUM(N24:Q24) -> 0 | N24: ='Баланс энергии'!N25 -> 0 | O24: ='Баланс энергии'!O25 -> 0 | P24: ='Баланс энергии'!P25 -> 0 | Q24: ='Баланс энергии'!Q25 -> 0 | R24: =SUM(S24:V24) -> 0 | S24: ='Баланс энергии'!S25 -> 0 | T24: ='Баланс энергии'!T25 -> 0 | U24: ='Баланс энергии'!U25 -> 0 | V24: ='Баланс энергии'!V25 -> 0 | W24: =SUM(X24:AA24) -> 0 | X24: ='Баланс энергии'!X25 -> 0 | Y24: ='Баланс энергии'!Y25 -> 0 | Z24: ='Баланс энергии'!Z25 -> 0 | AA24: ='Баланс энергии'!AA25 -> 0 | AB24: =SUM(AC24:AF24) -> 0 | AC24: ='Баланс энергии'!AC25 -> 0 | AD24: ='Баланс энергии'!AD25 -> 0 | AE24: ='Баланс энергии'!AE25 -> 0 | AF24: ='Баланс энергии'!AF25 -> 0 | AG24: =SUM(AH24:AK24) -> 0 | AH24: ='Баланс энергии'!AH25 -> 0 | AI24: ='Баланс энергии'!AI25 -> 0 | AJ24: ='Баланс энергии'!AJ25 -> 0 | AK24: ='Баланс энергии'!AK25 -> 0 | AL24: =SUM(AM24:AP24) -> 0 | AM24: ='Баланс энергии'!AM25 -> 0 | AN24: ='Баланс энергии'!AN25 -> 0 | AO24: ='Баланс энергии'!AO25 -> 0 | AP24: ='Баланс энергии'!AP25 -> 0 | AQ24: =SUM(AR24:AU24) -> 0 | AR24: ='Баланс энергии'!AR25 -> 0 | AS24: ='Баланс энергии'!AS25 -> 0 | AT24: ='Баланс энергии'!AT25 -> 0 | AU24: ='Баланс энергии'!AU25 -> 0
A25: 4.3. | B25: переток в другие сетевые организации | C25: =SUM(D25:G25) -> 0 | D25: ='Баланс энергии'!D26 -> 0 | E25: ='Баланс энергии'!E26 -> 0 | F25: ='Баланс энергии'!F26 -> 0 | G25: ='Баланс энергии'!G26 -> 0 | H25: =SUM(I25:L25) -> 391.4 | I25: ='Баланс энергии'!I26 -> 0 | J25: ='Баланс энергии'!J26 -> 0 | K25: ='Баланс энергии'!K26 -> 391.4 | L25: ='Баланс энергии'!L26 -> 0 | M25: =SUM(N25:Q25) -> 1233.7 | N25: ='Баланс энергии'!N26 -> 0 | O25: ='Баланс энергии'!O26 -> 0 | P25: ='Баланс энергии'!P26 -> 1233.7 | Q25: ='Баланс энергии'!Q26 -> 0 | R25: =SUM(S25:V25) -> 400 | S25: ='Баланс энергии'!S26 -> 0 | T25: ='Баланс энергии'!T26 -> 0 | U25: ='Баланс энергии'!U26 -> 400 | V25: ='Баланс энергии'!V26 -> 0 | W25: =SUM(X25:AA25) -> 200 | X25: ='Баланс энергии'!X26 -> 0 | Y25: ='Баланс энергии'!Y26 -> 0 | Z25: ='Баланс энергии'!Z26 -> 200 | AA25: ='Баланс энергии'!AA26 -> 0 | AB25: =SUM(AC25:AF25) -> 200 | AC25: ='Баланс энергии'!AC26 -> 0 | AD25: ='Баланс энергии'!AD26 -> 0 | AE25: ='Баланс энергии'!AE26 -> 200 | AF25: ='Баланс энергии'!AF26 -> 0 | AG25: =SUM(AH25:AK25) -> 0 | AH25: ='Баланс энергии'!AH26 -> 0 | AI25: ='Баланс энергии'!AI26 -> 0 | AJ25: ='Баланс энергии'!AJ26 -> 0 | AK25: ='Баланс энергии'!AK26 -> 0 | AL25: =SUM(AM25:AP25) -> 0 | AM25: ='Баланс энергии'!AM26 -> 0 | AN25: ='Баланс энергии'!AN26 -> 0 | AO25: ='Баланс энергии'!AO26 -> 0 | AP25: ='Баланс энергии'!AP26 -> 0 | AQ25: =SUM(AR25:AU25) -> 0 | AR25: ='Баланс энергии'!AR26 -> 0 | AS25: ='Баланс энергии'!AS26 -> 0 | AT25: ='Баланс энергии'!AT26 -> 0 | AU25: ='Баланс энергии'!AU26 -> 0
B26: Проверка | D26: =D9-D19-D21-D23-D25-E12-F12-G12-D24 -> 0 | E26: =E9-E19-E21-E23-E25-F13-G13-E24 -> 0 | F26: =F9-F19-F21-F23-F25-G14-F24 -> 0 | G26: =G9-G19-G21-G23-G25-G24 -> 0 | I26: =I9-I19-I21-I23-I25-J12-K12-L12-I24 -> 0 | J26: =J9-J19-J21-J23-J25-K13-L13-J24 -> 0 | K26: =K9-K19-K21-K23-K25-L14-K24 -> 0 | L26: =L9-L19-L21-L23-L25-L24 -> 0 | N26: =N9-N19-N21-N23-N25-O12-P12-Q12-N24 -> 0 | O26: =O9-O19-O21-O23-O25-P13-Q13-O24 -> 0 | P26: =P9-P19-P21-P23-P25-Q14-P24 -> 1.818989404e-12 | Q26: =Q9-Q19-Q21-Q23-Q25-Q24 -> 4.547473509e-13 | S26: =S9-S19-S21-S23-S25-T12-U12-V12-S24 -> 0 | T26: =T9-T19-T21-T23-T25-U13-V13-T24 -> 0 | U26: =U9-U19-U21-U23-U25-V14-U24 -> -9.094947018e-13 | V26: =V9-V19-V21-V23-V25-V24 -> -9.094947018e-13 | X26: =X9-X19-X21-X23-X25-Y12-Z12-AA12-X24 -> 0 | Y26: =Y9-Y19-Y21-Y23-Y25-Z13-AA13-Y24 -> 0 | Z26: =Z9-Z19-Z21-Z23-Z25-AA14-Z24 -> 4.547473509e-13 | AA26: =AA9-AA19-AA21-AA23-AA25-AA24 -> -4.547473509e-13 | AC26: =AC9-AC19-AC21-AC23-AC25-AD12-AE12-AF12-AC24 -> 0 | AD26: =AD9-AD19-AD21-AD23-AD25-AE13-AF13-AD24 -> 0 | AE26: =AE9-AE19-AE21-AE23-AE25-AF14-AE24 -> 4.547473509e-13 | AF26: =AF9-AF19-AF21-AF23-AF25-AF24 -> -4.547473509e-13 | AH26: =AH9-AH19-AH21-AH23-AH25-AI12-AJ12-AK12-AH24 -> 0 | AI26: =AI9-AI19-AI21-AI23-AI25-AJ13-AK13-AI24 -> 0 | AJ26: =AJ9-AJ19-AJ21-AJ23-AJ25-AK14-AJ24 -> 0 | AK26: =AK9-AK19-AK21-AK23-AK25-AK24 -> 0 | AM26: =AM9-AM19-AM21-AM23-AM25-AN12-AO12-AP12-AM24 -> 0 | AN26: =AN9-AN19-AN21-AN23-AN25-AO13-AP13-AN24 -> 0 | AO26: =AO9-AO19-AO21-AO23-AO25-AP14-AO24 -> 0 | AP26: =AP9-AP19-AP21-AP23-AP25-AP24 -> 0 | AR26: =AR9-AR19-AR21-AR23-AR25-AS12-AT12-AU12-AR24 -> 0 | AS26: =AS9-AS19-AS21-AS23-AS25-AT13-AU13-AS24 -> 0 | AT26: =AT9-AT19-AT21-AT23-AT25-AU14-AT24 -> 0 | AU26: =AU9-AU19-AU21-AU23-AU25-AU24 -> 0
B29: Руководитель организации | G29: ='Инф-я'!C21 -> Чижов Олег Александрович

Sheet Баланс мощности
B2: Электрическая мощность по диапазонам напряжения
B4: ='Инф-я'!C13 -> ООО "МОНОСТРОЙ"
G6: МВт
A7: № п.п. | B7: Показатели | C7: По данным организации на 2020 год | H7: По данным экспертов на 2020 год
C8: Всего | D8: ВН | E8: СН1 | F8: СН2 | G8: НН | H8: Всего | I8: ВН | J8: СН1 | K8: СН2 | L8: НН
A9: 1 | B9: 2 | C9: 3 | D9: 4 | E9: 5 | F9: 6 | G9: 7 | H9: 8 | I9: 9 | J9: 10 | K9: 11 | L9: 12
A10: 1. | B10: Поступление мощности в сеть , ВСЕГО | C10: =C20+C22+C23 -> 0 | D10: =D16+D17+D18+D19 -> 0 | E10: =E11+E16+E17+E18+E19 -> 0 | F10: =F11+F16+F17+F18+F19 -> 0 | G10: =G11+G16+G17+G18+G19 -> 0 | H10: =H20+H22+H23 -> 0 | I10: =I16+I17+I18+I19 -> 0 | J10: =J11+J16+J17+J18+J19 -> 0 | K10: =K11+K16+K17+K18+K19 -> 0 | L10: =L11+L16+L17+L18+L19 -> 0
A11: 1.1. | B11: из смежной сети, всего | C11: х | D11: х | E11: =E13 -> 0 | F11: =F13+F14 -> 0 | G11: =G13+G14+G15 -> 0 | H11: х | I11: х | J11: =J13 -> 0 | K11: =K13+K14 -> 0 | L11: =L13+L14+L15 -> 0
B12: в том числе из сети | C12: х | D12: х | E12: х | F12: х | G12: х | H12: х | I12: х | J12: х | K12: х | L12: х
A13: 1.1.1. | B13: ВН | C13: х | D13: х | F13: =D10-D20-D22-D23-G13-E13 -> 0 | H13: х | I13: х | K13: =I10-I20-I22-I23-L13-J13 -> 0
A14: 1.1.2. | B14: СН1 | C14: х | D14: х | E14: х | F14: =E10-E20-E22-E23-G14 -> 0 | H14: х | I14: х | J14: х | K14: =J10-J20-J22-J23-L14 -> 0
A15: 1.1.3. | B15: СН2 | C15: х | D15: х | E15: х | F15: х | G15: =F10-F20-F22-F23 -> 0 | H15: х | I15: х | J15: х | K15: х | L15: =K10-K20-K22-K23 -> 0
A16: 1.2. | B16: от электростанций | C16: =SUM(D16:G16) -> 0 | H16: =SUM(I16:L16) -> 0
A17: 1.3. | B17: от ОАО "ФСК ЕЭС" | C17: =SUM(D17:G17) -> 0 | H17: =SUM(I17:L17) -> 0
A18: 1.4. | B18: от филиала "Владимирэнерго" ОАО "МРСК Центра и Приволжья" | C18: =SUM(D18:G18) -> 0 | H18: =SUM(I18:L18) -> 0
A19: 1.5. | B19: от других сетевых организаций | C19: =SUM(D19:G19) -> 0 | H19: =SUM(I19:L19) -> 0
A20: 2. | B20: Потери мощности в сети | C20: =SUM(D20:G20) -> 0 | D20: =D10*D21/100 -> 0 | E20: =E10*E21/100 -> 0 | F20: =F10*F21/100 -> 0 | G20: =G10*G21/100 -> 0 | H20: =SUM(I20:L20) -> 0 | I20: =I10*I21/100 -> 0 | J20: =J10*J21/100 -> 0 | K20: =K10*K21/100 -> 0 | L20: =L10*L21/100 -> 0
A21: 2.1. | B21: то же в % (п.2./п.1.) | C21: =IF(C10=0,0,C20/C10*100) -> 0 | D21: ='Баланс энергии'!S20 -> 0 | E21: ='Баланс энергии'!T20 -> 0 | F21: ='Баланс энергии'!U20 -> 4 | H21: =IF(H10=0,0,H20/H10*100) -> 0 | I21: ='Баланс энергии'!AH20 -> 0 | J21: ='Баланс энергии'!AI20 -> 0 | K21: ='Баланс энергии'!AJ20 -> 0
A22: 3. | B22: Расход электроэнергии на производственные и хознужды | C22: =SUM(D22:G22) -> 0 | H22: =SUM(I22:L22) -> 0
A23: 4. | B23: Полезный отпуск из сети | C23: 0 | D23: =D24+D25+D26+D27 -> 0 | E23: =E24+E25+E26+E27 -> 0 | F23: 0 | G23: 0 | H23: =SUM(I23:L23) -> 0 | I23: =I25+I26+I27 -> 0 | J23: =J25+J26+J27 -> 0 | K23: =K25+K26+K27 -> 0 | L23: =L10-L20-L22 -> 0
A24: 4.1. | B24: собственное потребление | C24: 0
A25: 4.2. | B25: потребителям, присоединенным к сети | C25: 0 | H25: =SUM(I25:L25) -> 0
A26: 4.3. | B26: переток в филиал "Владимирэнерго" ОАО "МРСК Центра и Приволжья" | C26: 0 | H26: =SUM(I26:L26) -> 0
A27: 4.4. | B27: переток в другие сетевые организации | C27: 0 | H27: =SUM(I27:L27) -> 0
B28: Проверка | D28: =D10-D20-D22-D25-D26-D27-E13-F13-G13 -> 0 | E28: =E10-E20-E22-E25-E26-E27-F14-G14 -> 0 | F28: =F10-F20-F22-F25-F26-F27-G15 -> 0 | G28: =G10-G20-G22-G25-G26-G27 -> 0 | I28: =I10-I20-I22-I25-I26-I27-J13-K13-L13 -> 0 | J28: =J10-J20-J22-J25-J26-J27-K14-L14 -> 0 | K28: =K10-K20-K22-K25-K26-K27-L15 -> 0 | L28: =L10-L20-L22-L25-L26-L27 -> 0
B30: Руководитель организации | D30: ='Инф-я'!C32 -> monostroj-peo@mail.ru

Sheet УЕ ВЛЭП 2017-2024
A3: Объем воздушных линий электропередач (ВЛЭП) и кабельных линий электропередач (КЛЭП) в условных единицах в зависимости от протяженности, напряжения, конструктивного использования и материала опор в период с 2017 по 2024 годы
B4: ='Инф-я'!C13 -> ООО "МОНОСТРОЙ"
A6: ЛЭП | B6: Напряжение, кВ | C6: Количество цепей на опоре | D6: Материал опор | E6: Наименование | F6: Количество условных единиц (у) на 100 км трассы ЛЭП | G6: Протяженность | H6: Объем условных единиц | I6: Протяженность | J6: Объем условных единиц | K6: Протяженность | L6: Объем условных единиц | M6: Количество единиц измерения | N6: Объем условных единиц | O6: Протяженность | P6: Объем условных единиц | Q6: Протяженность | R6: Объем условных единиц | S6: Протяженность | T6: Объем условных единиц | U6: Протяженность | V6: Объем условных единиц | W6: Протяженность | X6: Объем условных единиц | Y6: Протяженность | Z6: Объем условных единиц | AA6: Протяженность | AB6: Объем условных единиц | AC6: Протяженность | AD6: Объем условных единиц | AE6: Протяженность | AF6: Объем условных единиц | AG6: Протяженность | AH6: Объем условных единиц | AI6: Протяженность | AJ6: Объем условных единиц
F7: у/100км | G7: км | H7: у | I7: ед.изм. | J7: у | K7: ед.изм. | L7: у | M7: ед.изм. | N7: у | O7: км | P7: у | Q7: км | R7: у | S7: км | T7: у | U7: км | V7: у | W7: км | X7: у | Y7: км | Z7: у | AA7: км | AB7: у | AC7: км | AD7: у | AE7: км | AF7: у | AG7: км | AH7: у | AI7: км | AJ7: у
G8: 2017 год факт | I8: 2018 год утверждено | K8: 2018 год факт по данным организации | M8: 2018 год факт по данным экспертов | O8: 2019 год утверждено | Q8: 2020 год план по данным организации | S8: 2020 год по данным экспертов | U8: 2021 год план по данным организации | W8: 2021 год по данным экспертов | Y8: 2022 год план по данным организации | AA8: 2022 год по данным экспертов | AC8: 2023 год план по данным организации | AE8: 2023 год по данным экспертов | AG8: 2024 год план по данным организации | AI8: 2024 год по данным экспертов
A9: 1 | B9: =+A9+1 -> 2 | C9: =+B9+1 -> 3 | D9: =+C9+1 -> 4 | E9: 5 | F9: 6 | G9: 7 | H9: 8 | I9: 9 | J9: 10 | K9: 11 | L9: 12 | M9: 13 | N9: 14 | O9: 15 | P9: 16 | Q9: 17 | R9: 18 | U9: 19 | V9: 20 | Y9: 21 | Z9: 22 | AC9: 23 | AD9: 24 | AG9: 25 | AH9: 26
A10: ВЛЭП | B10: 1150 | C10: - | D10: металл | E10: ВЛЭП-1150кВ-металл | F10: 800 | H10: =$F10*G10/100 -> 0 | J10: =F10*I10/100 -> 0 | L10: =K10*F10/100 -> 0 | N10: =M10*F10/100 -> 0 | P10: =F10*O10/100 -> 0 | R10: =F10*Q10/100 -> 0 | T10: =$F10*S10/100 -> 0 | V10: =$F10*U10/100 -> 0 | X10: =$F10*W10/100 -> 0 | Z10: =$F10*Y10/100 -> 0 | AB10: =$F10*AA10/100 -> 0 | AD10: =$F10*AC10/100 -> 0 | AF10: =$F10*AE10/100 -> 0 | AH10: =$F10*AG10/100 -> 0 | AJ10: =$F10*AI10/100 -> 0
B11: 750 | C11: 1 | D11: металл | E11: ВЛЭП-750кВ-цепей:1-металл | F11: 600 | H11: =F11*G11/100 -> 0 | J11: 0 | L11: =K11*F11/100 -> 0 | N11: =M11*F11/100 -> 0 | P11: 0 | R11: 0 | T11: 0 | V11: 0 | X11: 0 | Z11: 0 | AB11: 0 | AD11: 0 | AF11: 0 | AH11: 0 | AJ11: 0
B12: 400-500 | C12: 1 | D12: металл | E12: ВЛЭП-400-500кВ-цепей:1-металл | F12: 400 | H12: 0 | J12: 0 | L12: 0 | N12: 0 | P12: 0 | R12: 0 | T12: 0 | V12: 0 | X12: 0 | Z12: 0 | AB12: 0 | AD12: 0 | AF12: 0 | AH12: 0 | AJ12: 0
D13: ж/бетон | E13: ВЛЭП-400-500кВ-ж/бетон | F13: 300 | H13: 0 | J13: 0 | L13: 0 | N13: 0 | P13: 0 | R13: 0 | T13: 0 | V13: 0 | X13: 0 | Z13: 0 | AB13: 0 | AD13: 0 | AF13: 0 | AH13: 0 | AJ13: 0
B14: 330 | C14: 1 | D14: металл | E14: ВЛЭП-330кВ-цепей:1-металл | F14: 230 | H14: 0 | J14: 0 | L14: 0 | N14: 0 | P14: 0 | R14: 0 | T14: 0 | V14: 0 | X14: 0 | Z14: 0 | AB14: 0 | AD14: 0 | AF14: 0 | AH14: 0 | AJ14: 0
D15: ж/бетон | E15: ВЛЭП-330кВ-ж/бетон | F15: 170 | H15: 0 | J15: 0 | L15: 0 | N15: 0 | P15: 0 | R15: 0 | T15: 0 | V15: 0 | X15: 0 | Z15: 0 | AB15: 0 | AD15: 0 | AF15: 0 | AH15: 0 | AJ15: 0
C16: 2 | D16: металл | E16: ВЛЭП-330кВ-цепей:2-металл | F16: 290 | H16: 0 | J16: 0 | L16: 0 | N16: 0 | P16: 0 | R16: 0 | T16: 0 | V16: 0 | X16: 0 | Z16: 0 | AB16: 0 | AD16: 0 | AF16: 0 | AH16: 0 | AJ16: 0
D17: ж/бетон | E17: ВЛЭП-330кВ-ж/бетон | F17: 210 | H17: 0 | J17: 0 | L17: 0 | N17: 0 | P17: 0 | R17: 0 | T17: 0 | V17: 0 | X17: 0 | Z17: 0 | AB17: 0 | AD17: 0 | AF17: 0 | AH17: 0 | AJ17: 0
B18: 220 | C18: 1 | D18: дерево | E18: ВЛЭП-220кВ-цепей:1-дерево | F18: 260 | H18: 0 | J18: 0 | L18: 0 | N18: 0 | P18: 0 | R18: 0 | T18: 0 | V18: 0 | X18: 0 | Z18: 0 | AB18: 0 | AD18: 0 | AF18: 0 | AH18: 0 | AJ18: 0
D19: металл | E19: ВЛЭП-220кВ-металл | F19: 210 | H19: 0 | J19: 0 | L19: 0 | N19: 0 | P19: 0 | R19: 0 | T19: 0 | V19: 0 | X19: 0 | Z19: 0 | AB19: 0 | AD19: 0 | AF19: 0 | AH19: 0 | AJ19: 0
D20: ж/бетон | E20: ВЛЭП-220кВ-ж/бетон | F20: 140 | H20: 0 | J20: 0 | L20: 0 | N20: 0 | P20: 0 | R20: 0 | T20: 0 | V20: 0 | X20: 0 | Z20: 0 | AB20: 0 | AD20: 0 | AF20: 0 | AH20: 0 | AJ20: 0
C21: 2 | D21: металл | E21: ВЛЭП-220кВ-цепей:2-металл | F21: 270 | H21: 0 | J21: 0 | L21: 0 | N21: 0 | P21: 0 | R21: 0 | T21: 0 | V21: 0 | X21: 0 | Z21: 0 | AB21: 0 | AD21: 0 | AF21: 0 | AH21: 0 | AJ21: 0
D22: ж/бетон | E22: ВЛЭП-220кВ-ж/бетон | F22: 180 | H22: 0 | J22: 0 | L22: 0 | N22: 0 | P22: 0 | R22: 0 | T22: 0 | V22: 0 | X22: 0 | Z22: 0 | AB22: 0 | AD22: 0 | AF22: 0 | AH22: 0 | AJ22: 0
B23: 110-150 | C23: 1 | D23: дерево | E23: ВЛЭП-110-150кВ-цепей:1-дерево | F23: 180 | H23: 0 | J23: 0 | L23: 0 | N23: 0 | P23: 0 | R23: 0 | T23: 0 | V23: 0 | X23: 0 | Z23: 0 | AB23: 0 | AD23: 0 | AF23: 0 | AH23: 0 | AJ23: 0
D24: металл | E24: ВЛЭП-110-150кВ-металл | F24: 160 | H24: 0 | J24: 0 | L24: 0 | N24: 0 | P24: 0 | R24: 0 | T24: 0 | V24: 0 | X24: 0 | Z24: 0 | AB24: 0 | AD24: 0 | AF24: 0 | AH24: 0 | AJ24: 0
D25: ж/бетон | E25: ВЛЭП-110-150кВ-ж/бетон | F25: 130 | H25: 0 | J25: 0 | L25: 0 | N25: 0 | P25: 0 | R25: 0 | T25: 0 | V25: 0 | X25: 0 | Z25: 0 | AB25: 0 | AD25: 0 | AF25: 0 | AH25: 0 | AJ25: 0
C26: 2 | D26: металл | E26: ВЛЭП-110-150кВ-цепей:2-металл | F26: 190 | H26: 0 | J26: 0 | L26: 0 | N26: 0 | P26: 0 | R26: 0 | T26: 0 | V26: 0 | X26: 0 | Z26: 0 | AB26: 0 | AD26: 0 | AF26: 0 | AH26: 0 | AJ26: 0
D27: ж/бетон | E27: ВЛЭП-110-150кВ-ж/бетон | F27: 160 | H27: 0 | J27: 0 | L27: 0 | N27: 0 | P27: 0 | R27: 0 | T27: 0 | V27: 0 | X27: 0 | Z27: 0 | AB27: 0 | AD27: 0 | AF27: 0 | AH27: 0 | AJ27: 0
A28: КЛЭП | B28: 220 | C28: - | D28: - | E28: КЛЭП-220кВ | F28: 3000 | H28: 0 | J28: 0 | L28: 0 | N28: 0 | P28: 0 | R28: 0 | T28: 0 | V28: 0 | X28: 0 | Z28: 0 | AB28: 0 | AD28: 0 | AF28: 0 | AH28: 0 | AJ28: 0
B29: 110 | C29: - | D29: - | E29: КЛЭП-110кВ | F29: 2300 | H29: 0 | J29: 0 | L29: 0 | N29: 0 | P29: 0 | R29: 0 | T29: 0 | V29: 0 | X29: 0 | Z29: 0 | AB29: 0 | AD29: 0 | AF29: 0 | AH29: 0 | AJ29: 0
A30: ВН, всего | E30: Итого: | G30: =SUM(G10:G29) -> 0 | H30: 0 | I30: 0 | J30: 0 | K30: 0 | L30: 0 | M30: =SUM(M10:M29) -> 0 | N30: 0 | O30: 0 | P30: 0 | Q30: 0 | R30: 0 | S30: =SUM(S10:S29) -> 0 | T30: =SUM(T10:T29) -> 0 | U30: =SUM(U10:U29) -> 0 | V30: 0 | W30: =SUM(W10:W29) -> 0 | X30: =SUM(X10:X29) -> 0 | Y30: =SUM(Y10:Y29) -> 0 | Z30: 0 | AA30: =SUM(AA10:AA29) -> 0 | AB30: =SUM(AB10:AB29) -> 0 | AC30: =SUM(AC10:AC29) -> 0 | AD30: 0 | AE30: =SUM(AE10:AE29) -> 0 | AF30: =SUM(AF10:AF29) -> 0 | AG30: =SUM(AG10:AG29) -> 0 | AH30: 0 | AI30: =SUM(AI10:AI29) -> 0 | AJ30: =SUM(AJ10:AJ29) -> 0
A31: ВЛЭП | B31: 35 | C31: 1 | D31: дерево | E31: ВЛЭП-35кВ-цепей:1-дерево | F31: 170 | H31: =F31*G31/100 -> 0 | J31: =F31*I31/100 -> 0 | L31: =K31*F31/100 -> 0 | N31: =M31*F31/100 -> 0 | P31: =F31*O31/100 -> 0 | R31: =F31*Q31/100 -> 0 | T31: =$F31*S31/100 -> 0 | V31: =$F31*U31/100 -> 0 | X31: =$F31*W31/100 -> 0 | Z31: =$F31*Y31/100 -> 0 | AB31: =$F31*AA31/100 -> 0 | AD31: =$F31*AC31/100 -> 0 | AF31: =$F31*AE31/100 -> 0 | AH31: =$F31*AG31/100 -> 0 | AJ31: =$F31*AI31/100 -> 0
D32: металл | E32: ВЛЭП-35кВ-металл | F32: 140 | H32: 0 | J32: 0 | L32: =K32*F32/100 -> 0 | N32: =M32*F32/100 -> 0 | P32: 0 | R32: 0 | T32: 0 | V32: 0 | X32: 0 | Z32: 0 | AB32: 0 | AD32: 0 | AF32: 0 | AH32: 0 | AJ32: 0
D33: ж/бетон | E33: ВЛЭП-35кВ-ж/бетон | F33: 120 | H33: 0 | J33: 0 | L33: 0 | N33: 0 | P33: 0 | R33: 0 | T33: 0 | V33: 0 | X33: 0 | Z33: 0 | AB33: 0 | AD33: 0 | AF33: 0 | AH33: 0 | AJ33: 0
C34: 2 | D34: металл | E34: ВЛЭП-35кВ-цепей:2-металл | F34: 180 | H34: 0 | J34: 0 | L34: 0 | N34: 0 | P34: 0 | R34: 0 | T34: 0 | V34: 0 | X34: 0 | Z34: 0 | AB34: 0 | AD34: 0 | AF34: 0 | AH34: 0 | AJ34: 0
D35: ж/бетон | E35: ВЛЭП-35кВ-ж/бетон | F35: 150 | H35: 0 | J35: 0 | L35: 0 | N35: 0 | P35: 0 | R35: 0 | T35: 0 | V35: 0 | X35: 0 | Z35: 0 | AB35: 0 | AD35: 0 | AF35: 0 | AH35: 0 | AJ35: 0
B36: 1 - 20 | C36: - | D36: дерево | E36: ВЛЭП-1-20кВ-дерево | F36: 160 | H36: 0 | J36: 0 | L36: 0 | N36: 0 | P36: 0 | R36: 0 | T36: 0 | V36: 0 | X36: 0 | Z36: 0 | AB36: 0 | AD36: 0 | AF36: 0 | AH36: 0 | AJ36: 0
D37: дерево на ж/б пасынках | E37: ВЛЭП-1-20кВ-дерево на ж/б пасынках | F37: 140 | H37: 0 | J37: 0 | L37: 0 | N37: 0 | P37: 0 | R37: 0 | T37: 0 | V37: 0 | X37: 0 | Z37: 0 | AB37: 0 | AD37: 0 | AF37: 0 | AH37: 0 | AJ37: 0
D38: ж/бетон, металл | E38: ВЛЭП-1-20кВ-ж/бетон,металл | F38: 110 | G38: 3.98 | H38: 4.378 | I38: 3.98 | J38: 4.378 | K38: 3.98 | L38: 4.378 | N38: 0 | O38: 3.98 | P38: 4.378 | Q38: 3.37 | R38: 3.707 | T38: 0 | U38: =Q38 -> 3.37 | V38: 3.707 | X38: 0 | Y38: =U38 -> 3.37 | Z38: 3.707 | AB38: 0 | AC38: =Y38 -> 3.37 | AD38: 3.707 | AF38: 0 | AG38: =AC38 -> 3.37 | AH38: 3.707 | AJ38: 0
A39: КЛЭП | B39: 20 -35 | C39: - | D39: - | E39: КЛЭП-20-35кВ | F39: 470 | H39: 0 | J39: 0 | L39: 0 | N39: 0 | P39: 0 | R39: 0 | T39: 0 | V39: 0 | X39: 0 | Z39: 0 | AB39: 0 | AD39: 0 | AF39: 0 | AH39: 0 | AJ39: 0
B40: 3 - 10 | C40: - | D40: - | E40: КЛЭП-3-10кВ | F40: 350 | G40: 6.93 | H40: 24.255 | I40: =7.691+0.3 -> 7.991 | J40: 27.9685 | K40: =7.691+0.3 -> 7.991 | L40: 27.9685 | N40: 0 | O40: 7.99 | P40: 27.965 | Q40: 10.577 | R40: 37.0195 | T40: 0 | U40: =Q40 -> 10.577 | V40: 37.0195 | X40: 0 | Y40: =U40 -> 10.577 | Z40: 37.0195 | AB40: 0 | AC40: =Y40 -> 10.577 | AD40: 37.0195 | AF40: 0 | AG40: =AC40 -> 10.577 | AH40: 37.0195 | AJ40: 0
A41: СН-1, всего | E41: Итого: | G41: =SUM(G31:G35)+G39 -> 0 | H41: 0 | I41: 0 | J41: 0 | K41: 0 | L41: 0 | M41: =SUM(M31:M35)+M39 -> 0 | N41: 0 | O41: 0 | P41: 0 | Q41: 0 | R41: 0 | S41: =SUM(S31:S35)+S39 -> 0 | T41: =SUM(T31:T35)+T39 -> 0 | U41: =SUM(U31:U35)+U39 -> 0 | V41: 0 | W41: =SUM(W31:W35)+W39 -> 0 | X41: =SUM(X31:X35)+X39 -> 0 | Y41: =SUM(Y31:Y35)+Y39 -> 0 | Z41: 0 | AA41: =SUM(AA31:AA35)+AA39 -> 0 | AB41: =SUM(AB31:AB35)+AB39 -> 0 | AC41: =SUM(AC31:AC35)+AC39 -> 0 | AD41: 0 | AE41: =SUM(AE31:AE35)+AE39 -> 0 | AF41: =SUM(AF31:AF35)+AF39 -> 0 | AG41: =SUM(AG31:AG35)+AG39 -> 0 | AH41: 0 | AI41: =SUM(AI31:AI35)+AI39 -> 0 | AJ41: =SUM(AJ31:AJ35)+AJ39 -> 0
A42: СН-2, всего | E42: Итого: | G42: =SUM(G36:G38)+G40 -> 10.91 | H42: 28.633 | I42: 11.971 | J42: 32.3465 | K42: 11.971 | L42: 32.3465 | M42: =SUM(M36:M38)+M40 -> 0 | N42: 0 | O42: 11.97 | P42: 32.343 | Q42: 13.947 | R42: 40.7265 | S42: =SUM(S36:S38)+S40 -> 0 | T42: =SUM(T36:T38)+T40 -> 0 | U42: =SUM(U36:U38)+U40 -> 13.947 | V42: 40.7265 | W42: =SUM(W36:W38)+W40 -> 0 | X42: =SUM(X36:X38)+X40 -> 0 | Y42: =SUM(Y36:Y38)+Y40 -> 13.947 | Z42: 40.7265 | AA42: =SUM(AA36:AA38)+AA40 -> 0 | AB42: =SUM(AB36:AB38)+AB40 -> 0 | AC42: =SUM(AC36:AC38)+AC40 -> 13.947 | AD42: 40.7265 | AE42: =SUM(AE36:AE38)+AE40 -> 0 | AF42: =SUM(AF36:AF38)+AF40 -> 0 | AG42: =SUM(AG36:AG38)+AG40 -> 13.947 | AH42: 40.7265 | AI42: =SUM(AI36:AI38)+AI40 -> 0 | AJ42: =SUM(AJ36:AJ38)+AJ40 -> 0
A43: ВЛЭП | B43: 0,4 кВ | C43: - | D43: дерево | E43: ВЛЭП-0,4кВ-дерево | F43: 260 | H43: =F43*G43/100 -> 0 | J43: =F43*I43/100 -> 0 | L43: =K43*F43/100 -> 0 | N43: =M43*F43/100 -> 0 | P43: =F43*O43/100 -> 0 | R43: =F43*Q43/100 -> 0 | T43: =$F43*S43/100 -> 0 | V43: =$F43*U43/100 -> 0 | X43: =$F43*W43/100 -> 0 | Z43: =$F43*Y43/100 -> 0 | AB43: =$F43*AA43/100 -> 0 | AD43: =$F43*AC43/100 -> 0 | AF43: =$F43*AE43/100 -> 0 | AH43: =$F43*AG43/100 -> 0 | AJ43: =$F43*AI43/100 -> 0
D44: дерево на ж/б пасынках | E44: ВЛЭП-0,4кВ-дерево на ж/б пасынках | F44: 220 | H44: =F44*G44/100 -> 0 | J44: =F44*I44/100 -> 0 | L44: =K44*F44/100 -> 0 | N44: 0 | P44: =F44*O44/100 -> 0 | R44: =F44*Q44/100 -> 0 | T44: 0 | V44: 0 | X44: 0 | Z44: 0 | AB44: 0 | AD44: 0 | AF44: 0 | AH44: 0 | AJ44: 0
D45: ж/бетон, металл | E45: ВЛЭП-0,4кВ-ж/бетон,металл | F45: 150 | H45: =F45*G45/100 -> 0 | J45: =F45*I45/100 -> 0 | L45: =K45*F45/100 -> 0 | N45: 0 | P45: =F45*O45/100 -> 0 | R45: =F45*Q45/100 -> 0 | T45: 0 | V45: 0 | X45: 0 | Z45: 0 | AB45: 0 | AD45: 0 | AF45: 0 | AH45: 0 | AJ45: 0
A46: КЛЭП | B46: до 1 кВ | C46: - | D46: - | E46: КЛЭП-до1кВ | F46: 270 | G46: 3.52 | H46: =F46*G46/100 -> 9.504 | I46: 3.516 | J46: =F46*I46/100 -> 9.4932 | K46: 3.516 | L46: =K46*F46/100 -> 9.4932 | N46: 0 | O46: 3.52 | P46: =F46*O46/100 -> 9.504 | Q46: 8.248 | R46: =F46*Q46/100 -> 22.2696 | T46: 0 | U46: =Q46 -> 8.248 | V46: 22.2696 | X46: 0 | Y46: =U46 -> 8.248 | Z46: 22.2696 | AB46: 0 | AC46: =Y46 -> 8.248 | AD46: 22.2696 | AF46: 0 | AG46: =AC46 -> 8.248 | AH46: 22.2696 | AJ46: 0
A47: НН, всего | E47: Итого: | G47: =SUM(G43:G46) -> 3.52 | H47: 9.504 | I47: 3.516 | J47: 9.4932 | K47: 3.516 | L47: 9.4932 | M47: 0 | N47: 0 | O47: 3.52 | P47: 9.504 | Q47: 8.248 | R47: 22.2696 | S47: 0 | T47: 0 | U47: 8.248 | V47: 22.2696 | W47: 0 | X47: 0 | Y47: 8.248 | Z47: 22.2696 | AA47: 0 | AB47: 0 | AC47: 8.248 | AD47: 22.2696 | AE47: 0 | AF47: 0 | AG47: 8.248 | AH47: 22.2696 | AI47: 0 | AJ47: 0
B48: Итого по уровням напряжения: | E48: ВН | G48: =G30 -> 0 | H48: =H30 -> 0 | I48: 0 | J48: =J30 -> 0 | K48: 0 | L48: 0 | M48: 0 | N48: 0 | O48: 0 | P48: 0 | Q48: 0 | R48: 0 | S48: 0 | T48: 0 | U48: 0 | V48: 0 | W48: 0 | X48: 0 | Y48: 0 | Z48: 0 | AA48: 0 | AB48: 0 | AC48: 0 | AD48: 0 | AE48: 0 | AF48: 0 | AG48: 0 | AH48: 0 | AI48: 0 | AJ48: 0
E49: СН1 | G49: =G41 -> 0 | H49: =H41 -> 0 | I49: 0 | J49: =J41 -> 0 | K49: 0 | L49: 0 | M49: 0 | N49: 0 | O49: 0 | P49: 0 | Q49: 0 | R49: 0 | S49: 0 | T49: 0 | U49: 0 | V49: 0 | W49: 0 | X49: 0 | Y49: 0 | Z49: 0 | AA49: 0 | AB49: 0 | AC49: 0 | AD49: 0 | AE49: 0 | AF49: 0 | AG49: 0 | AH49: 0 | AI49: 0 | AJ49: 0
E50: СН2 | G50: =G42 -> 10.91 | H50: 28.633 | I50: 11.971 | J50: =J42 -> 32.3465 | K50: 11.971 | L50: 32.3465 | M50: 0 | N50: 0 | O50: 11.97 | P50: 32.343 | Q50: 13.947 | R50: 40.7265 | S50: 0 | T50: 0 | U50: 13.947 | V50: 40.7265 | W50: 0 | X50: 0 | Y50: 13.947 | Z50: 40.7265 | AA50: 0 | AB50: 0 | AC50: 13.947 | AD50: 40.7265 | AE50: 0 | AF50: 0 | AG50: 13.947 | AH50: 40.7265 | AI50: 0 | AJ50: 0
E51: НН | G51: =G47 -> 3.52 | H51: =H47 -> 9.504 | I51: 3.516 | J51: =J47 -> 9.4932 | K51: 3.516 | L51: 9.4932 | M51: 0 | N51: 0 | O51: 3.52 | P51: 9.504 | Q51: 8.248 | R51: 22.2696 | S51: 0 | T51: 0 | U51: 8.248 | V51: 22.2696 | W51: 0 | X51: 0 | Y51: 8.248 | Z51: 22.2696 | AA51: 0 | AB51: 0 | AC51: 8.248 | AD51: 22.2696 | AE51: 0 | AF51: 0 | AG51: 8.248 | AH51: 22.2696 | AI51: 0 | AJ51: 0
A52: ВСЕГО: | G52: =SUM(G48:G51) -> 14.43 | H52: =SUM(H48:H51) -> 38.137 | I52: 15.487 | J52: 41.8397 | K52: 15.487 | L52: 41.8397 | M52: 0 | N52: 0 | O52: 15.49 | P52: 41.847 | Q52: 22.195 | R52: 62.9961 | S52: 0 | T52: 0 | U52: 22.195 | V52: 62.9961 | W52: 0 | X52: 0 | Y52: 22.195 | Z52: 62.9961 | AA52: 0 | AB52: 0 | AC52: 22.195 | AD52: 62.9961 | AE52: 0 | AF52: 0 | AG52: 22.195 | AH52: 62.9961 | AI52: 0 | AJ52: 0
E54: Руководитель организации | J54: ='Инф-я'!$C$21 -> Чижов Олег Александрович

Sheet УЕ ТП 2017-2024
A3: Объем подстанций 35-1150 кВ, трансформаторных подстанций (ТП), комплексных трансформаторных подстанций (КТП) и распределительных пунктов(РП) 0,4-20 кВ в условных единицах в период с 2017 по 2024 годы
B4: ='Инф-я'!C13 -> ООО "МОНОСТРОЙ"
A6: № п.п. | B6: Наименование | D6: Единица измерения | E6: Напряжение, кВ | F6: Количество условных единиц (у) на единицу измерения | G6: Количество единиц измерения | H6: Объем условных единиц | I6: Количество единиц измерения | J6: Объем условных единиц | K6: Количество единиц измерения | L6: Объем условных единиц | M6: Количество единиц измерения | N6: Объем условных единиц | O6: Количество единиц измерения | P6: Объем условных единиц | Q6: Количество единиц измерения | R6: Объем условных единиц | S6: Количество единиц измерения | T6: Объем условных единиц | U6: Количество единиц измерения | V6: Объем условных единиц | W6: Количество единиц измерения | X6: Объем условных единиц | Y6: Количество единиц измерения | Z6: Объем условных единиц | AA6: Количество единиц измерения | AB6: Объем условных единиц | AC6: Количество единиц измерения | AD6: Объем условных единиц | AE6: Количество единиц измерения | AF6: Объем условных единиц | AG6: Количество единиц измерения | AH6: Объем условных единиц | AI6: Количество единиц измерения | AJ6: Объем условных единиц
F7: у/ед.изм. | G7: ед.изм. | H7: у | I7: ед.изм. | J7: у | K7: ед.изм. | L7: у | M7: ед.изм. | N7: у | O7: ед.изм. | P7: у | Q7: ед.изм. | R7: у | S7: ед.изм. | T7: у | U7: ед.изм. | V7: у | W7: ед.изм. | X7: у | Y7: ед.изм. | Z7: у | AA7: ед.изм. | AB7: у | AC7: ед.изм. | AD7: у | AE7: ед.изм. | AF7: у | AG7: ед.изм. | AH7: у | AI7: ед.изм. | AJ7: у
G8: 2017 год факт | I8: 2018 год утверждено | K8: 2018 год факт по данным организации | M8: 2018 год факт по данным экспертов | O8: 2019 год утверждено | Q8: 2020 год план по данным организации | S8: 2020 год по данным экспертов | U8: 2021 год план по данным организации | W8: 2021 год по данным экспертов | Y8: 2022 год план по данным организации | AA8: 2022 год по данным экспертов | AC8: 2023 год план по данным организации | AE8: 2023 год по данным экспертов | AG8: 2024 год план по данным организации | AI8: 2024 год по данным экспертов
A9: 1 | B9: =+A9+1 -> 2 | C9: 3 | D9: 4 | E9: 5 | F9: 6 | G9: 7 | H9: 8 | I9: 9 | J9: 10 | K9: 11 | L9: 12 | M9: 13 | N9: 14 | O9: 15 | P9: 16 | Q9: 17 | R9: 18 | S9: 19 | T9: 20 | U9: 19 | V9: 20 | W9: 17 | X9: 18 | Y9: 21 | Z9: 22 | AA9: 17 | AB9: 18 | AC9: 23 | AD9: 24 | AE9: 17 | AF9: 18 | AG9: 25 | AH9: 26 | AI9: 17 | AJ9: 18
A10: 1 | B10: Подстанция | C10: =B10 -> Подстанция | D10: П/ст | E10: 1150 | F10: 1000 | H10: =F10*G10 -> 0 | J10: =F10*I10 -> 0 | L10: =K10*F10 -> 0 | N10: =M10*F10 -> 0 | P10: =F10*O10 -> 0 | R10: =F10*Q10 -> 0 | T10: =$F10*S10 -> 0 | V10: =$F10*U10 -> 0 | X10: =$F10*W10 -> 0 | Z10: =$F10*Y10 -> 0 | AB10: =$F10*AA10 -> 0 | AD10: =$F10*AC10 -> 0 | AF10: =$F10*AE10 -> 0 | AH10: =$F10*AG10 -> 0 | AJ10: =$F10*AI10 -> 0
C11: =B10 -> Подстанция | E11: 750 | F11: 600 | H11: 0 | J11: 0 | L11: =K11*F11 -> 0 | N11: =M11*F11 -> 0 | P11: 0 | R11: 0 | T11: =$F11*S11 -> 0 | V11: 0 | X11: 0 | Z11: 0 | AB11: 0 | AD11: 0 | AF11: 0 | AH11: 0 | AJ11: 0
C12: =B10 -> Подстанция | E12: 400-500 | F12: 500 | H12: 0 | J12: 0 | L12: 0 | N12: 0 | P12: 0 | R12: 0 | T12: 0 | V12: 0 | X12: 0 | Z12: 0 | AB12: 0 | AD12: 0 | AF12: 0 | AH12: 0 | AJ12: 0
C13: =B10 -> Подстанция | E13: 330 | F13: 250 | H13: 0 | J13: 0 | L13: 0 | N13: 0 | P13: 0 | R13: 0 | T13: 0 | V13: 0 | X13: 0 | Z13: 0 | AB13: 0 | AD13: 0 | AF13: 0 | AH13: 0 | AJ13: 0
C14: =B10 -> Подстанция | E14: 220 | F14: 210 | H14: 0 | J14: 0 | L14: 0 | N14: 0 | P14: 0 | R14: 0 | T14: 0 | V14: 0 | X14: 0 | Z14: 0 | AB14: 0 | AD14: 0 | AF14: 0 | AH14: 0 | AJ14: 0
C15: =B10 -> Подстанция | E15: 110-150 | F15: 105 | H15: 0 | J15: 0 | L15: 0 | N15: 0 | P15: 0 | R15: 0 | T15: 0 | V15: 0 | X15: 0 | Z15: 0 | AB15: 0 | AD15: 0 | AF15: 0 | AH15: 0 | AJ15: 0
C16: =B10 -> Подстанция | E16: 35 | F16: 75 | H16: 0 | J16: 0 | L16: 0 | N16: 0 | P16: 0 | R16: 0 | T16: 0 | V16: 0 | X16: 0 | Z16: 0 | AB16: 0 | AD16: 0 | AF16: 0 | AH16: 0 | AJ16: 0
A17: 2 | B17: Силовой трансформатор или реактор (одно- или трехфазный), или вольтодобавочный трансформатор | C17: =B17 -> Силовой трансформатор или реактор (одно- или трехфазный), или вольтодобавочный трансформатор | D17: Ед. оборуд. | E17: 1150 | F17: 60 | H17: 0 | J17: 0 | L17: 0 | N17: 0 | P17: 0 | R17: 0 | T17: 0 | V17: 0 | X17: 0 | Z17: 0 | AB17: 0 | AD17: 0 | AF17: 0 | AH17: 0 | AJ17: 0
C18: =B17 -> Силовой трансформатор или реактор (одно- или трехфазный), или вольтодобавочный трансформатор | E18: 750 | F18: 43 | H18: 0 | J18: 0 | L18: 0 | N18: 0 | P18: 0 | R18: 0 | T18: 0 | V18: 0 | X18: 0 | Z18: 0 | AB18: 0 | AD18: 0 | AF18: 0 | AH18: 0 | AJ18: 0
C19: =B17 -> Силовой трансформатор или реактор (одно- или трехфазный), или вольтодобавочный трансформатор | E19: 400-500 | F19: 28 | H19: 0 | J19: 0 | L19: 0 | N19: 0 | P19: 0 | R19: 0 | T19: 0 | V19: 0 | X19: 0 | Z19: 0 | AB19: 0 | AD19: 0 | AF19: 0 | AH19: 0 | AJ19: 0
C20: =B17 -> Силовой трансформатор или реактор (одно- или трехфазный), или вольтодобавочный трансформатор | E20: 330 | F20: 18 | H20: 0 | J20: 0 | L20: 0 | N20: 0 | P20: 0 | R20: 0 | T20: 0 | V20: 0 | X20: 0 | Z20: 0 | AB20: 0 | AD20: 0 | AF20: 0 | AH20: 0 | AJ20: 0
C21: =B17 -> Силовой трансформатор или реактор (одно- или трехфазный), или вольтодобавочный трансформатор | E21: 220 | F21: 14 | H21: 0 | J21: 0 | L21: 0 | N21: 0 | P21: 0 | R21: 0 | T21: 0 | V21: 0 | X21: 0 | Z21: 0 | AB21: 0 | AD21: 0 | AF21: 0 | AH21: 0 | AJ21: 0
C22: =B17 -> Силовой трансформатор или реактор (одно- или трехфазный), или вольтодобавочный трансформатор | E22: 110-150 | F22: 7.8 | H22: 0 | J22: 0 | L22: 0 | N22: 0 | P22: 0 | R22: 0 | T22: 0 | V22: 0 | X22: 0 | Z22: 0 | AB22: 0 | AD22: 0 | AF22: 0 | AH22: 0 | AJ22: 0
C23: =B17 -> Силовой трансформатор или реактор (одно- или трехфазный), или вольтодобавочный трансформатор | E23: 35 | F23: 2.1 | H23: 0 | J23: 0 | L23: 0 | N23: 0 | P23: 0 | R23: 0 | T23: 0 | V23: 0 | X23: 0 | Z23: 0 | AB23: 0 | AD23: 0 | AF23: 0 | AH23: 0 | AJ23: 0
C24: =B17 -> Силовой трансформатор или реактор (одно- или трехфазный), или вольтодобавочный трансформатор | E24: 1-20 | F24: 1 | H24: 0 | J24: 0 | L24: 0 | N24: 0 | P24: 0 | R24: 0 | T24: 0 | V24: 0 | X24: 0 | Z24: 0 | AB24: 0 | AD24: 0 | AF24: 0 | AH24: 0 | AJ24: 0
A25: 3 | B25: Воздушный выключатель | C25: =B25 -> Воздушный выключатель | D25: 3 фазы | E25: 1150 | F25: 180 | H25: 0 | J25: 0 | L25: 0 | N25: 0 | P25: 0 | R25: 0 | T25: 0 | V25: 0 | X25: 0 | Z25: 0 | AB25: 0 | AD25: 0 | AF25: 0 | AH25: 0 | AJ25: 0
C26: =B25 -> Воздушный выключатель | E26: 750 | F26: 130 | H26: 0 | J26: 0 | L26: 0 | N26: 0 | P26: 0 | R26: 0 | T26: 0 | V26: 0 | X26: 0 | Z26: 0 | AB26: 0 | AD26: 0 | AF26: 0 | AH26: 0 | AJ26: 0
C27: =B25 -> Воздушный выключатель | E27: 400-500 | F27: 88 | H27: 0 | J27: 0 | L27: 0 | N27: 0 | P27: 0 | R27: 0 | T27: 0 | V27: 0 | X27: 0 | Z27: 0 | AB27: 0 | AD27: 0 | AF27: 0 | AH27: 0 | AJ27: 0
C28: =B25 -> Воздушный выключатель | E28: 330 | F28: 66 | H28: 0 | J28: 0 | L28: 0 | N28: 0 | P28: 0 | R28: 0 | T28: 0 | V28: 0 | X28: 0 | Z28: 0 | AB28: 0 | AD28: 0 | AF28: 0 | AH28: 0 | AJ28: 0
C29: =B25 -> Воздушный выключатель | E29: 220 | F29: 43 | H29: 0 | J29: 0 | L29: 0 | N29: 0 | P29: 0 | R29: 0 | T29: 0 | V29: 0 | X29: 0 | Z29: 0 | AB29: 0 | AD29: 0 | AF29: 0 | AH29: 0 | AJ29: 0
C30: =B25 -> Воздушный выключатель | E30: 110-150 | F30: 26 | H30: 0 | J30: 0 | L30: 0 | N30: 0 | P30: 0 | R30: 0 | T30: 0 | V30: 0 | X30: 0 | Z30: 0 | AB30: 0 | AD30: 0 | AF30: 0 | AH30: 0 | AJ30: 0
C31: =B25 -> Воздушный выключатель | E31: 35 | F31: 11 | H31: 0 | J31: 0 | L31: 0 | N31: 0 | P31: 0 | R31: 0 | T31: 0 | V31: 0 | X31: 0 | Z31: 0 | AB31: 0 | AD31: 0 | AF31: 0 | AH31: 0 | AJ31: 0
C32: =B25 -> Воздушный выключатель | E32: 1-20 | F32: 5.5 | H32: 0 | J32: 0 | L32: 0 | N32: 0 | P32: 0 | R32: 0 | T32: 0 | V32: 0 | X32: 0 | Z32: 0 | AB32: 0 | AD32: 0 | AF32: 0 | AH32: 0 | AJ32: 0
A33: 4 | B33: Масляный (вакуумный) выключатель | C33: =B33 -> Масляный (вакуумный) выключатель | D33: - " - | E33: 220 | F33: 23 | H33: 0 | J33: 0 | L33: 0 | N33: 0 | P33: 0 | R33: 0 | T33: 0 | V33: 0 | X33: 0 | Z33: 0 | AB33: 0 | AD33: 0 | AF33: 0 | AH33: 0 | AJ33: 0
C34: =B33 -> Масляный (вакуумный) выключатель | E34: 110-150 | F34: 14 | H34: 0 | J34: 0 | L34: 0 | N34: 0 | P34: 0 | R34: 0 | T34: 0 | V34: 0 | X34: 0 | Z34: 0 | AB34: 0 | AD34: 0 | AF34: 0 | AH34: 0 | AJ34: 0
C35: =B33 -> Масляный (вакуумный) выключатель | E35: 35 | F35: 6.4 | H35: 0 | J35: 0 | L35: 0 | N35: 0 | P35: 0 | R35: 0 | T35: 0 | V35: 0 | X35: 0 | Z35: 0 | AB35: 0 | AD35: 0 | AF35: 0 | AH35: 0 | AJ35: 0
C36: =B33 -> Масляный (вакуумный) выключатель | E36: 1-20 | F36: 3.1 | H36: 0 | J36: 0 | L36: 0 | N36: 0 | P36: 0 | R36: 0 | T36: 0 | V36: 0 | X36: 0 | Z36: 0 | AB36: 0 | AD36: 0 | AF36: 0 | AH36: 0 | AJ36: 0
A37: 5 | B37: Отделитель с короткозамыкателем | C37: =B37 -> Отделитель с короткозамыкателем | D37: Ед. оборуд. | E37: 400-500 | F37: 35 | H37: 0 | J37: 0 | L37: 0 | N37: 0 | P37: 0 | R37: 0 | T37: 0 | V37: 0 | X37: 0 | Z37: 0 | AB37: 0 | AD37: 0 | AF37: 0 | AH37: 0 | AJ37: 0
C38: =B37 -> Отделитель с короткозамыкателем | E38: 330 | F38: 24 | H38: 0 | J38: 0 | L38: 0 | N38: 0 | P38: 0 | R38: 0 | T38: 0 | V38: 0 | X38: 0 | Z38: 0 | AB38: 0 | AD38: 0 | AF38: 0 | AH38: 0 | AJ38: 0
C39: =B37 -> Отделитель с короткозамыкателем | E39: 220 | F39: 19 | H39: 0 | J39: 0 | L39: 0 | N39: 0 | P39: 0 | R39: 0 | T39: 0 | V39: 0 | X39: 0 | Z39: 0 | AB39: 0 | AD39: 0 | AF39: 0 | AH39: 0 | AJ39: 0
C40: =B37 -> Отделитель с короткозамыкателем | E40: 110-150 | F40: 9.5 | H40: 0 | J40: 0 | L40: 0 | N40: 0 | P40: 0 | R40: 0 | T40: 0 | V40: 0 | X40: 0 | Z40: 0 | AB40: 0 | AD40: 0 | AF40: 0 | AH40: 0 | AJ40: 0
C41: =B37 -> Отделитель с короткозамыкателем | E41: 35 | F41: 4.7 | H41: 0 | J41: 0 | L41: 0 | N41: 0 | P41: 0 | R41: 0 | T41: 0 | V41: 0 | X41: 0 | Z41: 0 | AB41: 0 | AD41: 0 | AF41: 0 | AH41: 0 | AJ41: 0
A42: 6 | B42: Выключатель нагрузки | C42: =B42 -> Выключатель нагрузки | D42: - " - | E42: 1-20 | F42: 2.3 | H42: 0 | J42: 0 | L42: 0 | N42: 0 | P42: 0 | R42: 0 | T42: 0 | V42: 0 | X42: 0 | Z42: 0 | AB42: 0 | AD42: 0 | AF42: 0 | AH42: 0 | AJ42: 0
A43: 7 | B43: Синхронный компенсатор мощн. до 50 Мвар | C43: =B43 -> Синхронный компенсатор мощн. до 50 Мвар | D43: - " - | E43: 1-20 | F43: 26 | H43: 0 | J43: 0 | L43: 0 | N43: 0 | P43: 0 | R43: 0 | T43: 0 | V43: 0 | X43: 0 | Z43: 0 | AB43: 0 | AD43: 0 | AF43: 0 | AH43: 0 | AJ43: 0
A44: 8 | B44: То же, 50 Мвар и более | C44: Синхронный компенсатор мощн. 50 Мвар и выше | D44: - " - | E44: 1-20 | F44: 48 | H44: 0 | J44: 0 | L44: 0 | N44: 0 | P44: 0 | R44: 0 | T44: 0 | V44: 0 | X44: 0 | Z44: 0 | AB44: 0 | AD44: 0 | AF44: 0 | AH44: 0 | AJ44: 0
A45: 9 | B45: Статические конденсаторы | C45: =B45 -> Статические конденсаторы | D45: 100 конд. | E45: 35 | F45: 2.4 | H45: 0 | J45: 0 | L45: 0 | N45: 0 | P45: 0 | R45: 0 | T45: 0 | V45: 0 | X45: 0 | Z45: 0 | AB45: 0 | AD45: 0 | AF45: 0 | AH45: 0 | AJ45: 0
C46: =B45 -> Статические конденсаторы | E46: 1-20 | F46: 2.4 | H46: 0 | J46: 0 | L46: 0 | N46: 0 | P46: 0 | R46: 0 | T46: 0 | V46: 0 | X46: 0 | Z46: 0 | AB46: 0 | AD46: 0 | AF46: 0 | AH46: 0 | AJ46: 0
A47: 10 | B47: Мачтовая (столбовая) ТП | C47: =B47 -> Мачтовая (столбовая) ТП | D47: ТП | E47: 1-20 | F47: 2.5 | H47: 0 | J47: 0 | L47: 0 | N47: 0 | P47: 0 | R47: 0 | T47: 0 | V47: 0 | X47: 0 | Z47: 0 | AB47: 0 | AD47: 0 | AF47: 0 | AH47: 0 | AJ47: 0
A48: 11 | B48: Однотрансфор-маторная ТП, КТП | C48: =B48 -> Однотрансфор-маторная ТП, КТП | D48: ТП, КТП | E48: 1-20 | F48: 2.3 | H48: 0 | I48: 1 | J48: 2.3 | K48: 1 | L48: 2.3 | N48: 0 | O48: 1 | P48: 2.3 | Q48: 1 | R48: 2.3 | T48: 0 | U48: =Q48 -> 1 | V48: 2.3 | X48: 0 | Y48: =U48 -> 1 | Z48: 2.3 | AB48: 0 | AC48: =Y48 -> 1 | AD48: 2.3 | AF48: 0 | AG48: =AC48 -> 1 | AH48: 2.3 | AJ48: 0
A49: 12 | B49: Двухтрансформаторная ТП, КТП | C49: =B49 -> Двухтрансформаторная ТП, КТП | D49: ТП, КТП | E49: 1-20 | F49: 3 | G49: 9 | H49: 27 | I49: 9 | J49: 27 | K49: 9 | L49: 27 | N49: 0 | O49: 9 | P49: 27 | Q49: 11 | R49: 33 | T49: 0 | U49: =Q49 -> 11 | V49: 33 | X49: 0 | Y49: =U49 -> 11 | Z49: 33 | AB49: 0 | AC49: =Y49 -> 11 | AD49: 33 | AF49: 0 | AG49: =AC49 -> 11 | AH49: 33 | AJ49: 0
A50: 13 | B50: Однотрансфор-маторная подстанция 34/0,4 кВ | C50: =B50 -> Однотрансфор-маторная подстанция 34/0,4 кВ | D50: п/ст | E50: 35 | F50: 3.5 | H50: 0 | J50: 0 | L50: 0 | N50: 0 | P50: 0 | R50: 0 | T50: 0 | V50: 0 | X50: 0 | Z50: 0 | AB50: 0 | AD50: 0 | AF50: 0 | AH50: 0 | AJ50: 0
B51: Итого по уровням напряжения: | E51: ВН | G51: х | H51: =H10+H11+H12+H13+H17+H18+H19+H20+H25+H26+H27+H28+H37+H38+H40+H39+H34+H33+H30+H29+H22+H21+H15+H14 -> 0 | I51: х | J51: 0 | K51: х | L51: 0 | M51: х | N51: =N10+N11+N12+N13+N17+N18+N19+N20+N25+N26+N27+N28+N37+N38+N40+N39+N34+N33+N30+N29+N22+N21+N15+N14 -> 0 | O51: х | P51: 0 | Q51: х | R51: 0 | S51: х | T51: =T10+T11+T12+T13+T17+T18+T19+T20+T25+T26+T27+T28+T37+T38+T40+T39+T34+T33+T30+T29+T22+T21+T15+T14 -> 0 | U51: х | V51: =V10+V11+V12+V13+V17+V18+V19+V20+V25+V26+V27+V28+V37+V38+V40+V39+V34+V33+V30+V29+V22+V21+V15+V14 -> 0 | W51: х | X51: =X10+X11+X12+X13+X17+X18+X19+X20+X25+X26+X27+X28+X37+X38+X40+X39+X34+X33+X30+X29+X22+X21+X15+X14 -> 0 | Y51: х | Z51: =Z10+Z11+Z12+Z13+Z17+Z18+Z19+Z20+Z25+Z26+Z27+Z28+Z37+Z38+Z40+Z39+Z34+Z33+Z30+Z29+Z22+Z21+Z15+Z14 -> 0 | AA51: х | AB51: =AB10+AB11+AB12+AB13+AB17+AB18+AB19+AB20+AB25+AB26+AB27+AB28+AB37+AB38+AB40+AB39+AB34+AB33+AB30+AB29+AB22+AB21+AB15+AB14 -> 0 | AC51: х | AD51: =AD10+AD11+AD12+AD13+AD17+AD18+AD19+AD20+AD25+AD26+AD27+AD28+AD37+AD38+AD40+AD39+AD34+AD33+AD30+AD29+AD22+AD21+AD15+AD14 -> 0 | AE51: х | AF51: =AF10+AF11+AF12+AF13+AF17+AF18+AF19+AF20+AF25+AF26+AF27+AF28+AF37+AF38+AF40+AF39+AF34+AF33+AF30+AF29+AF22+AF21+AF15+AF14 -> 0 | AG51: х | AH51: =AH10+AH11+AH12+AH13+AH17+AH18+AH19+AH20+AH25+AH26+AH27+AH28+AH37+AH38+AH40+AH39+AH34+AH33+AH30+AH29+AH22+AH21+AH15+AH14 -> 0 | AI51: х | AJ51: =AJ10+AJ11+AJ12+AJ13+AJ17+AJ18+AJ19+AJ20+AJ25+AJ26+AJ27+AJ28+AJ37+AJ38+AJ40+AJ39+AJ34+AJ33+AJ30+AJ29+AJ22+AJ21+AJ15+AJ14 -> 0
E52: СН1 | G52: х | H52: =H16+H23+H31+H35+H41+H45+H50 -> 0 | I52: х | J52: 0 | K52: х | L52: 0 | M52: х | N52: =N16+N23+N31+N35+N41+N45+N50 -> 0 | O52: х | P52: 0 | Q52: х | R52: 0 | S52: х | T52: =T16+T23+T31+T35+T41+T45+T50 -> 0 | U52: х | V52: =V16+V23+V31+V35+V41+V45+V50 -> 0 | W52: х | X52: =X16+X23+X31+X35+X41+X45+X50 -> 0 | Y52: х | Z52: =Z16+Z23+Z31+Z35+Z41+Z45+Z50 -> 0 | AA52: х | AB52: =AB16+AB23+AB31+AB35+AB41+AB45+AB50 -> 0 | AC52: х | AD52: =AD16+AD23+AD31+AD35+AD41+AD45+AD50 -> 0 | AE52: х | AF52: =AF16+AF23+AF31+AF35+AF41+AF45+AF50 -> 0 | AG52: х | AH52: =AH16+AH23+AH31+AH35+AH41+AH45+AH50 -> 0 | AI52: х | AJ52: =AJ16+AJ23+AJ31+AJ35+AJ41+AJ45+AJ50 -> 0
E53: СН2 | G53: х | H53: =H24+H32+H36+H42+H43+H44+H46+H47+H48+H49 -> 27 | I53: х | J53: 29.3 | K53: х | L53: 29.3 | M53: х | N53: =N24+N32+N36+N42+N43+N44+N46+N47+N48+N49 -> 0 | O53: х | P53: 29.3 | Q53: х | R53: 35.3 | S53: х | T53: =T24+T32+T36+T42+T43+T44+T46+T47+T48+T49 -> 0 | U53: х | V53: =V24+V32+V36+V42+V43+V44+V46+V47+V48+V49 -> 35.3 | W53: х | X53: =X24+X32+X36+X42+X43+X44+X46+X47+X48+X49 -> 0 | Y53: х | Z53: =Z24+Z32+Z36+Z42+Z43+Z44+Z46+Z47+Z48+Z49 -> 35.3 | AA53: х | AB53: =AB24+AB32+AB36+AB42+AB43+AB44+AB46+AB47+AB48+AB49 -> 0 | AC53: х | AD53: =AD24+AD32+AD36+AD42+AD43+AD44+AD46+AD47+AD48+AD49 -> 35.3 | AE53: х | AF53: =AF24+AF32+AF36+AF42+AF43+AF44+AF46+AF47+AF48+AF49 -> 0 | AG53: х | AH53: =AH24+AH32+AH36+AH42+AH43+AH44+AH46+AH47+AH48+AH49 -> 35.3 | AI53: х | AJ53: =AJ24+AJ32+AJ36+AJ42+AJ43+AJ44+AJ46+AJ47+AJ48+AJ49 -> 0
E54: НН | G54: х | H54: =SUM(H10:H50) - H51-H52-H53 -> 0 | I54: х | J54: 0 | K54: х | L54: 0 | M54: х | N54: =SUM(N10:N50) - N51-N52-N53 -> 0 | O54: х | P54: 0 | Q54: х | R54: 0 | S54: х | T54: =SUM(T10:T50) - T51-T52-T53 -> 0 | U54: х | V54: =SUM(V10:V50) - V51-V52-V53 -> 0 | W54: х | X54: =SUM(X10:X50) - X51-X52-X53 -> 0 | Y54: х | Z54: =SUM(Z10:Z50) - Z51-Z52-Z53 -> 0 | AA54: х | AB54: =SUM(AB10:AB50) - AB51-AB52-AB53 -> 0 | AC54: х | AD54: =SUM(AD10:AD50) - AD51-AD52-AD53 -> 0 | AE54: х | AF54: =SUM(AF10:AF50) - AF51-AF52-AF53 -> 0 | AG54: х | AH54: =SUM(AH10:AH50) - AH51-AH52-AH53 -> 0 | AI54: х | AJ54: =SUM(AJ10:AJ50) - AJ51-AJ52-AJ53 -> 0
B55: Итого по оборудованию | G55: х | H55: =SUM(H51:H54) -> 27 | I55: х | J55: 29.3 | K55: х | L55: 29.3 | M55: х | N55: =SUM(N51:N54) -> 0 | O55: х | P55: 29.3 | Q55: х | R55: 35.3 | S55: х | T55: =SUM(T51:T54) -> 0 | U55: х | V55: =SUM(V51:V54) -> 35.3 | W55: х | X55: =SUM(X51:X54) -> 0 | Y55: х | Z55: =SUM(Z51:Z54) -> 35.3 | AA55: х | AB55: =SUM(AB51:AB54) -> 0 | AC55: х | AD55: =SUM(AD51:AD54) -> 35.3 | AE55: х | AF55: =SUM(AF51:AF54) -> 0 | AG55: х | AH55: =SUM(AH51:AH54) -> 35.3 | AI55: х | AJ55: =SUM(AJ51:AJ54) -> 0
B56: Всего активов по уровням напряжения: | E56: ВН | G56: х | H56: =H51+'УЕ ВЛЭП 2017-2024'!H48 -> 0 | I56: х | J56: =J51+'УЕ ВЛЭП 2017-2024'!J48 -> 0 | K56: х | L56: =L51+'УЕ ВЛЭП 2017-2024'!L48 -> 0 | M56: х | N56: =N51+'УЕ ВЛЭП 2017-2024'!N48 -> 0 | O56: х | P56: =P51+'УЕ ВЛЭП 2017-2024'!P48 -> 0 | Q56: х | R56: =R51+'УЕ ВЛЭП 2017-2024'!R48 -> 0 | S56: х | T56: =T51+'УЕ ВЛЭП 2017-2024'!T48 -> 0 | U56: х | V56: =V51+'УЕ ВЛЭП 2017-2024'!V48 -> 0 | W56: х | X56: =X51+'УЕ ВЛЭП 2017-2024'!X48 -> 0 | Y56: х | Z56: =Z51+'УЕ ВЛЭП 2017-2024'!Z48 -> 0 | AA56: х | AB56: =AB51+'УЕ ВЛЭП 2017-2024'!AB48 -> 0 | AC56: х | AD56: =AD51+'УЕ ВЛЭП 2017-2024'!AD48 -> 0 | AE56: х | AF56: =AF51+'УЕ ВЛЭП 2017-2024'!AF48 -> 0 | AG56: х | AH56: =AH51+'УЕ ВЛЭП 2017-2024'!AH48 -> 0 | AI56: х | AJ56: =AJ51+'УЕ ВЛЭП 2017-2024'!AJ48 -> 0
E57: СН1 | G57: х | H57: =H52+'УЕ ВЛЭП 2017-2024'!H49 -> 0 | I57: х | J57: =J52+'УЕ ВЛЭП 2017-2024'!J49 -> 0 | K57: х | L57: =L52+'УЕ ВЛЭП 2017-2024'!L49 -> 0 | M57: х | N57: =N52+'УЕ ВЛЭП 2017-2024'!N49 -> 0 | O57: х | P57: =P52+'УЕ ВЛЭП 2017-2024'!P49 -> 0 | Q57: х | R57: =R52+'УЕ ВЛЭП 2017-2024'!R49 -> 0 | S57: х | T57: =T52+'УЕ ВЛЭП 2017-2024'!T49 -> 0 | U57: х | V57: =V52+'УЕ ВЛЭП 2017-2024'!V49 -> 0 | W57: х | X57: =X52+'УЕ ВЛЭП 2017-2024'!X49 -> 0 | Y57: х | Z57: =Z52+'УЕ ВЛЭП 2017-2024'!Z49 -> 0 | AA57: х | AB57: =AB52+'УЕ ВЛЭП 2017-2024'!AB49 -> 0 | AC57: х | AD57: =AD52+'УЕ ВЛЭП 2017-2024'!AD49 -> 0 | AE57: х | AF57: =AF52+'УЕ ВЛЭП 2017-2024'!AF49 -> 0 | AG57: х | AH57: =AH52+'УЕ ВЛЭП 2017-2024'!AH49 -> 0 | AI57: х | AJ57: =AJ52+'УЕ ВЛЭП 2017-2024'!AJ49 -> 0
E58: СН2 | G58: х | H58: =H53+'УЕ ВЛЭП 2017-2024'!H50 -> 55.633 | I58: х | J58: =J53+'УЕ ВЛЭП 2017-2024'!J50 -> 61.6465 | K58: х | L58: =L53+'УЕ ВЛЭП 2017-2024'!L50 -> 61.6465 | M58: х | N58: =N53+'УЕ ВЛЭП 2017-2024'!N50 -> 0 | O58: х | P58: =P53+'УЕ ВЛЭП 2017-2024'!P50 -> 61.643 | Q58: х | R58: =R53+'УЕ ВЛЭП 2017-2024'!R50 -> 76.0265 | S58: х | T58: =T53+'УЕ ВЛЭП 2017-2024'!T50 -> 0 | U58: х | V58: =V53+'УЕ ВЛЭП 2017-2024'!V50 -> 76.0265 | W58: х | X58: =X53+'УЕ ВЛЭП 2017-2024'!X50 -> 0 | Y58: х | Z58: =Z53+'УЕ ВЛЭП 2017-2024'!Z50 -> 76.0265 | AA58: х | AB58: =AB53+'УЕ ВЛЭП 2017-2024'!AB50 -> 0 | AC58: х | AD58: =AD53+'УЕ ВЛЭП 2017-2024'!AD50 -> 76.0265 | AE58: х | AF58: =AF53+'УЕ ВЛЭП 2017-2024'!AF50 -> 0 | AG58: х | AH58: =AH53+'УЕ ВЛЭП 2017-2024'!AH50 -> 76.0265 | AI58: х | AJ58: =AJ53+'УЕ ВЛЭП 2017-2024'!AJ50 -> 0
E59: НН | G59: х | H59: =H54+'УЕ ВЛЭП 2017-2024'!H51 -> 9.504 | I59: х | J59: =J54+'УЕ ВЛЭП 2017-2024'!J51 -> 9.4932 | K59: х | L59: =L54+'УЕ ВЛЭП 2017-2024'!L51 -> 9.4932 | M59: х | N59: =N54+'УЕ ВЛЭП 2017-2024'!N51 -> 0 | O59: х | P59: =P54+'УЕ ВЛЭП 2017-2024'!P51 -> 9.504 | Q59: х | R59: =R54+'УЕ ВЛЭП 2017-2024'!R51 -> 22.2696 | S59: х | T59: =T54+'УЕ ВЛЭП 2017-2024'!T51 -> 0 | U59: х | V59: =V54+'УЕ ВЛЭП 2017-2024'!V51 -> 22.2696 | W59: х | X59: =X54+'УЕ ВЛЭП 2017-2024'!X51 -> 0 | Y59: х | Z59: =Z54+'УЕ ВЛЭП 2017-2024'!Z51 -> 22.2696 | AA59: х | AB59: =AB54+'УЕ ВЛЭП 2017-2024'!AB51 -> 0 | AC59: х | AD59: =AD54+'УЕ ВЛЭП 2017-2024'!AD51 -> 22.2696 | AE59: х | AF59: =AF54+'УЕ ВЛЭП 2017-2024'!AF51 -> 0 | AG59: х | AH59: =AH54+'УЕ ВЛЭП 2017-2024'!AH51 -> 22.2696 | AI59: х | AJ59: =AJ54+'УЕ ВЛЭП 2017-2024'!AJ51 -> 0
B60: Количество активов - всего | G60: х | H60: =H56+H57+H58+H59 -> 65.137 | I60: х | J60: =J56+J57+J58+J59 -> 71.1397 | K60: х | L60: =L56+L57+L58+L59 -> 71.1397 | M60: х | N60: =N56+N57+N58+N59 -> 0 | O60: х | P60: =P56+P57+P58+P59 -> 71.147 | Q60: х | R60: =R56+R57+R58+R59 -> 98.2961 | S60: х | T60: =T56+T57+T58+T59 -> 0 | U60: х | V60: =V56+V57+V58+V59 -> 98.2961 | W60: х | X60: =X56+X57+X58+X59 -> 0 | Y60: х | Z60: =Z56+Z57+Z58+Z59 -> 98.2961 | AA60: х | AB60: =AB56+AB57+AB58+AB59 -> 0 | AC60: х | AD60: =AD56+AD57+AD58+AD59 -> 98.2961 | AE60: х | AF60: =AF56+AF57+AF58+AF59 -> 0 | AG60: х | AH60: =AH56+AH57+AH58+AH59 -> 98.2961 | AI60: х | AJ60: =AJ56+AJ57+AJ58+AJ59 -> 0
B62: Руководитель организации | G62: ='Инф-я'!$C$21 -> Чижов Олег Александрович

Sheet Подконтрольные расходы
A2: Подконтрольные расходы на 2015 - 2024 годы
A4: ='Инф-я'!C13 -> ООО "МОНОСТРОЙ"
A6: № п.п. | B6: Наименование | C6: Ед.изм. | D6: 2015 год | E6: 2016 год | F6: 2017 год | H6: 2018 год | J6: 2019 год | L6: 2020 (базовый) год по данным организации | O6: 2020 (базовый) год по данным экспертов | R6: 2021 год | T6: 2022 год | V6: 2023 год | X6: 2024 год
D7: Утверждено | E7: Утверждено | F7: Утверждено | G7: Факт | H7: Утверждено | I7: Факт | J7: Утверждено | K7: Ожидаемые | L7: Экономически обоснованные ПР | M7: Величина эффективного уровня ПР | N7: Базовый уровень ПР | O7: Экономически обоснованные ПР | P7: Величина эффективного уровня ПР | Q7: Базовый уровень ПР | R7: По данным организации | S7: По данным экспертов | T7: По данным организации | U7: По данным экспертов | V7: По данным организации | W7: По данным экспертов | X7: По данным организации | Y7: По данным экспертов
A8: 1 | B8: 2 | C8: 3 | D8: 4 | E8: 5 | F8: 4 | G8: 5 | H8: 6 | I8: 7 | J8: 8 | K8: 9 | L8: 10 | M8: 11 | N8: 12 | R8: 13 | T8: 14 | V8: 15 | X8: 16
A9: Показатели для расчета подконтрольных расходов
A10: 1 | B10: Индекс эффективности подконтрольных расходов (Хэф) | C10: % | D10: 0.01 | E10: 0.01 | F10: =E10 -> 0.01 | G10: =F10 -> 0.01 | H10: =F10 -> 0.01 | I10: =H10 -> 0.01 | J10: =H10 -> 0.01 | K10: =J10 -> 0.01 | L10: х | M10: 0.01 | N10: =M10 -> 0.01 | O10: х | Q10: =P10 -> 0 | R10: =$N$10 -> 0.01 | S10: =$Q$10 -> 0 | T10: =$N$10 -> 0.01 | U10: =$Q$10 -> 0 | V10: =$N$10 -> 0.01 | W10: =$Q$10 -> 0 | X10: =$N$10 -> 0.01 | Y10: =$Q$10 -> 0
A11: 2 | B11: Коэффициент эластичности подконтрольных расходов по количеству активов (К эл) | C11: знач. | D11: 0.75 | E11: 0.75 | F11: 0.75 | G11: =F11 -> 0.75 | H11: 0.75 | I11: 0.75 | J11: 0.75 | K11: 0.75 | L11: х | M11: 0.75 | N11: 0.75 | O11: х | P11: 0.75 | Q11: 0.75 | R11: 0.75 | S11: 0.75 | T11: 0.75 | U11: 0.75 | V11: 0.75 | W11: 0.75 | X11: 0.75 | Y11: 0.75
A12: 3 | B12: Индекс потребительских цен (ИПЦ) | C12: % | D12: х | E12: 0.074 | F12: 0.047 | G12: 0.037 | H12: 0.037 | I12: 0.034 | J12: 0.046 | K12: 0.043 | L12: х | M12: х | N12: 0.038 | O12: х | P12: х | R12: 0.04 | T12: 0.04 | V12: 0.04 | X12: 0.04
A13: 4 | B13: Количество активов (УЕ) | C13: усл.ед. | D13: 30.68 | E13: 48.99 | F13: 31.03 | G13: ='УЕ ТП 2017-2024'!H60 -> 65.137 | H13: ='УЕ ТП 2017-2024'!J60 -> 71.1397 | I13: ='УЕ ТП 2017-2024'!L60 -> 71.1397 | J13: ='УЕ ТП 2017-2024'!P60 -> 71.147 | K13: =I13 -> 71.1397 | L13: х | M13: х | N13: ='УЕ ТП 2017-2024'!R60 -> 98.2961 | O13: х | P13: х | Q13: ='УЕ ТП 2017-2024'!T60 -> 0 | R13: ='УЕ ТП 2017-2024'!V60 -> 98.2961 | S13: ='УЕ ТП 2017-2024'!X60 -> 0 | T13: ='УЕ ТП 2017-2024'!Z60 -> 98.2961 | U13: ='УЕ ТП 2017-2024'!AB60 -> 0 | V13: ='УЕ ТП 2017-2024'!AD60 -> 98.2961 | W13: ='УЕ ТП 2017-2024'!AF60 -> 0 | X13: ='УЕ ТП 2017-2024'!AH60 -> 98.2961 | Y13: ='УЕ ТП 2017-2024'!AJ60 -> 0
A14: 5 | B14: Индекс изменения количества активов (ИКА) | C14: % | D14: х | E14: =IF(D13=0,0,(E13-D13)/D13) -> 0.5968057366 | F14: =IF(E13=0,0,(F13-E13)/E13) -> -0.3666054297 | G14: х | H14: =IF(F13=0,0,(H13-F13)/F13) -> 1.292610377 | I14: х | J14: =IF(H13=0,0,(J13-H13)/H13) -> 0.0001026149956 | K14: =IF(H13=0,0,(K13-H13)/H13) -> 0 | L14: х | M14: х | N14: =IF(J13=0,0,(N13-J13)/J13) -> 0.3815916342 | O14: х | P14: х | Q14: =IF(J13=0,0,(Q13-J13)/J13) -> -1 | R14: =IF(N13=0,0,(R13-N13)/N13) -> 0 | S14: =IF(Q13=0,0,(S13-Q13)/Q13) -> 0 | T14: 0 | U14: 0 | V14: 0 | W14: 0 | X14: 0 | Y14: 0
A15: 6 | B15: Общий коэффициент индексации подконтрольных расходов ПР= ИПЦ*(1+(Кэл*ИКА))*(1-Хэф) | C15: знач. | D15: х | E15: =(1+E12)*(1+(E11*E14))*(1-E10) -> 1.539179751 | F15: =(1+F12)*(1+(F11*F14))*(1-F10) -> 0.7515318555 | G15: х | H15: =(1+H12)*(1+(H11*H14))*(1-H10) -> 2.021904444 | I15: х | J15: 1.035619696 | K15: 1.03257 | L15: х | M15: х | N15: 1.321718396 | O15: х | P15: х | Q15: 0.25 | R15: 1.0296 | S15: 1 | T15: 1.0296 | U15: 1 | V15: 1.0296 | W15: 1 | X15: 1.0296 | Y15: 1
A16: Подконтрольные расходы организации (ПР)
A17: 1. | B17: Расходы на оплату труда | C17: тыс.руб. | D17: 352.42 | E17: 542.73 | F17: =E17*F$15 -> 407.8788839 | G17: ='П.1.16. оплата труда ОПР'!D32 -> 0 | H17: =F17*H$15 -> 824.6921278 | I17: ='П.1.16. оплата труда ОПР'!F32 -> 1398.603 | J17: =H17*J$15 -> 854.0674111 | K17: ='П.1.16. оплата труда ОПР'!H32 -> 1458.742929 | L17: ='П.1.16. оплата труда ОПР'!I32 -> 1771.66359 | M17: х | N17: =IFERROR(L17/$L$24*$N$24,0) -> 1771.66359 | O17: ='П.1.16. оплата труда ОПР'!J32 -> 0 | P17: х | Q17: =IFERROR(O17/$O$24*$Q$24,0) -> 0 | R17: =N17*R$15 -> 1824.104832 | S17: =Q17*S$15 -> 0 | T17: =R17*T$15 -> 1878.098335 | U17: =S17*U$15 -> 0 | V17: =T17*V$15 -> 1933.690046 | W17: =U17*W$15 -> 0 | X17: =V17*X$15 -> 1990.927271 | Y17: =W17*Y$15 -> 0
A18: 2. | B18: Материалы | C18: тыс.руб. | D18: 0 | E18: 0 | F18: =E18*F$15 -> 0 | G18: =материалы!C39 -> 0 | H18: =F18*H$15 -> 0 | I18: =материалы!E39 -> 0 | J18: =H18*J$15 -> 0 | K18: =материалы!G39 -> 0 | L18: =материалы!H39 -> 0 | M18: х | N18: 0 | O18: =материалы!I39 -> 0 | P18: х | Q18: =IFERROR(O18/$O$24*$Q$24,0) -> 0 | R18: =N18*R$15 -> 0 | S18: =Q18*S$15 -> 0 | T18: 0 | U18: 0 | V18: 0 | W18: 0 | X18: 0 | Y18: 0
A19: 3. | B19: Ремонт основных фондов | C19: тыс.руб. | D19: 321 | E19: 494.34 | F19: 371.5122574 | G19: ='Сводная ремонт'!C13 -> 609.5 | H19: 751.1622841 | I19: ='Сводная ремонт'!E13 -> 178.3 | J19: 777.9184567 | K19: ='Сводная ремонт'!G13 -> 793.89 | L19: ='Сводная ремонт'!H13 -> 822.6798488 | M19: х | N19: 822.6798488 | O19: ='Сводная ремонт'!M13 -> 0 | P19: х | Q19: 0 | R19: 847.0311723 | S19: 0 | T19: 872.103295 | U19: 0 | V19: 897.9175526 | W19: 0 | X19: 924.4959121 | Y19: 0
A20: 4. | B20: Цеховые расходы | C20: тыс.руб. | D20: 80.08 | E20: 123.32 | F20: 92.67890842 | G20: ='Цеховые расходы'!C15 -> 0 | H20: 187.3878968 | I20: ='Цеховые расходы'!E15 -> 1664.2 | J20: 194.0625968 | K20: ='Цеховые расходы'!G15 -> 1735.7606 | L20: ='Цеховые расходы'!H15 -> 1801.719503 | M20: х | N20: 1801.719503 | O20: ='Цеховые расходы'!J15 -> 0 | P20: х | Q20: 0 | R20: =N20*R$15 -> 1855.0504 | S20: =Q20*S$15 -> 0 | T20: =R20*T$15 -> 1909.959892 | U20: =S20*U$15 -> 0 | V20: =T20*V$15 -> 1966.494705 | W20: =U20*W$15 -> 0 | X20: =V20*X$15 -> 2024.702948 | Y20: =W20*Y$15 -> 0
A21: 5. | B21: Общеэксплуатационные расходы | C21: тыс.руб. | D21: 553.19 | E21: 851.91 | F21: 640.237503 | G21: ='Общеэксплуатационные расходы '!C37 -> 0 | H21: 1294.499052 | I21: ='Общеэксплуатационные расходы '!E37 -> 963.896599 | J21: 1340.608716 | K21: ='Общеэксплуатационные расходы '!G37 -> 1005.344153 | L21: ='Общеэксплуатационные расходы '!H37 -> 1043.547231 | M21: х | N21: 1043.547231 | O21: ='Общеэксплуатационные расходы '!I37 -> 0 | P21: х | Q21: 0 | R21: 1074.436229 | S21: 0 | T21: 1106.239541 | U21: 0 | V21: 1138.984231 | W21: 0 | X21: 1172.698165 | Y21: 0
A22: 6. | B22: Другие расходы, связанные с передачей электрической энергии | C22: тыс.руб. | D22: 0 | E22: 0 | F22: 0 | G22: ='Др проч'!C15 -> 0 | H22: 0 | I22: ='Др проч'!E15 -> 0 | J22: 0 | K22: ='Др проч'!G15 -> 0 | L22: ='Др проч'!H15 -> 0 | M22: х | N22: 0 | O22: ='Др проч'!I15 -> 0 | P22: х | Q22: 0 | R22: 0 | S22: 0 | T22: 0 | U22: 0 | V22: 0 | W22: 0 | X22: 0 | Y22: 0
A23: 7. | B23: Расходы по коллективным договорам | C23: тыс.руб. | D23: 0 | E23: 0 | F23: 0 | G23: ='Расходы по кол дог'!C29 -> 40 | H23: 0 | I23: ='Расходы по кол дог'!E29 -> 40 | J23: 0 | K23: ='Расходы по кол дог'!G29 -> 41.72 | L23: ='Расходы по кол дог'!H29 -> 43.30536 | M23: х | N23: 43.30536 | O23: ='Расходы по кол дог'!I29 -> 0 | P23: х | Q23: 0 | R23: =N23*R$15 -> 44.58719866 | S23: =Q23*S$15 -> 0 | T23: =R23*T$15 -> 45.90697974 | U23: =S23*U$15 -> 0 | V23: =T23*V$15 -> 47.26582634 | W23: =U23*W$15 -> 0 | X23: =V23*X$15 -> 48.6648948 | Y23: =W23*Y$15 -> 0
B24: Итого ПР | C24: тыс.руб. | D24: =SUM(D17:D23) -> 1306.69 | E24: =SUM(E17:E23) -> 2012.3 | F24: 1512.307553 | G24: 649.5 | H24: 3057.741361 | I24: 4244.999599 | J24: 3166.65718 | K24: 5035.457682 | L24: 5482.915532 | M24: =L24 -> 5482.915532 | N24: =L24*0.7+M24*0.3 -> 5482.915532 | O24: =SUM(O17:O23) -> 0 | P24: =ОРЕХ!W19 ->  | Q24: =O24*0.7+P24*0.3 ->  | R24: =SUM(R17:R23) -> 5645.209832 | S24: =SUM(S17:S23) -> 0 | T24: =SUM(T17:T23) -> 5812.308043 | U24: =SUM(U17:U23) -> 0 | V24: =SUM(V17:V23) -> 5984.352361 | W24: =SUM(W17:W23) -> 0 | X24: =SUM(X17:X23) -> 6161.489191 | Y24: =SUM(Y17:Y23) -> 0
B26: Руководитель организации | H26: ='Инф-я'!$C$21 -> Чижов Олег Александрович

Sheet материалы
A2: Расходы на материалы
A4: ='Инф-я'!C13 -> ООО "МОНОСТРОЙ"
H5: тыс. руб.
A6: Показатели | B6: 2017 год | D6: 2018 год | F6: 2019 год | H6: 2020 год | J6: 2017 год | K6: 2018 год
B7: Утвержденные | C7: Факт | D7: Утвержденные | E7: Факт | F7: Утвержденные | G7: Ожидаемые | H7: По данным организации | I7: По данным экспертов | J7: Факт по расчету экспертов | K7: Факт по расчету экспертов
A8: 1 | B8: 2 | C8: 3 | D8: 4 | E8: 5 | F8: 6 | G8: 7 | H8: 8 | I8: 9 | J8: 10 | K8: 11
A9: Материалы для эксплуатации, всего, в том числе: | B9: х | C9: =SUM(C10:C17) -> 0 | D9: х | E9: =SUM(E10:E17) -> 0 | F9: х | G9: =SUM(G10:G17) -> 0 | H9: 0 | I9: 0 | J9: =SUM(J10:J17) -> 0 | K9: 0
B10: х | D10: х | F10: х | G10: =E10*1.043 -> 0 | H10: =G10*1.038 -> 0
B11: х | D11: х | F11: х
B12: х | D12: х | F12: х
B13: х | D13: х | F13: х
B14: х | D14: х | F14: х
B15: х | D15: х | F15: х
B16: х | D16: х | F16: х
B17: х | D17: х | F17: х
A18: Добавить
A19: ГСМ | B19: х | D19: х | F19: х | G19: =E19*1.043 -> 0 | H19: =G19*1.038 -> 0
A20: Основные средства стомостью до 40 тыс. руб., всего, в том числе: | B20: х | C20: =SUM(C21:C28) -> 0 | D20: х | E20: =SUM(E21:E28) -> 0 | F20: х | G20: =SUM(G21:G28) -> 0 | H20: 0 | I20: =SUM(I21:I29) -> 0 | J20: =SUM(J21:J29) -> 0 | K20: =SUM(K21:K29) -> 0
B21: х | D21: х | F21: х
B22: х | D22: х | F22: х
B23: х | D23: х | F23: х
B24: х | D24: х | F24: х
B25: х | D25: х | F25: х
B26: х | D26: х | F26: х
B27: х | D27: х | F27: х
B28: х | D28: х | F28: х
A29: Добавить
A30: Прочие материалы, всего, в том числе: | B30: х | C30: =SUM(C31:C37) -> 0 | D30: х | E30: =SUM(E31:E37) -> 0 | F30: х | G30: =SUM(G31:G37) -> 0 | H30: 0 | I30: 0 | J30: =SUM(J31:J37) -> 0 | K30: 0
B31: х | D31: х | F31: х
B32: х | D32: х | F32: х
B33: х | D33: х | F33: х
B34: х | D34: х | F34: х
B35: х | D35: х | F35: х
B36: х | D36: х | F36: х
B37: х | D37: х | F37: х
A38: Добавить
A39: ИТОГО | B39: ='Подконтрольные расходы'!F18 -> 0 | C39: =C9+C19+C20+C30 -> 0 | D39: ='Подконтрольные расходы'!H18 -> 0 | E39: =E9+E19+E20+E30 -> 0 | F39: ='Подконтрольные расходы'!J18 -> 0 | G39: =G9+G19+G20+G30 -> 0 | H39: 0 | I39: 0 | J39: =J9+J19+J20+J30 -> 0 | K39: 0
A41: Руководитель организации | D41: ='Инф-я'!$C$21 -> Чижов Олег Александрович

Sheet план ремонтов
A2: Расчет стоимости ремонтных работ на 2020 - 2024 годы, связанных с передачей электрической энергии
A4: ='Инф-я'!C13 -> ООО "МОНОСТРОЙ"
A6: Нименование работ, месторасположение объектов | B6: По данным Общества | L6: По данным экспертов
B7: 2020 год | D7: 2021 год | F7: 2022 год | H7: 2023 год | J7: 2024 год | L7: 2020 год
B8: всего по смете (без НДС) | C8: в т.ч. материалы | D8: всего по смете (без НДС) | E8: в т.ч. материалы | F8: всего по смете (без НДС) | G8: в т.ч. материалы | H8: всего по смете (без НДС) | I8: в т.ч. материалы | J8: всего по смете (без НДС) | K8: в т.ч. материалы | L8: всего по смете (без НДС) | M8: в т.ч. материалы
A9: 1 | B9: 2 | C9: 3 | D9: 4 | E9: 5 | F9: 6 | G9: 7 | H9: 8 | I9: 9 | J9: 10 | K9: 11 | L9: 12 | M9: 13
A10: Подрядный способ
A11: Замена семи изношенных панелей ЩО-70 в РУ-0,4 кВ ТП-381 | B11: =733.775*1.043*1.038 -> 794.4097634 | C11: х | E11: х | G11: х | I11: х | K11: х | M11: х
A12: Техническое диагностирование токоведущих шпилек силовых трансформаторов ТМГ-400 кВА ТП-381 и устранение их нагревов | B12: =25.108*1.043*1.038*1.04 -> 28.27008545 | C12: х | E12: х | G12: х | I12: х | K12: х | M12: х
A13: Замена камер КСО-366 РУ-6 кВ ТП-381 на новые КСО "Новация" с вакуумными выключателями (2 шт.) | C13: х | D13: =3018.349/6*2*1.038*1.04 -> 1086.122704 | E13: х | G13: х | I13: х | K13: х | M13: х
A14: Замена камер КСО-366 РУ-6 кВ ТП-381 на новые КСО "Новация" с вакуумными выключателями (2 шт.) | C14: х | E14: х | F14: =D13*1.04 -> 1129.567612 | G14: х | I14: х | K14: х | M14: х
A15: Замена камер КСО-366 РУ-6 кВ ТП-381 на новые КСО "Новация" с вакуумными выключателями (2 шт.) | C15: х | E15: х | G15: х | H15: =F14*1.04 -> 1174.750317 | I15: х | J15: =H14*1.04 -> 0 | K15: х | M15: х
A16: Замена трансформаторов ТМГ-400 в ТП-381 на новые с комплектом КИП | C16: х | E16: х | G16: х | I16: х | J16: =557.648*1.04*1.043*1.038*1.04*1.04*1.04*1.04 -> 734.5282567 | K16: х | M16: х
C17: х | E17: х | G17: х | I17: х | K17: х | M17: х
C18: х | E18: х | G18: х | I18: х | K18: х | M18: х
A19: Добавить
A20: Всего (Подрядный способ) | B20: =SUM(B11:B18) -> 822.6798488 | C20: х | D20: =SUM(D11:D18) -> 1086.122704 | E20: х | F20: =SUM(F11:F18) -> 1129.567612 | G20: х | H20: =SUM(H11:H18) -> 1174.750317 | I20: х | J20: =SUM(J11:J18) -> 734.5282567 | K20: х | L20: =SUM(L11:L18) -> 0 | M20: х
A21: Хозяйственный способ
A31: Добавить
A32: Всего (Хозяйственный способ) | B32: =SUM(B22:B30) -> 0 | C32: 0 | D32: 0 | E32: 0 | F32: 0 | G32: 0 | H32: 0 | I32: 0 | J32: 0 | K32: 0 | L32: 0 | M32: 0
A34: Руководитель организации

Sheet Сводная ремонт
A2: Стоимость ремонтных работ
A4: ='Инф-я'!C13 -> ООО "МОНОСТРОЙ"
L5: тыс. руб.
A6: Показатели | B6: 2017 год | D6: 2018 год | F6: 2019 год | H6: 2020 год | I6: 2021 год | J6: 2022 год | K6: 2023 год | L6: 2024 год | M6: 2020 год | N6: 2017 год | O6: 2018 год
B7: Утвержденные | C7: Факт | D7: Утвержденные | E7: Факт | F7: Утвержденные | G7: Ожидаемые | H7: по данным организации | M7: По данным экспертов | N7: Факт по расчету экспертов | O7: Факт по расчету экспертов
A8: 1 | B8: 2 | C8: 3 | D8: 4 | E8: 5 | F8: 6 | G8: 7 | H8: 8 | I8: 9 | J8: 10 | K8: 11 | L8: 12 | M8: 13 | N8: 14 | O8: 15
A9: Объем ремонтных работ по сметам - всего | B9: х | C9: =C10+C11 -> 609.5 | D9: х | E9: =E10+E11 -> 178.3 | F9: х | G9: =G10+G11 -> 793.89 | H9: =H10+H11 -> 822.6798488 | I9: =I10+I11 -> 1086.122704 | J9: 1129.567612 | K9: 1174.750317 | L9: 734.5282567 | M9: =M10+M11 -> 0 | N9: =N10+N11 -> 0 | O9: =O10+O11 -> 0
A10: - подряд | B10: х | C10: 609.5 | D10: х | E10: 178.3 | F10: х | G10: 793.89 | H10: ='план ремонтов'!B20 -> 822.6798488 | I10: ='план ремонтов'!D20 -> 1086.122704 | J10: ='план ремонтов'!F20 -> 1129.567612 | K10: ='план ремонтов'!H20 -> 1174.750317 | L10: ='план ремонтов'!J20 -> 734.5282567 | M10: ='план ремонтов'!L20 -> 0
A11: - хозспособ | B11: х | D11: х | F11: х | H11: ='план ремонтов'!B32 -> 0 | I11: ='план ремонтов'!D32 -> 0 | J11: ='план ремонтов'!F32 -> 0 | K11: ='план ремонтов'!H32 -> 0 | L11: ='план ремонтов'!J32 -> 0 | M11: ='план ремонтов'!L32 -> 0
A13: Стоимость ремонтных работ (подряд + хозспособ (материалы)) - всего | B13: ='Подконтрольные расходы'!F19 -> 371.5122574 | C13: =C14+C15 -> 609.5 | D13: ='Подконтрольные расходы'!H19 -> 751.1622841 | E13: 178.3 | F13: ='Подконтрольные расходы'!J19 -> 777.9184567 | G13: =G14+G15 -> 793.89 | H13: =H14+H15 -> 822.6798488 | I13: 1086.122704 | J13: 1129.567612 | K13: 1174.750317 | L13: 734.5282567 | M13: =M14+M15 -> 0 | N13: =N14+N15 -> 0 | O13: 0
A14: - подряд | B14: х | C14: =C10 -> 609.5 | D14: х | E14: =E10 -> 178.3 | F14: х | G14: =G10 -> 793.89 | H14: =H10 -> 822.6798488 | I14: =I10 -> 1086.122704 | J14: 1129.567612 | K14: 1174.750317 | L14: 734.5282567 | M14: =M10 -> 0 | N14: =N10 -> 0 | O14: =O10 -> 0
A15: - хозспособ | B15: х | D15: х | F15: х | H15: ='план ремонтов'!C32 -> 0 | I15: ='план ремонтов'!E32 -> 0 | J15: ='план ремонтов'!G32 -> 0 | K15: ='план ремонтов'!I32 -> 0 | L15: ='план ремонтов'!K32 -> 0 | M15: ='план ремонтов'!M32 -> 0
A17: Руководитель организации | D17: ='Инф-я'!$C$21 -> Чижов Олег Александрович

Sheet П.1.16. оплата труда ОПР
A3: Расчет расходов на оплату труда основных производственных рабочих, цехового и общеэксплуатационного персонала, в части, относящейся на передачу электроэнергии
A5: ='Инф-я'!C13 -> ООО "МОНОСТРОЙ"
A7: Показатели | B7: Ед. изм. | C7: 2017 год | E7: 2018 год | G7: 2019 год | I7: 2020 год | K7: 2017 год | L7: 2018 год
C8: Утвержденные | D8: Факт | E8: Утвержденные | F8: Факт | G8: Утвержденные | H8: Ожидаемые | I8: По данным организации | J8: По данным экспертов | K8: Факт по расчету экспертов | L8: Факт по расчету экспертов
A9: Основные производственные рабочие | B9: чел. | C9: х | E9: х | F9: 4 | G9: х | H9: =F9 -> 4 | I9: 4
A10: СРЕДСТВА НА ОПЛАТУ ТРУДА ОСНОВНЫХ ПРОИЗВОДСТВЕННЫХ РАБОЧИХ (ОПР)
A11: Минимальная месячная тарифная ставка рабочего 1 разряда для организаций коммунального электроснабжения | B11: руб. | C11: х | D11: х | E11: х | F11: х | G11: х | H11: х | I11: =11280*1.038 -> 11708.64 | K11: х | L11: х
A12: Средний межразрядный коэффициент | C12: х | D12: х | E12: х | F12: х | G12: х | H12: х | I12: =P15 -> 1.5625 | K12: х | L12: х | N12: 3 | O12: 1.52 | P12: =O12*N12 -> 4.56
A13: Среднемесячная тарифная ставка ОПР | B13: руб. | C13: х | E13: х | F13: =1398.603/F9/12*1000 -> 29137.5625 | G13: х | H13: =F13*1.043 -> 30390.47769 | I13: =I11*I12 -> 18294.75 | N13: 1 | O13: 1.69 | P13: =O13*N13 -> 1.69
A14: Выплаты, связанные с режимом работы, с условиями труда 1 рабочего | P14: =P12+P13 -> 6.25
A15: - процент выплаты | B15: % | C15: х | D15: =IF(D13=0,0,D16/D13) -> 0 | E15: х | F15: =IF(F13=0,0,F16/F13) -> 0 | G15: х | H15: =IF(H13=0,0,H16/H13) -> 0 | I15: 0.125 | P15: =P14/4 -> 1.5625
A16: - сумма выплат | B16: руб. | C16: х | E16: х | G16: х | H16: =F16*1.043 -> 0 | I16: =I13*I15 -> 2286.84375 | J16: =J13*J15 -> 0 | K16: =K13*K15 -> 0 | L16: =L13*L15 -> 0
A17: Оплата за совмещение профессий
A18: - процент выплаты | B18: % | C18: х | D18: =IF(D13=0,0,D19/(D13+D16)) -> 0 | E18: х | F18: =IF(F13=0,0,F19/(F13+F16)) -> 0 | G18: х | H18: =IF(H13=0,0,H19/(H13+H16)) -> 0 | I18: 0
A19: - сумма выплат | B19: руб. | C19: х | E19: х | G19: х | I19: =(I13+I16)*I18 -> 0 | J19: =(J13+J16)*J18 -> 0 | K19: =(K13+K16)*K18 -> 0 | L19: =(L13+L16)*L18 -> 0
A20: Текущее премирование:
A21: - процент выплаты | B21: % | C21: х | D21: =IF(D13=0,0,D22/(D13+D16+D19)) -> 0 | E21: х | F21: =IF(F13=0,0,F22/(F13+F16+F19)) -> 0 | G21: х | H21: =IF(H13=0,0,H22/(H13+H16+H19)) -> 0 | I21: 0.5
A22: - сумма выплат | B22: руб. | C22: х | E22: х | G22: х | H22: =F22*1.043 -> 0 | I22: =(I13+I16+I19)*I21 -> 10290.79688 | J22: =(J13+J16+J19)*J21 -> 0 | K22: =(K13+K16+K19)*K21 -> 0 | L22: =(L13+L16+L19)*L21 -> 0
A23: Вознаграждение за выслугу лет:
A24: - процент выплаты | B24: % | C24: х | D24: =IF(D13=0,0,D25/D13) -> 0 | E24: х | F24: =IF(F13=0,0,F25/F13) -> 0 | G24: х | H24: =IF(H13=0,0,H25/H13) -> 0
A25: - сумма выплат | B25: руб. | C25: х | E25: х | I25: =I13*I24 -> 0 | J25: =J13*J24 -> 0 | K25: =K13*K24 -> 0 | L25: =L13*L24 -> 0
A26: Выплаты по итогам года:
A27: - процент выплаты | B27: % | C27: х | D27: =IF(D13=0,0,D28/D13) -> 0 | E27: х | F27: =IF(F13=0,0,F28/F13) -> 0 | G27: х | H27: =IF(H13=0,0,H28/H13) -> 0 | I27: 0.33
A28: - сумма выплат | B28: руб. | C28: х | E28: х | G28: х | I28: =I13*I27 -> 6037.2675 | J28: =J13*J27 -> 0 | K28: =K13*K27 -> 0 | L28: =L13*L27 -> 0
A29: Другие доплаты и премии
A30: - процент выплаты | B30: % | C30: х | D30: =IF(D13=0,0,D31/D13) -> 0 | E30: х | F30: =IF(F13=0,0,F31/F13) -> 0 | G30: х | H30: =IF(H13=0,0,H31/H13) -> 0
A31: - сумма выплат | B31: руб. | C31: х | E31: х | I31: =I13*I30 -> 0 | J31: =J13*J30 -> 0 | K31: =K13*K30 -> 0 | L31: =L13*L30 -> 0
A32: ИТОГО средства на оплату труда основных производственных рабочих | B32: тыс.руб. | C32: ='Подконтрольные расходы'!F17 -> 407.8788839 | D32: =D33*D9*12/1000 -> 0 | E32: ='Подконтрольные расходы'!H17 -> 824.6921278 | F32: =F33*F9*12/1000 -> 1398.603 | G32: ='Подконтрольные расходы'!J17 -> 854.0674111 | H32: =H33*H9*12/1000 -> 1458.742929 | I32: =I33*I9*12/1000 -> 1771.66359 | J32: =J33*J9*12/1000 -> 0 | K32: =K33*K9*12/1000 -> 0 | L32: =L33*L9*12/1000 -> 0
A33: ИТОГО среднемесячная оплата труда на 1 рабочего | B33: руб. | C33: х | D33: =D13+D16+D19+D22+D25+D28+D31 -> 0 | E33: х | F33: =F13+F16+F19+F22+F25+F28+F31 -> 29137.5625 | G33: х | H33: =H13+H16+H19+H22+H25+H28+H31 -> 30390.47769 | I33: 36909.65813 | J33: 0 | K33: 0 | L33: 0
A34: *Выплаты, связанные с режимом работы, расходы на текущее премирование и выплаты по итогам года опредлены на основании Отраслевого тарифного соглашения в жилищно-коммунальном хозяйстве Российской Федерации на 2017 - 2019
A35: Руководитель организации | D35: ='Инф-я'!$C$21 -> Чижов Олег Александрович

Sheet Цеховые расходы
A2: Цеховые расходы
A4: ='Инф-я'!C13 -> ООО "МОНОСТРОЙ"
A6: Показатели | B6: 2017 год | D6: 2018 год | F6: 2019 год | H6: 2020 год | J6: 2017 год | K6: 2018 год
B7: Утвержденные | C7: Факт | D7: Утвержденные | E7: Факт | F7: Утвержденные | G7: Ожидаемые | H7: По данным организации | I7: По данным экспертов | J7: Факт по расчету экспертов | K7: Факт по расчету экспертов
A8: 1 | B8: 2 | C8: 3 | D8: 4 | E8: 5 | F8: 6 | G8: 7 | H8: 8 | I8: 9 | J8: 10 | K8: 11
A9: Услуги строительной техники (договор от 12.01.2009 г. с ООО "Стальмонтаж", акт №13 от 18.05.2018, акт №21 от 07.06.2018, акт №29 от 12.07.2018, акт №31 от 27.07.2018, акт №35 от 14.08.2018, акт №39 от 17.09.2018, акт №42 от 25.10.2018, акит №46 от 06.11.2018). Расходы на 2020 год определены исходя из фактических расходов на спецтехнику в 2018 году с учетом индексов 1,043 (2019/2018) и 1,038 (2020/2019) | B9: х | D9: х | E9: =(6+9.6+9.6+7.2+6+8.4+9.6+3.6) -> 60 | F9: х | G9: =E9*1.043 -> 62.58 | H9: =G9*1.038 -> 64.95804
A10: Аренда автомобиля с водителем (договор №55 от 23.12.2016 с ОАО "Монострой", акт №5 от 31.01.2018, акт №14 от 28.02.2018, акт №19 от 30.03.2018, акт №26 от 27.04.2018, акт №29 от 31.05.2018, акт №36 от 29.06.2018, акт №39 от 31.07.2018, акт №41 от 31.08.2019, акт №44 от 28.09.2018, акт №47 от 31.10.2018, акт №53 от 30.11.2018, акт №60 от 28.12.2018). Расходы на 2020 год определены исходя из фактических расходов на аренду транспортного средства с водителем в 2018 году с учетом индексов 1,043 (2019/2018) и 1,038 (2020/2019) | B10: х | D10: х | E10: =108.8+120.8+127.2+133.6+127.2+127.2+140.8+147.2+128+147.2+134.4+133.6 -> 1576 | F10: х | G10: =E10*1.043 -> 1643.768 | H10: =G10*1.038 -> 1706.231184
A11: Обучение (счет-фактура ООО "Принт-СК" №746 от 28.11.2018, акт №577 от 28.11.2018 г., график обучения на 2020-2024 гг.). Расходы на 2020 год определены исходя из фактических расходов на обучение в 2018 году с учетом индексов 1,043 (2019/2018) и 1,038 (2020/2019) | B11: х | D11: х | E11: 28.2 | F11: х | G11: =E11*1.043 -> 29.4126 | H11: =G11*1.038 -> 30.5302788
B12: х | D12: х | F12: х
B13: х | D13: х | F13: х
A14: Добавить
A15: Итого цеховые расходы | B15: ='Подконтрольные расходы'!F20 -> 92.67890842 | C15: =SUM(C9:C13) -> 0 | D15: ='Подконтрольные расходы'!H20 -> 187.3878968 | E15: =SUM(E9:E13) -> 1664.2 | F15: ='Подконтрольные расходы'!J20 -> 194.0625968 | G15: 1735.7606 | H15: 1801.719503 | I15: 0 | J15: 0 | K15: 0
A17: Руководитель организации | D17: ='Инф-я'!$C$21 -> Чижов Олег Александрович

Sheet Общеэксплуатационные расходы
A2: Общеэксплуатационные расходы
A4: ='Инф-я'!C13 -> ООО "МОНОСТРОЙ"
A6: Показатели | B6: 2017 год | D6: 2018 год | F6: 2019 год | H6: 2020 год | J6: 2017 год | K6: 2018 год
B7: Утвержденные | C7: Факт | D7: Утвержденные | E7: Факт | F7: Утвержденные | G7: Ожидаемые | H7: По данным организации | I7: По данным экспертов | J7: Факт по расчету экспертов | K7: Факт по расчету экспертов
A8: 1 | B8: 2 | C8: 3 | D8: 4 | E8: 5 | F8: 6 | G8: 7 | H8: 8 | I8: 9 | J8: 10 | K8: 11
A9: Заработная плата АУП | B9: х | D9: х | E9: =L9*1398603/15069542/1000 -> 153.1057931 | F9: х | G9: =E9*1.043 -> 159.6893423 | H9: =G9*1.038 -> 165.7575373 | L9: 1649670.55
A10: Заработная плата свпомогательного производства | B10: х | D10: х | E10: 250.3553257 | F10: х | G10: =E10*1.043 -> 261.1206047 | H10: =G10*1.038 -> 271.0431877 | L10: 2697506.08
A11: Амортизация | B11: х | D11: х | E11: 12.69067544 | F11: х | G11: 13.23637448 | H11: 13.73935671 | L11: 136738.35
A12: Информационные услуги | B12: х | D12: х | E12: 72.59074685 | F12: х | G12: 75.71214896 | H12: 78.58921063 | L12: 782144.26
A13: Инвентарь | B13: х | D13: х | E13: 69.38185219 | F13: х | G13: 72.36527183 | H13: 75.11515216 | L13: 747569.35
A14: ОПФР | B14: х | D14: х | E14: 118.0687543 | F14: х | G14: 123.1457107 | H14: 127.8252477 | L14: 1272156.61
A15: Спецодежда | B15: х | D15: х | E15: 62.28737646 | F15: х | G15: 64.96573364 | H15: 67.43443152 | L15: 671128.43
A16: Страхование | B16: х | D16: х | E16: 37.68588785 | F16: х | G16: 39.30638103 | H16: 40.80002351 | L16: 406054.52
A17: Услуги банка | B17: х | D17: х | E17: 58.80913998 | F17: х | G17: 61.337933 | H17: 63.66877445 | L17: 633651.44
A18: Услуги связи | B18: х | D18: х | E18: 77.12529758 | F18: х | G18: 80.44168538 | H18: 83.49846942 | L18: 831002.73
A19: Услуги стоянки | B19: х | D19: х | E19: 25.96526542 | F19: х | G19: 27.08177183 | H19: 28.11087916 | L19: 279768.21
A20: Компенсация при увольнении | B20: х | D20: х | E20: 11.015474 | F20: х | G20: 11.48913938 | H20: 11.92572668 | L20: 118688.54
A21: Списание в эксплуатацию | B21: х | D21: х | E21: 14.81501007 | F21: х | G21: 15.4520555 | H21: 16.03923361 | L21: 159627.44
B22: х | D22: х | F22: х | G22: 0 | H22: 0
B23: х | D23: х | F23: х | G23: 0 | H23: 0
B24: х | D24: х | F24: х | G24: 0 | H24: 0
B25: х | D25: х | F25: х | G25: 0 | H25: 0
B26: х | D26: х | F26: х | G26: 0 | H26: 0
B27: х | D27: х | F27: х | G27: 0 | H27: 0
B28: х | D28: х | F28: х | G28: 0 | H28: 0
B29: х | D29: х | F29: х | G29: 0 | H29: 0
B30: х | D30: х | F30: х | G30: 0 | H30: 0
B31: х | D31: х | F31: х | G31: 0 | H31: 0
B32: х | D32: х | F32: х | G32: 0 | H32: 0
B33: х | D33: х | F33: х | G33: 0 | H33: 0
B34: х | D34: х | F34: х | G34: 0 | H34: 0
B35: х | D35: х | F35: х | G35: 0 | H35: 0
A36: Добавить
A37: ИТОГО общеэксплуатационные расходы | B37: ='Подконтрольные расходы'!F21 -> 640.237503 | C37: =SUM(C9:C35) -> 0 | D37: ='Подконтрольные расходы'!H21 -> 1294.499052 | E37: 963.896599 | F37: ='Подконтрольные расходы'!J21 -> 1340.608716 | G37: 1005.344153 | H37: 1043.547231 | I37: 0 | J37: 0 | K37: 0
A38: Для аналитического учета управленческие расходы, накопленные на счете 26 "Общехозяйственные расходы", на конец каждого отчетного периода списываются в себестоимость продаж по видам продукции пропорционально фонду оплаты труда работников подразделения к фонду оплаты труда предпрития. На 2018 год процент отнесения Управленческих расходов на вид деятельности "Передача электроэнергии" составлчяет 9,28% (1398603 руб. / 15069542 руб. * 100%). Общехозяйсмтвенные расходы на 2020 г. определены на основании фактических расходов 2018 г. с учетом индексов 1,043 (2019/2018) и 1,038 (2020/2019)
A39: Руководитель организации | D39: ='Инф-я'!$C$21 -> Чижов Олег Александрович

Sheet Др проч (hidden)
A2: Другие расходы, связанные с передачей электрической энергии
A4: ='Инф-я'!C13 -> ООО "МОНОСТРОЙ"
A6: Показатели | B6: 2017 год | D6: 2018 год | F6: 2019 год | H6: 2020 год | J6: 2017 год | K6: 2018 год
B7: Утвержденные | C7: Факт | D7: Утвержденные | E7: Факт | F7: Утвержденные | G7: Ожидаемые | H7: По данным организации | I7: По данным экспертов | J7: Факт по расчету экспертов | K7: Факт по расчету экспертов
A8: 1 | B8: 2 | C8: 3 | D8: 4 | E8: 5 | F8: 6 | G8: 7 | H8: 8 | I8: 9 | J8: 10 | K8: 11
B9: х | D9: х | F9: х
B10: х | D10: х | F10: х
B11: х | D11: х | F11: х
B12: х | D12: х | F12: х
B13: х | D13: х | F13: х
A14: Добавить
A15: ИТОГО другие расходы, связанные с передачей электроэнергии | B15: ='Подконтрольные расходы'!F22 -> 0 | C15: =SUM(C9:C13) -> 0 | D15: ='Подконтрольные расходы'!H22 -> 0 | E15: =SUM(E9:E13) -> 0 | F15: ='Подконтрольные расходы'!J22 -> 0 | G15: =SUM(G9:G13) -> 0 | H15: =SUM(H9:H13) -> 0 | I15: =SUM(I9:I13) -> 0 | J15: 0 | K15: 0
A17: Руководитель организации | D17: ='Инф-я'!$C$21 -> Чижов Олег Александрович

Sheet Расходы по кол дог
A2: Расходы по коллективным договорам
A4: ='Инф-я'!C13 -> ООО "МОНОСТРОЙ"
A6: Показатели | B6: 2017 год | D6: 2018 год | F6: 2019 год | H6: 2020 год | J6: 2017 год | K6: 2018 год
B7: Утвержденные | C7: Факт | D7: Утвержденные | E7: Факт | F7: Утвержденные | G7: Ожидаемые | H7: По данным организации | I7: По данным экспертов | J7: Факт по расчету экспертов | K7: Факт по расчету экспертов
A8: 1 | B8: 2 | C8: 3 | D8: 4 | E8: 5 | F8: 6 | G8: 7 | H8: 8 | I8: 9 | J8: 10 | K8: 11
A9: Вознаграждения, премии, всего, в том числе: | B9: х | C9: =SUM(C10:C13) -> 0 | D9: х | E9: =SUM(E10:E13) -> 0 | F9: х | G9: =SUM(G10:G13) -> 0 | H9: =SUM(H10:H13) -> 0 | I9: =SUM(I10:I13) -> 0 | J9: =SUM(J10:J13) -> 0 | K9: 0
A10: Введите название | B10: х | D10: х | F10: х | G10: =E10*1.043 -> 0 | H10: =G10*1.038 -> 0
A11: Введите название | B11: х | D11: х | F11: х
A12: Введите название | B12: х | D12: х | F12: х
A13: Введите название | B13: х | D13: х | F13: х
A14: Добавить
A15: Материальная помощь, всего, в том числе: | B15: х | C15: =SUM(C16:C18) -> 40 | D15: х | E15: =SUM(E16:E18) -> 40 | F15: х | G15: =SUM(G16:G18) -> 41.72 | H15: =SUM(H16:H18) -> 43.30536 | I15: =SUM(I16:I18) -> 0 | J15: =SUM(J16:J18) -> 0 | K15: 0
A16: Материальная помощь ко Дню Рождения | B16: х | C16: 40 | D16: х | E16: =10*4 -> 40 | F16: х | G16: =E16*1.043 -> 41.72 | H16: =G16*1.038 -> 43.30536
A17: Введите название | B17: х | D17: х | F17: х | G17: =E17*1.043 -> 0 | H17: =G17*1.038 -> 0
A18: Введите название | B18: х | D18: х | F18: х | G18: =E18*1.043 -> 0 | H18: =G18*1.038 -> 0
A19: Добавить
A20: Оплата дополнительных отпусков | B20: х | D20: х | F20: х
A21: Оплата проезда | B21: х | D21: х | F21: х
A22: Оплата путевок на лечение и отдых | B22: х | D22: х | F22: х
A23: Прочие расходы социального характера, всего, в том числе: | B23: х | C23: =SUM(C24:C27) -> 0 | D23: х | E23: =SUM(E24:E27) -> 0 | F23: х | G23: =SUM(G24:G27) -> 0 | H23: =SUM(H24:H27) -> 0 | I23: =SUM(I24:I27) -> 0 | J23: =SUM(J24:J27) -> 0 | K23: 0
A24: Введите название | B24: х | D24: х | F24: х
A25: Введите название | B25: х | D25: х | F25: х
A26: Введите название | B26: х | D26: х | F26: х
A27: Введите название | B27: х | D27: х | F27: х
A28: Добавить
A29: ИТОГО расходов на выплаты социального характера | B29: ='Подконтрольные расходы'!F23 -> 0 | C29: =C9+C15+C20+C21+C22+C23 -> 40 | D29: ='Подконтрольные расходы'!H23 -> 0 | E29: =E9+E15+E20+E21+E22+E23 -> 40 | F29: ='Подконтрольные расходы'!J23 -> 0 | G29: =G9+G15+G20+G21+G22+G23 -> 41.72 | H29: =H9+H15+H20+H21+H22+H23 -> 43.30536 | I29: =I9+I15+I20+I21+I22+I23 -> 0 | J29: =J9+J15+J20+J21+J22+J23 -> 0 | K29: 0
A31: Руководитель организации | D31: ='Инф-я'!$C$21 -> Чижов Олег Александрович

Sheet Расчет аморт. max срок
A1: Заполняется в Рублях !
A2: Расчет амортизационных отчислений основных средств, участвующих в передаче электрической энергии по максимальному сроку использования и расчет среднегодовой стоимости ОС
A3: ='Инф-я'!C13 -> ООО "МОНОСТРОЙ"
A5: Группа учета ОС \ Амортизационная группа \ Основное средство, Инвентарный номер, Дата принятия к учету | B5: Год ввода | C5: Срок полезного использования, мес. | E5: На начало 01.01.2019 г. | H5: За 1 квартал 2019 года | L5: На конец 31.03.2019 г. | O5: Амортизация (2-4 квартал 2019) | P5: Амортизация (2019 год) | Q5: Остаточная стоимость на начало 2020 года | R5: Амортизация на 2020 год | T5: Остаточная стоимость на начало 2021 года | U5: Налоговая ставка (%) | V5: Среднегодовая остаточная стоимость ОС
C6: бух.учет | D6: Максимальный срок по группе | E6: Стоимость | F6: Накопленная амортизация (износ) | G6: Остаточная стоимость | H6: Увеличение стоимости | I6: Начисление амортизации (износа) | J6: Уменьшение стоимости | K6: Списание амортизации (износа) | L6: Стоимость | M6: Накопленная амортизация (износ) | N6: Остаточная стоимость | P6: Амортизация (2015 год) | Q6: Остаточная стоимость на начало 2016 года | R6: бух.учет | S6: Максимальный срок по группе | V6: облагаемых по ставке 2,2 % | W6: необлагаемых налогом (движимое имущество)
A7: Первая группа (от 1 года до 2 лет включительно)
D8: 24 | O8: =IF(C8>0,IF(N8>L8/C8*9,(L8/C8*9),N8),0) -> 0 | P8: =I8+O8 -> 0 | Q8: =IF((N8-O8)>0,(N8-O8),0) -> 0 | R8: =IF(C8>0,IF(Q8>L8/C8*12,(L8/C8*12),Q8),0) -> 0 | S8: =IF(D8>0,IF(Q8>L8/D8*12,(L8/D8*12),Q8),0) -> 0 | T8: =IF((Q8-R8)>0,(Q8-R8),0) -> 0 | V8: =IF(U8=2.2,(T8+Q8)/2,0) -> 0 | W8: =IF(U8=0,(T8+Q8)/2,0) -> 0
D9: =$D$8 -> 24 | O9: 0 | P9: =I9+O9 -> 0 | Q9: =IF((N9-O9)>0,(N9-O9),0) -> 0 | R9: =IF(C9>0,IF(Q9>L9/C9*12,(L9/C9*12),Q9),0) -> 0 | S9: =IF(D9>0,IF(Q9>L9/D9*12,(L9/D9*12),Q9),0) -> 0 | T9: =IF((Q9-R9)>0,(Q9-R9),0) -> 0 | V9: =IF(U9=2.2,(T9+Q9)/2,0) -> 0 | W9: =IF(U9=0,(T9+Q9)/2,0) -> 0
D10: =$D$8 -> 24 | O10: 0 | P10: =I10+O10 -> 0 | Q10: =IF((N10-O10)>0,(N10-O10),0) -> 0 | R10: =IF(C10>0,IF(Q10>L10/C10*12,(L10/C10*12),Q10),0) -> 0 | S10: =IF(D10>0,IF(Q10>L10/D10*12,(L10/D10*12),Q10),0) -> 0 | T10: =IF((Q10-R10)>0,(Q10-R10),0) -> 0 | V10: =IF(U10=2.2,(T10+Q10)/2,0) -> 0 | W10: =IF(U10=0,(T10+Q10)/2,0) -> 0
A11: Добавить
A12: Вторая группа (свыше 2 лет до 3 лет включительно)
D13: 36 | O13: =IF(C13>0,IF(N13>L13/C13*9,(L13/C13*9),N13),0) -> 0 | P13: =I13+O13 -> 0 | Q13: =IF((N13-O13)>0,(N13-O13),0) -> 0 | R13: =IF(C13>0,IF(Q13>L13/C13*12,(L13/C13*12),Q13),0) -> 0 | S13: =IF(D13>0,IF(Q13>L13/D13*12,(L13/D13*12),Q13),0) -> 0 | T13: =IF((Q13-R13)>0,(Q13-R13),0) -> 0 | U13: 2.2 | V13: =IF(U13=2.2,(T13+Q13)/2,0) -> 0 | W13: =IF(U13=0,(T13+Q13)/2,0) -> 0
D14: =$D$13 -> 36 | O14: =IF(C14>0,IF(N14>L14/C14*9,(L14/C14*9),N14),0) -> 0 | P14: =I14+O14 -> 0 | Q14: =IF((N14-O14)>0,(N14-O14),0) -> 0 | R14: =IF(C14>0,IF(Q14>L14/C14*12,(L14/C14*12),Q14),0) -> 0 | S14: =IF(D14>0,IF(Q14>L14/D14*12,(L14/D14*12),Q14),0) -> 0 | T14: =IF((Q14-R14)>0,(Q14-R14),0) -> 0 | V14: =IF(U14=2.2,(T14+Q14)/2,0) -> 0 | W14: =IF(U14=0,(T14+Q14)/2,0) -> 0
D15: =$D$13 -> 36 | O15: 0 | P15: =I15+O15 -> 0 | Q15: =IF((N15-O15)>0,(N15-O15),0) -> 0 | R15: =IF(C15>0,IF(Q15>L15/C15*12,(L15/C15*12),Q15),0) -> 0 | S15: =IF(D15>0,IF(Q15>L15/D15*12,(L15/D15*12),Q15),0) -> 0 | T15: =IF((Q15-R15)>0,(Q15-R15),0) -> 0 | V15: =IF(U15=2.2,(T15+Q15)/2,0) -> 0 | W15: =IF(U15=0,(T15+Q15)/2,0) -> 0
A16: Добавить
A17: Третья группа (свыше 3 лет до 5 лет включительно)
D18: 60 | O18: =IF(C18>0,IF(N18>L18/C18*9,(L18/C18*9),N18),0) -> 0 | P18: =I18+O18 -> 0 | Q18: =IF((N18-O18)>0,(N18-O18),0) -> 0 | R18: =IF(C18>0,IF(Q18>L18/C18*12,(L18/C18*12),Q18),0) -> 0 | S18: =IF(D18>0,IF(Q18>L18/D18*12,(L18/D18*12),Q18),0) -> 0 | T18: =IF((Q18-R18)>0,(Q18-R18),0) -> 0 | V18: =IF(U18=2.2,(T18+Q18)/2,0) -> 0 | W18: =IF(U18=0,(T18+Q18)/2,0) -> 0
D19: =$D$18 -> 60 | O19: 0 | P19: =I19+O19 -> 0 | Q19: =IF((N19-O19)>0,(N19-O19),0) -> 0 | R19: =IF(C19>0,IF(Q19>L19/C19*12,(L19/C19*12),Q19),0) -> 0 | S19: =IF(D19>0,IF(Q19>L19/D19*12,(L19/D19*12),Q19),0) -> 0 | T19: =IF((Q19-R19)>0,(Q19-R19),0) -> 0 | V19: =IF(U19=2.2,(T19+Q19)/2,0) -> 0 | W19: =IF(U19=0,(T19+Q19)/2,0) -> 0
D20: =$D$18 -> 60 | O20: 0 | P20: =I20+O20 -> 0 | Q20: =IF((N20-O20)>0,(N20-O20),0) -> 0 | R20: =IF(C20>0,IF(Q20>L20/C20*12,(L20/C20*12),Q20),0) -> 0 | S20: =IF(D20>0,IF(Q20>L20/D20*12,(L20/D20*12),Q20),0) -> 0 | T20: =IF((Q20-R20)>0,(Q20-R20),0) -> 0 | V20: =IF(U20=2.2,(T20+Q20)/2,0) -> 0 | W20: =IF(U20=0,(T20+Q20)/2,0) -> 0
A21: Добавить
A22: Четвертая группа (свыше 5 лет до 7 лет включительно)
D23: 84 | O23: =IF(C23>0,IF(N23>L23/C23*9,(L23/C23*9),N23),0) -> 0 | P23: =I23+O23 -> 0 | Q23: =IF((N23-O23)>0,(N23-O23),0) -> 0 | R23: =IF(C23>0,IF(Q23>L23/C23*12,(L23/C23*12),Q23),0) -> 0 | S23: =IF(D23>0,IF(Q23>L23/D23*12,(L23/D23*12),Q23),0) -> 0 | T23: =IF((Q23-R23)>0,(Q23-R23),0) -> 0 | V23: =IF(U23=2.2,(T23+Q23)/2,0) -> 0 | W23: =IF(U23=0,(T23+Q23)/2,0) -> 0
D24: =$D$23 -> 84 | O24: 0 | P24: =I24+O24 -> 0 | Q24: =IF((N24-O24)>0,(N24-O24),0) -> 0 | R24: =IF(C24>0,IF(Q24>L24/C24*12,(L24/C24*12),Q24),0) -> 0 | S24: =IF(D24>0,IF(Q24>L24/D24*12,(L24/D24*12),Q24),0) -> 0 | T24: =IF((Q24-R24)>0,(Q24-R24),0) -> 0 | V24: =IF(U24=2.2,(T24+Q24)/2,0) -> 0 | W24: =IF(U24=0,(T24+Q24)/2,0) -> 0
D25: =$D$23 -> 84 | O25: 0 | P25: =I25+O25 -> 0 | Q25: =IF((N25-O25)>0,(N25-O25),0) -> 0 | R25: =IF(C25>0,IF(Q25>L25/C25*12,(L25/C25*12),Q25),0) -> 0 | S25: =IF(D25>0,IF(Q25>L25/D25*12,(L25/D25*12),Q25),0) -> 0 | T25: =IF((Q25-R25)>0,(Q25-R25),0) -> 0 | V25: =IF(U25=2.2,(T25+Q25)/2,0) -> 0 | W25: =IF(U25=0,(T25+Q25)/2,0) -> 0
A26: Добавить
A27: Пятая группа (свыше 7 лет до 10 лет включительно)
D28: 120 | O28: =IF(C28>0,IF(N28>L28/C28*9,(L28/C28*9),N28),0) -> 0 | P28: =I28+O28 -> 0 | Q28: =IF((N28-O28)>0,(N28-O28),0) -> 0 | R28: =IF(C28>0,IF(Q28>L28/C28*12,(L28/C28*12),Q28),0) -> 0 | S28: =IF(D28>0,IF(Q28>L28/D28*12,(L28/D28*12),Q28),0) -> 0 | T28: =IF((Q28-R28)>0,(Q28-R28),0) -> 0 | V28: =IF(U28=2.2,(T28+Q28)/2,0) -> 0 | W28: =IF(U28=0,(T28+Q28)/2,0) -> 0
D29: =$D$28 -> 120 | O29: 0 | P29: =I29+O29 -> 0 | Q29: =IF((N29-O29)>0,(N29-O29),0) -> 0 | R29: =IF(C29>0,IF(Q29>L29/C29*12,(L29/C29*12),Q29),0) -> 0 | S29: =IF(D29>0,IF(Q29>L29/D29*12,(L29/D29*12),Q29),0) -> 0 | T29: =IF((Q29-R29)>0,(Q29-R29),0) -> 0 | V29: =IF(U29=2.2,(T29+Q29)/2,0) -> 0 | W29: =IF(U29=0,(T29+Q29)/2,0) -> 0
D30: =$D$28 -> 120 | O30: 0 | P30: =I30+O30 -> 0 | Q30: =IF((N30-O30)>0,(N30-O30),0) -> 0 | R30: =IF(C30>0,IF(Q30>L30/C30*12,(L30/C30*12),Q30),0) -> 0 | S30: =IF(D30>0,IF(Q30>L30/D30*12,(L30/D30*12),Q30),0) -> 0 | T30: =IF((Q30-R30)>0,(Q30-R30),0) -> 0 | V30: =IF(U30=2.2,(T30+Q30)/2,0) -> 0 | W30: =IF(U30=0,(T30+Q30)/2,0) -> 0
A31: Добавить
A32: Шестая группа (свыше 10 лет до 15 лет включительно)
A33: Нежилое здание трансформаторная подстанция ТП-553, 45,2 кв. м г. Владимир, ул. Н.Дуброва, 19Б (8ЮЗ-63) | B33: 2014 | C33: =30*12 -> 360 | D33: 180 | E33: 4469296.35 | F33: =595906.08 -> 595906.08 | G33: =E33-F33 -> 3873390.27 | H33: 0 | I33: =148976.52/12*3 -> 37244.13 | J33: 0 | K33: 0 | L33: =E33 -> 4469296.35 | M33: =F33+I33 -> 633150.21 | N33: =L33-M33 -> 3836146.14 | O33: =IF(C33>0,IF(N33>L33/C33*9,(L33/C33*9),N33),0) -> 111732.4087 | P33: =I33+O33 -> 148976.5387 | Q33: =IF((N33-O33)>0,(N33-O33),0) -> 3724413.731 | R33: =IF(C33>0,IF(Q33>L33/C33*12,(L33/C33*12),Q33),0) -> 148976.545 | S33: =IF(D33>0,IF(Q33>L33/D33*12,(L33/D33*12),Q33),0) -> 297953.09 | T33: =IF((Q33-R33)>0,(Q33-R33),0) -> 3575437.186 | U33: 2.2 | V33: =IF(U33=2.2,(T33+Q33)/2,0) -> 3649925.459 | W33: =IF(U33=0,(T33+Q33)/2,0) -> 0
D34: =$D$33 -> 180 | O34: 0 | P34: =I34+O34 -> 0 | Q34: =IF((N34-O34)>0,(N34-O34),0) -> 0 | R34: =IF(C34>0,IF(Q34>L34/C34*12,(L34/C34*12),Q34),0) -> 0 | S34: =IF(D34>0,IF(Q34>L34/D34*12,(L34/D34*12),Q34),0) -> 0 | T34: =IF((Q34-R34)>0,(Q34-R34),0) -> 0 | V34: =IF(U34=2.2,(T34+Q34)/2,0) -> 0 | W34: =IF(U34=0,(T34+Q34)/2,0) -> 0
D35: =$D$33 -> 180 | O35: 0 | P35: =I35+O35 -> 0 | Q35: =IF((N35-O35)>0,(N35-O35),0) -> 0 | R35: =IF(C35>0,IF(Q35>L35/C35*12,(L35/C35*12),Q35),0) -> 0 | S35: =IF(D35>0,IF(Q35>L35/D35*12,(L35/D35*12),Q35),0) -> 0 | T35: =IF((Q35-R35)>0,(Q35-R35),0) -> 0 | V35: =IF(U35=2.2,(T35+Q35)/2,0) -> 0 | W35: =IF(U35=0,(T35+Q35)/2,0) -> 0
A36: Добавить
A37: Седьмая группа (свыше 15 лет до 20 лет включительно)
D38: 240 | O38: =IF(C38>0,IF(N38>L38/C38*9,(L38/C38*9),N38),0) -> 0 | P38: =I38+O38 -> 0 | Q38: =IF((N38-O38)>0,(N38-O38),0) -> 0 | R38: =IF(C38>0,IF(Q38>L38/C38*12,(L38/C38*12),Q38),0) -> 0 | S38: =IF(D38>0,IF(Q38>L38/D38*12,(L38/D38*12),Q38),0) -> 0 | T38: =IF((Q38-R38)>0,(Q38-R38),0) -> 0 | V38: =IF(U38=2.2,(T38+Q38)/2,0) -> 0 | W38: =IF(U38=0,(T38+Q38)/2,0) -> 0
D39: =$D$38 -> 240 | O39: 0 | P39: =I39+O39 -> 0 | Q39: =IF((N39-O39)>0,(N39-O39),0) -> 0 | R39: =IF(C39>0,IF(Q39>L39/C39*12,(L39/C39*12),Q39),0) -> 0 | S39: =IF(D39>0,IF(Q39>L39/D39*12,(L39/D39*12),Q39),0) -> 0 | T39: =IF((Q39-R39)>0,(Q39-R39),0) -> 0 | V39: =IF(U39=2.2,(T39+Q39)/2,0) -> 0 | W39: =IF(U39=0,(T39+Q39)/2,0) -> 0
D40: =$D$38 -> 240 | O40: 0 | P40: =I40+O40 -> 0 | Q40: =IF((N40-O40)>0,(N40-O40),0) -> 0 | R40: =IF(C40>0,IF(Q40>L40/C40*12,(L40/C40*12),Q40),0) -> 0 | S40: =IF(D40>0,IF(Q40>L40/D40*12,(L40/D40*12),Q40),0) -> 0 | T40: =IF((Q40-R40)>0,(Q40-R40),0) -> 0 | V40: =IF(U40=2.2,(T40+Q40)/2,0) -> 0 | W40: =IF(U40=0,(T40+Q40)/2,0) -> 0
A41: Добавить
A42: Восьмая группа (свыше 20 лет до 25 лет включительно)
D43: 300 | O43: =IF(C43>0,IF(N43>L43/C43*9,(L43/C43*9),N43),0) -> 0 | P43: =I43+O43 -> 0 | Q43: =IF((N43-O43)>0,(N43-O43),0) -> 0 | R43: =IF(C43>0,IF(Q43>L43/C43*12,(L43/C43*12),Q43),0) -> 0 | S43: =IF(D43>0,IF(Q43>L43/D43*12,(L43/D43*12),Q43),0) -> 0 | T43: =IF((Q43-R43)>0,(Q43-R43),0) -> 0 | V43: =IF(U43=2.2,(T43+Q43)/2,0) -> 0 | W43: =IF(U43=0,(T43+Q43)/2,0) -> 0
D44: =$D$43 -> 300 | O44: 0 | P44: =I44+O44 -> 0 | Q44: =IF((N44-O44)>0,(N44-O44),0) -> 0 | R44: =IF(C44>0,IF(Q44>L44/C44*12,(L44/C44*12),Q44),0) -> 0 | S44: =IF(D44>0,IF(Q44>L44/D44*12,(L44/D44*12),Q44),0) -> 0 | T44: =IF((Q44-R44)>0,(Q44-R44),0) -> 0 | V44: =IF(U44=2.2,(T44+Q44)/2,0) -> 0 | W44: =IF(U44=0,(T44+Q44)/2,0) -> 0
D45: =$D$43 -> 300 | O45: 0 | P45: =I45+O45 -> 0 | Q45: =IF((N45-O45)>0,(N45-O45),0) -> 0 | R45: =IF(C45>0,IF(Q45>L45/C45*12,(L45/C45*12),Q45),0) -> 0 | S45: =IF(D45>0,IF(Q45>L45/D45*12,(L45/D45*12),Q45),0) -> 0 | T45: =IF((Q45-R45)>0,(Q45-R45),0) -> 0 | V45: =IF(U45=2.2,(T45+Q45)/2,0) -> 0 | W45: =IF(U45=0,(T45+Q45)/2,0) -> 0
A46: Добавить
A47: Девятая группа (свыше 25 лет до 30 лет включительно)
D48: 360 | O48: =IF(C48>0,IF(N48>L48/C48*9,(L48/C48*9),N48),0) -> 0 | P48: =I48+O48 -> 0 | Q48: =IF((N48-O48)>0,(N48-O48),0) -> 0 | R48: =IF(C48>0,IF(Q48>L48/C48*12,(L48/C48*12),Q48),0) -> 0 | S48: =IF(D48>0,IF(Q48>L48/D48*12,(L48/D48*12),Q48),0) -> 0 | T48: =IF((Q48-R48)>0,(Q48-R48),0) -> 0 | U48: 2.2 | V48: =IF(U48=2.2,(T48+Q48)/2,0) -> 0 | W48: =IF(U48=0,(T48+Q48)/2,0) -> 0
D49: =$D$48 -> 360 | O49: 0 | P49: =I49+O49 -> 0 | Q49: =IF((N49-O49)>0,(N49-O49),0) -> 0 | R49: =IF(C49>0,IF(Q49>L49/C49*12,(L49/C49*12),Q49),0) -> 0 | S49: =IF(D49>0,IF(Q49>L49/D49*12,(L49/D49*12),Q49),0) -> 0 | T49: =IF((Q49-R49)>0,(Q49-R49),0) -> 0 | V49: =IF(U49=2.2,(T49+Q49)/2,0) -> 0 | W49: =IF(U49=0,(T49+Q49)/2,0) -> 0
D50: =$D$48 -> 360 | O50: 0 | P50: =I50+O50 -> 0 | Q50: =IF((N50-O50)>0,(N50-O50),0) -> 0 | R50: =IF(C50>0,IF(Q50>L50/C50*12,(L50/C50*12),Q50),0) -> 0 | S50: =IF(D50>0,IF(Q50>L50/D50*12,(L50/D50*12),Q50),0) -> 0 | T50: =IF((Q50-R50)>0,(Q50-R50),0) -> 0 | V50: =IF(U50=2.2,(T50+Q50)/2,0) -> 0 | W50: =IF(U50=0,(T50+Q50)/2,0) -> 0
A51: Добавить
A52: Десятая группа (свыше 30 лет)
D53: =MAX(361,C53) -> 361 | O53: =IF(C53>0,IF(N53>L53/C53*9,(L53/C53*9),N53),0) -> 0 | P53: =I53+O53 -> 0 | Q53: =IF((N53-O53)>0,(N53-O53),0) -> 0 | R53: =IF(C53>0,IF(Q53>L53/C53*12,(L53/C53*12),Q53),0) -> 0 | S53: =IF(D53>0,IF(Q53>L53/D53*12,(L53/D53*12),Q53),0) -> 0 | T53: =IF((Q53-R53)>0,(Q53-R53),0) -> 0 | V53: =IF(U53=2.2,(T53+Q53)/2,0) -> 0 | W53: =IF(U53=0,(T53+Q53)/2,0) -> 0
D54: =MAX(361,C54) -> 361 | O54: 0 | P54: =I54+O54 -> 0 | Q54: =IF((N54-O54)>0,(N54-O54),0) -> 0 | R54: =IF(C54>0,IF(Q54>L54/C54*12,(L54/C54*12),Q54),0) -> 0 | S54: =IF(D54>0,IF(Q54>L54/D54*12,(L54/D54*12),Q54),0) -> 0 | T54: =IF((Q54-R54)>0,(Q54-R54),0) -> 0 | V54: =IF(U54=2.2,(T54+Q54)/2,0) -> 0 | W54: =IF(U54=0,(T54+Q54)/2,0) -> 0
D55: 361 | O55: 0 | P55: =I55+O55 -> 0 | Q55: =IF((N55-O55)>0,(N55-O55),0) -> 0 | R55: =IF(C55>0,IF(Q55>L55/C55*12,(L55/C55*12),Q55),0) -> 0 | S55: =IF(D55>0,IF(Q55>L55/D55*12,(L55/D55*12),Q55),0) -> 0 | T55: =IF((Q55-R55)>0,(Q55-R55),0) -> 0 | V55: =IF(U55=2.2,(T55+Q55)/2,0) -> 0 | W55: =IF(U55=0,(T55+Q55)/2,0) -> 0
D56: 361 | O56: 0 | P56: =I56+O56 -> 0 | Q56: =IF((N56-O56)>0,(N56-O56),0) -> 0 | R56: =IF(C56>0,IF(Q56>L56/C56*12,(L56/C56*12),Q56),0) -> 0 | S56: =IF(D56>0,IF(Q56>L56/D56*12,(L56/D56*12),Q56),0) -> 0 | T56: =IF((Q56-R56)>0,(Q56-R56),0) -> 0 | V56: =IF(U56=2.2,(T56+Q56)/2,0) -> 0 | W56: =IF(U56=0,(T56+Q56)/2,0) -> 0
A57: Добавить
A58: Неамортизируемое имущество (Земельные участки)
O59: х | P59: х | Q59: х | R59: х | S59: х | T59: =Q59 -> х | U59: х | V59: х | W59: х
O60: х | P60: х | Q60: х | R60: х | S60: х | T60: =Q60 -> х | U60: х | V60: х | W60: х
O61: х | P61: х | Q61: х | R61: х | S61: х | T61: =Q61 -> х | U61: х | V61: х | W61: х
O62: х | P62: х | Q62: х | R62: х | S62: х | T62: =Q62 -> х | U62: х | V62: х | W62: х
O63: х | P63: х | Q63: х | R63: х | S63: х | T63: =Q63 -> х | U63: х | V63: х | W63: х
A64: Добавить
A65: Итого | B65: x | C65: x | D65: x | E65: =SUM(E7:E63) -> 4469296.35 | F65: 595906.08 | G65: 3873390.27 | H65: 0 | I65: 37244.13 | J65: 0 | K65: 0 | L65: 4469296.35 | M65: 633150.21 | N65: 3836146.14 | O65: =SUM(O8:O10)+SUM(O13:O15)+SUM(O18:O20)+SUM(O23:O25)+SUM(O28:O30)+SUM(O33:O35)+SUM(O38:O40)+SUM(O43:O45)+SUM(O48:O50)+SUM(O53:O56)+SUM(O59:O63) -> 111732.4087 | P65: 148976.5387 | Q65: 3724413.731 | R65: 148976.545 | S65: 297953.09 | T65: 3575437.186 | U65: х | V65: =SUM(V8:V10)+SUM(V13:V15)+SUM(V18:V20)+SUM(V23:V25)+SUM(V28:V30)+SUM(V33:V35)+SUM(V38:V40)+SUM(V43:V45)+SUM(V48:V50)+SUM(V53:V56) -> 3649925.459 | W65: =SUM(W8:W10)+SUM(W13:W15)+SUM(W18:W20)+SUM(W23:W25)+SUM(W28:W30)+SUM(W33:W35)+SUM(W38:W40)+SUM(W43:W45)+SUM(W48:W50)+SUM(W53:W56)+SUM(W59:W63) -> 0
A67: Руководитель организации | F67: ='Инф-я'!$C$21 -> Чижов Олег Александрович

Sheet Ввод выбытие ОС
A2: Справка о вводе основных средств в 2019 году (с 01.04.2019 г.), участвующих в передаче электрической энергии
A4: ='Инф-я'!C13 -> ООО "МОНОСТРОЙ"
A6: Наименование вводимых объектов основных фондов | B6: По данным организации | L6: По данным экспертов
B7: Является ли ОС недвижимым имуществом? (да/нет) | C7: Амортизационная группа | D7: Порядковый номер месяца ввода | E7: Первоначальная стоимость, тыс. руб. | F7: Норма амортизационных отчислений, % | G7: Корректировка годовой суммы амортизационных отчислений по вводимым объектам (тыс. руб.) | H7: Амортизация 2019 год | I7: Остаточная стоимость на 01.01.2020 | J7: Остаточная стоимость на 01.01.2021 | K7: Среднегодовая остаточная стоимость ОС за 2020 год | L7: Является ли ОС недвижимым имуществом? (да/нет) | M7: Амортизационная группа | N7: Порядковый номер месяца ввода | O7: Первоначальная стоимость, тыс. руб. | P7: Норма амортизационных отчислений, % | Q7: Корректировка годовой суммы амортизационных отчислений по вводимым объектам (тыс. руб.) | R7: Амортизация 2019 год | S7: Остаточная стоимость на 01.01.2020 | T7: Остаточная стоимость на 01.01.2021 | U7: Среднегодовая остаточная стоимость ОС за 2020 год
A8: 1 | B8: 2 | C8: 3 | D8: 4 | E8: 5 | F8: 6 | G8: 7 | H8: 8 | I8: 9 | J8: 10 | K8: 11 | L8: 12 | M8: 13 | N8: 14 | O8: 15 | P8: 16 | Q8: 17 | R8: 18 | S8: 19 | T8: 20 | U8: 21
G9: =E9*F9 -> 0 | H9: =(12-D9)*E9/12*F9 -> 0 | I9: =E9-H9 -> 0 | J9: =I9-G9 -> 0 | K9: =IF(B9="да",(I9+J9)/2,"") ->  | Q9: =O9*P9 -> 0 | R9: =(12-N9)*O9/12*P9 -> 0 | S9: =O9-R9 -> 0 | T9: =S9-Q9 -> 0 | U9: =IF(L9="да",(S9+T9)/2,"") -> 
G10: =E10*F10 -> 0 | H10: =(12-D10)*E10/12*F10 -> 0 | I10: =E10-H10 -> 0 | J10: =I10-G10 -> 0 | K10: =IF(B10="да",(I10+J10)/2,"") ->  | Q10: =O10*P10 -> 0 | R10: =(12-N10)*O10/12*P10 -> 0 | S10: =O10-R10 -> 0 | T10: =S10-Q10 -> 0 | U10: =IF(L10="да",(S10+T10)/2,"") -> 
G11: 0 | H11: 0 | I11: 0 | J11: 0 | Q11: 0 | R11: =(12-N11)*O11/12*P11 -> 0 | S11: =O11-R11 -> 0 | T11: =S11-Q11 -> 0 | U11: =IF(L11="да",(S11+T11)/2,"") -> 
G12: 0 | H12: 0 | I12: 0 | J12: 0 | Q12: 0 | R12: =(12-N12)*O12/12*P12 -> 0 | S12: =O12-R12 -> 0 | T12: =S12-Q12 -> 0 | U12: =IF(L12="да",(S12+T12)/2,"") -> 
G13: 0 | H13: 0 | I13: 0 | J13: 0 | Q13: 0 | R13: =(12-N13)*O13/12*P13 -> 0 | S13: =O13-R13 -> 0 | T13: =S13-Q13 -> 0 | U13: =IF(L13="да",(S13+T13)/2,"") -> 
A14: Добавить
A15: Всего по вводимым объектам в 2019 году (с 01.04.2019 г.), участвующим в передаче электрической энергии | B15: х | C15: х | D15: х | E15: =SUM(E9:E13) -> 0 | F15: х | G15: =SUM(G9:G13) -> 0 | H15: =SUM(H9:H13) -> 0 | I15: 0 | J15: 0 | K15: 0 | L15: х | M15: х | N15: х | O15: х | P15: х | Q15: =SUM(Q9:Q13) -> 0 | R15: =SUM(R9:R13) -> 0 | S15: 0 | T15: 0 | U15: 0
A18: Справка о выбытии не полностью самортизированных основных средств в 2019 году (с 01.04.2019 г.), участвующих в передаче электрической энергии
A21: Наименование вводимых объектов основных фондов | B21: По данным организации | L21: По данным экспертов
B22: Является ли ОС недвижимым имуществом? (да/нет) | C22: Амортизационная группа | D22: Остаточная стоимость на начало 2019 года, тыс. руб. | E22: Первоначальная стоимость, тыс. руб. | F22: Норма амортизационных отчислений, % | G22: Корректировка годовой суммы амортизационных отчислений по вводимым объектам (тыс. руб.) | H22: Амортизация в год | I22: Остаточная стоимость на 01.01.2020 | J22: Остаточная стоимость на 01.01.2021 | K22: Среднегодовая остаточная стоимость ОС за 2020 год | L22: Является ли ОС недвижимым имуществом? (да/нет) | M22: Амортизационная группа | N22: Порядковый номер месяца ввода | O22: Первоначальная стоимость, тыс. руб. | P22: Норма амортизационных отчислений, % | Q22: Корректировка годовой суммы амортизационных отчислений по вводимым объектам (тыс. руб.) | R22: Амортизация 2019 год | S22: Остаточная стоимость на 01.01.2020 | T22: Остаточная стоимость на 01.01.2021 | U22: Среднегодовая остаточная стоимость ОС за 2020 год
A23: 1 | B23: 2 | C23: 3 | D23: 4 | E23: 5 | F23: 6 | G23: 7 | H23: 8 | I23: 9 | J23: 10 | K23: 11 | L23: 12 | M23: 13 | N23: 14 | O23: 15 | P23: 16 | Q23: 17 | R23: 18 | S23: 19 | T23: 20 | U23: 21
G24: =E24*F24 -> 0 | H24: =E24*F24 -> 0 | I24: =IF(D24>H24,D24-H24,0) -> 0 | J24: =IF(I24>H24,I24-H24,0) -> 0 | K24: =IF(B24="да",(I24+J24)/2,"") ->  | Q24: =O24*P24 -> 0 | R24: =O24*P24 -> 0 | S24: =IF(N24>R24,N24-R24,0) -> 0 | T24: =IF(S24>R24,S24-R24,0) -> 0 | U24: =IF(L24="да",(S24+T24)/2,"") -> 
G25: =E25*F25 -> 0 | H25: =E25*F25 -> 0 | I25: =IF(D25>H25,D25-H25,0) -> 0 | J25: =IF(I25>H25,I25-H25,0) -> 0 | K25: =IF(B25="да",(I25+J25)/2,"") ->  | Q25: =O25*P25 -> 0 | R25: =O25*P25 -> 0 | S25: =IF(N25>R25,N25-R25,0) -> 0 | T25: =IF(S25>R25,S25-R25,0) -> 0 | U25: =IF(L25="да",(S25+T25)/2,"") -> 
G26: 0 | H26: 0 | I26: 0 | J26: 0 | Q26: 0 | R26: 0 | S26: 0 | T26: 0
G27: =E27*F27 -> 0 | H27: =E27*F27 -> 0 | I27: =IF(D27>H27,D27-H27,0) -> 0 | J27: =IF(I27>H27,I27-H27,0) -> 0 | K27: =IF(B27="да",(I27+J27)/2,"") ->  | Q27: =O27*P27 -> 0 | R27: =O27*P27 -> 0 | S27: =IF(N27>R27,N27-R27,0) -> 0 | T27: =IF(S27>R27,S27-R27,0) -> 0 | U27: =IF(L27="да",(S27+T27)/2,"") -> 
G28: 0 | H28: 0 | I28: 0 | J28: 0 | Q28: 0 | R28: 0 | S28: 0 | T28: 0
A29: Добавить
A30: Всего по выбывающим объектам в 2019 году (с 01.04.2019 г.), участвующим в передаче электрической энергии | B30: х | C30: х | D30: х | E30: =SUM(E24:E28) -> 0 | F30: х | G30: =SUM(G24:G28) -> 0 | H30: х | I30: х | J30: х | K30: =SUM(K24:K28) -> 0 | L30: х | M30: х | N30: х | O30: х | P30: х | Q30: =SUM(Q24:Q28) -> 0 | R30: х | S30: х | T30: х | U30: =SUM(U24:U28) -> 0
A32: Руководитель организации | G32: ='Инф-я'!$C$21 -> Чижов Олег Александрович
A34: В справке о выбытии основных средств указывается информация о выбывающих объектах (продажа, ликвидация)

Sheet Свод по амортизации
A2: Сводный расчет амортизационных отчислений на восстановление основных производственных фондов, участвующих в передаче электрической энергии
A4: ='Инф-я'!C13 -> ООО "МОНОСТРОЙ"
N5: тыс. руб.
A6: Наименование | B6: 2018 год | D6: 2019 год | F6: 2020 год | H6: 2021 год | J6: 2022 год | L6: 2023 год | N6: 2024 год
B7: Утверждено | C7: Факт | D7: Утверждено | E7: Ожидаемые | F7: По данным организации | G7: По данным экспертов | H7: По данным организации | I7: По данным экспертов | J7: По данным организации | K7: По данным экспертов | L7: По данным организации | M7: По данным экспертов | N7: По данным организации | O7: По данным экспертов
A8: 1 | B8: 2 | C8: 3 | D8: 4 | E8: 5 | F8: 6 | H8: 7 | J8: 8 | L8: 9 | N8: 10
A9: Амортизационные отчисления на 2019 год по основным средствам по состоянию на 01.04.2019 г. | B9: х | C9: х | D9: х | E9: х | F9: ='Расчет аморт. max срок '!S65/1000 -> 297.95309 | H9: х | I9: х | J9: х | K9: х | L9: х | M9: х | N9: х | O9: х
A10: Корректировка годовой суммы амортизационных отчислений, в том числе: | B10: х | C10: х | D10: х | E10: х | F10: =F11-F12 -> 0 | G10: =G11-G12 -> 0 | H10: х | I10: х | J10: х | K10: х | L10: х | M10: х | N10: х | O10: х
A11: по вводимым объектам основных средств после 01.04.2019 г. (+) | B11: х | C11: х | D11: х | E11: х | F11: ='Ввод выбытие ОС '!G15 -> 0 | G11: ='Ввод выбытие ОС '!Q15 -> 0 | H11: х | I11: х | J11: х | K11: х | L11: х | M11: х | N11: х | O11: х
A12: по выбывающим объектам основных средств после 01.04.2019 г.(-) | B12: х | C12: х | D12: х | E12: х | F12: ='Ввод выбытие ОС '!G30 -> 0 | G12: ='Ввод выбытие ОС '!Q30 -> 0 | H12: х | I12: х | J12: х | K12: х | L12: х | M12: х | N12: х | O12: х
A13: Годовая сумма амортизационных отчислений | B13: 210.95 | C13: 148.97652 | D13: 210.95 | E13: 148.97652 | F13: =F9+F10 -> 297.95309 | G13: =G9+G10 -> 0 | H13: =F13 -> 297.95309 | I13: =G13 -> 0 | J13: =H13 -> 297.95309 | K13: 0 | L13: 297.95309 | M13: 0 | N13: 297.95309 | O13: 0
A15: Руководитель организации | D15: ='Инф-я'!C21 -> Чижов Олег Александрович

Sheet Страховые взносы
B2: Расчет расходов на страховые взносы
B4: ='Инф-я'!C13 -> ООО "МОНОСТРОЙ"
P5: тыс. руб.
A6: № п/п | B6: Наименование | C6: Ед.изм. | D6: 2018 год | F6: 2019 год | H6: 2020 год | J6: 2021 год | L6: 2022 год | N6: 2023 год | P6: 2024 год | R6: 2018 год
D7: Утверждено | E7: Факт | F7: Утверждено | G7: Ожидаемые | H7: По данным организации | I7: По данным экспертов | J7: По данным организации | K7: По данным экспертов | L7: По данным организации | M7: По данным экспертов | N7: По данным организации | O7: По данным экспертов | P7: По данным организации | Q7: По данным экспертов | R7: Факт по данным экспертов
A8: 1 | B8: 2 | C8: 3 | D8: 4 | E8: 5 | F8: 6 | G8: 7 | H8: 8 | I8: 9 | J8: 10 | K8: 11 | L8: 12 | M8: 13 | N8: 14 | O8: 15 | P8: 16 | Q8: 17 | R8: 18
A9: 1. | B9: Сумма выплат и иных вознаграждений, начисленных в пользу физических лиц, в соответствии со статьей 420 НК РФ | C9: тыс. руб. | D9: х | E9: х | F9: х | G9: =G10+G11 -> 1500.462929 | H9: =H10+H11 -> 1814.96895 | I9: 0 | J9: 1868.692031 | K9: 0 | L9: 1924.005315 | M9: 0 | N9: 1980.955872 | O9: 0 | P9: 2039.592166 | Q9: 0 | R9: х
A10: 1.1. | B10: Расходы из фонда оплаты труда | C10: тыс. руб. | D10: х | E10: х | F10: х | G10: ='П.1.16. оплата труда ОПР'!H32 -> 1458.742929 | H10: ='Подконтрольные расходы'!N17 -> 1771.66359 | I10: ='Подконтрольные расходы'!Q17 -> 0 | J10: ='Подконтрольные расходы'!R17 -> 1824.104832 | K10: ='Подконтрольные расходы'!S17 -> 0 | L10: ='Подконтрольные расходы'!T17 -> 1878.098335 | M10: ='Подконтрольные расходы'!U17 -> 0 | N10: ='Подконтрольные расходы'!V17 -> 1933.690046 | O10: ='Подконтрольные расходы'!W17 -> 0 | P10: ='Подконтрольные расходы'!X17 -> 1990.927271 | Q10: ='Подконтрольные расходы'!Y17 -> 0 | R10: х
A11: 1.2. | B11: Расходы по коллективным договорам | C11: тыс. руб. | D11: х | E11: х | F11: х | G11: ='Расходы по кол дог'!G29 -> 41.72 | H11: ='Подконтрольные расходы'!N23 -> 43.30536 | I11: ='Подконтрольные расходы'!Q23 -> 0 | J11: ='Подконтрольные расходы'!R23 -> 44.58719866 | K11: ='Подконтрольные расходы'!S23 -> 0 | L11: ='Подконтрольные расходы'!T23 -> 45.90697974 | M11: ='Подконтрольные расходы'!U23 -> 0 | N11: ='Подконтрольные расходы'!V23 -> 47.26582634 | O11: ='Подконтрольные расходы'!W23 -> 0 | P11: ='Подконтрольные расходы'!X23 -> 48.6648948 | Q11: ='Подконтрольные расходы'!Y23 -> 0 | R11: х
A12: 2. | B12: Суммы, не подлежащие обложению страховыми взносами, в соответствии со статьей 422 НК РФ | C12: тыс. руб. | D12: х | E12: х | F12: х | R12: х
A13: 3. | B13: Тарифы страховых взносов: | C13: % | D13: х | E13: х | F13: х | G13: х | H13: х | I13: х | J13: х | K13: х | L13: х | M13: х | N13: х | O13: х | P13: х | Q13: х | R13: х
A14: 3.1. | B14: на обязательное пенсионное страхование | C14: % | D14: х | E14: х | F14: 0.22 | G14: 0.22 | H14: 0.22 | I14: 0.22 | J14: 0.22 | K14: 0.22 | L14: 0.22 | M14: 0.22 | N14: 0.22 | O14: 0.22 | P14: 0.22 | Q14: 0.22 | R14: х
A15: 3.2. | B15: на обязательное медицинское страхование | C15: % | D15: х | E15: х | F15: 0.051 | G15: 0.051 | H15: 0.051 | I15: 0.051 | J15: 0.051 | K15: 0.051 | L15: 0.051 | M15: 0.051 | N15: 0.051 | O15: 0.051 | P15: 0.051 | Q15: 0.051 | R15: х
A16: 3.3. | B16: на обязательное социальное страхование на случай временной нетрудоспособности и в связи с материнством | C16: % | D16: х | E16: х | F16: 0.029 | G16: 0.029 | H16: 0.029 | I16: 0.029 | J16: 0.029 | K16: 0.029 | L16: 0.029 | M16: 0.029 | N16: 0.029 | O16: 0.029 | P16: 0.029 | Q16: 0.029 | R16: х
A17: 3.4. | B17: на обязательное страхование от несчастных случаев | C17: % | D17: х | E17: х | F17: 0.009 | G17: 0.009 | H17: 0.009 | J17: 0.009 | L17: 0.009 | N17: 0.009 | P17: 0.009 | R17: х
A18: 4. | B18: Расходы на страховые взносы: | C18: тыс. руб. | D18: 302.29 | E18: ='П.1.16. оплата труда ОПР'!F32*30.9% -> 432.168327 | F18: 313.04 | G18: =G19+G20+G21+G22 -> 463.6430451 | H18: 560.8254056 | I18: 0 | J18: 577.4258376 | K18: 0 | L18: 594.5176423 | M18: 0 | N18: 612.1153646 | O18: 0 | P18: 630.2339794 | Q18: 0
A19: 4.1. | B19: на обязательное пенсионное страхование | C19: тыс. руб. | D19: х | F19: х | G19: =(G9-G12)*G14 -> 330.1018444 | H19: 399.293169 | I19: 0 | J19: 411.1122468 | K19: 0 | L19: 423.2811693 | M19: 0 | N19: 435.8102919 | O19: 0 | P19: 448.7102766 | Q19: 0
A20: 4.2. | B20: на обязательное медицинское страхование | C20: тыс. руб. | D20: х | F20: х | G20: =(G9-G12)*G15 -> 76.52360938 | H20: 92.56341645 | I20: 0 | J20: 95.30329358 | K20: 0 | L20: 98.12427107 | M20: 0 | N20: 101.0287495 | O20: 0 | P20: 104.0192005 | Q20: 0
A21: 4.3. | B21: на обязательное социальное страхование на случай временной нетрудоспособности и в связи с материнством | C21: тыс. руб. | D21: х | F21: х | G21: =(G9-G12)*G16 -> 43.51342494 | H21: 52.63409955 | I21: 0 | J21: 54.1920689 | K21: 0 | L21: 55.79615414 | M21: 0 | N21: 57.4477203 | O21: 0 | P21: 59.14817282 | Q21: 0
A22: 4.4. | B22: на обязательное страхование от несчастных случаев | C22: тыс. руб. | D22: х | F22: х | G22: =(G9-G12)*G17 -> 13.50416636 | H22: 16.33472055 | I22: 0 | J22: 16.81822828 | K22: 0 | L22: 17.31604784 | M22: 0 | N22: 17.82860285 | O22: 0 | P22: 18.3563295 | Q22: 0
B24: Руководитель организации | E24: ='Инф-я'!$C$21 -> Чижов Олег Александрович
A31: № п./п. | B31: Показатели | C31: По расчету Общества
A32: 1 | B32: 2 | C32: 3
A33: 1. | B33: Расходы на оплату труда, включаемые в базу для начисления страховых взносов | C33: =H9 -> 1814.96895
A34: 2. | B34: Выплаты работникам по коллективному договору - всего. в т. ч. | C34: 0
A35: 3. | B35: суммы, не подлежащие обложению страховыми взносами в соответствии со ст. 9 закона от 24.07.2009 г. № 212-ФЗ | C35: 0
A36: 4. | B36: Итого база страховых взносов (п.1+п.2-п.3) | C36: =C33+C34 -> 1814.96895
A37: 5. | B37: Отчисления во внебюджетные фонды | C37: =C36*C38/100 -> 551.7505608
A38: 6. | B38: Процент отчислений (%) | C38: 30.4

Sheet Расходы рег. орг-ий (hidden)
A2: Расходы на оплату услуг организаций, осуществляющих регулируемые виды деятельности
A4: ='Инф-я'!C13 -> ООО "МОНОСТРОЙ"
N6: тыс. руб.
A7: Наименование | B7: 2018 год | D7: 2019 год | F7: 2020 год | H7: 2021 год | J7: 2022 год | L7: 2023 год | N7: 2024 год | P7: 2018 год
B8: Утверждено | C8: Факт | D8: Утверждено | E8: Ожидаемые | F8: По данным организации | G8: По данным экспертов | H8: По данным организации | I8: По данным экспертов | J8: По данным организации | K8: По данным экспертов | L8: По данным организации | M8: По данным экспертов | N8: По данным организации | O8: По данным экспертов | P8: Факт по данным экспертов
A9: 1 | B9: 2 | C9: 3 | D9: 4 | E9: 5 | F9: 6 | G9: 7 | H9: 6 | I9: 7 | J9: 6 | K9: 7 | L9: 6 | M9: 7 | N9: 6 | O9: 7 | P9: 8
A10: Тепловая энергия | C10: =SUM(C11:C12) -> 0 | E10: =SUM(E11:E12) -> 0 | F10: 0 | G10: 0 | H10: =SUM(H11:H12) -> 0 | I10: 0 | J10: =SUM(J11:J12) -> 0 | K10: 0 | L10: =SUM(L11:L12) -> 0 | M10: 0 | N10: =SUM(N11:N12) -> 0 | O10: 0 | P10: 0
A11: договор с _____ от_____№ __ на_________ | B11: х | D11: х
A12: договор с _____ от_____№ __ на_________ | B12: х | D12: х
A13: Добавить
A14: Водоснабжение и канализация | C14: =SUM(C15:C16) -> 0 | E14: =SUM(E15:E16) -> 0 | F14: 0 | G14: 0 | H14: =SUM(H15:H16) -> 0 | I14: 0 | J14: =SUM(J15:J16) -> 0 | K14: 0 | L14: =SUM(L15:L16) -> 0 | M14: 0 | N14: =SUM(N15:N16) -> 0 | O14: 0 | P14: 0
A15: договор с _____ от_____№ __ на_________ | B15: х | D15: х
A16: договор с _____ от_____№ __ на_________ | B16: х | D16: х
A17: Добавить
A18: Прочие услуги по регулируемым тарифам | C18: =SUM(C19:C21) -> 0 | E18: =SUM(E19:E21) -> 0 | F18: 0 | G18: 0 | H18: =SUM(H19:H21) -> 0 | I18: 0 | J18: =SUM(J19:J21) -> 0 | K18: 0 | L18: =SUM(L19:L21) -> 0 | M18: 0 | N18: =SUM(N19:N21) -> 0 | O18: 0 | P18: 0
A19: договор с _____ от_____№ __ на_________ | B19: х | D19: х
A20: договор с _____ от_____№ __ на_________ | B20: х | D20: х
A21: договор с _____ от_____№ __ на_________ | B21: х | D21: х
A22: Добавить
A23: Итого | B23: =B10+B14+B18 -> 0 | C23: 0 | D23: 0 | E23: 0 | F23: 0 | G23: =G10+G14+G18 -> 0 | H23: =H10+H14+H18 -> 0 | I23: =I10+I14+I18 -> 0 | J23: =J10+J14+J18 -> 0 | K23: =K10+K14+K18 -> 0 | L23: =L10+L14+L18 -> 0 | M23: =M10+M14+M18 -> 0 | N23: =N10+N14+N18 -> 0 | O23: =O10+O14+O18 -> 0 | P23: =P10+P14+P18 -> 0
A25: Руководитель организации | D25: ='Инф-я'!C21 -> Чижов Олег Александрович

Sheet Аренда имущества (hidden)
A2: Расходы по аренде имущества в части амортизации и налогов, относимых к арендуемому имуществу
A4: ='Инф-я'!C13 -> ООО "МОНОСТРОЙ"
A6: Наименование | B6: 2018 год | D6: 2019 год | F6: 2020 год | V6: 2021 год | X6: 2022 год | Z6: 2023 год | AB6: 2024 год | AD6: 2018 год Факт по данным экспертов
F7: По данным организации | N7: По расчету экспертов
F8: Сумма арендной платы для включения в тариф | G8: Стоимость арендной платы по договору | H8: Стоимость арендной платы в соответствии с требованиями п. 28 Основ ценообразования | N8: Сумма арендной платы для включения в тариф | O8: Стоимость арендной платы по договору | P8: Стоимость арендной платы расчитанной в соответствии с требованиями п. 28 Основ ценообразования
B9: Утверждено | C9: Факт | D9: Утверждено | E9: Ожидаемые | H9: Всего | I9: амортизационные отчисления | J9: налог на имущество | K9: транспортный налог | L9: плата за землю | M9: иные обязательные платежи предусмотренные законодательством, связанные с арендуемым имуществом | P9: Всего | Q9: амортизационные отчисления | R9: налог на имущество | S9: транспортный налог | T9: плата за землю | U9: иные обязательные платежи предусмотренные законодательством, связанные с арендуемым имуществом | V9: По данным организации | W9: По данным экспертов | X9: По данным организации | Y9: По данным экспертов | Z9: По данным организации | AA9: По данным экспертов | AB9: По данным организации | AC9: По данным экспертов
A10: 1 | B10: 2 | C10: 3 | D10: 4 | E10: 5 | F10: 6 | G10: 7 | H10: 8 | I10: 9 | J10: 10 | K10: 11 | L10: 12 | M10: 13 | N10: 14 | O10: 15 | P10: 16 | Q10: 17 | R10: 18 | S10: 19 | T10: 20 | U10: 21 | V10: 22 | W10: 23 | X10: 24 | Y10: 25 | Z10: 26 | AA10: 27 | AB10: 28 | AC10: 29 | AD10: 30
A11: Аренда объектов электросетевого хозяйства | B11: =SUM(B12:B14) -> 0 | C11: =SUM(C12:C14) -> 0 | D11: 0 | E11: 0 | F11: 0 | G11: 0 | H11: 0 | I11: 0 | J11: 0 | K11: 0 | L11: 0 | M11: 0 | N11: =SUM(N12:N14) -> 0 | O11: =SUM(O12:O14) -> 0 | P11: 0 | Q11: 0 | R11: 0 | S11: 0 | T11: 0 | U11: 0 | V11: 0 | W11: 0 | X11: =SUM(X12:X14) -> 0 | Y11: 0 | Z11: =SUM(Z12:Z14) -> 0 | AA11: 0 | AB11: =SUM(AB12:AB14) -> 0 | AC11: 0 | AD11: 0
A12: договор с _____ от_____№ __ | F12: =MIN(G12,H12) -> 0 | H12: =I12+J12+K12+L12+M12 -> 0 | N12: =MIN(O12,P12) -> 0 | P12: =Q12+R12+S12+T12+U12 -> 0
A13: договор с _____ от_____№ __ | F13: 0 | H13: 0 | N13: 0 | P13: 0
A14: договор с _____ от_____№ __ | F14: 0 | H14: 0 | N14: 0 | P14: 0
A15: Добавить
A16: Аренда зданий, соружений, помещений, основных средств | B16: =SUM(B17:B20) -> 0 | C16: =SUM(C17:C20) -> 0 | D16: 0 | E16: 0 | F16: 0 | G16: 0 | H16: 0 | I16: 0 | J16: 0 | K16: 0 | L16: 0 | M16: 0 | N16: =SUM(N17:N20) -> 0 | O16: =SUM(O17:O20) -> 0 | P16: 0 | Q16: 0 | R16: 0 | S16: 0 | T16: 0 | U16: 0 | V16: 0 | W16: 0 | X16: =SUM(X17:X20) -> 0 | Y16: 0 | Z16: =SUM(Z17:Z20) -> 0 | AA16: 0 | AB16: =SUM(AB17:AB20) -> 0 | AC16: 0 | AD16: 0
A17: договор с _____ от_____№ __ | F17: =MIN(G17,H17) -> 0 | H17: =I17+J17+K17+L17+M17 -> 0 | N17: =MIN(O17,P17) -> 0 | P17: =Q17+R17+S17+T17+U17 -> 0
A18: договор с _____ от_____№ __ | F18: 0 | H18: 0 | N18: 0 | P18: 0
A19: договор с _____ от_____№ __ | F19: 0 | H19: 0 | N19: 0 | P19: 0
A20: договор с _____ от_____№ __ | F20: 0 | H20: 0 | N20: 0 | P20: 0
A21: Добавить
A22: Аренда транспортных средств | B22: =SUM(B23:B24) -> 0 | C22: =SUM(C23:C24) -> 0 | D22: 0 | E22: 0 | F22: 0 | G22: 0 | H22: 0 | I22: 0 | J22: 0 | K22: 0 | L22: 0 | M22: 0 | N22: =SUM(N23:N24) -> 0 | O22: =SUM(O23:O24) -> 0 | P22: 0 | Q22: 0 | R22: 0 | S22: 0 | T22: 0 | U22: 0 | V22: 0 | W22: 0 | X22: =SUM(X23:X24) -> 0 | Y22: 0 | Z22: =SUM(Z23:Z24) -> 0 | AA22: 0 | AB22: =SUM(AB23:AB24) -> 0 | AC22: 0 | AD22: 0
A23: договор с _____ от_____№ __ | F23: =MIN(G23,H23) -> 0 | H23: =I23+J23+K23+L23+M23 -> 0 | N23: =MIN(O23,P23) -> 0 | P23: =Q23+R23+S23+T23+U23 -> 0
A24: договор с _____ от_____№ __ | F24: =MIN(G24,H24) -> 0 | H24: =I24+J24+K24+L24+M24 -> 0 | N24: =MIN(O24,P24) -> 0 | P24: =Q24+R24+S24+T24+U24 -> 0
A25: Добавить
A26: Лизинг | B26: =SUM(B27:B31) -> 0 | C26: =SUM(C27:C31) -> 0 | D26: 0 | E26: 0 | F26: 0 | G26: х | H26: х | I26: х | J26: х | K26: х | L26: х | M26: х | N26: =SUM(N27:N31) -> 0 | O26: х | P26: х | Q26: х | R26: х | S26: х | T26: х | U26: х | V26: =SUM(V27:V31) -> 0 | W26: 0 | X26: =SUM(X27:X31) -> 0 | Y26: 0 | Z26: =SUM(Z27:Z31) -> 0 | AA26: 0 | AB26: =SUM(AB27:AB31) -> 0 | AC26: 0 | AD26: =SUM(AD27:AD31) -> 0
A27: объектов электросетевого хозяйства договор с _____ от_____№ __ | G27: х | H27: х | I27: х | J27: х | K27: х | L27: х | M27: х | O27: х | P27: х | Q27: х | R27: х | S27: х | T27: х | U27: х
A28: иного имущества договор с _____ от_____№ __ | G28: х | H28: х | I28: х | J28: х | K28: х | L28: х | M28: х | O28: х | P28: х | Q28: х | R28: х | S28: х | T28: х | U28: х
A29: договор с _____ от_____№ __ | G29: х | H29: х | I29: х | J29: х | K29: х | L29: х | M29: х | O29: х | P29: х | Q29: х | R29: х | S29: х | T29: х | U29: х
A30: договор с _____ от_____№ __ | G30: х | H30: х | I30: х | J30: х | K30: х | L30: х | M30: х | O30: х | P30: х | Q30: х | R30: х | S30: х | T30: х | U30: х
A31: договор с _____ от_____№ __ | G31: х | H31: х | I31: х | J31: х | K31: х | L31: х | M31: х | O31: х | P31: х | Q31: х | R31: х | S31: х | T31: х | U31: х
A32: Добавить
A33: ИТОГО расходы по аренде имущества, всего в том числе | B33: =B11+B16+B22+B26 -> 0 | C33: =C11+C16+C22+C26 -> 0 | D33: =D11+D16+D22+D26 -> 0 | E33: =E11+E16+E22+E26 -> 0 | F33: =F11+F16+F22+F26 -> 0 | G33: =G11+G16+G22 -> 0 | H33: =H11+H16+H22 -> 0 | I33: 0 | J33: 0 | K33: 0 | L33: 0 | M33: 0 | N33: =N11+N16+N22+N26 -> 0 | O33: =O11+O16+O22 -> 0 | P33: =P11+P16+P22 -> 0 | Q33: 0 | R33: 0 | S33: 0 | T33: 0 | U33: 0 | V33: =V11+V16+V22+V26 -> 0 | W33: 0 | X33: 0 | Y33: 0 | Z33: 0 | AA33: 0 | AB33: 0 | AC33: 0 | AD33: 0
A34: в т.ч. по уровням напряжения: ВН | B34: х | C34: х | E34: х | G34: х | H34: х | I34: х | J34: х | K34: х | L34: х | M34: х | O34: х | P34: х | Q34: х | R34: х | S34: х | T34: х | U34: х | W34: х | Y34: х | AA34: х | AC34: х
A35: СН1 | B35: х | C35: х | E35: х | G35: х | H35: х | I35: х | J35: х | K35: х | L35: х | M35: х | O35: х | P35: х | Q35: х | R35: х | S35: х | T35: х | U35: х | W35: х | Y35: х | AA35: х | AC35: х
A36: СН2 | B36: х | C36: х | E36: х | G36: х | H36: х | I36: х | J36: х | K36: х | L36: х | M36: х | O36: х | P36: х | Q36: х | R36: х | S36: х | T36: х | U36: х | W36: х | Y36: х | AA36: х | AC36: х
A37: НН | B37: х | C37: х | E37: х | G37: х | H37: х | I37: х | J37: х | K37: х | L37: х | M37: х | O37: х | P37: х | Q37: х | R37: х | S37: х | T37: х | U37: х | W37: х | Y37: х | AA37: х | AC37: х
A38: Для проверки прибыли на капитальные вложения (аренда и лизинг объектов электросетевого хозяйства) | B38: =B11+B27 -> 0 | C38: =C11+C27 -> 0 | D38: =D11+D27 -> 0 | E38: =E11+E27 -> 0 | F38: =F11+F27 -> 0 | G38: х | H38: х | I38: х | J38: х | K38: х | L38: х | M38: х | N38: =N11+N27 -> 0 | O38: х | P38: х | Q38: х | R38: х | S38: х | T38: х | U38: х | V38: =V11+V27 -> 0 | W38: 0 | X38: 0 | Y38: 0 | Z38: 0 | AA38: 0 | AB38: 0 | AC38: 0 | AD38: 0
A40: Руководитель организации | D40: ='Инф-я'!$C$21 -> Чижов Олег Александрович

Sheet Плата за землю (hidden)
A2: Плата за землю
A4: ='Инф-я'!C13 -> ООО "МОНОСТРОЙ"
O5: тыс. руб.
A6: Наименование | B6: 2018 год | D6: 2019 год | F6: 2020 год | H6: 2021 год | J6: 2022 год | L6: 2023 год | N6: 2024 год | P6: 2018 год
B7: Утверждено | C7: Факт | D7: Утверждено | E7: Ожидаемые | F7: По данным организации | G7: По данным экспертов | H7: По данным организации | I7: По данным экспертов | J7: По данным организации | K7: По данным экспертов | L7: По данным организации | M7: По данным экспертов | N7: По данным организации | O7: По данным экспертов | P7: Факт по данным экспертов
A8: 1 | B8: 2 | C8: 3 | D8: 4 | E8: 5 | F8: 6 | G8: 7 | H8: 8 | I8: 9 | J8: 10 | K8: 11 | L8: 12 | M8: 13 | N8: 14 | O8: 15 | P8: 16
A9: Земельный налог
A11: Арендная плата за землю | C11: =SUM(C12:C16) -> 0 | E11: =SUM(E12:E16) -> 0 | F11: 0 | G11: 0 | H11: 0 | I11: 0 | J11: 0 | K11: 0 | L11: 0 | M11: 0 | N11: 0 | O11: 0 | P11: 0
A12: договор № ___ от ____ | B12: x | D12: x
A13: договор № ___ от ____ | B13: x | D13: x
A14: договор № ___ от ____ | B14: x | D14: x
A15: договор № ___ от ____ | B15: x | D15: x
A16: договор № ___ от ____ | B16: x | D16: x
A17: Добавить
A18: Всего плата за землю | B18: =B9+B11 -> 0 | C18: 0 | D18: 0 | E18: 0 | F18: 0 | G18: 0 | H18: =H9+H11 -> 0 | I18: 0 | J18: =J9+J11 -> 0 | K18: 0 | L18: =L9+L11 -> 0 | M18: 0 | N18: =N9+N11 -> 0 | O18: 0 | P18: 0
A20: Руководитель организации | D20: ='Инф-я'!$C$21 -> Чижов Олег Александрович

Sheet Транспортный налог (hidden)
A2: Расчет транспортного налога
A4: ='Инф-я'!C13 -> ООО "МОНОСТРОЙ"
I5: тыс. руб.
A6: Объект налогообложения (вид и марка транспортного средства) | B6: Налоговая база, (л.с.) | C6: Налоговая ставка, руб. | D6: 2018 год | F6: 2019 год | H6: 2020 год | L6: 2021 год | N6: 2022 год | P6: 2023 год | R6: 2024 год | T6: 2018 год
H7: По расчету организации | J7: По расчету экспертов | T7: Факт по данным экспертов
D8: Утверждено | E8: Факт | F8: Утверждено | G8: Ожидаемые | H8: Коэф. использ. | I8: Годовая сумма налога, тыс.руб. | J8: Коэф. использ. | K8: Годовая сумма налога, тыс. руб. | L8: По данным организации | M8: По данным экспертов | N8: По данным организации | O8: По данным экспертов | P8: По данным организации | Q8: По данным экспертов | R8: По данным организации | S8: По данным экспертов
A9: 1 | B9: 2 | C9: 3 | D9: 4 | E9: 5 | F9: 6 | G9: 7 | H9: 8 | I9: 9 | J9: 10 | K9: 11 | L9: 12 | M9: 13 | N9: 14 | O9: 15 | P9: 16 | Q9: 17 | R9: 18 | S9: 19 | T9: 20
D10: х | F10: х | I10: =B10*C10*H10/1000 -> 0 | K10: =B10*C10*J10/1000 -> 0
D11: х | F11: х | I11: =B11*C11*H11/1000 -> 0 | K11: =B11*C11*J11/1000 -> 0
D12: х | F12: х | I12: 0 | K12: 0
D13: х | F13: х | I13: 0 | K13: 0
D14: х | F14: х | I14: 0 | K14: 0
A15: Добавить
A16: Транспортный налог всего, в т.ч. | B16: х | C16: х | E16: =SUM(E10:E14) -> 0 | G16: =SUM(G10:G14) -> 0 | H16: х | I16: =SUM(I10:I14) -> 0 | J16: х | K16: =SUM(K10:K14) -> 0 | L16: 0 | M16: 0 | N16: 0 | O16: 0 | P16: 0 | Q16: 0 | R16: 0 | S16: 0 | T16: 0
A17: относимый на услугу по передаче электрической энергии | B17: х | C17: х | H17: х | J17: х
A18: * Условное форматирование: если в ячейке не указано значение - форматируется красным цветом
A19: Руководитель организации | D19: ='Инф-я'!$C$21 -> Чижов Олег Александрович

Sheet Налог на имущество
A2: Налог на имущество
A4: ='Инф-я'!C13 -> ООО "МОНОСТРОЙ"
N5: тыс. руб.
A6: Наименование | B6: 2018 год | D6: 2019 год | F6: 2020 год | H6: 2021 год | J6: 2022 год | L6: 2023 год | N6: 2024 год | P6: 2018 год
B7: Утверждено | C7: Факт | D7: Утверждено | E7: Ожидаемые | F7: По данным организации | G7: По данным экспертов | H7: По данным организации | I7: По данным экспертов | J7: По данным организации | K7: По данным экспертов | L7: По данным организации | M7: По данным экспертов | N7: По данным организации | O7: По данным экспертов | P7: Факт по данным экспертов
A8: 1 | B8: 2 | C8: 3 | D8: 4 | E8: 5 | F8: 6 | G8: 7 | H8: 6 | I8: 7 | J8: 6 | K8: 7 | L8: 6 | M8: 7 | N8: 6 | O8: 7 | P8: 8
A9: Среднегодовая остаточная стоимость основных средств, всего, в том числе: | B9: х | C9: =C10+C12+C11 -> 3947.87853 | D9: х | E9: =E10+E11 -> 3798.90201 | F9: 3649.925459 | G9: 0 | H9: 3500.94897 | I9: 0 | J9: 3351.97245 | K9: 0 | L9: 3202.99593 | M9: 0 | N9: 3054.01941 | O9: 0 | P9: =P10+P12+P11 -> 0
A10: -облагаемых по ставке 2,2 % | B10: х | C10: 3947.87853 | D10: х | E10: =((4469.29635-595.90608)+(4469.29635-595.90608-148.97652))/2 -> 3798.90201 | F10: ='Расчет аморт. max срок '!V65/1000+'Ввод выбытие ОС '!K15-'Ввод выбытие ОС '!K30 -> 3649.925459 | H10: =((4469.29635-595.90608-148.97652-148.97652)+(4469.29635-595.90608-148.97652-148.97652-148.97652))/2 -> 3500.94897 | J10: =((4469.29635-595.90608-148.97652-148.97652-148.97652)+(4469.29635-595.90608-148.97652-148.97652-148.97652-148.97652))/2 -> 3351.97245 | L10: =((4469.29635-595.90608-148.97652-148.97652-148.97652-148.97652)+(4469.29635-595.90608-148.97652-148.97652-148.97652-148.97652-148.97652))/2 -> 3202.99593 | N10: =((4469.29635-595.90608-148.97652-148.97652-148.97652-148.97652-148.97652)+(4469.29635-595.90608-148.97652-148.97652-148.97652-148.97652-148.97652-148.97652))/2 -> 3054.01941
A11: - необлагаемых (движимое имущество) | B11: х | D11: х | F11: ='Расчет аморт. max срок '!W65/1000 -> 0
A12: -облагаемых по льготной ставке | B12: х | D12: х | E12: х | F12: х | G12: х | H12: х | I12: х | J12: х | K12: х | L12: х | M12: х | N12: х | O12: х
A13: Льготная ставка налога | B13: х | C13: 0.019 | D13: х | E13: х | F13: х | G13: х | H13: х | I13: х | J13: х | K13: х | L13: х | M13: х | N13: х | O13: х | P13: 0.019
A14: Налог на имущество | B14: 86.8 | C14: =C10*2.2%+C12*C13 -> 86.85332766 | D14: 100.55 | E14: =E10*2.2% -> 83.57584422 | F14: 80.29836009 | G14: 0 | H14: 77.02087734 | I14: 0 | J14: 73.7433939 | K14: 0 | L14: 70.46591046 | M14: 0 | N14: 67.18842702 | O14: 0 | P14: =P10*2.2%+P12*P13 -> 0
A15: Налог на имущество, относимый на услугу по передаче электрической энергии | B15: =B14 -> 86.8 | C15: =C14 -> 86.85332766 | D15: =D14 -> 100.55 | E15: =E14 -> 83.57584422 | F15: =F14 -> 80.29836009 | H15: =H14 -> 77.02087734 | J15: =J14 -> 73.7433939 | L15: =L14 -> 70.46591046 | N15: =N14 -> 67.18842702
A17: Руководитель организации | D17: ='Инф-я'!$C$21 -> Чижов Олег Александрович
F19: =((4469.29635-595.90608-148.97652)+(4469.29635-595.90608-148.97652-148.97652))/2 -> 3649.92549

Sheet Налог на прибыль (hidden)
B2: Налог на прибыль от услуги по передаче электрической энергии и осуществления технологического присоединения к электрическим сетям
B4: ='Инф-я'!C13 -> ООО "МОНОСТРОЙ"
N5: тыс. руб.
A6: № п/п | B6: Наименование | C6: 2018 год | E6: 2019 год | F6: 2020 год | H6: 2021 год | J6: 2022 год | L6: 2023 год | N6: 2024 год | P6: 2018 год
C7: Утверждено | D7: Факт | E7: Утверждено | F7: По данным организации | G7: По данным экспертов | H7: По данным организации | I7: По данным экспертов | J7: По данным организации | K7: По данным экспертов | L7: По данным организации | M7: По данным экспертов | N7: По данным организации | O7: По данным экспертов | P7: Факт по данным экспертов
A8: 1 | B8: 2 | C8: 3 | D8: 4 | E8: 5 | F8: 6 | G8: 7 | H8: 6 | I8: 7 | J8: 6 | K8: 7 | L8: 6 | M8: 7 | N8: 6 | O8: 7 | P8: 8
A9: 1 | B9: Прибыль до налогообложения | C9: х | D9: =D10+D12+D11 -> 0 | E9: х | F9: х | G9: х | H9: х | I9: х | J9: х | K9: х | L9: х | M9: х | N9: х | O9: х | P9: =P10+P12+P11 -> 0
A10: 1.1. | B10: от услуги по передаче электроэнергии | C10: х | E10: х | F10: х | G10: х | H10: х | I10: х | J10: х | K10: х | L10: х | M10: х | N10: х | O10: х
A11: 1.2. | B11: от технологического присоединения | C11: х | E11: х | F11: х | G11: х | H11: х | I11: х | J11: х | K11: х | L11: х | M11: х | N11: х | O11: х
A12: 1.3. | B12: от прочих услуг | C12: х | E12: х | F12: х | G12: х | H12: х | I12: х | J12: х | K12: х | L12: х | M12: х | N12: х | O12: х
A13: 2. | B13: Постоянные налоговые обязательства, относящиеся к передаче электроэнергии и технологическому присоединению | C13: х | E13: х | F13: х | G13: х | H13: х | I13: х | J13: х | K13: х | L13: х | M13: х | N13: х | O13: х
A14: 3. | B14: Изменение отложенных налоговых обязательств, относящиеся к передаче электроэнергии и технологическому присоединению | C14: х | E14: х | F14: х | G14: х | H14: х | I14: х | J14: х | K14: х | L14: х | M14: х | N14: х | O14: х
A15: 4. | B15: Изменение отложенных налоговых активов, относящиеся к передаче электроэнергии и технологическому присоединению | C15: х | E15: х | F15: х | G15: х | H15: х | I15: х | J15: х | K15: х | L15: х | M15: х | N15: х | O15: х
A16: 5. | B16: Налог на прибыль по декларации, в том числе по видам деятельности: | C16: х | D16: =D17+D18+D19 -> 0 | E16: х | F16: х | G16: х | H16: х | I16: х | J16: х | K16: х | L16: х | M16: х | N16: х | O16: х | P16: =P17+P18+P19 -> 0
A17: 5.1. | B17: передача электроэнергии | C17: х | E17: х | F17: х | G17: х | H17: х | I17: х | J17: х | K17: х | L17: х | M17: х | N17: х | O17: х
A18: 5.2. | B18: технологическое присоединение | C18: х | E18: х | F18: х | G18: х | H18: х | I18: х | J18: х | K18: х | L18: х | M18: х | N18: х | O18: х
A19: 5.3. | B19: прочие услуги | C19: х | E19: х | F19: х | G19: х | H19: х | I19: х | J19: х | K19: х | L19: х | M19: х | N19: х | O19: х
A20: Итого налог на прибыль от услуги по передаче и от технологического присоединения (п.5.1.+п.5.2) | D20: =D17+D18 -> 0 | F20: =D20 -> 0 | G20: =P20 -> 0 | H20: =F20 -> 0 | I20: =$G$20 -> 0 | J20: =H20 -> 0 | K20: =$G$20 -> 0 | L20: =J20 -> 0 | M20: =$G$20 -> 0 | N20: =L20 -> 0 | O20: =$G$20 -> 0 | P20: =P17+P18 -> 0
A22: Руководитель организации | D22: ='Инф-я'!$C$21 -> Чижов Олег Александрович
A24: Постановлением Правительства РФ от 11 июня 2014 года № 542 внесены изменения в п. 20 Основ ценообразования в области регулируемых цен (тарифов) в электроэнергетике, утвержденных постановлением Правительства РФ от 29 декабря 2011 г. № 1178 в части определения налога на прибыль: «В необходимую валовую выручку включается величина налога на прибыль организаций по регулируемому виду деятельности, сформированная по данным бухгалтерского учета за последний истекший период. При установлении тарифов на услуги по передаче электрической энергии учитывается величина налога на прибыль организаций, которая относится по данным раздельного учета к деятельности по оказанию услуг по передаче электрической энергии и осуществлению технологического присоединения к электрическим сетям».

Sheet Негативное возд. на окр. среду (hidden)
B2: Расчет платы за негативное воздействие на окружающую среду
B4: ='Инф-я'!C13 -> ООО "МОНОСТРОЙ"
O5: тыс. руб.
A6: № п./п. | B6: Наименование | C6: 2018 год | E6: 2019 год | G6: 2020 год | I6: 2021 год | K6: 2022 год | M6: 2023 год | O6: 2024 год | Q6: 2018 год
C7: Утверждено | D7: Факт | E7: Утверждено | F7: Ожидаемые | G7: По данным организации | H7: По данным экспертов | I7: По данным организации | J7: По данным экспертов | K7: По данным организации | L7: По данным экспертов | M7: По данным организации | N7: По данным экспертов | O7: По данным организации | P7: По данным экспертов | Q7: Факт по данным экспертов
A8: 1 | B8: 2 | C8: 3 | D8: 4 | E8: 5 | F8: 6 | G8: 7 | I8: 8 | K8: 9 | M8: 10 | O8: 11
A9: 1. | B9: Плата за выбросы загрязняющих веществ в атмосферный воздух стационарными объектами, исчисленная без учета корректировки, в том числе: | C9: x | D9: =SUM(D10:D12) -> 0 | E9: x | F9: x | G9: =SUM(G10:G12) -> 0 | H9: =SUM(H10:H12) -> 0 | I9: =SUM(I10:I12) -> 0 | J9: =SUM(J10:J12) -> 0 | K9: =SUM(K10:K12) -> 0 | L9: 0 | M9: =SUM(M10:M12) -> 0 | N9: =SUM(N10:N12) -> 0 | O9: =SUM(O10:O12) -> 0 | P9: 0 | Q9: 0
A10: 1.1. | B10: плата за выбросы в пределах предельно-допустимых выбросов (ПДВ) | C10: x | E10: x | F10: x
A11: 1.2. | B11: плата за выбросы в пределах лимитов на выбросы загрязняющих веществ (временно согласованные выбросы ВСВ) | C11: x | E11: x | F11: x
A12: 1.3. | B12: плата за выбросы, превышающие установленные разрешениями на выброс загрязняющих веществ в атмосферный воздух | C12: x | E12: x | F12: x
A13: 2. | B13: Плата за сбросы загрязняющих веществ в водные объекты | C13: x | D13: =SUM(D14:D16) -> 0 | E13: x | F13: x | G13: =SUM(G14:G16) -> 0 | H13: =SUM(H14:H16) -> 0 | I13: =SUM(I14:I16) -> 0 | J13: =SUM(J14:J16) -> 0 | K13: =SUM(K14:K16) -> 0 | L13: 0 | M13: =SUM(M14:M16) -> 0 | N13: =SUM(N14:N16) -> 0 | O13: =SUM(O14:O16) -> 0 | P13: 0 | Q13: 0
A14: 2.1. | B14: плата за сбросы в пределах нормативов допустимых сбросов (НДС) | C14: x | E14: x | F14: x
A15: 2.2. | B15: плата за сбросы в пределах лимитов на сбросы загрязняющих веществ (временно согласованный сбор ВСС) | C15: x | E15: x | F15: x
A16: 2.3. | B16: плата за сбросы, превышающие установленные разрешениями на сброс загрязняющих веществ (сверх лимита на сбросы) | C16: x | E16: x | F16: x
A17: 3. | B17: Плата за размещение отходов производства и потребления, исчисленная без учета корректировки, в том числе: | C17: x | D17: =SUM(D18:D19) -> 0 | E17: x | F17: x | G17: =SUM(G18:G19) -> 0 | H17: =SUM(H18:H19) -> 0 | I17: =SUM(I18:I19) -> 0 | J17: =SUM(J18:J19) -> 0 | K17: =SUM(K18:K19) -> 0 | L17: 0 | M17: =SUM(M18:M19) -> 0 | N17: =SUM(N18:N19) -> 0 | O17: =SUM(O18:O19) -> 0 | P17: 0 | Q17: 0
A18: 3.1. | B18: плата за размещение отходов в пределах установленного лимита на их размещение | C18: x | E18: x | F18: x
A19: 3.2. | B19: плата за размещение отходов сверх установленного лимита на их размещение | C19: x | E19: x | F19: x
A20: 4. | B20: Сумма средств на выполнение мероприятий по снижению негативного воздействия на окружающую среду, всего (п.4.1.+п.4.2.+п.4.3.), в том числе | C20: x | D20: =D21+D23+D25 -> 0 | E20: x | F20: x | G20: =G21+G23+G25 -> 0 | H20: =H21+H23+H25 -> 0 | I20: =I21+I23+I25 -> 0 | J20: =J21+J23+J25 -> 0 | K20: =K21+K23+K25 -> 0 | L20: 0 | M20: =M21+M23+M25 -> 0 | N20: =N21+N23+N25 -> 0 | O20: =O21+O23+O25 -> 0 | P20: 0 | Q20: 0
A21: 4.1. | B21: платы за выбросы | C21: x | E21: x | F21: x
A22: 4.1.1. | B22: средства, уменьшающие плату за выбросы в части предельно допустимых выбросов | C22: x | D22: =IF(D9=0,0,D21*((D10+D11)/D9)) -> 0 | E22: x | F22: x | G22: =IF(G9=0,0,G21*((G10+G11)/G9)) -> 0 | H22: =IF(H9=0,0,H21*((H10+H11)/H9)) -> 0 | I22: =IF(I9=0,0,I21*((I10+I11)/I9)) -> 0 | J22: =IF(J9=0,0,J21*((J10+J11)/J9)) -> 0 | K22: =IF(K9=0,0,K21*((K10+K11)/K9)) -> 0 | L22: 0 | M22: =IF(M9=0,0,M21*((M10+M11)/M9)) -> 0 | N22: =IF(N9=0,0,N21*((N10+N11)/N9)) -> 0 | O22: =IF(O9=0,0,O21*((O10+O11)/O9)) -> 0 | P22: 0 | Q22: 0
A23: 4.2. | B23: платы за сбросы | C23: x | E23: x | F23: x
A24: 4.2.1. | B24: средства, уменьшающие плату за сбросы в части нормативов сбросов | C24: x | D24: =IF(D13=0,0,D23*((D14+D15)/D13)) -> 0 | E24: x | F24: x | G24: =IF(G13=0,0,G23*((G14+G15)/G13)) -> 0 | H24: =IF(H13=0,0,H23*((H14+H15)/H13)) -> 0 | I24: =IF(I13=0,0,I23*((I14+I15)/I13)) -> 0 | J24: =IF(J13=0,0,J23*((J14+J15)/J13)) -> 0 | K24: =IF(K13=0,0,K23*((K14+K15)/K13)) -> 0 | L24: 0 | M24: =IF(M13=0,0,M23*((M14+M15)/M13)) -> 0 | N24: =IF(N13=0,0,N23*((N14+N15)/N13)) -> 0 | O24: =IF(O13=0,0,O23*((O14+O15)/O13)) -> 0 | P24: 0 | Q24: 0
A25: 4.3. | B25: платы за размещение отходов | C25: x | E25: x | F25: x
A26: 4.3.1. | B26: средства, уменьшающие плату за размещение отходов в части лимита | C26: x | D26: =IF(D17=0,0,D25*(D18/D17)) -> 0 | E26: x | F26: x | G26: =IF(G17=0,0,G25*(G18/G17)) -> 0 | H26: =IF(H17=0,0,H25*(H18/H17)) -> 0 | I26: =IF(I17=0,0,I25*(I18/I17)) -> 0 | J26: =IF(J17=0,0,J25*(J18/J17)) -> 0 | K26: =IF(K17=0,0,K25*(K18/K17)) -> 0 | L26: 0 | M26: =IF(M17=0,0,M25*(M18/M17)) -> 0 | N26: =IF(N17=0,0,N25*(N18/N17)) -> 0 | O26: =IF(O17=0,0,O25*(O18/O17)) -> 0 | P26: 0 | Q26: 0
A27: 5. | B27: Сумма платы, подлежащей внесению в бюджет, всего (п.1+п.2+п.3-п.4), в том числе | C27: x | D27: =D9+D13+D17-D20 -> 0 | E27: x | F27: x | G27: =G9+G13+G17-G20 -> 0 | H27: =H9+H13+H17-H20 -> 0 | I27: =I9+I13+I17-I20 -> 0 | J27: =J9+J13+J17-J20 -> 0 | K27: =K9+K13+K17-K20 -> 0 | L27: 0 | M27: =M9+M13+M17-M20 -> 0 | N27: =N9+N13+N17-N20 -> 0 | O27: =O9+O13+O17-O20 -> 0 | P27: 0 | Q27: 0
A28: Плата за негативное воздействие на окружающую среду в пределах лимитов | D28: =D10+D11-D22+D14+D15-D24+D18-D26 -> 0 | G28: =G10+G11-G22+G14+G15-G24+G18-G26 -> 0 | H28: 0 | I28: 0 | J28: 0 | K28: 0 | L28: 0 | M28: 0 | N28: 0 | O28: 0 | P28: 0 | Q28: =Q10+Q11-Q22+Q14+Q15-Q24+Q18-Q26 -> 0
A29: Плата за негативное воздействие на окружающую среду, относимая на услугу по передаче электрической энергии
B31: Руководитель организации | E31: ='Инф-я'!$C$21 -> Чижов Олег Александрович
B35: Плата вносится раздельно по четырем компонентам окружающей среды: плата за выбросы, плата за выбросы ПНГ, плата за сбросы в водные объекты и плата за размещение отходов. Каждая по своему КБК (коду бюджетной классификации)
B36: 1. Плата за выбросы загрязняющих веществ в атмосферный воздух стационарными объектами, исчисленная без учета корректировки, в том числе:
B37: 1.1. плата за выбросы в пределах предельно-допустимых выбросов (ПДВ)
B38: 1.2. плата за выбросы в пределах лимитов на выбросы загрязняющих веществ (временно согласованные выбросы ВСВ)
B39: 1.3. плата за выбросы, превышающие установленные разрешениями на выброс загрязняющих веществ в атмосферный воздух
B40: 2. Плата за выбросы загрязняющих веществ при сжигании и (или) рассеивании попутного нефтяного газа
B41: 2.1. плата за выбросы ПНГ в пределах ПДВ
B42: 2.2. плата за выбросы ПНГ в пределах лимитов на выбросы загрязняющих веществ (ВСВ)
B43: 2.3. плата за выбросы ПНГ сверх лимита на выбросы
B44: 3. Плата за сбросы загрязняющих веществ в водные объекты
B45: 3.1. плата за сбросы в пределах НДС
B46: 3.2. плата за сбросы в пределах лимитов на сбросы загрязняющих веществ (ВСС)
B47: 3.3. плата за сбросы, превышающие установленные разрешениями на сброс загрязняющих веществ (сверх лимита на сбросы)
B48: 4. Плата за размещение отходов производства и потребления, исчисленная без учета корректировки, в том числе:
B49: 4.1. плата за размещение отходов в пределах установленного лимита на их размещение
B50: 4.2. плата за размещение отходов сверх установленного лимита на их размещение
B51: 5. Сумма средств на выполнение мероприятий по снижению негативного воздействия на окружающую среду, всего
B52: 5.1. платы за выбросы
B53: 5.2. платы за выбросы ПНГ
B54: 5.3. платы за сбросы
B55: 5.4. платы за размещение отходов
B56: Сумма платы, подлежащей внесению в бюджет, всего (п.1+п.2+п.3+п.4-п.5)
B58: НК, Статья 270. Расходы, не учитываемые в целях налогообложения
B59: 4) в виде суммы налога, а также суммы платежей за выбросы загрязняющих веществ в атмосферный воздух, сбросы загрязняющих веществ в составе сточных вод в водные объекты,
B60: осуществляемые с превышением нормативов допустимых сбросов, за размещение отходов производства и потребления с превышением установленных лимитов на их размещение;

Sheet Услуги ФСК (hidden)
A2: Оплата услуг ПАО "ФСК ЕЭС"
A3: ='Инф-я'!C13 -> ООО "МОНОСТРОЙ"
V4: тыс. руб.
A5: Показатели | B5: 2018 год | F5: 2019 год | J5: 2020 год | P5: 2021 год | R5: 2022 год | T5: 2023 год | V5: 2024 год | X5: 2018 год
B6: Утверждено | C6: Факт | F6: Утверждено | G6: Ожидаемые | J6: По данным организации | M6: По данным экспертов | P6: По данным организации | Q6: По данным экспертов | R6: По данным организации | S6: По данным экспертов | T6: По данным организации | U6: По данным экспертов | V6: По данным организации | W6: По данным экспертов | X6: Факт по данным экспертов
B7: год | C7: 1 полугодие | D7: 2 полугодие | E7: год | F7: год | G7: 1 полугодие | H7: 2 полугодие | I7: год | J7: 1 полугодие | K7: 2 полугодие | L7: год | M7: 1 полугодие | N7: 2 полугодие | O7: год | Q7: По данным экспертов | S7: По данным экспертов | U7: По данным экспертов | W7: По данным экспертов
A8: 1 | B8: 2 | C8: 3 | D8: 4 | E8: 5 | F8: 6 | G8: 7 | H8: 8 | I8: 9 | J8: 10 | K8: 11 | L8: 12 | M8: 13 | N8: 14 | O8: 15 | P8: 16 | Q8: 17 | R8: 18 | S8: 19 | T8: 20 | U8: 21 | V8: 22 | W8: 23 | X8: 24
A9: Расходы на содержание сетей, тыс. руб. | B9: х | C9: =O26 -> 0 | D9: =P26 -> 0 | E9: =D9+C9 -> 0 | F9: х | G9: =G10*G11*6/1000 -> 0 | H9: =H10*H11*6/1000 -> 0 | I9: =H9+G9 -> 0 | J9: =J10*J11*6/1000 -> 0 | K9: =K10*K11*6/1000 -> 0 | L9: =K9+J9 -> 0 | M9: =M10*M11*6/1000 -> 0 | N9: =N10*N11*6/1000 -> 0 | O9: =M9+N9 -> 0 | P9: х | Q9: х | R9: х | S9: х | T9: х | U9: х | V9: х | W9: х | X9: х
A10: Заявленная мощность в точках присоединения к сетям ПАО "ФСК ЕЭС", МВт | B10: х | C10: =B24 -> 0 | D10: =H24 -> 0 | E10: х | F10: х | I10: х | L10: х | O10: х | P10: х | Q10: х | R10: х | S10: х | T10: х | U10: х | V10: х | W10: х | X10: х
A11: Ставка тарифа услуги по передаче электрической энергии на содержание объектов электросетевого хозяйства, входящих в ЕНЭС, руб. МВт/мес. | B11: х | C11: =B25 -> 0 | D11: =H25 -> 0 | E11: х | F11: х | I11: х | L11: х | O11: х | P11: х | Q11: х | R11: х | S11: х | T11: х | U11: х | V11: х | W11: х | X11: х
A12: Расходы на компенсацию потерь, тыс. руб. | B12: х | C12: =C13*C16 ->  | D12: =D13*D16 ->  | E12: =D12+C12 ->  | F12: х | G12: =G13*G16 -> 0 | H12: =H13*H16 -> 0 | I12: =G12+H12 -> 0 | J12: =J13*J16 -> 0 | K12: =K13*K16 -> 0 | L12: =J12+K12 -> 0 | M12: =M13*M16 -> 0 | N12: =N13*N16 -> 0 | O12: =M12+N12 -> 0 | P12: х | Q12: х | R12: х | S12: х | T12: х | U12: х | V12: х | W12: х | X12: х
A13: Объем технологических потерь электрической энергии при ее передаче по ЕНЭС, млн. кВт.ч | B13: х | C13: =C14*C15% -> 0 | D13: =D14*D15% -> 0 | E13: =E14*E15% -> 0 | F13: х | G13: =G14*G15% -> 0 | H13: 0 | I13: 0 | J13: 0 | K13: 0 | L13: 0 | M13: 0 | N13: 0 | O13: 0 | P13: х | Q13: х | R13: х | S13: х | T13: х | U13: х | V13: х | W13: х | X13: х
A14: Объем отпуска электроэнергии из сети ПАО "ФСК ЕЭС" в сеть организации, млн. кВт.ч | B14: х | C14: =O28/1000 -> 0 | D14: =P28/1000 -> 0 | E14: =D14+C14 -> 0 | F14: х | I14: =H14+G14 -> 0 | L14: =K14+J14 -> 0 | O14: =N14+M14 -> 0 | P14: х | Q14: х | R14: х | S14: х | T14: х | U14: х | V14: х | W14: х | X14: х
A15: Норматив технологических потерь электрической энергии при ее передаче по ЕНЭС, применяемый к отпуску электроэнергии из сети ПАО "ФСК ЕЭС", % | B15: х | C15: =B29 -> 4.25 | D15: =B29 -> 4.25 | E15: =B29 -> 4.25 | F15: х | G15: 3.89 | H15: 3.89 | I15: 3.89 | J15: 3.89 | K15: 3.89 | L15: 3.89 | M15: 3.89 | N15: 3.89 | O15: 3.89 | P15: х | Q15: х | R15: х | S15: х | T15: х | U15: х | V15: х | W15: х | X15: х
A16: Ставка тарифа на оплату нормативных технологических потерь электрической энергии в ЕНЭС, руб./МВт.ч | B16: х | C16: =O31 ->  | D16: =P31 ->  | E16: х | F16: х | I16: х | L16: х | O16: х | P16: х | Q16: х | R16: х | S16: х | T16: х | U16: х | V16: х | W16: х | X16: х
A17: ИТОГО оплата услуг ПАО "ФСК ЕЭС" | C17: =C9+C12 ->  | E17: =IFERROR(E9+E12,0) -> 0 | G17: =G9+G12 -> 0 | H17: 0 | I17: 0 | J17: 0 | K17: 0 | L17: 0 | M17: 0 | N17: 0 | O17: 0
A19: Руководитель организации | D19: ='Инф-я'!$C$21 -> Чижов Олег Александрович
A21: Факт по данным организации за 2018 год
B23: янв | C23: фев | D23: мар | E23: апр | F23: май | G23: июн | H23: июль | I23: авг | J23: сент | K23: окт | L23: ноя | M23: дек | N23: Итого | O23: 1 полуг | P23: 2 полуг
A24: Заявленная мощность в точках присоединения к сетям ПАО "ФСК ЕЭС", МВт | N24: х | O24: х | P24: х
A25: Ставка тарифа услуги по передаче электрической энергии на содержание объектов электросетевого хозяйства, входящих в ЕНЭС, руб. МВт/мес. | C25: =B25 -> 0 | D25: =C25 -> 0 | E25: 0 | F25: 0 | G25: 0 | I25: =H25 -> 0 | J25: =I25 -> 0 | K25: 0 | L25: 0 | M25: =L25 -> 0 | N25: х | O25: х | P25: х
A26: Стоимость услуги по передаче электрической энергии на содержание объектов элкутросетевого хозяйства, тыс. руб. | B26: =B24*B25/1000 -> 0 | C26: =C24*C25/1000 -> 0 | D26: 0 | E26: 0 | F26: 0 | G26: 0 | H26: 0 | I26: 0 | J26: 0 | K26: 0 | L26: 0 | M26: =M24*M25/1000 -> 0 | N26: =SUM(B26:M26) -> 0 | O26: =SUM(B26:G26) -> 0 | P26: =SUM(H26:M26) -> 0
B27: янв | C27: фев | D27: мар | E27: апр | F27: май | G27: июн | H27: июль | I27: авг | J27: сент | K27: окт | L27: ноя | M27: дек | N27: Итого | O27: 1 полуг | P27: 2 полуг
A28: Отпуск электрической энергии из сетей ПАО "ФСК ЕЭС" напряжением 220 кВ и ниже, МВт.ч | N28: =SUM(B28:M28) -> 0 | O28: =SUM(B28:G28) -> 0 | P28: =SUM(H28:M28) -> 0
A29: Норматив технологических потерь электрической энергии при ее передаче по ЕНЭС, применяемый к отпуску электроэнергии из сети ПАО "ФСК ЕЭС" , % | B29: 4.25 | C29: =B29 -> 4.25 | D29: =C29 -> 4.25 | E29: 4.25 | F29: 4.25 | G29: 4.25 | H29: 4.25 | I29: 4.25 | J29: 4.25 | K29: 4.25 | L29: 4.25 | M29: =L29 -> 4.25 | N29: х | O29: х | P29: х
A30: Объем технологических потерь электрической энергии при ее передаче по ЕНЭС, МВт.ч | B30: =ROUND(B28*B29/100,3) -> 0 | C30: =ROUND(C28*C29/100,3) -> 0 | D30: 0 | E30: 0 | F30: 0 | G30: 0 | H30: 0 | I30: 0 | J30: 0 | K30: 0 | L30: 0 | M30: =ROUND(M28*M29/100,3) -> 0 | N30: =SUM(B30:M30) -> 0 | O30: =SUM(B30:G30) -> 0 | P30: =SUM(H30:M30) -> 0
A31: Ставка тарифа на оплату нормативных технологических потерь электрической энергии в ЕНЭС, руб./МВт.ч | N31: =N32/N30*1000 ->  | O31: =O32/O30*1000 ->  | P31: =P32/P30*1000 -> 
A32: Расходы на компенсацию потерь, тыс. руб. | B32: =B30*B31/1000 -> 0 | C32: =C30*C31/1000 -> 0 | D32: 0 | E32: 0 | F32: 0 | G32: 0 | H32: 0 | I32: 0 | J32: 0 | K32: 0 | L32: 0 | M32: =M30*M31/1000 -> 0 | N32: =SUM(B32:M32) -> 0 | O32: =SUM(B32:G32) -> 0 | P32: =SUM(H32:M32) -> 0
A33: Итого расходы на услуги ФСК, тыс. руб. | B33: =B26+B32 -> 0 | C33: =C26+C32 -> 0 | D33: 0 | E33: 0 | F33: 0 | G33: 0 | H33: 0 | I33: 0 | J33: 0 | K33: 0 | L33: 0 | M33: =M26+M32 -> 0 | N33: =N26+N32 -> 0 | O33: =O26+O32 -> 0 | P33: =P26+P32 -> 0
A35: Приказ Минэнерго от 27.12.2018 г. №1251 "Об утверждении норматива потерь на 2019 год" 220 кВ и ниже - 3,89, 330 кВ и выше - 3,46

Sheet Прочие НР
A2: Прочие обоснованные неподконтрольные расходы
A3: ='Инф-я'!C13 -> ООО "МОНОСТРОЙ"
N4: тыс. руб.
A5: Наименование | B5: 2018 год | D5: 2019 год | F5: 2020 год | H5: 2021 год | J5: 2022 год | L5: 2023 год | N5: 2024 год | P5: 2018 год
B6: Утверждено | C6: Факт | D6: Утверждено | E6: Ожидаемые | F6: По данным организации | G6: По данным экспертов | H6: По данным организации | I6: По данным экспертов | J6: По данным организации | K6: По данным экспертов | L6: По данным организации | M6: По данным экспертов | N6: По данным организации | O6: По данным экспертов | P6: Факт по данным экспертов
A7: 1 | B7: 2 | C7: 3 | D7: 4 | E7: 5 | F7: 6 | G7: 7 | H7: 8 | I7: 9 | J7: 10 | K7: 11 | L7: 12 | M7: 13 | N7: 14 | O7: 15 | P7: 16
A8: Экспертиза экономической обоснованности затрат на услуги по передаче электрической энергии по сетям ООО "МОНОСТРОЙ" на 2019 год (Договор с ООО "Владрегионэнерго" №21/18-Э от 19.02.2018 г., акт; договор с ООО "Владрегионэнерго" №6/19-Э от 06.02.2019 г.) | B8: 99.99 | C8: 99.992 | D8: 104 | E8: 99.995 | F8: =C8*1.04*1.038 -> 107.9433638 | H8: =F8*1.04 -> 112.2610984 | J8: =H8*1.04 -> 116.7515423 | L8: =J8*1.04 -> 121.421604 | N8: =L8*1.04 -> 126.2784682
A14: Добавить
A15: ИТОГО прочие обоснованные неподконтрольные расходы | B15: =SUM(B8:B13) -> 99.99 | C15: 99.992 | D15: 104 | E15: 99.995 | F15: 107.9433638 | G15: 0 | H15: =SUM(H8:H13) -> 112.2610984 | I15: 0 | J15: =SUM(J8:J13) -> 116.7515423 | K15: 0 | L15: =SUM(L8:L13) -> 121.421604 | M15: 0 | N15: =SUM(N8:N13) -> 126.2784682 | O15: 0 | P15: 0
A17: Руководитель организации | D17: ='Инф-я'!$C$21 -> Чижов Олег Александрович

Sheet КВЛ (hidden)
A2: Расходы на капитальные вложения
A4: ='Инф-я'!C13 -> ООО "МОНОСТРОЙ"
N5: тыс. руб.
A6: Наименование капитальных вложений | B6: 2018 год | D6: 2019 год | F6: 2020 год | H6: 2021 год | J6: 2022 год | L6: 2023 год | N6: 2024 год
B7: Утверждено | C7: Факт | D7: Утверждено | E7: Ожидаемые | F7: По данным организации | G7: По данным экспертов | H7: По данным организации | I7: По данным экспертов | J7: По данным организации | K7: По данным экспертов | L7: По данным организации | M7: По данным экспертов | N7: По данным организации | O7: По данным экспертов
A8: 1 | B8: 2 | C8: 3 | D8: 4 | E8: 5 | F8: 6 | G8: 7 | H8: 8 | I8: 9 | J8: 10 | K8: 11 | L8: 12 | M8: 13 | N8: 14 | O8: 15
A9: Введите название
A10: Введите название
A11: Введите название
A12: Введите название
A13: Введите название
A14: Введите название
A15: Введите название
A16: Добавить
A17: ИТОГО капитальных вложений | B17: =SUM(B9:B15) -> 0 | C17: =SUM(C9:C15) -> 0 | D17: 0 | E17: 0 | F17: 0 | G17: 0 | H17: =SUM(H9:H15) -> 0 | I17: 0 | J17: 0 | K17: 0 | L17: 0 | M17: 0 | N17: 0 | O17: 0
A18: - амортизация | C18: ='Свод по амортизации'!C13 -> 148.97652 | E18: ='Свод по амортизации'!E13 -> 148.97652 | F18: ='Свод по амортизации'!F13 -> 297.95309 | G18: ='Свод по амортизации'!G13 -> 0 | H18: ='Свод по амортизации'!H13 -> 297.95309 | I18: ='Свод по амортизации'!I13 -> 0 | J18: ='Свод по амортизации'!J13 -> 297.95309 | K18: ='Свод по амортизации'!K13 -> 0 | L18: ='Свод по амортизации'!L13 -> 297.95309 | M18: ='Свод по амортизации'!M13 -> 0 | N18: ='Свод по амортизации'!N13 -> 297.95309 | O18: ='Свод по амортизации'!O13 -> 0
A19: - прочие средства
A20: - прибыль | B20: =IF((B17-B18-B19)<=0,0,(B17-B18-B19)) -> 0 | C20: 0 | D20: 0 | E20: 0 | F20: =IF((F17-F18-F19)<=0,0,(F17-F18-F19)) -> 0 | G20: 0 | H20: =IF((H17-H18-H19)<=0,0,(H17-H18-H19)) -> 0 | I20: =IF((I17-I18-I19)<=0,0,(I17-I18-I19)) -> 0 | J20: =IF((J17-J18-J19)<=0,0,(J17-J18-J19)) -> 0 | K20: =IF((K17-K18-K19)<=0,0,(K17-K18-K19)) -> 0 | L20: =IF((L17-L18-L19)<=0,0,(L17-L18-L19)) -> 0 | M20: =IF((M17-M18-M19)<=0,0,(M17-M18-M19)) -> 0 | N20: =IF((N17-N18-N19)<=0,0,(N17-N18-N19)) -> 0 | O20: =IF((O17-O18-O19)<=0,0,(O17-O18-O19)) -> 0
A22: Руководитель организации | D22: ='Инф-я'!$C$21 -> Чижов Олег Александрович

Sheet Выпадающий доход (hidden)
A2: Расходы, связанные с компенсацией выпадающих доходов по льготному технологическому присоединению
A4: ='Инф-я'!C13 -> ООО "МОНОСТРОЙ"
D5: тыс. руб.
A6: Наименование | B6: 2018 год | C6: 2019 год | D6: 2020 год
B7: Утверждено | C7: Утверждено | D7: По данным организации | E7: По данным экспертов
A8: 1 | B8: 2 | C8: 3 | D8: 4 | E8: 5
A9: выпадающие доходы сетевой организации от присоединения энергопринимающих устройств максимальной мощностью, не превышающей 15 кВт включительно, исходя из стоимости мероприятий по технологическому присоединению в размере не более 550 рублей; | B9: =SUM(B10:B14) -> 0 | C9: 0 | D9: 0 | E9: 0
A10: за 2016 год | B10: ='Расчет выпадающих до 15 кВт'!C50 -> 0 | C10: х | D10: х | E10: х
A11: за 2017 год | B11: х | D11: х | E11: х
A12: за 2018 год | B12: ='Расчет выпадающих до 15 кВт'!C51 -> 0 | C12: х | D12: ='Расчет выпадающих до 15 кВт'!C53 -> 0
A13: за 2019 год | B13: х | D13: х | E13: х
A14: за 2020 год | B14: х | C14: х | D14: ='Расчет выпадающих до 15 кВт'!C54 -> 0
A15: выпадающие доходы сетевой организации от присоединения энергопринимающих устройств максимальной мощностью не более, чем 150 кВт на покрытие расходов на строительство объектов электросетевого хозяйства | B15: =SUM(B16:B20) -> 0 | C15: =SUM(C16:C20) -> 0 | D15: 0 | E15: 0
A16: за 2016 год | B16: ='Расчет выпадающих до 150 кВт'!C57 -> 0 | C16: х | D16: х | E16: х
A17: за 2017 год | B17: х | D17: х | E17: х
A18: за 2018 год | B18: ='Расчет выпадающих до 150 кВт'!C58 -> 0 | C18: х | D18: ='Расчет выпадающих до 150 кВт'!C60 -> 0
A19: за 2019 год | B19: х | D19: х | E19: х
A20: за 2020 год | B20: х | C20: х | D20: ='Расчет выпадающих до 150 кВт'!C61 -> 0
A21: выпадающие доходы сетевой организации от выплаты процентов по кредитным договорам, связанным с рассрочкой по оплате субъектами малого и среднего предпринимательства технологического присоединения энергопринимающих устройств максимальной мощностью свыше 15 кВт и до 150 кВт включительно | D21: ='СВОД по % по рассрочке'!J18 -> 0
A22: Итого расходы, связанные с компенсацией выпадающих доходов по льготному технологическому присоединению | B22: =B9+B21+B15 -> 0 | C22: =C9+C21+C15 -> 0 | D22: 0 | E22: 0
A26: Руководитель организации | C26: ='Инф-я'!$C$21 -> Чижов Олег Александрович

Sheet Расчет выпадающих до 15 кВт (hidden)
G1: Приложение 1
G2: к Методическим указаниям,
G3: утвержденным приказом ФСТ от 11.09.2014 г. №215-э/1
A5: Расчет размера расходов, связанных с осуществлением технологического присоединения энергопринимающих устройств максимальной мощностью, не превышающей 15 кВт включительно, не включаемых в состав платы за технологическое присоединение за 2018 год и плановый период 2020 года
A7: ='Инф-я'!$C$13 -> ООО "МОНОСТРОЙ"
A9: № п./п. | B9: Показатели | C9: Фактические данные за 2018 год | F9: Расчетные (фактические) данные за 2018 год | I9: Плановые показатели на 2020 год
C11: ставка платы (руб./кВт, руб./км, руб./шт.) | D11: мощность, длина линий, количество (кВт, км, шт.) | E11: Сумма (в соответствии с актами приемки выполненных работ) тыс. руб. | F11: стандартизированная ставка платы (руб./кВт, руб./км, руб./шт.) | G11: мощность, длина линий, количество (кВт, км, шт.) | H11: Сумма, тыс. руб. | I11: стандартизированная ставка платы (руб./кВт, руб./км, руб./шт.) | J11: мощность, длина линий, количество (кВт, км, шт.) | K11: Сумма, тыс. руб.
A12: 1 | B12: 2 | C12: 3 | D12: 4 | E12: 5 | F12: 6 | G12: 7 | H12: 8 | I12: 9 | J12: 10 | K12: 11
A13: 1. | B13: Расходы на выполнение организационно-технических мероприятий, связанные с осуществлением технологического присоединения [п. 1.1 + п. 1.2]: | C13: =SUM(C14:C15) -> 0 | D13: =F44 -> 0 | E13: =SUM(E14:E15) -> 0 | F13: =SUM(F14:F15) -> 21128.05 | G13: =D13 -> 0 | H13: =SUM(H14:H15) -> 0 | I13: 21221 | J13: =F45 -> 0 | K13: =I13*J13/1000 -> 0
A14: 1.1. | B14: подготовка и выдача сетевой организацией технических условий (ТУ) Заявителю | C14: =IF(D14=0,0,E14/D14*1000) -> 0 | D14: =D13 -> 0 | F14: 4479.37 | G14: =G13 -> 0 | H14: =F14*G14/1000 -> 0 | I14: х | J14: х | K14: х
A15: 1.2. | B15: проверка сетевой организацией выполнения Заявителем ТУ | C15: =IF(D15=0,0,E15/D15*1000) -> 0 | D15: =D13 -> 0 | F15: 16648.68 | G15: =G13 -> 0 | H15: =F15*G15/1000 -> 0 | I15: х | J15: х | K15: х
A16: 2. | B16: Расходы по мероприятиям "последней мили", связанные с осуществлением технологического присоединения | C16: х | D16: х | E16: =SUM(E17:E32) -> 0 | F16: =C16 -> х | G16: х | H16: =SUM(H17:H32) -> 0 | I16: =F16 -> х | J16: х | K16: =SUM(K17:K32) -> 0
A17: 2.1. | B17: строительство воздушных линий, на уровне напряжения i и (или) диапазоне мощности j | C17: =IF(D17=0,0,E17/D17*1000) -> 0 | G17: =D17 -> 0 | H17: =F17*G17/1000 -> 0 | K17: =I17*J17/1000 -> 0
B18: строительство воздушных линий, на уровне напряжения i и (или) диапазоне мощности j | C18: 0 | G18: =D18 -> 0 | H18: 0 | K18: 0
B19: строительство воздушных линий, на уровне напряжения i и (или) диапазоне мощности j | C19: =IF(D19=0,0,E19/D19*1000) -> 0 | G19: =D19 -> 0 | H19: =F19*G19/1000 -> 0 | K19: =I19*J19/1000 -> 0
A20: Добавить
A21: 2.2. | B21: строительство кабельных линий, на уровне напряжения i и (или) диапазоне мощности j | C21: =IF(D21=0,0,E21/D21*1000) -> 0 | G21: =D21 -> 0 | H21: =F21*G21/1000 -> 0 | K21: =I21*J21/1000 -> 0
B22: строительство кабельных линий, на уровне напряжения i и (или) диапазоне мощности j | C22: =IF(D22=0,0,E22/D22*1000) -> 0 | G22: =D22 -> 0 | H22: =F22*G22/1000 -> 0 | K22: =I22*J22/1000 -> 0
A23: Добавить
A24: 2.3. | B24: строительством пунктов секционирования, на уровне напряжения i и (или) диапазоне мощности j | C24: =IF(D24=0,0,E24/D24*1000) -> 0 | G24: =D24 -> 0 | H24: =F24*G24/1000 -> 0 | K24: =I24*J24/1000 -> 0
A25: Добавить
A26: 2.4. | B26: строительство комплектных трансформаторных подстанций (КТП) с уровнем напряжения до 35 кВ, на уровне напряжения i и (или) диапазоне мощности j | C26: =IF(D26=0,0,E26/D26*1000) -> 0 | G26: =D26 -> 0 | H26: =F26*G26/1000 -> 0 | K26: =I26*J26/1000 -> 0
A27: Добавить
A28: 2.5. | B28: строительство распределительных трансформаторных подстанций (РТП) с уровнем напряжения до 35 кВ, на уровне напряжения i и (или) диапазоне мощности j | C28: =IF(D28=0,0,E28/D28*1000) -> 0 | G28: =D28 -> 0 | H28: =F28*G28/1000 -> 0 | K28: =I28*J28/1000 -> 0
A29: Добавить
A30: 2.6. | B30: строительство центров питания, подстанций уровнем напряжения 35 кВ и выше (ПС), на уровне напряжения i и (или) диапазоне мощности j | C30: =IF(D30=0,0,E30/D30*1000) -> 0 | G30: =D30 -> 0 | H30: =F30*G30/1000 -> 0 | K30: =I30*J30/1000 -> 0
A31: 2.6. | B31: строительство центров питания, подстанций уровнем напряжения 35 кВ и выше (ПС), на уровне напряжения i и (или) диапазоне мощности j | C31: =IF(D31=0,0,E31/D31*1000) -> 0 | G31: =D31 -> 0 | H31: =F31*G31/1000 -> 0 | K31: =I31*J31/1000 -> 0
A32: Добавить
A33: 3. | B33: Суммарный размер платы за технологическое присоединение [п. 3.1 * п. 3.2 / 1000]: | C33: х | D33: х | E33: =E34*E35/1000 -> 0 | F33: х | G33: х | H33: =H34*H35/1000 -> 0 | I33: х | J33: х | K33: =K34*K35/1000 -> 0
A34: 3.1. | B34: Размер платы за технологическое присоединение (руб. без НДС) | C34: х | D34: х | E34: 466.1 | F34: х | G34: х | H34: 466.1 | I34: х | J34: х | K34: 458.33
A35: 3.2. | B35: Плановое количество договоров на осуществление технологическое присоединение к электрическим сетям (плановое количество членов объединений (организаций), указанных в п. 16 Методических указаний по определению размера платы за технологическое присоединение к электрическим сетям, утвержденных приказом ФАС России от 29 августа 2017 года, N 1135/17) (шт.) | C35: х | D35: х | E35: =C44 -> 0 | F35: х | G35: х | H35: =C44 -> 0 | I35: х | J35: х | K35: =C45 -> 0
A36: 4. | B36: Размер расходов, связанных с осуществлением технологического присоединения к электрическим сетям, не включаемых в состав платы за технологическое присоединение (п. 1 + п. 2 - п. 3) | C36: х | D36: х | E36: =E13+E16-E33 -> 0 | F36: х | G36: х | H36: =H13+H16-H33 -> 0 | I36: х | J36: х | K36: =K13+K16-K33 -> 0
B39: Фактические средние данные по выполненым договорам технологического присоединения за 3 предыдущих года
B41: Год | C41: Количество заявителей технологического присоединения, ед. (для расчета Доходов) | F41: Количество технологических присоединений, ед. (для расчета Расходов)
B42: Факт 2016 г.
B43: Факт 2017 г.
B44: Факт 2018 г.
B45: План 2020 г. (расчет плановых значений исходя из данных за 3 предыдущих периода) | C45: =ROUND((C42+C43+C44)/3,0) -> 0 | F45: =ROUND((F42+F43+F44)/3,0) -> 0
B47: Сводный расчет выпадающих доходов от льготного ТП, подлежащих учету в 2020 году, тыс. руб.
B49: Выпадающие доходы, учтенные при тарифном регулировании на 2018 год всего в т.ч. | C49: =C50+C51 -> 0
B50: фактические по итогам 2016 года
B51: планового периода 2018 года
B52: Выпадающие доходы по итогам 2018 года за минусом плановых показателей 2018 года, подлежащие учету в 2020 году, тыс. руб. | C52: =E36-C51 -> 0 | G52: ИПЦ, %
B53: Выпадающие доходы по итогам 2018 года c учетом ИПЦ, подлежащие учету в 2020 году, тыс. руб. | C53: =C52*(1+H53)*(1+H54) -> 0 | G53: 2020 г. к 2019 г.
B54: Плановые выпадающие доходы на 2020 год | C54: =K36 -> 0 | G54: 2019 г. к 2018 г.
B55: Итого выпадающие доходы от льготного ТП подлежащие учету в 2020 году, тыс. руб. | C55: =C54+C53 -> 0
B57: Руководитель организации | D57: ='Инф-я'!$C$21 -> Чижов Олег Александрович
A66: Виды строительства по МУ
A68: 3 | B68: Строительство воздушных линий
A69: 3. j | B69: Материал опоры (деревянные (j = 1), металлические (j = 2), железобетонные (j = 3)
A70: 3. j.k | B70: Тип провода (изолированный провод (k = 1), неизолированный провод (k = 2)
A71: 3. j.k.l | B71: Материал провода (медный (l=1), стальной (l = 2), сталеалюминиевый (l = 3), алюминиевый (l = 4)
A72: 3. j.k.l.m | B72: Сечение провода (диапазон до 50 квадратных мм включительно (m = 1), от 50 до 100 квадратных мм включительно (m = 2), от 100 до 200 квадратных мм включительно (m = 3), от 200 до 500 квадратных мм включительно (m = 4), от 500 до 800 квадратных мм включительно (m = 5), свыше 800 квадратных мм (m = 6)
A73: 4 | B73: Строительство кабельных линий
A74: 4. j | B74: Способ прокладки кабельных линий (в траншеях (j = 1), в блоках (j = 2), в каналах (j = 3), в туннелях и коллекторах (j = 4), в галереях и эстакадах (j = 5), горизонтальное наклонное бурение (j = 6)
A75: 4. j.k | B75: Одножильные (k = 1) и многожильные (k = 2)
A76: 4. j.k.l | B76: Кабели с резиновой и пластмассовой изоляцией (l=1), бумажной изоляцией (l = 2)
A77: 4. j.k.l.m | B77: Сечение провода (диапазон до 50 квадратных мм включительно (m = 1), от 50 до 100 квадратных мм включительно (m = 2), от 100 до 200 квадратных мм включительно (m = 3), от 200 до 500 квадратных мм включительно (m = 4), от 500 до 800 квадратных мм включительно (m = 5), свыше 800 квадратных мм (m = 6)
A78: 5 | B78: Строительство пунктов секционирования
A79: 5. j | B79: Реклоузеры (j = 1 распределительные пункты (РП) (j = 2), переключательные пункты (ПП) (j = 3)
A80: 5. j.k | B80: Номинальный ток до 100 А включительно (k = 1), от 100 до 250 А включительно (k = 2), от 250 до 500 А включительно (k = 3), от 500 А до 1 000 А включительно (k = 4), свыше 1 000 А (k = 5)
A81: 6 | B81: Строительство трансформаторных подстанций (ТП), за исключением распределительных трансформаторных подстанций (РТП), с уровнем напряжения до 35 кВ
A82: 6. j | B82: Трансформаторные подстанции (ТП), за исключением распределительных трансформаторных подстанций (РТП)
A83: 6. j.k | B83: Однотрансформаторные (k=1), двухтрансформаторные и более (k = 2)
A84: 6. j.k.l | B84: Трансформаторная мощность до 25 кВА включительно (l = 1), от 25 до 100 кВА включительно (l = 2), от 100 до 250 кВА включительно (l = 3), от 250 до 500 кВА (l = 4), от 500 до 900 кВА включительно (l = 5), свыше 1000 кВА (l = 6)
A85: 7 | B85: Строительство распределительных трансформаторных подстанций (РТП) с уровнем напряжения до 35 кВ
A86: 7. j | B86: Распределительные трансформаторные подстанции (РТП)
A87: 7. j.k | B87: Однотрансформаторные (k=1), двухтрансформаторные и более (k = 2)
A88: 7. j.k.l | B88: Трансформаторная мощность до 25 кВА включительно (l=1), от 25 до 100 кВ А включительно (l = 2), от 100 до 250 кВА включительно (l = 3), от 250 до 500 кВА (l = 4), от 500 до 900 кВА включительно (l = 5), свыше 1000 кВА (l = 6)
A89: 8 | B89: Строительство центров питания, подстанций уровнем напряжения 35 кВ и выше (ПС)
A90: 8. j | B90: ПС 35 кВ (j = 1), ПС 110 кВ и выше (j = 2)
A91: Стандартизированные ставки, применяемые для расчета платы за технологическое присоединение устройств к электрическим сетям (С2, СЗ, С4, С5), без НДС (в ценах 2018 г.)
A93: N | B93: Стандартизированные тарифные ставки | C93: Уровень напряжения в точке присоединения 0,4 кВ | D93: Уровень напряжения в точке присоединения 6-10 кВ | E93: Уровень напряжения в точке присоединения 35-110 кВ
A94: п/п
A95: 1 | B95: 2 | C95: 3 | D95: 4 | E95: 5
A96: 2 | B96: С2 - стандартизированная тарифная ставка на покрытие расходов сетевой организации на строительство воздушных линий электропередачи
A97: 2.1. | B97: Прокладка воздушных линий с установкой опор, руб./км
A98: 2001-01-02 | B98: сечение жилы до 16 мм2 | C98: 717297 | D98: - | E98: -
A99: 2002-01-02 | B99: сечение жилы до 25 мм2 | C99: 541675 | D99: - | E99: -
A100: 2003-01-02 | B100: сечение жилы до 35 мм2 | C100: 865225 | D100: 1364873 | E100: -
A101: 2004-01-02 | B101: сечение жилы до 50 мм2 | C101: 870017 | D101: 1475522 | E101: -
A102: 2005-01-02 | B102: сечение жилы до 70 мм2 | C102: 943132 | D102: 1405579 | E102: -
A103: 2006-01-02 | B103: сечение жилы до 95 мм2 | C103: 984942 | D103: 1498292 | E103: -
A104: 2007-01-02 | B104: сечение жилы до 120 мм2 | C104: 1158608 | D104: - | E104: -
A105: 2.2. | B105: Прокладка воздушных линий по существующим опорам, руб./км
A106: 2001-02-02 | B106: сечение жилы до 16 мм2 | C106: 322438 | D106: - | E106: -
A107: 2002-02-02 | B107: сечение жилы до 25 мм2 | C107: 397721 | D107: - | E107: -
A108: 2003-02-02 | B108: сечение жилы до 35 мм2 | C108: 545933 | D108: - | E108: -
A109: 2004-02-02 | B109: сечение жилы до 50 мм2 | C109: 525019 | D109: - | E109: -
A110: 3 | B110: С3 - стандартизированная тарифная ставка на покрытие расходов сетевой организации на строительство кабельных линий электропередачи
A111: 3.1. | B111: Прокладка одной КЛ в траншее (с благоустройством), руб./км
A112: 2001-01-03 | B112: сечение жилы до 35 мм2 | C112: 647881 | D112: - | E112: -
A113: 2002-01-03 | B113: сечение жилы до 50 мм2 | C113: 687655 | D113: 1317933 | E113: -
A114: 2003-01-03 | B114: сечение жилы до 70 мм2 | C114: 1111822 | D114: 1496543 | E114: -
A115: 2004-01-03 | B115: сечение жилы до 95 мм2 | C115: 931796 | D115: 1682039 | E115: -
A116: 2005-01-03 | B116: сечение жилы до 120 мм2 | C116: 2244755 | D116: 1775170 | E116: -
A117: 2006-01-03 | B117: сечение жилы до 150 мм2 | C117: 957616 | D117: 2014663 | E117: -
A118: 2007-01-03 | B118: сечение жилы до 185 мм2 | C118: 1232108 | D118: 2256703 | E118: -
A119: 2008-01-03 | B119: сечение жилы до 240 мм2 | C119: 1431202 | D119: 2562382 | E119: -
A120: 3.2. | B120: Прокладка двух КЛ в траншее (с благоустройством), руб./км
A121: 2001-02-03 | B121: сечение жилы до 16 мм2 | C121: 299583 | D121: - | E121: -
A122: 2002-02-03 | B122: сечение жилы до 35 мм2 | C122: 574329 | D122: - | E122: -
A123: 2003-02-03 | B123: сечение жилы до 120 мм2 | C123: - | D123: 2260898 | E123: -
A124: 2004-02-03 | B124: сечение жилы до 150 мм2 | C124: 679027 | D124: - | E124: -
A125: 2005-02-03 | B125: сечение жилы до 185 мм2 | C125: 2737754 | D125: - | E125: -
A126: 2006-02-03 | B126: сечение жилы до 240 мм2 | C126: 3866504 | D126: 3478293 | E126: -
A127: 3.3. | B127: Прокладка одной КЛ в полиэтиленовой трубе (с благоустройством), руб./км
A128: 2001-03-03 | B128: сечение жилы до 35 мм2 | C128: 779020 | D128: - | E128: -
A129: 2002-03-03 | B129: сечение жилы до 50 мм2 | C129: 738707 | D129: - | E129: -
A130: 2003-03-03 | B130: сечение жилы до 70 мм2 | C130: 1234707 | D130: 1609675 | E130: -
A131: 2004-03-03 | B131: сечение жилы до 95 мм2 | C131: 980094 | D131: 1796650 | E131: -
A132: 2005-03-03 | B132: сечение жилы до 120 мм2 | C132: 951115 | D132: 1813010 | E132: -
A133: 2006-03-03 | B133: сечение жилы до 150 мм2 | C133: 1255903 | D133: 2112225 | E133: -
A134: 2007-03-03 | B134: сечение жилы до 185 мм2 | C134: 1341496 | D134: 2365159 | E134: -
A135: 2008-03-03 | B135: сечение жилы до 240 мм2 | C135: 1519985 | D135: 2673372 | E135: -
A136: 3.4. | B136: Прокладка двух КЛ в полиэтиленовых трубах (с благоустройством), руб./км
A137: 3.4.1. | B137: сечение жилы до 120 мм2 | C137: - | D137: 4040285 | E137: -
A138: 3.5. | B138: Прокладка одной КЛ методом ГНБ, руб./км
A139: 2001-05-03 | B139: сечение жилы до 50 мм2 | C139: 5482415 | D139: 7092474 | E139: -
A140: 2002-05-03 | B140: сечение жилы до 70 мм2 | C140: 5548401 | D140: 6282313 | E140: -
A141: 2003-05-03 | B141: сечение жилы до 95 мм2 | C141: 5677167 | D141: 5733470 | E141: -
A142: 2004-05-03 | B142: сечение жилы до 120 мм2 | C142: 5314366 | D142: 6615307 | E142: -
A143: 2005-05-03 | B143: сечение жилы до 150 мм2 | C143: 5798713 | D143: 6656822 | E143: -
A144: 2006-05-03 | B144: сечение жилы до 185 мм2 | C144: 5943888 | D144: 7030091 | E144: -
A145: 2007-05-03 | B145: сечение жилы до 240 мм2 | C145: 6150642 | D145: 7335150 | E145: -
A146: 4 | B146: С4 - стандартизированная тарифная ставка на покрытие расходов сетевой организации на строительство
A147: 4.1. | B147: Реклоузеры, руб./шт.
A148: 2001-01-04 | B148: мощностью до 630 кВА | C148: 1507393 | E148: -
A149: 4.2. | B149: Переключательные пункты, руб./шт.
A150: 2001-02-04 | B150: мощностью до 250 кВА | C150: 1759310 | E150: -
A151: 2002-02-04 | B151: мощностью до 1000 кВА | C151: 1674164 | E151: -
A152: 2003-02-04 | B152: мощностью до 1250 кВА | C152: 2824472 | E152: -
A153: 2004-02-04 | B153: мощностью до 1600 кВА | C153: 1748482 | E153: -
A154: 2005-02-04 | B154: мощностью до 2500 кВА | C154: 1881231 | E154: -
A155: 2006-02-04 | B155: мощностью до 4000 кВА | C155: 3563450 | E155: -
A156: 4.3. | B156: Распределительные пункты, руб./шт.
A157: 2001-03-04 | B157: мощностью до 4000 кВА | C157: - | D157: - | E157: 50072988
A158: 5 | B158: С5 - стандартизированная тарифная ставка на покрытие расходов сетевой организации на строительство трансформаторных подстанций
A159: 5.1. | B159: Строительство блочных трансформаторных подстанций с двумя трансформаторами (все типы), руб./кВт
A160: 2001-01-05 | B160: мощностью до 2 x 160 кВА | C160: 19698 | E160: -
A161: 2002-01-05 | B161: мощностью до 2 x 400 кВА | C161: 12446 | E161: -
A162: 2003-01-05 | B162: мощностью до 2 x 630 кВА | C162: 8538 | E162: -
A163: 5.2. | B163: Строительство киосковых трансформаторных подстанций с одним трансформатором (все типы), руб./кВт
A164: 2001-02-05 | B164: мощностью до 1 x 16 кВА | C164: 63383 | E164: -
A165: 2002-02-05 | B165: мощностью до 1 x 25 кВА | C165: 28636 | E165: -
A166: 2003-02-05 | B166: мощностью до 1 x 40 кВА | C166: 13463 | E166: -
A167: 2004-02-05 | B167: мощностью до 1 x 63 кВА | C167: 9193 | E167: -
A168: 2005-02-05 | B168: мощностью до 1 x 100 кВА | C168: 5836 | E168: -
A169: 2006-02-05 | B169: мощностью до 1 x 160 кВА | C169: 7734 | E169: -
A170: 2007-02-05 | B170: мощностью до 1 x 250 кВА | C170: 5231 | E170: -
A171: 2008-02-05 | B171: мощностью до 1 x 400 кВА | C171: 2300 | E171: -
A172: 2009-02-05 | B172: мощностью до 1 x 630 кВА | C172: 3339 | E172: -
A173: 2010-02-05 | B173: мощностью до 1 x 1000 кВА | C173: 2406 | E173: -
A174: 5.3. | B174: Строительство киосковых трансформаторных подстанций с двумя трансформаторами (все типы), руб./кВт
A175: 2001-03-05 | B175: мощностью до 2 x 400 кВА | C175: 4068 | E175: -
A176: 5.4. | B176: Строительство столбовой трансформаторной подстанции с одним трансформатором, руб./кВт
A177: 2001-04-05 | B177: мощностью до 1 x 16 кВА | C177: 24891.79 | E177: -
A178: 5.5 | B178: Строительство комплектной трансформаторной подстанции с четырьмя трансформаторами, руб./кВт
A179: 2001-05-05 | B179: мощностью 4 х 1000 кВА | C179: 4867.73 | E179: -
A181: Стандартизированные ставки, применяемые для расчета платы за технологическое присоединение устройств к электрическим сетям (С2, СЗ, С4, С5), без НДС (в ценах 2019 г.)
A183: N | B183: Стандартизированные тарифные ставки | C183: Уровень напряжения 0,4 кВ | D183: Уровень напряжения 6 - 10 кВ | E183: Уровень напряжения 35 - 110 кВ
A184: п/п
A185: 1 | B185: 2 | C185: 3 | D185: 4 | E185: 5
A186: 2 | B186: С2 - стандартизированная тарифная ставка на покрытие расходов сетевой организации на строительство воздушных линий электропередачи
A187: 2.1. | B187: Прокладка воздушных линий с установкой опор, руб./км
A188: 2001-01-02 | B188: сечение жилы до 16 мм2 | C188: 561458 | D188: - | E188: -
A189: 2002-01-02 | B189: сечение жилы до 25 мм2 | C189: 680690 | D189: - | E189: -
A190: 2003-01-02 | B190: сечение жилы до 35 мм2 | C190: 930714 | D190: 1422158 | E190: -
A191: 2004-01-02 | B191: сечение жилы до 50 мм2 | C191: 1184804 | D191: 1583985 | E191: -
A192: 2005-01-02 | B192: сечение жилы до 70 мм2 | C192: 1025791 | D192: 1510508 | E192: 4983144
A193: 2006-01-02 | B193: сечение жилы до 95 мм2 | C193: 1230668 | D193: - | E193: -
A194: 2007-01-02 | B194: сечение жилы до 120 мм2 | C194: 1263691 | D194: - | E194: -
A195: 2.2. | B195: Прокладка воздушных линий по существующим опорам, руб./км
A196: 2001-02-02 | B196: сечение жилы до 16 мм2 | C196: 583509 | D196: - | E196: -
A197: 2002-02-02 | B197: сечение жилы до 25 мм2 | C197: 400278 | D197: - | E197: -
A198: 2003-02-02 | B198: сечение жилы до 35 мм2 | C198: 381701 | D198: - | E198: -
A199: 2004-02-02 | B199: сечение жилы до 50 мм2 | C199: 606480 | D199: - | E199: -
A200: 3 | B200: С3 - стандартизированная тарифная ставка на покрытие расходов сетевой организации на строительство кабельных линий электропередачи
A201: 3.1. | B201: Прокладка одной КЛ в траншее, руб./км
A202: 2001-01-03 | B202: Прокладка одной КЛ в траншее (с благоустройством), руб./км
A203: 3.1.1.1 | B203: сечение жилы до 16 мм2 | C203: 640869 | D203: - | E203: -
A204: 3.1.1.2 | B204: сечение жилы до 35 мм2 | C204: 639603 | D204: - | E204: -
A205: 3.1.1.3 | B205: сечение жилы до 50 мм2 | C205: 789642 | D205: - | E205: -
A206: 3.1.1.4 | B206: сечение жилы до 70 мм2 | C206: 945564 | D206: 1630485 | E206: -
A207: 3.1.1.5 | B207: сечение жилы до 95 мм2 | C207: 972676 | D207: 1748962 | E207: -
A208: 3.1.1.6 | B208: сечение жилы до 120 мм2 | C208: 1076218 | D208: 1939213 | E208: -
A209: 3.1.1.7 | B209: сечение жилы до 150 мм2 | C209: 1441925 | D209: 2133986 | E209: -
A210: 3.1.1.8 | B210: сечение жилы до 185 мм2 | C210: 1316334 | D210: 2355608 | E210: -
A211: 3.1.1.9 | B211: сечение жилы до 240 мм2 | C211: 1550787 | D211: 2918329 | E211: -
A212: 2002-01-03 | B212: Прокладка одной КЛ в траншее (без благоустройства), руб./км
A213: 3.1.2.1 | B213: сечение жилы до 35 мм2 | C213: 382355 | D213: - | E213: -
A214: 3.1.2.2 | B214: сечение жилы до 50 мм2 | C214: - | D214: 1585759 | E214: -
A215: 3.1.2.3 | B215: сечение жилы до 70 мм2 | C215: 735363 | D215: - | E215: -
A216: 3.1.2.4 | B216: сечение жилы до 95 мм2 | C216: 597701 | D216: - | E216: ,
A217: 3.1.2.5 | B217: сечение жилы до 120 мм2 | C217: 1237450 | D217: 1846495 | E217: -
A218: 3.1.2.6 | B218: сечение жилы до 150 мм2 | C218: 1527436 | D218: - | E218: -
A219: 3.1.2.7 | B219: сечение жилы до 185 мм2 | C219: 784944 | D219: - | E219: -
A220: 3.1.2.8 | B220: сечение жилы до 240 мм2 | C220: 2004705 | D220: - | E220: -
A221: 3.2. | B221: Прокладка двух КЛ в траншее (с благоустройством), руб./км
A222: 2001-02-03 | B222: сечение жилы до 120 мм2 | C222: 1967587 | D222: - | E222: -
... 67 more rows

Sheet Расчет выпадающих до 150 кВт (hidden)
G1: Приложение 1
G2: к Методическим указаниям,
G3: утвержденным приказом ФСТ от 11.09.2014 г. №215-э/1
A5: Расчет размера расходов, связанных с осуществлением технологического присоединения к электрическим сетям энергопринимающих устройств максимальной мощностью до 150 кВт включительно, не включаемых в состав платы за технологическое присоединение за 2018 год и плановый период 2020 года
A7: ='Инф-я'!$C$13 -> ООО "МОНОСТРОЙ"
A9: № п./п. | B9: Показатели | C9: Фактические данные за 2018 год | F9: Расчетные (фактические) данные за 2018 год | I9: Плановые показатели на 2020 год
C11: ставка платы (руб./кВт, руб./км, руб./шт.) | D11: мощность, длина линий, количество (кВт, км, шт.) | E11: Сумма (в соответствии с актами приемки выполненных работ) тыс. руб. | F11: стандартизированная ставка платы (руб./кВт, руб./км, руб./шт.) | G11: мощность, длина линий, количество (кВт, км, шт.) | H11: Сумма, тыс. руб. | I11: стандартизированная ставка платы (руб./кВт, руб./км, руб./шт.) | J11: мощность, длина линий, количество (кВт, км, шт.) | K11: Сумма, тыс. руб.
A12: 1 | B12: 2 | C12: 3 | D12: 4 | E12: 5 | F12: 6 | G12: 7 | H12: 8 | I12: 9 | J12: 10 | K12: 11
A13: 1. | B13: Расходы по мероприятиям "последней мили", связанные с осуществлением технологического присоединения к электрическим сетям [п.1.1 + п.1.2 + п.1.3 + п.1.4+ п.1.5+ п.1.6]: | C13: х | D13: х | E13: =SUM(E14:E27) -> 0 | F13: =C13 -> х | G13: х | H13: =SUM(H14:H27) -> 0 | I13: =F13 -> х | J13: х | K13: =SUM(K14:K27) -> 0
A14: 1.1. | B14: строительство воздушных линий, на уровне напряжения i и (или) диапазоне мощности j | C14: =IF(D14=0,0,E14/D14*1000) -> 0 | G14: =D14 -> 0 | H14: =F14*G14/1000 -> 0 | K14: =I14*J14/1000 -> 0
B15: строительство воздушных линий, на уровне напряжения i и (или) диапазоне мощности j | C15: 0 | G15: =D15 -> 0 | H15: 0 | K15: 0
B16: строительство воздушных линий, на уровне напряжения i и (или) диапазоне мощности j | C16: =IF(D16=0,0,E16/D16*1000) -> 0 | G16: =D16 -> 0 | H16: =F16*G16/1000 -> 0 | K16: 0
A17: Добавить
A18: 1.2. | B18: строительство кабельных линий, на уровне напряжения i и (или) диапазоне мощности j | C18: =IF(D18=0,0,E18/D18*1000) -> 0 | G18: =D18 -> 0 | H18: =F18*G18/1000 -> 0 | K18: =I18*J18/1000 -> 0
A19: Добавить
A20: 1.3. | B20: строительством пунктов секционирования, на уровне напряжения i и (или) диапазоне мощности j | C20: =IF(D20=0,0,E20/D20*1000) -> 0 | G20: =D20 -> 0 | H20: =F20*G20/1000 -> 0 | K20: =I20*J20/1000 -> 0
A21: Добавить
A22: 1.4. | B22: строительство комплектных трансформаторных подстанций (КТП) с уровнем напряжения до 35 кВ, на уровне напряжения i и (или) диапазоне мощности j | C22: =IF(D22=0,0,E22/D22*1000) -> 0 | G22: =D22 -> 0 | H22: =F22*G22/1000 -> 0 | K22: =I22*J22/1000 -> 0
A23: Добавить
A24: 1.5. | B24: строительство распределительных трансформаторных подстанций (РТП) с уровнем напряжения до 35 кВ, на уровне напряжения i и (или) диапазоне мощности j | C24: =IF(D24=0,0,E24/D24*1000) -> 0 | G24: =D24 -> 0 | H24: =F24*G24/1000 -> 0 | K24: =I24*J24/1000 -> 0
A25: Добавить
A26: 1.6. | B26: строительство центров питания, подстанций уровнем напряжения 35 кВ и выше (ПС), на уровне напряжения i и (или) диапазоне мощности j | C26: =IF(D26=0,0,E26/D26*1000) -> 0 | G26: =D26 -> 0 | H26: =F26*G26/1000 -> 0 | K26: =I26*J26/1000 -> 0
A27: Добавить
A28: 2. | B28: Суммарный размер платы за технологическое присоединение в части мероприятий "последней мили" [n.2.1 + п.2.2 + п.2.3 + п.2.4 + п.2.5+ п.2.6]: | C28: х | D28: х | E28: =SUM(E29:E42) -> 0 | F28: =C28 -> х | G28: =D28 -> х | H28: =SUM(H29:H42) -> 0 | I28: =F28 -> х | J28: =G28 -> х | K28: =SUM(K29:K42) -> 0
A29: 2.1. | B29: строительство воздушных линий, на уровне напряжения i и (или) диапазоне мощности j | C29: =IF(D29=0,0,E29/D29*1000) -> 0 | G29: =D29 -> 0 | H29: =F29*G29/1000 -> 0 | K29: =I29*J29/1000 -> 0
B30: строительство воздушных линий, на уровне напряжения i и (или) диапазоне мощности j | C30: 0 | G30: =D30 -> 0 | H30: 0 | K30: 0
B31: строительство воздушных линий, на уровне напряжения i и (или) диапазоне мощности j | C31: =IF(D31=0,0,E31/D31*1000) -> 0 | G31: =D31 -> 0 | H31: =F31*G31/1000 -> 0 | K31: =I31*J31/1000 -> 0
A32: Добавить
A33: 2.2. | B33: строительство кабельных линий, на уровне напряжения i и (или) диапазоне мощности j | C33: =IF(D33=0,0,E33/D33*1000) -> 0 | G33: =D33 -> 0 | H33: =F33*G33/1000 -> 0 | K33: =I33*J33/1000 -> 0
A34: Добавить
A35: 2.3. | B35: строительством пунктов секционирования, на уровне напряжения i и (или) диапазоне мощности j | C35: =IF(D35=0,0,E35/D35*1000) -> 0 | G35: =D35 -> 0 | H35: =F35*G35/1000 -> 0 | K35: =I35*J35/1000 -> 0
A36: Добавить
A37: 2.4. | B37: строительство комплектных трансформаторных подстанций (КТП) с уровнем напряжения до 35 кВ, на уровне напряжения i и (или) диапазоне мощности j | C37: =IF(D37=0,0,E37/D37*1000) -> 0 | G37: =D37 -> 0 | H37: =F37*G37/1000 -> 0 | K37: =I37*J37/1000 -> 0
A38: Добавить
A39: 2.5. | B39: строительство распределительных трансформаторных подстанций (РТП) с уровнем напряжения до 35 кВ, на уровне напряжения i и (или) диапазоне мощности j | C39: =IF(D39=0,0,E39/D39*1000) -> 0 | G39: =D39 -> 0 | H39: =F39*G39/1000 -> 0 | K39: =I39*J39/1000 -> 0
A40: Добавить
A41: 2.6. | B41: строительство центров питания, подстанций уровнем напряжения 35 кВ и выше (ПС), на уровне напряжения i и (или) диапазоне мощности j | C41: =IF(D41=0,0,E41/D41*1000) -> 0 | G41: =D41 -> 0 | H41: =F41*G41/1000 -> 0 | K41: =I41*J41/1000 -> 0
A42: Добавить
A43: 3. | B43: Размер расходов по мероприятиям "последней мили", связанных с осуществлением технологического присоединения к электрическим сетям, не включаемых в плату за технологическое присоединение [п.1 - п.2] | C43: х | D43: х | E43: =E13-E28 -> 0 | F43: х | G43: х | H43: =H13-H28 -> 0 | I43: х | J43: х | K43: =K13-K28 -> 0
B46: Фактические средние данные по выполненым договорам технологического присоединения за 3 предыдущих года
B48: Год | C48: строительство ВЛ, км | D48: строительство КЛ, км | E48: строительством пунктов секционирования, шт | F48: строительство КТП с уровнем напряжения до 35 кВ, кВт | G48: строительство РТП с уровнем напряжения до 35 кВ, кВт | H48: строительство ПС, кВт
B49: Факт 2016 г.
B50: Факт 2017 г.
B51: Факт 2018 г.
B52: План 2019 г. (расчет плановых значений исходя из данных за 3 предыдущих периода) | C52: =(C49+C50+C51)/3 -> 0 | D52: =(D49+D50+D51)/3 -> 0 | E52: 0 | F52: 0 | G52: 0 | H52: =(H49+H50+H51)/3 -> 0
B54: Сводный расчет выпадающих доходов от льготного ТП, подлежащих учету в 2020 году, тыс. руб.
B56: Выпадающие доходы, учтенные при тарифном регулировании на 2018 год всего в т.ч. | C56: =C57+C58 -> 0
B57: фактические по итогам 2016 года
B58: планового периода 2018 года
B59: Выпадающие доходы по итогам 2018 года за минусом плановых показателей 2018 года, подлежащие учету в 2020 году, тыс. руб. | C59: =E43-C58 -> 0 | G59: ИПЦ, %
B60: Выпадающие доходы по итогам 2018 года c учетом ИПЦ, подлежащие учету в 2020 году, тыс. руб. | C60: =C59*(1+H60)*(1+H61) -> 0 | G60: 2020 г. к 2019 г.
B61: Плановые выпадающие доходы на 2020 год | C61: =K43 -> 0 | G61: 2019 г. к 2018 г.
B62: Итого выпадающие доходы от льготного ТП подлежащие учету в 2020 году, тыс. руб. | C62: =C61+C60 -> 0
B64: Руководитель организации | D64: ='Инф-я'!$C$21 -> Чижов Олег Александрович
A73: Виды строительства по МУ
A75: 3 | B75: Строительство воздушных линий
A76: 3. j | B76: Материал опоры (деревянные (j = 1), металлические (j = 2), железобетонные (j = 3)
A77: 3. j.k | B77: Тип провода (изолированный провод (k = 1), неизолированный провод (k = 2)
A78: 3. j.k.l | B78: Материал провода (медный (l=1), стальной (l = 2), сталеалюминиевый (l = 3), алюминиевый (l = 4)
A79: 3. j.k.l.m | B79: Сечение провода (диапазон до 50 квадратных мм включительно (m = 1), от 50 до 100 квадратных мм включительно (m = 2), от 100 до 200 квадратных мм включительно (m = 3), от 200 до 500 квадратных мм включительно (m = 4), от 500 до 800 квадратных мм включительно (m = 5), свыше 800 квадратных мм (m = 6)
A80: 4 | B80: Строительство кабельных линий
A81: 4. j | B81: Способ прокладки кабельных линий (в траншеях (j = 1), в блоках (j = 2), в каналах (j = 3), в туннелях и коллекторах (j = 4), в галереях и эстакадах (j = 5), горизонтальное наклонное бурение (j = 6)
A82: 4. j.k | B82: Одножильные (k = 1) и многожильные (k = 2)
A83: 4. j.k.l | B83: Кабели с резиновой и пластмассовой изоляцией (l=1), бумажной изоляцией (l = 2)
A84: 4. j.k.l.m | B84: Сечение провода (диапазон до 50 квадратных мм включительно (m = 1), от 50 до 100 квадратных мм включительно (m = 2), от 100 до 200 квадратных мм включительно (m = 3), от 200 до 500 квадратных мм включительно (m = 4), от 500 до 800 квадратных мм включительно (m = 5), свыше 800 квадратных мм (m = 6)
A85: 5 | B85: Строительство пунктов секционирования
A86: 5. j | B86: Реклоузеры (j = 1 распределительные пункты (РП) (j = 2), переключательные пункты (ПП) (j = 3)
A87: 5. j.k | B87: Номинальный ток до 100 А включительно (k = 1), от 100 до 250 А включительно (k = 2), от 250 до 500 А включительно (k = 3), от 500 А до 1 000 А включительно (k = 4), свыше 1 000 А (k = 5)
A88: 6 | B88: Строительство трансформаторных подстанций (ТП), за исключением распределительных трансформаторных подстанций (РТП), с уровнем напряжения до 35 кВ
A89: 6. j | B89: Трансформаторные подстанции (ТП), за исключением распределительных трансформаторных подстанций (РТП)
A90: 6. j.k | B90: Однотрансформаторные (k=1), двухтрансформаторные и более (k = 2)
A91: 6. j.k.l | B91: Трансформаторная мощность до 25 кВА включительно (l = 1), от 25 до 100 кВА включительно (l = 2), от 100 до 250 кВА включительно (l = 3), от 250 до 500 кВА (l = 4), от 500 до 900 кВА включительно (l = 5), свыше 1000 кВА (l = 6)
A92: 7 | B92: Строительство распределительных трансформаторных подстанций (РТП) с уровнем напряжения до 35 кВ
A93: 7. j | B93: Распределительные трансформаторные подстанции (РТП)
A94: 7. j.k | B94: Однотрансформаторные (k=1), двухтрансформаторные и более (k = 2)
A95: 7. j.k.l | B95: Трансформаторная мощность до 25 кВА включительно (l=1), от 25 до 100 кВ А включительно (l = 2), от 100 до 250 кВА включительно (l = 3), от 250 до 500 кВА (l = 4), от 500 до 900 кВА включительно (l = 5), свыше 1000 кВА (l = 6)
A96: 8 | B96: Строительство центров питания, подстанций уровнем напряжения 35 кВ и выше (ПС)
A97: 8. j | B97: ПС 35 кВ (j = 1), ПС 110 кВ и выше (j = 2)
A98: Стандартизированные ставки, применяемые для расчета платы за технологическое присоединение устройств к электрическим сетям (С2, СЗ, С4, С5), без НДС (в ценах 2018 г.)
A100: N | B100: Стандартизированные тарифные ставки | C100: Уровень напряжения в точке присоединения 0,4 кВ | D100: Уровень напряжения в точке присоединения 6-10 кВ | E100: Уровень напряжения в точке присоединения 35-110 кВ
A101: п/п
A102: 1 | B102: 2 | C102: 3 | D102: 4 | E102: 5
A103: 2 | B103: С2 - стандартизированная тарифная ставка на покрытие расходов сетевой организации на строительство воздушных линий электропередачи
A104: 2.1. | B104: Прокладка воздушных линий с установкой опор, руб./км
A105: 2001-01-02 | B105: сечение жилы до 16 мм2 | C105: 717297 | D105: - | E105: -
A106: 2002-01-02 | B106: сечение жилы до 25 мм2 | C106: 541675 | D106: - | E106: -
A107: 2003-01-02 | B107: сечение жилы до 35 мм2 | C107: 865225 | D107: 1364873 | E107: -
A108: 2004-01-02 | B108: сечение жилы до 50 мм2 | C108: 870017 | D108: 1475522 | E108: -
A109: 2005-01-02 | B109: сечение жилы до 70 мм2 | C109: 943132 | D109: 1405579 | E109: -
A110: 2006-01-02 | B110: сечение жилы до 95 мм2 | C110: 984942 | D110: 1498292 | E110: -
A111: 2007-01-02 | B111: сечение жилы до 120 мм2 | C111: 1158608 | D111: - | E111: -
A112: 2.2. | B112: Прокладка воздушных линий по существующим опорам, руб./км
A113: 2001-02-02 | B113: сечение жилы до 16 мм2 | C113: 322438 | D113: - | E113: -
A114: 2002-02-02 | B114: сечение жилы до 25 мм2 | C114: 397721 | D114: - | E114: -
A115: 2003-02-02 | B115: сечение жилы до 35 мм2 | C115: 545933 | D115: - | E115: -
A116: 2004-02-02 | B116: сечение жилы до 50 мм2 | C116: 525019 | D116: - | E116: -
A117: 3 | B117: С3 - стандартизированная тарифная ставка на покрытие расходов сетевой организации на строительство кабельных линий электропередачи
A118: 3.1. | B118: Прокладка одной КЛ в траншее (с благоустройством), руб./км
A119: 2001-01-03 | B119: сечение жилы до 35 мм2 | C119: 647881 | D119: - | E119: -
A120: 2002-01-03 | B120: сечение жилы до 50 мм2 | C120: 687655 | D120: 1317933 | E120: -
A121: 2003-01-03 | B121: сечение жилы до 70 мм2 | C121: 1111822 | D121: 1496543 | E121: -
A122: 2004-01-03 | B122: сечение жилы до 95 мм2 | C122: 931796 | D122: 1682039 | E122: -
A123: 2005-01-03 | B123: сечение жилы до 120 мм2 | C123: 2244755 | D123: 1775170 | E123: -
A124: 2006-01-03 | B124: сечение жилы до 150 мм2 | C124: 957616 | D124: 2014663 | E124: -
A125: 2007-01-03 | B125: сечение жилы до 185 мм2 | C125: 1232108 | D125: 2256703 | E125: -
A126: 2008-01-03 | B126: сечение жилы до 240 мм2 | C126: 1431202 | D126: 2562382 | E126: -
A127: 3.2. | B127: Прокладка двух КЛ в траншее (с благоустройством), руб./км
A128: 2001-02-03 | B128: сечение жилы до 16 мм2 | C128: 299583 | D128: - | E128: -
A129: 2002-02-03 | B129: сечение жилы до 35 мм2 | C129: 574329 | D129: - | E129: -
A130: 2003-02-03 | B130: сечение жилы до 120 мм2 | C130: - | D130: 2260898 | E130: -
A131: 2004-02-03 | B131: сечение жилы до 150 мм2 | C131: 679027 | D131: - | E131: -
A132: 2005-02-03 | B132: сечение жилы до 185 мм2 | C132: 2737754 | D132: - | E132: -
A133: 2006-02-03 | B133: сечение жилы до 240 мм2 | C133: 3866504 | D133: 3478293 | E133: -
A134: 3.3. | B134: Прокладка одной КЛ в полиэтиленовой трубе (с благоустройством), руб./км
A135: 2001-03-03 | B135: сечение жилы до 35 мм2 | C135: 779020 | D135: - | E135: -
A136: 2002-03-03 | B136: сечение жилы до 50 мм2 | C136: 738707 | D136: - | E136: -
A137: 2003-03-03 | B137: сечение жилы до 70 мм2 | C137: 1234707 | D137: 1609675 | E137: -
A138: 2004-03-03 | B138: сечение жилы до 95 мм2 | C138: 980094 | D138: 1796650 | E138: -
A139: 2005-03-03 | B139: сечение жилы до 120 мм2 | C139: 951115 | D139: 1813010 | E139: -
A140: 2006-03-03 | B140: сечение жилы до 150 мм2 | C140: 1255903 | D140: 2112225 | E140: -
A141: 2007-03-03 | B141: сечение жилы до 185 мм2 | C141: 1341496 | D141: 2365159 | E141: -
A142: 2008-03-03 | B142: сечение жилы до 240 мм2 | C142: 1519985 | D142: 2673372 | E142: -
A143: 3.4. | B143: Прокладка двух КЛ в полиэтиленовых трубах (с благоустройством), руб./км
A144: 3.4.1. | B144: сечение жилы до 120 мм2 | C144: - | D144: 4040285 | E144: -
A145: 3.5. | B145: Прокладка одной КЛ методом ГНБ, руб./км
A146: 2001-05-03 | B146: сечение жилы до 50 мм2 | C146: 5482415 | D146: 7092474 | E146: -
A147: 2002-05-03 | B147: сечение жилы до 70 мм2 | C147: 5548401 | D147: 6282313 | E147: -
A148: 2003-05-03 | B148: сечение жилы до 95 мм2 | C148: 5677167 | D148: 5733470 | E148: -
A149: 2004-05-03 | B149: сечение жилы до 120 мм2 | C149: 5314366 | D149: 6615307 | E149: -
A150: 2005-05-03 | B150: сечение жилы до 150 мм2 | C150: 5798713 | D150: 6656822 | E150: -
A151: 2006-05-03 | B151: сечение жилы до 185 мм2 | C151: 5943888 | D151: 7030091 | E151: -
A152: 2007-05-03 | B152: сечение жилы до 240 мм2 | C152: 6150642 | D152: 7335150 | E152: -
A153: 4 | B153: С4 - стандартизированная тарифная ставка на покрытие расходов сетевой организации на строительство
A154: 4.1. | B154: Реклоузеры, руб./шт.
A155: 2001-01-04 | B155: мощностью до 630 кВА | C155: 1507393 | E155: -
A156: 4.2. | B156: Переключательные пункты, руб./шт.
A157: 2001-02-04 | B157: мощностью до 250 кВА | C157: 1759310 | E157: -
A158: 2002-02-04 | B158: мощностью до 1000 кВА | C158: 1674164 | E158: -
A159: 2003-02-04 | B159: мощностью до 1250 кВА | C159: 2824472 | E159: -
A160: 2004-02-04 | B160: мощностью до 1600 кВА | C160: 1748482 | E160: -
A161: 2005-02-04 | B161: мощностью до 2500 кВА | C161: 1881231 | E161: -
A162: 2006-02-04 | B162: мощностью до 4000 кВА | C162: 3563450 | E162: -
A163: 4.3. | B163: Распределительные пункты, руб./шт.
A164: 2001-03-04 | B164: мощностью до 4000 кВА | C164: - | D164: - | E164: 50072988
A165: 5 | B165: С5 - стандартизированная тарифная ставка на покрытие расходов сетевой организации на строительство трансформаторных подстанций
A166: 5.1. | B166: Строительство блочных трансформаторных подстанций с двумя трансформаторами (все типы), руб./кВт
A167: 2001-01-05 | B167: мощностью до 2 x 160 кВА | C167: 19698 | E167: -
A168: 2002-01-05 | B168: мощностью до 2 x 400 кВА | C168: 12446 | E168: -
A169: 2003-01-05 | B169: мощностью до 2 x 630 кВА | C169: 8538 | E169: -
A170: 5.2. | B170: Строительство киосковых трансформаторных подстанций с одним трансформатором (все типы), руб./кВт
A171: 2001-02-05 | B171: мощностью до 1 x 16 кВА | C171: 63383 | E171: -
A172: 2002-02-05 | B172: мощностью до 1 x 25 кВА | C172: 28636 | E172: -
A173: 2003-02-05 | B173: мощностью до 1 x 40 кВА | C173: 13463 | E173: -
A174: 2004-02-05 | B174: мощностью до 1 x 63 кВА | C174: 9193 | E174: -
A175: 2005-02-05 | B175: мощностью до 1 x 100 кВА | C175: 5836 | E175: -
A176: 2006-02-05 | B176: мощностью до 1 x 160 кВА | C176: 7734 | E176: -
A177: 2007-02-05 | B177: мощностью до 1 x 250 кВА | C177: 5231 | E177: -
A178: 2008-02-05 | B178: мощностью до 1 x 400 кВА | C178: 2300 | E178: -
A179: 2009-02-05 | B179: мощностью до 1 x 630 кВА | C179: 3339 | E179: -
A180: 2010-02-05 | B180: мощностью до 1 x 1000 кВА | C180: 2406 | E180: -
A181: 5.3. | B181: Строительство киосковых трансформаторных подстанций с двумя трансформаторами (все типы), руб./кВт
A182: 2001-03-05 | B182: мощностью до 2 x 400 кВА | C182: 4068 | E182: -
A183: 5.4. | B183: Строительство столбовой трансформаторной подстанции с одним трансформатором, руб./кВт
A184: 2001-04-05 | B184: мощностью до 1 x 16 кВА | C184: 24891.79 | E184: -
A185: 5.5 | B185: Строительство комплектной трансформаторной подстанции с четырьмя трансформаторами, руб./кВт
A186: 2001-05-05 | B186: мощностью 4 х 1000 кВА | C186: 4867.73 | E186: -
A188: Стандартизированные ставки, применяемые для расчета платы за технологическое присоединение устройств к электрическим сетям (С2, СЗ, С4, С5), без НДС (в ценах 2019 г.)
A190: N | B190: Стандартизированные тарифные ставки | C190: Уровень напряжения 0,4 кВ | D190: Уровень напряжения 6 - 10 кВ | E190: Уровень напряжения 35 - 110 кВ
A191: п/п
A192: 1 | B192: 2 | C192: 3 | D192: 4 | E192: 5
A193: 2 | B193: С2 - стандартизированная тарифная ставка на покрытие расходов сетевой организации на строительство воздушных линий электропередачи
A194: 2.1. | B194: Прокладка воздушных линий с установкой опор, руб./км
A195: 2001-01-02 | B195: сечение жилы до 16 мм2 | C195: 561458 | D195: - | E195: -
A196: 2002-01-02 | B196: сечение жилы до 25 мм2 | C196: 680690 | D196: - | E196: -
A197: 2003-01-02 | B197: сечение жилы до 35 мм2 | C197: 930714 | D197: 1422158 | E197: -
A198: 2004-01-02 | B198: сечение жилы до 50 мм2 | C198: 1184804 | D198: 1583985 | E198: -
A199: 2005-01-02 | B199: сечение жилы до 70 мм2 | C199: 1025791 | D199: 1510508 | E199: 4983144
A200: 2006-01-02 | B200: сечение жилы до 95 мм2 | C200: 1230668 | D200: - | E200: -
A201: 2007-01-02 | B201: сечение жилы до 120 мм2 | C201: 1263691 | D201: - | E201: -
A202: 2.2. | B202: Прокладка воздушных линий по существующим опорам, руб./км
A203: 2001-02-02 | B203: сечение жилы до 16 мм2 | C203: 583509 | D203: - | E203: -
A204: 2002-02-02 | B204: сечение жилы до 25 мм2 | C204: 400278 | D204: - | E204: -
A205: 2003-02-02 | B205: сечение жилы до 35 мм2 | C205: 381701 | D205: - | E205: -
A206: 2004-02-02 | B206: сечение жилы до 50 мм2 | C206: 606480 | D206: - | E206: -
A207: 3 | B207: С3 - стандартизированная тарифная ставка на покрытие расходов сетевой организации на строительство кабельных линий электропередачи
A208: 3.1. | B208: Прокладка одной КЛ в траншее, руб./км
A209: 2001-01-03 | B209: Прокладка одной КЛ в траншее (с благоустройством), руб./км
A210: 3.1.1.1 | B210: сечение жилы до 16 мм2 | C210: 640869 | D210: - | E210: -
A211: 3.1.1.2 | B211: сечение жилы до 35 мм2 | C211: 639603 | D211: - | E211: -
A212: 3.1.1.3 | B212: сечение жилы до 50 мм2 | C212: 789642 | D212: - | E212: -
A213: 3.1.1.4 | B213: сечение жилы до 70 мм2 | C213: 945564 | D213: 1630485 | E213: -
A214: 3.1.1.5 | B214: сечение жилы до 95 мм2 | C214: 972676 | D214: 1748962 | E214: -
A215: 3.1.1.6 | B215: сечение жилы до 120 мм2 | C215: 1076218 | D215: 1939213 | E215: -
A216: 3.1.1.7 | B216: сечение жилы до 150 мм2 | C216: 1441925 | D216: 2133986 | E216: -
A217: 3.1.1.8 | B217: сечение жилы до 185 мм2 | C217: 1316334 | D217: 2355608 | E217: -
A218: 3.1.1.9 | B218: сечение жилы до 240 мм2 | C218: 1550787 | D218: 2918329 | E218: -
A219: 2002-01-03 | B219: Прокладка одной КЛ в траншее (без благоустройства), руб./км
A220: 3.1.2.1 | B220: сечение жилы до 35 мм2 | C220: 382355 | D220: - | E220: -
A221: 3.1.2.2 | B221: сечение жилы до 50 мм2 | C221: - | D221: 1585759 | E221: -
A222: 3.1.2.3 | B222: сечение жилы до 70 мм2 | C222: 735363 | D222: - | E222: -
... 74 more rows

Sheet СВОД по % по рассрочке (hidden)
B2: Выпадающие доходы сетевой организации от выплаты процентов по кредитным договорам, связанным с рассрочкой по оплате субъектами малого и среднего предпринимательства технологического присоединения энергопринимающих устройств максимальной мощностью свыше 15 кВт и до 150 кВт включительно в 2020 году
A4: ='Инф-я'!$C$13 -> ООО "МОНОСТРОЙ"
A6: N п/п | B6: Информация о договоре технологического присоединения (Контрагент (наименование), № договора ТП, Дата заключения договора) | F6: Ставка рефинансирования Центрального банка Российской Федерации | G6: Год закрытия | H6: Квартал закрытия | I6: Сумма договора,тыс. руб. с НДС | J6: Размера расходов, связанных с предоставлением беспроцентной рассрочки в 2020 году, тыс. руб.
A9: 1 | B9: 2 | F9: 3 | G9: 4 | H9: 5 | I9: 6 | J9: 7
A10: 1 | B10: =Заявитель1!A4 -> 0 | F10: =Заявитель1!B31 -> 0 | G10: =Заявитель1!B34 -> 0 | H10: =Заявитель1!B32 -> 0 | I10: =Заявитель1!B33 -> 0 | J10: =Заявитель1!G36 -> 0
A11: 2 | B11: =Заявитель2!A4 -> 0 | F11: =Заявитель2!B31 -> 0 | G11: =Заявитель2!B34 -> 0 | H11: =Заявитель2!B32 -> 0 | I11: =Заявитель2!B33 -> 0 | J11: =Заявитель2!G36 -> 0
A12: 3 | B12: =Заявитель3!A4 -> 0 | F12: =Заявитель3!B31 -> 0 | G12: =Заявитель3!B34 -> 0 | H12: =Заявитель3!B32 -> 0 | I12: =Заявитель3!B33 -> 0 | J12: =Заявитель3!G36 -> 0
A13: 4 | B13: =Заявитель4!A4 -> 0 | F13: =Заявитель4!B31 -> 0 | G13: =Заявитель4!B34 -> 0 | H13: =Заявитель4!B32 -> 0 | I13: =Заявитель4!B33 -> 0 | J13: =Заявитель4!G36 -> 0
A17: Добавить
A18: ИТОГО | I18: =SUM(I10:I17) -> 0 | J18: =SUM(J10:J17) -> 0
B20: Свод по кварталам | C20: Сумма по договорам
B21: 1 | C21: =SUMIF(H$6:H$22,B21,I$6:I$22) -> 0
B22: 2 | C22: =SUMIF(H$6:H$22,B22,I$6:I$22) -> 0
B23: 3 | C23: =SUMIF(H$6:H$22,B23,I$6:I$22) -> 0
B24: 4 | C24: =SUMIF(H$6:H$22,B24,I$6:I$22) -> 0
B25: ГОД | C25: =SUM(C21:C24) -> 0
C26: =C25-I18 -> 0
F28: Приложение 2 к Методическим указаниям, утвержденным приказом ФСТ от 11.09.2014 г. №215-э/1
A32: Таблица 1. Расчет суммарного размера платы за технологическое присоединение, подлежащего беспроцентной рассрочке
B34: ='Инф-я'!C13 -> ООО "МОНОСТРОЙ"
Q35: тыс. руб. с НДС
A36: N п/п | B36: Показатель | F36: Фактические данные за предыдущий период регулирования | K36: Ожидаемые данные за текущий период регулирования | P36: Плановые показатели на следующий период регулирования
F37: 1 кв. | G37: 2 кв. | H37: 3 кв. | I37: 4 кв. | J37: всего за год | K37: 1 кв. | L37: 2 кв. | M37: 3 кв. | N37: 4 кв. | O37: всего за год | P37: 1 кв. | Q37: 2 кв. | R37: 3 кв. | S37: 4 кв. | T37: всего за год
A38: 1 | B38: Суммарный размер платы за технологическое присоединение, тыс. руб., в т.ч.: | J38: =SUM(F38:I38) -> 0 | O38: =SUM(K38:N38) -> 0 | P38: =C21 -> 0 | Q38: =C22 -> 0 | R38: =C23 -> 0 | S38: =C24 -> 0 | T38: =SUM(P38:S38) -> 0
A39: 2 | B39: Суммарный размер платы за технологическое присоединение, подлежащий беспроцентной рассрочке | J39: =SUM(F39:I39) -> 0 | O39: =SUM(K39:N39) -> 0 | P39: =P38*0.95 -> 0 | Q39: =Q38*0.95 -> 0 | R39: 0 | S39: 0 | T39: 0
B41: Руководитель организации | D41: ='Инф-я'!C21 -> Чижов Олег Александрович
A43: Примечание:
A44: 1) Суммарный размер платы за технологическое присоединение (п. 1) за каждый квартал следующего расчетного периода регулирования представляет собой прогнозную величину платы за технологическое присоединение для заявителей, обращающихся за беспроцентной рассрочкой, определенную на основе фактических данных о заявителях, обратившихся за рассрочкой за последний год, но не ниже документально подтвержденных данных о заявителях, обратившихся за рассрочкой на следующий период регулирования.
A45: 2) Суммарный размер платы за технологическое присоединение, подлежащий беспроцентной рассрочке (п. 2), за каждый квартал определяется как суммарный размер платы за технологическое присоединение (п. 1) за каждый квартал, умноженный на 0,95.

Sheet Заявитель1 (hidden)
C1: Приложение 2 к Методическим указаниям, утвержденным приказом ФСТ от 11.09.2014 г. №215-э/1
A3: Расчет размера расходов, связанных с предоставлением беспроцентной рассрочки (для конкретного заявителя)
B5: (Контрагент (наименование), № договора ТП, Дата заключения договора)
A7: N п/п | B7: Квартал, на который рассчитывается размер расходов, связанных с предоставлением беспроцентной рассрочки | C7: Расходы, связанные с предоставлением беспроцентной рассрочки, тыс. руб. (с учетом НДС) | H7: Номер квартала i
C8: в отношении суммарного размера платы за технологическое присоединение в 1 квартале | D8: в отношении суммарного размера платы за технологическое присоединение во 2 квартале | E8: в отношении суммарного размера платы за технологическое присоединение в 3 квартале | F8: в отношении суммарного размера платы за технологическое присоединение в 4 квартале | G8: всего в год
A9: 1 | B9: =CONCATENATE("1 год (",$B$34,"г.):") -> 1 год (г.): | C9: =SUM(C10:C13) -> 0 | D9: =SUM(D10:D13) -> 0 | E9: =SUM(E10:E13) -> 0 | F9: =SUM(F10:F13) -> 0 | G9: =SUM(C9:F9) -> 0
A10: 1.1. | B10: 1 квартал | C10: =IF($H10>=$B$32,Заявитель1!$B$33*0.95*((12+$B$32-$H10)/12)*($B$31/4),0) -> 0 | G10: 0 | H10: 1
A11: 1.2. | B11: 2 квартал | D11: =IF($H11>=$B$32,Заявитель1!$B$33*0.95*((12+$B$32-$H11)/12)*($B$31/4),0) -> 0 | G11: 0 | H11: 2
A12: 1.3. | B12: 3 квартал | E12: =IF($H12>=$B$32,Заявитель1!$B$33*0.95*((12+$B$32-$H12)/12)*($B$31/4),0) -> 0 | G12: 0 | H12: 3
A13: 1.4. | B13: 4 квартал | F13: =IF($H13>=$B$32,Заявитель1!$B$33*0.95*((12+$B$32-$H13)/12)*($B$31/4),0) -> 0 | G13: 0 | H13: 4
A14: 2 | B14: =CONCATENATE("1 год (",$B$34+1,"г.):") -> 1 год (1г.): | C14: =SUM(C15:C18) -> 0 | D14: =SUM(D15:D18) -> 0 | E14: =SUM(E15:E18) -> 0 | F14: =SUM(F15:F18) -> 0 | G14: 0
A15: 2.1. | B15: 5 квартал | C15: =Заявитель1!$B$33*0.95*((12+$B$32-$H15)/12)*($B$31/4) -> 0 | G15: 0 | H15: 5
A16: 2.2. | B16: 6 квартал | D16: =Заявитель1!$B$33*0.95*((12+$B$32-$H16)/12)*($B$31/4) -> 0 | G16: 0 | H16: 6
A17: 2.3. | B17: 7 квартал | E17: =Заявитель1!$B$33*0.95*((12+$B$32-$H17)/12)*($B$31/4) -> 0 | G17: 0 | H17: 7
A18: 2.4. | B18: 8 квартал | F18: =Заявитель1!$B$33*0.95*((12+$B$32-$H18)/12)*($B$31/4) -> 0 | G18: 0 | H18: 8
A19: 3 | B19: =CONCATENATE("1 год (",$B$34+2,"г.):") -> 1 год (2г.): | C19: =SUM(C20:C23) -> 0 | D19: =SUM(D20:D23) -> 0 | E19: =SUM(E20:E23) -> 0 | F19: =SUM(F20:F23) -> 0 | G19: 0
A20: 3.1. | B20: 9 квартал | C20: =Заявитель1!$B$33*0.95*((12+$B$32-$H20)/12)*($B$31/4) -> 0 | G20: 0 | H20: 9
A21: 3.2. | B21: 10 квартал | D21: =Заявитель1!$B$33*0.95*((12+$B$32-$H21)/12)*($B$31/4) -> 0 | G21: 0 | H21: 10
A22: 3.3. | B22: 11 квартал | E22: =Заявитель1!$B$33*0.95*((12+$B$32-$H22)/12)*($B$31/4) -> 0 | G22: 0 | H22: 11
A23: 3.4. | B23: 12 квартал | F23: =Заявитель1!$B$33*0.95*((12+$B$32-$H23)/12)*($B$31/4) -> 0 | G23: 0 | H23: 12
A24: 4 | B24: =CONCATENATE("1 год (",$B$34+3,"г.):") -> 1 год (3г.): | C24: =SUM(C25:C27) -> 0 | D24: =SUM(D25:D27) -> 0 | E24: =SUM(E25:E27) -> 0 | F24: =SUM(F25:F27) -> 0 | G24: 0
A25: 4.1. | B25: 13 квартал | C25: =Заявитель1!$B$33*0.95*((12+$B$32-$H25)/12)*($B$31/4) -> 0 | G25: 0 | H25: 13
A26: 4.2. | B26: 14 квартал | D26: =IF((Заявитель1!$B$33*0.95*((12+$B$32-$H26)/12)*($B$31/4))<0,0,Заявитель1!$B$33*0.95*((12+$B$32-$H26)/12)*($B$31/4)) -> 0 | G26: 0 | H26: 14
A27: 4.3. | B27: 15 квартал | E27: =IF((Заявитель1!$B$33*0.95*((12+$B$32-$H27)/12)*($B$31/4))<0,0,Заявитель1!$B$33*0.95*((12+$B$32-$H27)/12)*($B$31/4)) -> 0 | G27: 0 | H27: 15
A28: 5 | B28: Итого | C28: =C9+C14+C19+C24 -> 0 | D28: =D9+D14+D19+D24 -> 0 | E28: =E9+E14+E19+E24 -> 0 | F28: =F9+F14+F19+F24 -> 0 | G28: =G9+G14+G19+G24 -> 0
A32: k
A34: Год закрытия договора
A36: Размера расходов, связанных с предоставлением беспроцентной рассрочки в 2020 году | G36: =IF(B34<2017,0,IF(B34=2017,G24,IF(B34=2018,G19,IF(B34=2019,G14)))) -> 0 | H36: тыс. руб.
A38: Размер расходов, связанных с предоставлением беспроцентной рассрочки, в i-м квартале в течение трехлетнего периода предоставления беспроцентной рассрочки рассчитывается по формуле (1):
D40: , (1)
A42: где:
A43: - суммарный размер платы за технологическое присоединение, начисляемый заявителям, которым предоставляется рассрочка, в квартале k периода регулирования (тыс. руб.);
A44: k - номер квартала по порядку в периоде регулирования, в который начисляется размер платы за технологическое присоединение (равен от 1 до 4);
A45: i - номер квартала по порядку, начиная с момента начисления размера платы за технологическое присоединение с условием предоставления беспроцентной рассрочки в квартале k, с учетом квартала, в котором произведены начисления, в течение трехлетнего периода предоставления беспроцентной рассрочки (равен от k до 12 + k - 1);
A46: - ставка рефинансирования Центрального банка Российской Федерации на дату представления сетевой организацией заявки на установление размера платы за технологическое присоединение в регулирующий орган.
A47: В случае отклонения фактического значения процентной ставки по кредитам, связанным с рассрочкой по оплате технологического присоединения, от ставки рефинансирования Центрального банка Российской Федерации, при расчете фактического размера расходов, связанных с предоставлением беспроцентной рассрочки, применяется величина процентной ставки в соответствии с пунктом 87 Основ ценообразования.
A49: Примечание:
A50: 1) Периодом предоставления беспроцентной рассрочки считается 3 года.
A51: 2) Размер расходов, связанных с предоставлением беспроцентной рассрочки, в каждый квартал периода регулирования в течение трехлетнего периода предоставления беспроцентной рассрочки в отношении планируемого к получению (фактически полученного) от заявителей суммарного размера платы за технологическое присоединение, определяется в соответствии с формулой (1) Методических указаний по определению выпадающих доходов, связанных с осуществлением технологического присоединения к электрическим сетям.
A52: 3) При расчете планируемых значений показателей при заполнении таблиц 1 и 2 применяется планируемая к получению величина суммарного размера платы за технологическое присоединение, подлежащего беспроцентной рассрочке.
A53: 4) При расчете фактических значений показателей при заполнении таблиц 1 и 2 применяется суммарная плата за технологическое присоединение, начисленная с беспроцентной рассрочкой в соответствии с заключенными договорами об осуществлении технологического присоединения к электрическим сетям.

Sheet Заявитель2 (hidden)
C1: Приложение 2 к Методическим указаниям, утвержденным приказом ФСТ от 11.09.2014 г. №215-э/1
A3: Расчет размера расходов, связанных с предоставлением беспроцентной рассрочки (для конкретного заявителя)
B5: (Контрагент (наименование), № договора ТП, Дата заключения договора)
A7: N п/п | B7: Квартал, на который рассчитывается размер расходов, связанных с предоставлением беспроцентной рассрочки | C7: Расходы, связанные с предоставлением беспроцентной рассрочки, тыс. руб. (с учетом НДС) | H7: Номер квартала i
C8: в отношении суммарного размера платы за технологическое присоединение в 1 квартале | D8: в отношении суммарного размера платы за технологическое присоединение во 2 квартале | E8: в отношении суммарного размера платы за технологическое присоединение в 3 квартале | F8: в отношении суммарного размера платы за технологическое присоединение в 4 квартале | G8: всего в год
A9: 1 | B9: =CONCATENATE("1 год (",$B$34,"г.):") -> 1 год (г.): | C9: =SUM(C10:C13) -> 0 | D9: =SUM(D10:D13) -> 0 | E9: =SUM(E10:E13) -> 0 | F9: =SUM(F10:F13) -> 0 | G9: =SUM(C9:F9) -> 0
A10: 1.1. | B10: 1 квартал | C10: =IF($H10>=$B$32,Заявитель2!$B$33*0.95*((12+$B$32-$H10)/12)*($B$31/4),0) -> 0 | G10: 0 | H10: 1
A11: 1.2. | B11: 2 квартал | D11: =IF($H11>=$B$32,Заявитель2!$B$33*0.95*((12+$B$32-$H11)/12)*($B$31/4),0) -> 0 | G11: 0 | H11: 2
A12: 1.3. | B12: 3 квартал | E12: =IF($H12>=$B$32,Заявитель2!$B$33*0.95*((12+$B$32-$H12)/12)*($B$31/4),0) -> 0 | G12: 0 | H12: 3
A13: 1.4. | B13: 4 квартал | F13: =IF($H13>=$B$32,Заявитель2!$B$33*0.95*((12+$B$32-$H13)/12)*($B$31/4),0) -> 0 | G13: 0 | H13: 4
A14: 2 | B14: =CONCATENATE("1 год (",$B$34+1,"г.):") -> 1 год (1г.): | C14: =SUM(C15:C18) -> 0 | D14: =SUM(D15:D18) -> 0 | E14: =SUM(E15:E18) -> 0 | F14: =SUM(F15:F18) -> 0 | G14: 0
A15: 2.1. | B15: 5 квартал | C15: =Заявитель2!$B$33*0.95*((12+$B$32-$H15)/12)*($B$31/4) -> 0 | G15: 0 | H15: 5
A16: 2.2. | B16: 6 квартал | D16: =Заявитель2!$B$33*0.95*((12+$B$32-$H16)/12)*($B$31/4) -> 0 | G16: 0 | H16: 6
A17: 2.3. | B17: 7 квартал | E17: =Заявитель2!$B$33*0.95*((12+$B$32-$H17)/12)*($B$31/4) -> 0 | G17: 0 | H17: 7
A18: 2.4. | B18: 8 квартал | F18: =Заявитель2!$B$33*0.95*((12+$B$32-$H18)/12)*($B$31/4) -> 0 | G18: 0 | H18: 8
A19: 3 | B19: =CONCATENATE("1 год (",$B$34+2,"г.):") -> 1 год (2г.): | C19: =SUM(C20:C23) -> 0 | D19: =SUM(D20:D23) -> 0 | E19: =SUM(E20:E23) -> 0 | F19: =SUM(F20:F23) -> 0 | G19: 0
A20: 3.1. | B20: 9 квартал | C20: =Заявитель2!$B$33*0.95*((12+$B$32-$H20)/12)*($B$31/4) -> 0 | G20: 0 | H20: 9
A21: 3.2. | B21: 10 квартал | D21: =Заявитель2!$B$33*0.95*((12+$B$32-$H21)/12)*($B$31/4) -> 0 | G21: 0 | H21: 10
A22: 3.3. | B22: 11 квартал | E22: =Заявитель2!$B$33*0.95*((12+$B$32-$H22)/12)*($B$31/4) -> 0 | G22: 0 | H22: 11
A23: 3.4. | B23: 12 квартал | F23: =Заявитель2!$B$33*0.95*((12+$B$32-$H23)/12)*($B$31/4) -> 0 | G23: 0 | H23: 12
A24: 4 | B24: =CONCATENATE("1 год (",$B$34+3,"г.):") -> 1 год (3г.): | C24: =SUM(C25:C27) -> 0 | D24: =SUM(D25:D27) -> 0 | E24: =SUM(E25:E27) -> 0 | F24: =SUM(F25:F27) -> 0 | G24: 0
A25: 4.1. | B25: 13 квартал | C25: =Заявитель2!$B$33*0.95*((12+$B$32-$H25)/12)*($B$31/4) -> 0 | G25: 0 | H25: 13
A26: 4.2. | B26: 14 квартал | D26: =IF((Заявитель2!$B$33*0.95*((12+$B$32-$H26)/12)*($B$31/4))<0,0,Заявитель2!$B$33*0.95*((12+$B$32-$H26)/12)*($B$31/4)) -> 0 | G26: 0 | H26: 14
A27: 4.3. | B27: 15 квартал | E27: =IF((Заявитель2!$B$33*0.95*((12+$B$32-$H27)/12)*($B$31/4))<0,0,Заявитель2!$B$33*0.95*((12+$B$32-$H27)/12)*($B$31/4)) -> 0 | G27: 0 | H27: 15
A28: 5 | B28: Итого | C28: =C9+C14+C19+C24 -> 0 | D28: =D9+D14+D19+D24 -> 0 | E28: =E9+E14+E19+E24 -> 0 | F28: =F9+F14+F19+F24 -> 0 | G28: =G9+G14+G19+G24 -> 0
A32: k
A34: Год закрытия договора
A36: Размера расходов, связанных с предоставлением беспроцентной рассрочки в 2020 году | G36: =IF(B34<2017,0,IF(B34=2017,G24,IF(B34=2018,G19,IF(B34=2019,G14)))) -> 0 | H36: тыс. руб.
A38: Размер расходов, связанных с предоставлением беспроцентной рассрочки, в i-м квартале в течение трехлетнего периода предоставления беспроцентной рассрочки рассчитывается по формуле (1):
D40: , (1)
A42: где:
A43: - суммарный размер платы за технологическое присоединение, начисляемый заявителям, которым предоставляется рассрочка, в квартале k периода регулирования (тыс. руб.);
A44: k - номер квартала по порядку в периоде регулирования, в который начисляется размер платы за технологическое присоединение (равен от 1 до 4);
A45: i - номер квартала по порядку, начиная с момента начисления размера платы за технологическое присоединение с условием предоставления беспроцентной рассрочки в квартале k, с учетом квартала, в котором произведены начисления, в течение трехлетнего периода предоставления беспроцентной рассрочки (равен от k до 12 + k - 1);
A46: - ставка рефинансирования Центрального банка Российской Федерации на дату представления сетевой организацией заявки на установление размера платы за технологическое присоединение в регулирующий орган.
A47: В случае отклонения фактического значения процентной ставки по кредитам, связанным с рассрочкой по оплате технологического присоединения, от ставки рефинансирования Центрального банка Российской Федерации, при расчете фактического размера расходов, связанных с предоставлением беспроцентной рассрочки, применяется величина процентной ставки в соответствии с пунктом 87 Основ ценообразования.
A49: Примечание:
A50: 1) Периодом предоставления беспроцентной рассрочки считается 3 года.
A51: 2) Размер расходов, связанных с предоставлением беспроцентной рассрочки, в каждый квартал периода регулирования в течение трехлетнего периода предоставления беспроцентной рассрочки в отношении планируемого к получению (фактически полученного) от заявителей суммарного размера платы за технологическое присоединение, определяется в соответствии с формулой (1) Методических указаний по определению выпадающих доходов, связанных с осуществлением технологического присоединения к электрическим сетям.
A52: 3) При расчете планируемых значений показателей при заполнении таблиц 1 и 2 применяется планируемая к получению величина суммарного размера платы за технологическое присоединение, подлежащего беспроцентной рассрочке.
A53: 4) При расчете фактических значений показателей при заполнении таблиц 1 и 2 применяется суммарная плата за технологическое присоединение, начисленная с беспроцентной рассрочкой в соответствии с заключенными договорами об осуществлении технологического присоединения к электрическим сетям.

Sheet Заявитель3 (hidden)
C1: Приложение 2 к Методическим указаниям, утвержденным приказом ФСТ от 11.09.2014 г. №215-э/1
A3: Расчет размера расходов, связанных с предоставлением беспроцентной рассрочки (для конкретного заявителя)
B5: (Контрагент (наименование), № договора ТП, Дата заключения договора)
A7: N п/п | B7: Квартал, на который рассчитывается размер расходов, связанных с предоставлением беспроцентной рассрочки | C7: Расходы, связанные с предоставлением беспроцентной рассрочки, тыс. руб. (с учетом НДС) | H7: Номер квартала i
C8: в отношении суммарного размера платы за технологическое присоединение в 1 квартале | D8: в отношении суммарного размера платы за технологическое присоединение во 2 квартале | E8: в отношении суммарного размера платы за технологическое присоединение в 3 квартале | F8: в отношении суммарного размера платы за технологическое присоединение в 4 квартале | G8: всего в год
A9: 1 | B9: =CONCATENATE("1 год (",$B$34,"г.):") -> 1 год (г.): | C9: =SUM(C10:C13) -> 0 | D9: =SUM(D10:D13) -> 0 | E9: =SUM(E10:E13) -> 0 | F9: =SUM(F10:F13) -> 0 | G9: =SUM(C9:F9) -> 0
A10: 1.1. | B10: 1 квартал | C10: =IF($H10>=$B$32,Заявитель3!$B$33*0.95*((12+$B$32-$H10)/12)*($B$31/4),0) -> 0 | G10: 0 | H10: 1
A11: 1.2. | B11: 2 квартал | D11: =IF($H11>=$B$32,Заявитель3!$B$33*0.95*((12+$B$32-$H11)/12)*($B$31/4),0) -> 0 | G11: 0 | H11: 2
A12: 1.3. | B12: 3 квартал | E12: =IF($H12>=$B$32,Заявитель3!$B$33*0.95*((12+$B$32-$H12)/12)*($B$31/4),0) -> 0 | G12: 0 | H12: 3
A13: 1.4. | B13: 4 квартал | F13: =IF($H13>=$B$32,Заявитель3!$B$33*0.95*((12+$B$32-$H13)/12)*($B$31/4),0) -> 0 | G13: 0 | H13: 4
A14: 2 | B14: =CONCATENATE("1 год (",$B$34+1,"г.):") -> 1 год (1г.): | C14: =SUM(C15:C18) -> 0 | D14: =SUM(D15:D18) -> 0 | E14: =SUM(E15:E18) -> 0 | F14: =SUM(F15:F18) -> 0 | G14: 0
A15: 2.1. | B15: 5 квартал | C15: =Заявитель3!$B$33*0.95*((12+$B$32-$H15)/12)*($B$31/4) -> 0 | G15: 0 | H15: 5
A16: 2.2. | B16: 6 квартал | D16: =Заявитель3!$B$33*0.95*((12+$B$32-$H16)/12)*($B$31/4) -> 0 | G16: 0 | H16: 6
A17: 2.3. | B17: 7 квартал | E17: =Заявитель3!$B$33*0.95*((12+$B$32-$H17)/12)*($B$31/4) -> 0 | G17: 0 | H17: 7
A18: 2.4. | B18: 8 квартал | F18: =Заявитель3!$B$33*0.95*((12+$B$32-$H18)/12)*($B$31/4) -> 0 | G18: 0 | H18: 8
A19: 3 | B19: =CONCATENATE("1 год (",$B$34+2,"г.):") -> 1 год (2г.): | C19: =SUM(C20:C23) -> 0 | D19: =SUM(D20:D23) -> 0 | E19: =SUM(E20:E23) -> 0 | F19: =SUM(F20:F23) -> 0 | G19: 0
A20: 3.1. | B20: 9 квартал | C20: =Заявитель3!$B$33*0.95*((12+$B$32-$H20)/12)*($B$31/4) -> 0 | G20: 0 | H20: 9
A21: 3.2. | B21: 10 квартал | D21: =Заявитель3!$B$33*0.95*((12+$B$32-$H21)/12)*($B$31/4) -> 0 | G21: 0 | H21: 10
A22: 3.3. | B22: 11 квартал | E22: =Заявитель3!$B$33*0.95*((12+$B$32-$H22)/12)*($B$31/4) -> 0 | G22: 0 | H22: 11
A23: 3.4. | B23: 12 квартал | F23: =Заявитель3!$B$33*0.95*((12+$B$32-$H23)/12)*($B$31/4) -> 0 | G23: 0 | H23: 12
A24: 4 | B24: =CONCATENATE("1 год (",$B$34+3,"г.):") -> 1 год (3г.): | C24: =SUM(C25:C27) -> 0 | D24: =SUM(D25:D27) -> 0 | E24: =SUM(E25:E27) -> 0 | F24: =SUM(F25:F27) -> 0 | G24: 0
A25: 4.1. | B25: 13 квартал | C25: =Заявитель3!$B$33*0.95*((12+$B$32-$H25)/12)*($B$31/4) -> 0 | G25: 0 | H25: 13
A26: 4.2. | B26: 14 квартал | D26: =IF((Заявитель3!$B$33*0.95*((12+$B$32-$H26)/12)*($B$31/4))<0,0,Заявитель3!$B$33*0.95*((12+$B$32-$H26)/12)*($B$31/4)) -> 0 | G26: 0 | H26: 14
A27: 4.3. | B27: 15 квартал | E27: =IF((Заявитель3!$B$33*0.95*((12+$B$32-$H27)/12)*($B$31/4))<0,0,Заявитель3!$B$33*0.95*((12+$B$32-$H27)/12)*($B$31/4)) -> 0 | G27: 0 | H27: 15
A28: 5 | B28: Итого | C28: =C9+C14+C19+C24 -> 0 | D28: =D9+D14+D19+D24 -> 0 | E28: =E9+E14+E19+E24 -> 0 | F28: =F9+F14+F19+F24 -> 0 | G28: =G9+G14+G19+G24 -> 0
A32: k
A34: Год закрытия договора
A36: Размера расходов, связанных с предоставлением беспроцентной рассрочки в 2020 году | G36: =IF(B34<2017,0,IF(B34=2017,G24,IF(B34=2018,G19,IF(B34=2019,G14)))) -> 0 | H36: тыс. руб.
A38: Размер расходов, связанных с предоставлением беспроцентной рассрочки, в i-м квартале в течение трехлетнего периода предоставления беспроцентной рассрочки рассчитывается по формуле (1):
D40: , (1)
A42: где:
A43: - суммарный размер платы за технологическое присоединение, начисляемый заявителям, которым предоставляется рассрочка, в квартале k периода регулирования (тыс. руб.);
A44: k - номер квартала по порядку в периоде регулирования, в который начисляется размер платы за технологическое присоединение (равен от 1 до 4);
A45: i - номер квартала по порядку, начиная с момента начисления размера платы за технологическое присоединение с условием предоставления беспроцентной рассрочки в квартале k, с учетом квартала, в котором произведены начисления, в течение трехлетнего периода предоставления беспроцентной рассрочки (равен от k до 12 + k - 1);
A46: - ставка рефинансирования Центрального банка Российской Федерации на дату представления сетевой организацией заявки на установление размера платы за технологическое присоединение в регулирующий орган.
A47: В случае отклонения фактического значения процентной ставки по кредитам, связанным с рассрочкой по оплате технологического присоединения, от ставки рефинансирования Центрального банка Российской Федерации, при расчете фактического размера расходов, связанных с предоставлением беспроцентной рассрочки, применяется величина процентной ставки в соответствии с пунктом 87 Основ ценообразования.
A49: Примечание:
A50: 1) Периодом предоставления беспроцентной рассрочки считается 3 года.
A51: 2) Размер расходов, связанных с предоставлением беспроцентной рассрочки, в каждый квартал периода регулирования в течение трехлетнего периода предоставления беспроцентной рассрочки в отношении планируемого к получению (фактически полученного) от заявителей суммарного размера платы за технологическое присоединение, определяется в соответствии с формулой (1) Методических указаний по определению выпадающих доходов, связанных с осуществлением технологического присоединения к электрическим сетям.
A52: 3) При расчете планируемых значений показателей при заполнении таблиц 1 и 2 применяется планируемая к получению величина суммарного размера платы за технологическое присоединение, подлежащего беспроцентной рассрочке.
A53: 4) При расчете фактических значений показателей при заполнении таблиц 1 и 2 применяется суммарная плата за технологическое присоединение, начисленная с беспроцентной рассрочкой в соответствии с заключенными договорами об осуществлении технологического присоединения к электрическим сетям.

Sheet Заявитель4 (hidden)
C1: Приложение 2 к Методическим указаниям, утвержденным приказом ФСТ от 11.09.2014 г. №215-э/1
A3: Расчет размера расходов, связанных с предоставлением беспроцентной рассрочки (для конкретного заявителя)
B5: (Контрагент (наименование), № договора ТП, Дата заключения договора)
A7: N п/п | B7: Квартал, на который рассчитывается размер расходов, связанных с предоставлением беспроцентной рассрочки | C7: Расходы, связанные с предоставлением беспроцентной рассрочки, тыс. руб. (с учетом НДС) | H7: Номер квартала i
C8: в отношении суммарного размера платы за технологическое присоединение в 1 квартале | D8: в отношении суммарного размера платы за технологическое присоединение во 2 квартале | E8: в отношении суммарного размера платы за технологическое присоединение в 3 квартале | F8: в отношении суммарного размера платы за технологическое присоединение в 4 квартале | G8: всего в год
A9: 1 | B9: =CONCATENATE("1 год (",$B$34,"г.):") -> 1 год (г.): | C9: =SUM(C10:C13) -> 0 | D9: =SUM(D10:D13) -> 0 | E9: =SUM(E10:E13) -> 0 | F9: =SUM(F10:F13) -> 0 | G9: =SUM(C9:F9) -> 0
A10: 1.1. | B10: 1 квартал | C10: =IF($H10>=$B$32,Заявитель4!$B$33*0.95*((12+$B$32-$H10)/12)*($B$31/4),0) -> 0 | G10: 0 | H10: 1
A11: 1.2. | B11: 2 квартал | D11: =IF($H11>=$B$32,Заявитель4!$B$33*0.95*((12+$B$32-$H11)/12)*($B$31/4),0) -> 0 | G11: 0 | H11: 2
A12: 1.3. | B12: 3 квартал | E12: =IF($H12>=$B$32,Заявитель4!$B$33*0.95*((12+$B$32-$H12)/12)*($B$31/4),0) -> 0 | G12: 0 | H12: 3
A13: 1.4. | B13: 4 квартал | F13: =IF($H13>=$B$32,Заявитель4!$B$33*0.95*((12+$B$32-$H13)/12)*($B$31/4),0) -> 0 | G13: 0 | H13: 4
A14: 2 | B14: =CONCATENATE("1 год (",$B$34+1,"г.):") -> 1 год (1г.): | C14: =SUM(C15:C18) -> 0 | D14: =SUM(D15:D18) -> 0 | E14: =SUM(E15:E18) -> 0 | F14: =SUM(F15:F18) -> 0 | G14: 0
A15: 2.1. | B15: 5 квартал | C15: =Заявитель4!$B$33*0.95*((12+$B$32-$H15)/12)*($B$31/4) -> 0 | G15: 0 | H15: 5
A16: 2.2. | B16: 6 квартал | D16: =Заявитель4!$B$33*0.95*((12+$B$32-$H16)/12)*($B$31/4) -> 0 | G16: 0 | H16: 6
A17: 2.3. | B17: 7 квартал | E17: =Заявитель4!$B$33*0.95*((12+$B$32-$H17)/12)*($B$31/4) -> 0 | G17: 0 | H17: 7
A18: 2.4. | B18: 8 квартал | F18: =Заявитель4!$B$33*0.95*((12+$B$32-$H18)/12)*($B$31/4) -> 0 | G18: 0 | H18: 8
A19: 3 | B19: =CONCATENATE("1 год (",$B$34+2,"г.):") -> 1 год (2г.): | C19: =SUM(C20:C23) -> 0 | D19: =SUM(D20:D23) -> 0 | E19: =SUM(E20:E23) -> 0 | F19: =SUM(F20:F23) -> 0 | G19: 0
A20: 3.1. | B20: 9 квартал | C20: =Заявитель4!$B$33*0.95*((12+$B$32-$H20)/12)*($B$31/4) -> 0 | G20: 0 | H20: 9
A21: 3.2. | B21: 10 квартал | D21: =Заявитель4!$B$33*0.95*((12+$B$32-$H21)/12)*($B$31/4) -> 0 | G21: 0 | H21: 10
A22: 3.3. | B22: 11 квартал | E22: =Заявитель4!$B$33*0.95*((12+$B$32-$H22)/12)*($B$31/4) -> 0 | G22: 0 | H22: 11
A23: 3.4. | B23: 12 квартал | F23: =Заявитель4!$B$33*0.95*((12+$B$32-$H23)/12)*($B$31/4) -> 0 | G23: 0 | H23: 12
A24: 4 | B24: =CONCATENATE("1 год (",$B$34+3,"г.):") -> 1 год (3г.): | C24: =SUM(C25:C27) -> 0 | D24: =SUM(D25:D27) -> 0 | E24: =SUM(E25:E27) -> 0 | F24: =SUM(F25:F27) -> 0 | G24: 0
A25: 4.1. | B25: 13 квартал | C25: =Заявитель4!$B$33*0.95*((12+$B$32-$H25)/12)*($B$31/4) -> 0 | G25: 0 | H25: 13
A26: 4.2. | B26: 14 квартал | D26: =IF((Заявитель4!$B$33*0.95*((12+$B$32-$H26)/12)*($B$31/4))<0,0,Заявитель4!$B$33*0.95*((12+$B$32-$H26)/12)*($B$31/4)) -> 0 | G26: 0 | H26: 14
A27: 4.3. | B27: 15 квартал | E27: =IF((Заявитель4!$B$33*0.95*((12+$B$32-$H27)/12)*($B$31/4))<0,0,Заявитель4!$B$33*0.95*((12+$B$32-$H27)/12)*($B$31/4)) -> 0 | G27: 0 | H27: 15
A28: 5 | B28: Итого | C28: =C9+C14+C19+C24 -> 0 | D28: =D9+D14+D19+D24 -> 0 | E28: =E9+E14+E19+E24 -> 0 | F28: =F9+F14+F19+F24 -> 0 | G28: =G9+G14+G19+G24 -> 0
A32: k
A34: Год закрытия договора
A36: Размера расходов, связанных с предоставлением беспроцентной рассрочки в 2020 году | G36: =IF(B34<2017,0,IF(B34=2017,G24,IF(B34=2018,G19,IF(B34=2019,G14)))) -> 0 | H36: тыс. руб.
A38: Размер расходов, связанных с предоставлением беспроцентной рассрочки, в i-м квартале в течение трехлетнего периода предоставления беспроцентной рассрочки рассчитывается по формуле (1):
D40: , (1)
A42: где:
A43: - суммарный размер платы за технологическое присоединение, начисляемый заявителям, которым предоставляется рассрочка, в квартале k периода регулирования (тыс. руб.);
A44: k - номер квартала по порядку в периоде регулирования, в который начисляется размер платы за технологическое присоединение (равен от 1 до 4);
A45: i - номер квартала по порядку, начиная с момента начисления размера платы за технологическое присоединение с условием предоставления беспроцентной рассрочки в квартале k, с учетом квартала, в котором произведены начисления, в течение трехлетнего периода предоставления беспроцентной рассрочки (равен от k до 12 + k - 1);
A46: - ставка рефинансирования Центрального банка Российской Федерации на дату представления сетевой организацией заявки на установление размера платы за технологическое присоединение в регулирующий орган.
A47: В случае отклонения фактического значения процентной ставки по кредитам, связанным с рассрочкой по оплате технологического присоединения, от ставки рефинансирования Центрального банка Российской Федерации, при расчете фактического размера расходов, связанных с предоставлением беспроцентной рассрочки, применяется величина процентной ставки в соответствии с пунктом 87 Основ ценообразования.
A49: Примечание:
A50: 1) Периодом предоставления беспроцентной рассрочки считается 3 года.
A51: 2) Размер расходов, связанных с предоставлением беспроцентной рассрочки, в каждый квартал периода регулирования в течение трехлетнего периода предоставления беспроцентной рассрочки в отношении планируемого к получению (фактически полученного) от заявителей суммарного размера платы за технологическое присоединение, определяется в соответствии с формулой (1) Методических указаний по определению выпадающих доходов, связанных с осуществлением технологического присоединения к электрическим сетям.
A52: 3) При расчете планируемых значений показателей при заполнении таблиц 1 и 2 применяется планируемая к получению величина суммарного размера платы за технологическое присоединение, подлежащего беспроцентной рассрочке.
A53: 4) При расчете фактических значений показателей при заполнении таблиц 1 и 2 применяется суммарная плата за технологическое присоединение, начисленная с беспроцентной рассрочкой в соответствии с заключенными договорами об осуществлении технологического присоединения к электрическим сетям.

Sheet Возврат заемных средств (hidden)
A2: Расходы на возврат и обслуживание долгосрочных заемных средств, направляемых на финансирование капитальных вложений
A4: ='Инф-я'!C13 -> ООО "МОНОСТРОЙ"
N5: тыс. руб.
A6: Показатели | B6: 2018 год | D6: 2019 год | F6: 2020 год | H6: 2021 год | J6: 2022 год | L6: 2023 год | N6: 2024 год
B7: Утверждено | C7: Факт | D7: Утверждено | E7: Ожидаемые | F7: По данным организации | G7: По данным экспертов | H7: По данным организации | I7: По данным экспертов | J7: По данным организации | K7: По данным экспертов | L7: По данным организации | M7: По данным экспертов | N7: По данным организации | O7: По данным экспертов
A8: 1 | B8: 2 | C8: 3 | D8: 4 | E8: 5 | F8: 6 | G8: 7 | H8: 8 | I8: 9 | J8: 10 | K8: 11 | L8: 12 | M8: 13 | N8: 14 | O8: 15
A11: Итого расходы на возврат и обслуживание долгосрочных заемных средств, направляемых на финансирование капитальных вложений | B11: =B10+B9 -> 0 | C11: 0 | D11: 0 | E11: 0 | F11: 0 | G11: 0 | H11: =H10+H9 -> 0 | I11: 0 | J11: 0 | K11: 0 | L11: 0 | M11: 0 | N11: 0 | O11: 0
A12: в т.ч. по уровням напряжения: ВН | B12: х | C12: х | E12: х
A13: СН1 | B13: х | C13: х | E13: х
A14: СН11 | B14: х | C14: х | E14: х
A15: НН | B15: х | C15: х | E15: х
A17: Руководитель организации | D17: ='Инф-я'!$C$21 -> Чижов Олег Александрович

Sheet Корр. ПР
A2: Корректировка подконтрольных расходов по результатам 2018 года
A4: ='Инф-я'!C13 -> ООО "МОНОСТРОЙ"
A6: № п.п. | B6: Наименование | C6: Ед.изм. | D6: 2018 год
D8: По расчету организации | E8: По расчету экспертов
A9: 1 | B9: 2 | C9: 3 | D9: 4 | E9: 5
A10: 1. | B10: Величина подконтрольных расходов, утвержденных на 2017 год | C10: тыс. руб. | D10: ='Подконтрольные расходы'!F24 -> 1512.307553 | E10: =D10 -> 1512.307553
A11: 2. | B11: Величина подконтрольных расходов, утвержденных на 2018 год | C11: тыс. руб. | D11: =' НВВ содержание'!C9 -> 3057.741361 | E11: =D11 -> 3057.741361
A12: 3. | B12: Фактический индекс потребительских цен 2018 года (ИПЦ) | C12: % | D12: ='Подконтрольные расходы'!I12 -> 0.034 | E12: =D12 -> 0.034
A13: 4. | B13: Индекс эффективности подконтрольных расходов (Хэф) | C13: % | D13: ='Подконтрольные расходы'!H10 -> 0.01 | E13: =D13 -> 0.01
A14: 5. | B14: Индекс изменения количества активов (ИКА ф) ((стр.5.1.- стр. 5.2.)/стр.5.2*100) | C14: % | D14: =IF(D16=0,0,(D15-D16)/D16) -> 0.09215499639 | E14: =IF(E16=0,0,(E15-E16)/E16) -> -1
A15: 5.1. | B15: фактический объем условных единиц 2018 года | C15: усл. ед. | D15: ='УЕ ТП 2017-2024'!L60 -> 71.1397 | E15: ='УЕ ТП 2017-2024'!N60 -> 0
A16: 5.2. | B16: фактический объем условных единиц 2017 года | C16: усл. ед. | D16: ='УЕ ТП 2017-2024'!H60 -> 65.137 | E16: =D16 -> 65.137
A17: 6. | B17: Коэффициент эластичности подконтрольных расходов по количеству активов (К эл) | C17: знач. | D17: 0.75 | E17: 0.75
A18: Итого корректировка подконтрольных расходов | C18: тыс. руб. | D18: =D10*(1+D12)*(1+D17*D14)*(1-D13)-D11 -> -1402.654527 | E18: =E10*(1+E12)*(1+E17*E14)*(1-E13)-E11 -> -2670.719174
B20: Руководитель организации | C20: ='Инф-я'!$C$21 -> Чижов Олег Александрович

Sheet Корр. ПО
A2: Корректировка НВВ с учетом изменения полезного отпуска и цен на электрическую энергию за 2018 год
A4: ='Инф-я'!C13 -> ООО "МОНОСТРОЙ"
A6: Месяц (Период) | B6: Вход электрической энергии в сеть организации для передачи сторонним потребителям | D6: Норматив потерь | E6: Объем потерь 2018 года | G6: Цена покупки потерь электрической энергии | I6: Величина корректировки
B7: План | C7: Факт | E7: Согласовано регулирующим органом | F7: Факт | G7: Учтенная при установлении тарифа | H7: Фактическая цена | I7: По данным организации | J7: По данным экспертов
A8: Ед.изм. | B8: тыс.кВт.ч. | C8: тыс.кВт.ч. | D8: % | E8: тыс.кВт.ч. | F8: тыс.кВт.ч. | G8: руб/тыс.кВт.ч | H8: руб/тыс.кВт.ч | I8: тыс. руб. | J8: тыс. руб.
A9: По данным организации
A10: Январь | B10: х | C10: 679.269 | D10: х | E10: х | F10: 39.649 | G10: х | H10: 2359.420414 | I10: х | J10: х
A11: Февраль | B11: х | C11: 766.349 | D11: х | E11: х | F11: 111.119 | G11: х | H11: 2522.512892 | I11: х | J11: х
A12: Март | B12: х | C12: 689.444 | D12: х | E12: х | F12: 79.525 | G12: х | H12: 2357.765483 | I12: х | J12: х
A13: Апрель | B13: х | C13: 677.103 | D13: х | E13: х | F13: 57.052 | G13: х | H13: 2572.486679 | I13: х | J13: х
A14: Май | B14: х | C14: 530.711 | D14: х | E14: х | F14: 32.664 | G14: х | H14: 2416.700955 | I14: х | J14: х
A15: Июнь | B15: х | C15: 549.208 | D15: х | E15: х | F15: 32.8 | G15: х | H15: 2392.714329 | I15: х | J15: х
A16: 1 полугодие | B16: =6746/2 -> 3373 | C16: =C10+C11+C12+C13+C14+C15 -> 3892.084 | D16: х | E16: =276/2 -> 138 | F16: =F10+F11+F12+F13+F14+F15 -> 352.809 | G16: 2675.78 | H16: х | I16: х
A17: Июль | C17: 568.73 | D17: х | E17: х | F17: 52.351 | G17: х | H17: 2705.324827 | I17: х | J17: х
A18: Август | B18: х | C18: 532.455 | D18: х | E18: х | F18: 18.858 | G18: х | H18: 2417.760102 | I18: х | J18: х
A19: Сентябрь | B19: х | C19: 630.625 | D19: х | E19: х | F19: 100.082 | G19: х | H19: 2985.296857 | I19: х | J19: х
A20: Октябрь | B20: х | C20: 700.869 | D20: х | E20: х | F20: 53.503 | G20: х | H20: 2745.686784 | I20: х | J20: х
A21: Ноябрь | B21: х | C21: 753.161 | D21: х | E21: х | F21: 87.378 | G21: х | H21: 2854.25931 | I21: х | J21: х
A22: Декабрь | B22: х | C22: 789.972 | D22: х | E22: х | F22: 50.64 | G22: х | H22: 2498.311611 | I22: х | J22: х
A23: 2 полугодие | B23: =6746/2 -> 3373 | C23: =C17+C18+C19+C20+C21+C22 -> 3975.812 | D23: х | E23: =276/2 -> 138 | F23: =F17+F18+F19+F20+F21+F22 -> 362.812 | G23: 2675.78 | H23: х | I23: х | J23: х
A24: ВСЕГО: | B24: =B16+B23 -> 6746 | C24: =C16+C23 -> 7867.896 | D24: =E24/B24 -> 0.04091313371 | E24: =E16+E23 -> 276 | F24: =F16+F23 -> 715.621 | G24: =IF(E24=0,0,(E16*G16+E23*G23)/E24) -> 2675.78 | H24: =IF(F24=0,0,(F10*H10+F11*H11+F12*H12+F13*H13+F14*H14+F15*H15+F17*H17+F18*H18+F19*H19+F20*H20+F21*H21+F22*H22)/F24) -> 2619.188425 | I24: =IFERROR((C24-B24)*D24*H24+B24*(H24-G24)*D24,0)/1000 -> 104.6022102 | J24: х
A25: По данным экспертов
A26: Январь | B26: х | D26: х | E26: х | G26: х | I26: х | J26: х
A27: Февраль | B27: х | D27: х | E27: х | G27: х | I27: х | J27: х
A28: Март | B28: х | D28: х | E28: х | G28: х | I28: х | J28: х
A29: Апрель | B29: х | D29: х | E29: х | G29: х | I29: х | J29: х
A30: Май | B30: х | D30: х | E30: х | G30: х | I30: х | J30: х
A31: Июнь | B31: х | D31: х | E31: х | G31: х | I31: х | J31: х
A32: 1 полугодие | C32: =C26+C27+C28+C29+C30+C31 -> 0 | D32: х | F32: =F26+F27+F28+F29+F30+F31 -> 0 | H32: х | I32: х | J32: х
A33: Июль | B33: х | D33: х | E33: х | G33: х | I33: х | J33: х
A34: Август | B34: х | D34: х | E34: х | G34: х | I34: х | J34: х
A35: Сентябрь | B35: х | D35: х | E35: х | G35: х | I35: х | J35: х
A36: Октябрь | B36: х | D36: х | E36: х | G36: х | I36: х | J36: х
A37: Ноябрь | B37: х | D37: х | E37: х | G37: х | I37: х | J37: х
A38: Декабрь | B38: х | D38: х | E38: х | G38: х | I38: х | J38: х
A39: 2 полугодие | C39: =C33+C34+C35+C36+C37+C38 -> 0 | D39: х | F39: =F33+F34+F35+F36+F37+F38 -> 0 | H39: х | I39: х | J39: х
A40: ВСЕГО: | B40: =B32+B39 -> 0 | C40: =C32+C39 -> 0 | D40: =E40/B40 ->  | E40: =E32+E39 -> 0 | F40: =F32+F39 -> 0 | G40: =IF(E40=0,0,(E32*G32+E39*G39)/E40) -> 0 | H40: =IF(F40=0,0,(F26*H26+F27*H27+F28*H28+F29*H29+F30*H30+F31*H31+F33*H33+F34*H34+F35*H35+F36*H36+F37*H37+F38*H38)/F40) -> 0 | I40: х | J40: =IFERROR((C40-B40)*D40*H40+B40*(H40-G40)*D40,0)/1000 -> 0
A42: Руководитель организации | F42: ='Инф-я'!$C$21 -> Чижов Олег Александрович

Sheet Корр.НВВ
A1: Корректировка необходимой валовой выручки по доходам от осуществления регулируемой деятельности за 2018 год
A2: ='Инф-я'!C13 -> ООО "МОНОСТРОЙ"
C4: тыс. руб.
B5: Наименование показателя | C5: Расчет Общества | D5: Расчет Экспертов | G5: 1 полугодие 2018 г. | J5: 2 полугодие 2018 г.
B6: НВВ сод 2018 | C6: 3645.52 | G6: Двухставочный тариф | I6: Одноставочный тариф | J6: Двухставочный тариф | L6: Одноставоч-ный тариф
B7: НВВ факт 2018 | C7: =E32+M32 -> 3645.51967 | D7: =E47+M47 -> 0 | G7: ставка за содержание электрических сетей | H7: ставка на оплату технологического расхода (потерь) | J7: ставка за содержание электрических сетей | K7: ставка на оплату технологического расхода (потерь)
B8: ∆ НВВ сод за 2018 год | C8: =C6-C7 -> 0.0003303039994 | D8: =D6-D7 -> 0 | G8: руб./кВт мес. | H8: руб./ кВт ч | I8: руб./ кВт ч | J8: руб./кВт мес. | K8: руб./ кВт ч | L8: руб./ кВт ч
G9: =283.38945 -> 283.38945 | H9: 0.1098 | I9: 0.68441 | J9: 286.41887 | K9: 0.11828 | L9: 0.6711
B11: Руководитель организации | D11: ='Инф-я'!C21 -> Чижов Олег Александрович
B14: Расчет доходов, полученных согласно актам оказания услуг Владимирэнерго
B15: 1. Доходы по двухставочному тарифу | I15: 1. Итого доходы по двухставочному тарифу, тыс. руб. | J15: 2. Доходы по одноставочному тарифу
C16: 1.1. Доходы на содержание сетей | E16: Доходы на содержание сетей, тыс. руб. | F16: 1.2. Доходы на компенсацию потерь | H16: Доходы на компенсацию нормативных потерь, тыс. руб. | J16: полезный отпуск, тыс кВт ч | K16: одноставочный инд тариф, руб./тыс. кВт ч | L16: Итого доходы по одноставочному тарифу, тыс. руб.
C17: договорная мощность, МВт | D17: ставка на содержание сетей, руб./МВт мес. | F17: полезный отпуск, тыс кВт ч | G17: инд тариф на потери, руб./ тыс.кВт ч | L17: Всего: | M17: в том числе, доходы на содержание сетей
B18: январь | C18: 1.0663 | D18: =$G$9*1000 -> 283389.45 | E18: =C18*D18/1000 -> 302.1781705 | F18: 639.62 | G18: =$H$9*1000 -> 109.8 | H18: =F18*$G$18/1000 -> 70.230276 | I18: =E18+H18 -> 372.4084465 | K18: =$I$9*1000 -> 684.41 | L18: =J18*K18/1000 -> 0 | M18: =J18*(K18-G18)/1000 -> 0
B19: февраль | C19: 1.0663 | D19: 283389.45 | E19: =C19*D19/1000 -> 302.1781705 | F19: 655.23 | G19: 109.8 | H19: =F19*$G$18/1000 -> 71.944254 | I19: 374.1224245 | K19: 684.41 | L19: =J19*K19/1000 -> 0 | M19: =J19*(K19-G19)/1000 -> 0
B20: март | C20: 1.0663 | D20: 283389.45 | E20: 302.1781705 | F20: 609.919 | G20: 109.8 | H20: 66.9691062 | I20: 369.1472767 | K20: 684.41 | L20: 0 | M20: 0
B21: апрель | C21: 1.0663 | D21: 283389.45 | E21: 302.1781705 | F21: 620.051 | G21: 109.8 | H21: 68.0815998 | I21: 370.2597703 | K21: 684.41 | L21: 0 | M21: 0
B22: май | C22: 1.0663 | D22: 283389.45 | E22: 302.1781705 | F22: 498.047 | G22: 109.8 | H22: 54.6855606 | I22: 356.8637311 | K22: 684.41 | L22: 0 | M22: 0
B23: июнь | C23: 1.0663 | D23: 283389.45 | E23: 302.1781705 | F23: 516.408 | G23: 109.8 | H23: 56.7015984 | I23: 358.8797689 | K23: 684.41 | L23: 0 | M23: 0
B24: Итого 1 пол. | C24: х | D24: х | E24: =SUM(E18:E23) -> 1813.069023 | F24: =SUM(F18:F23) -> 3539.275 | G24: х | H24: =SUM(H18:H23) -> 388.612395 | I24: 2201.681418 | J24: =SUM(J18:J23) -> 0 | K24: х | L24: =SUM(L18:L23) -> 0 | M24: =SUM(M18:M23) -> 0
B25: июль | C25: 1.0663 | D25: =$J$9*1000 -> 286418.87 | E25: =C25*D25/1000 -> 305.4084411 | F25: 516.379 | G25: =$K$9*1000 -> 118.28 | H25: =F25*$G$25/1000 -> 61.07730812 | I25: 366.4857492 | K25: =$L$9*1000 -> 671.1 | L25: =J25*K25/1000 -> 0 | M25: =J25*(K25-G25)/1000 -> 0
B26: август | C26: 1.0663 | D26: 286418.87 | E26: 305.4084411 | F26: 513.597 | G26: 118.28 | H26: 60.74825316 | I26: 366.1566942 | K26: 671.1 | L26: 0 | M26: 0
B27: сентябрь | C27: 1.0663 | D27: 286418.87 | E27: 305.4084411 | F27: 530.543 | G27: 118.28 | H27: 62.75262604 | I27: 368.1610671 | K27: 671.1 | L27: 0 | M27: 0
B28: октябрь | C28: 1.0663 | D28: 286418.87 | E28: 305.4084411 | F28: 647.366 | G28: 118.28 | H28: 76.57045048 | I28: 381.9788916 | K28: 671.1 | L28: 0 | M28: 0
B29: ноябрь | C29: 1.0663 | D29: 286418.87 | E29: 305.4084411 | F29: 665.783 | G29: 118.28 | H29: 78.74881324 | I29: 384.1572543 | K29: 671.1 | L29: 0 | M29: 0
B30: декабрь | C30: 1.0663 | D30: 286418.87 | E30: 305.4084411 | F30: 739.332 | G30: 118.28 | H30: 87.44818896 | I30: 392.85663 | K30: 671.1 | L30: 0 | M30: 0
B31: Итого 2 пол. | C31: х | D31: х | E31: =SUM(E25:E30) -> 1832.450646 | F31: =SUM(F25:F30) -> 3613 | G31: х | H31: =SUM(H25:H30) -> 427.34564 | I31: 2259.796286 | J31: =SUM(J25:J30) -> 0 | K31: х | L31: =SUM(L25:L30) -> 0 | M31: =SUM(M25:M30) -> 0
B32: Всего за 2018 г. | C32: х | D32: х | E32: =E24+E31 -> 3645.51967 | F32: =F24+F31 -> 7152.275 | G32: х | H32: =H24+H31 -> 815.958035 | I32: =I24+I31 -> 4461.477705 | J32: =J24+J31 -> 0 | K32: х | L32: х | M32: =M24+M31 -> 0
B33: январь | D33: =$G$9*1000 -> 283389.45 | E33: =C33*D33/1000 -> 0 | G33: =$H$9*1000 -> 109.8 | H33: =F33*$G$33/1000 -> 0 | I33: =E33+H33 -> 0 | K33: =$I$9*1000 -> 684.41 | L33: =J33*K33/1000 -> 0 | M33: =J33*(K33-G33)/1000 -> 0
B34: февраль | D34: 283389.45 | E34: 0 | G34: 109.8 | H34: =F34*$G$33/1000 -> 0 | I34: 0 | K34: 684.41 | L34: 0 | M34: 0
B35: март | D35: 283389.45 | E35: 0 | G35: 109.8 | H35: 0 | I35: 0 | K35: 684.41 | L35: 0 | M35: 0
B36: апрель | D36: 283389.45 | E36: 0 | G36: 109.8 | H36: 0 | I36: 0 | K36: 684.41 | L36: 0 | M36: 0
B37: май | D37: 283389.45 | E37: 0 | G37: 109.8 | H37: 0 | I37: 0 | K37: 684.41 | L37: 0 | M37: 0
B38: июнь | D38: 283389.45 | E38: 0 | G38: 109.8 | H38: 0 | I38: 0 | K38: 684.41 | L38: 0 | M38: 0
B39: Итого 1 пол. | C39: =SUM(C33:C38) -> 0 | D39: х | E39: =SUM(E33:E38) -> 0 | F39: =SUM(F33:F38) -> 0 | G39: х | H39: =SUM(H33:H38) -> 0 | I39: 0 | J39: =SUM(J33:J38) -> 0 | K39: х | L39: =SUM(L33:L38) -> 0 | M39: =SUM(M33:M38) -> 0
B40: июль | D40: =$J$9*1000 -> 286418.87 | E40: =C40*D40/1000 -> 0 | G40: =$K$9*1000 -> 118.28 | H40: =F40*$G$40/1000 -> 0 | I40: 0 | K40: =$L$9*1000 -> 671.1 | L40: =J40*K40/1000 -> 0 | M40: =J40*(K40-G40)/1000 -> 0
B41: август | D41: 286418.87 | E41: 0 | G41: 118.28 | H41: =F41*$G$40/1000 -> 0 | I41: 0 | K41: 671.1 | L41: 0 | M41: =J41*(K41-G41)/1000 -> 0
B42: сентябрь | D42: 286418.87 | E42: 0 | G42: 118.28 | H42: 0 | I42: 0 | K42: 671.1 | L42: 0 | M42: 0
B43: октябрь | D43: 286418.87 | E43: 0 | G43: 118.28 | H43: 0 | I43: 0 | K43: 671.1 | L43: 0 | M43: 0
B44: ноябрь | D44: 286418.87 | E44: 0 | G44: 118.28 | H44: 0 | I44: 0 | K44: 671.1 | L44: 0 | M44: 0
B45: декабрь | D45: 286418.87 | E45: 0 | G45: 118.28 | H45: 0 | I45: 0 | K45: 671.1 | L45: 0 | M45: 0
B46: Итого 2 пол. | C46: =SUM(C40:C45) -> 0 | D46: х | E46: =SUM(E40:E45) -> 0 | F46: =SUM(F40:F45) -> 0 | G46: х | H46: =SUM(H40:H45) -> 0 | I46: 0 | J46: =SUM(J40:J45) -> 0 | K46: х | L46: =SUM(L40:L45) -> 0 | M46: =SUM(M40:M45) -> 0
B47: Всего за 2018 г. | C47: х | D47: х | E47: =E39+E46 -> 0 | F47: =F39+F46 -> 0 | G47: х | H47: =H39+H46 -> 0 | I47: х | J47: =J39+J46 -> 0 | K47: х | L47: х | M47: =M39+M46 -> 0

Sheet Корр. НР
A2: Корректировка неподконтрольных расходов по результатам 2018 года
A4: ='Инф-я'!C13 -> ООО "МОНОСТРОЙ"
A6: № п/п | B6: Наименование показателей | C6: 2018 год утверждено | D6: По данным организации | F6: По данным экспертов
D7: Факт 2018 год | E7: Величина корректировки НР | F7: Факт 2018 год | G7: Величина корректировки НР
A8: 1 | B8: 2 | C8: 3 | D8: 4 | E8: 5 | F8: 6 | G8: 7
A9: 1. | B9: Страховые взносы во внебюджетные фонды | C9: ='Страховые взносы'!D18 -> 302.29 | D9: ='Страховые взносы'!E18 -> 432.168327 | E9: =D9-C9 -> 129.878327 | F9: ='Страховые взносы'!R18 -> 0 | G9: =F9-C9 -> -302.29
A10: 2. | B10: Расходы на оплату услуг организаций, осуществляющих регулируемые виды деятельности | C10: ='Расходы рег. орг-ий'!B23 -> 0 | D10: ='Расходы рег. орг-ий'!C23 -> 0 | E10: 0 | F10: ='Расходы рег. орг-ий'!P23 -> 0 | G10: 0
A11: 3. | B11: Плата за землю | C11: ='Плата за землю'!B18 -> 0 | D11: ='Плата за землю'!C18 -> 0 | E11: 0 | F11: ='Плата за землю'!P18 -> 0 | G11: 0
A12: 4. | B12: Транспортный налог | C12: ='Транспортный налог'!D17 -> 0 | D12: ='Транспортный налог'!E17 -> 0 | E12: 0 | F12: ='Транспортный налог'!T17 -> 0 | G12: 0
A13: 5. | B13: Налог на имущество | C13: ='Налог на имущество'!B15 -> 86.8 | D13: ='Налог на имущество'!C15 -> 86.85332766 | E13: 0.05332766 | F13: ='Налог на имущество'!P15 -> 0 | G13: -86.8
A14: 6. | B14: Плата за негативное воздействие на окружающую среду | C14: ='Негативное возд. на окр. среду '!C29 -> 0 | D14: ='Негативное возд. на окр. среду '!D29 -> 0 | E14: 0 | F14: ='Негативное возд. на окр. среду '!Q29 -> 0 | G14: 0
A15: 7. | B15: Налог на прибыль | C15: ='Налог на прибыль'!C20 -> 0 | D15: ='Налог на прибыль'!D20 -> 0 | E15: 0 | F15: ='Налог на прибыль'!P20 -> 0 | G15: 0
A16: 8. | B16: Плата за аренду имущества | C16: ='Аренда имущества'!B33 -> 0 | D16: ='Аренда имущества'!C33 -> 0 | E16: 0 | F16: ='Аренда имущества'!AD33 -> 0 | G16: 0
A17: 9. | B17: Оплата услуг ПАО "ФСК ЕЭС" | C17: ='Услуги ФСК'!B17 -> 0 | D17: ='Услуги ФСК'!E17 -> 0 | E17: 0 | F17: ='Услуги ФСК'!X17 -> 0 | G17: 0
A18: 10. | B18: Прочие обоснованные неподконтрольные расходы | C18: ='Прочие НР'!B15 -> 99.99 | D18: ='Прочие НР'!C15 -> 99.992 | E18: 0.002 | F18: ='Прочие НР'!P15 -> 0 | G18: -99.99
A19: Итого корректировка неподконтрольных расходов по результатам 2018 года | C19: =SUM(C9:C18) -> 489.08 | D19: =SUM(D9:D18) -> 619.0136547 | E19: =SUM(E9:E18) -> 129.9336547 | F19: =SUM(F9:F18) -> 0 | G19: =SUM(G9:G18) -> -489.08
A21: Руководитель организации | C21: ='Инф-я'!$C$21 -> Чижов Олег Александрович

Sheet Корр. ИП
A2: Корректировка НВВ в связи с изменением (неисполнением) инвестиционной программы по результатам 2018 года
A4: ='Инф-я'!C13 -> ООО "МОНОСТРОЙ"
A6: № п/п | B6: Наименование показателей | C6: Обозначение в методических указаниях | D6: По данным организации | E6: По данным экспертов
A7: 1 | B7: 2 | C7: 3 | D7: 4 | E7: 5
A8: 1. | B8: Расчетная величина собственных средств регулируемой организации для финансирования инвестиционной программы, учтенная при установлении тарифов в 2018 году, которая не может принимать отрицательные значения, всего, в том числе: | D8: =IF((D9+D10)>=D11,D11,(D9+D10)) -> 0 | E8: =IF((E9+E10)>=E11,E11,(E9+E10)) -> 0
B9: -амортизация | D9: =' КВЛ'!B18 -> 0
B10: - капитальные вложения из прибыли | D10: =' КВЛ'!B20 -> 0
A11: 2. | B11: Плановый размер финансирования инвестиционной программы, представляющей собой совокупность инвестиционных проектов, утвержденной (скорректированной) в установленном порядке на 2018 год до его начала, за счет собственных средств (выручки от реализации товаров (услуг) по регулируемым ценам (тарифам)) без НДС | D11: =' КВЛ'!B17-' КВЛ'!B19 -> 0
A12: 3. | B12: Объем фактического финансирования инвестиционной программы, представляющей собой совокупность инвестиционных проектов, утвержденной (скорректированной) в установленном порядке на 2018 год до его начала, за счет собственных средств (выручки от реализации товаров (услуг) по регулируемым ценам (тарифам)) без НДС в 2018 году | D12: =' КВЛ'!C17-' КВЛ'!C19 -> 0
A13: 4. | B13: Учтенная при расчете тарифов на 2018 год корректировка необходимой валовой выручки на 2018-ой год долгосрочного периода регулирования, осуществленная в связи с изменением (неисполнением) инвестиционной программы за истекший период 2018-го года по результатам 9 месяцев | D13: 0
B14: Итого корректировка НВВ в связи с изменением (неисполнением) инвестиционной программы по результатам 2018 года | D14: =IF(D11=0,0,D8*(D12/D11-1)-D13) -> 0 | E14: =IF(E11=0,0,E8*(E12/E11-1)) -> 0
A17: Руководитель организации | C17: ='Инф-я'!$C$21 -> Чижов Олег Александрович

Sheet НВВ для шаблона ЕИАС предел (hidden)
A2: Наименование организации | B2: Период | C2: Расчет коэффициента индексации | M2: Расчет подконтрольных расходов | AH2: Расчет неподконтрольных расходов | BB2: Расходы, связанные с компенсацией незапланированных расходов или полученного избытка | BC2: Итого НВВ на содержание сетей | BD2: в том числе | BF2: Доля стороннего отпуска в сеть от организаций, занимающихся несколькими видами деятельности (без собственных нужд) | BG2: Отношение НВВ на содержание сетей текущего года к предыдущему года | BH2: Поступление в сеть электроэнергии | BI2: Объем технологического расхода (потерь) | BJ2: Тариф на покупку потерь | BK2: Норматив техноло-гического расхода (потерь) электро-энергии | BL2: Итого расходов на оплату потерь | BM2: в том числе | BO2: Прирост расходов на оплату потерь текущего года к предыдущему году | BP2: Поступление в сеть мощности | BQ2: Уровень надежности реализуемых товаров (услуг) (П п) | BR2: Уровень качества реализуемых товаров (услуг) (П тсо) | BS2: Уровень качества реализуемых товаров (услуг) (П тпр)
C3: Инфляция | D3: Индекс эффективности операционных расходов | E3: Количество активов, всего | F3: ВН | G3: СН1 | H3: СН2 | I3: НН | J3: Индекс изменения количества активов | K3: Коэффициент эластичности затрат по росту активов | L3: Итого коэффициент индексации | M3: Материальные затраты | N3: Сырье, материалы, запасные части, инструмент, топливо | O3: Работы и услуги производственного характера (в т.ч. услуги сторонних организаций по содержанию сетей и распределительных устройств) | P3: Расходы на оплату труда | Q3: Прочие расходы, всего, в том числе: | R3: Ремонт основных фондов | S3: Оплата работ и услуг сторонних организаций | T3: услуги связи | U3: Расходы на услуги вневедомственной охраны и коммунального хозяйства | V3: Расходы на юридические и информационные услуги | W3: Расходы на аудиторские и консультационные услуги | X3: Транспортные услуги | Y3: Прочие услуги сторонних организаций | Z3: Расходы на командировки и представительские | AA3: Расходы на подготовку кадров | AB3: Расходы на обеспечение нормальных условий труда и мер по технике безопасности | AC3: Расходы на страхование | AD3: Другие прочие расходы | AE3: Электроэнергия на хоз. нужды | AF3: Подконтрольные расходы из прибыли | AG3: ИТОГО подконтрольные расходы | AH3: Оплата услуг ОАО "ФСК ЕЭС" | AI3: в том числе | AK3: Теплоэнергия | AL3: Аренда, всего | AM3: в том числе аренда объектов электро- сетевого комплекса | AN3: Налоги (без учета налога на прибыль), всего, в том числе: | AO3: плата за землю | AP3: Налог на имущество | AQ3: Прочие налоги и сборы | AR3: Отчисления на социальные нужды (ЕСН) | AS3: Прочие неподконтрольные расходы | AT3: Налог на прибыль, в том числе: | AU3: налог на прибыль на капитальные вложения | AV3: Выпадающие доходы по п.87 Основ ценообразования | AW3: Амортизация ОС | AX3: Прибыль на капитальные вложения | AY3: Возврат заемных средств, направляемый на финансирование капитальных вложений | AZ3: Проверка прибыли на капитальные вложения (не более 12% от НВВ на содержание сетей) | BA3: ИТОГО неподконтрольных расходов
AI4: Оплата услуг ОАО "ФСК ЕЭС" 1 полугодие | AJ4: Оплата услуг ОАО "ФСК ЕЭС" 2 полугодие | BD4: НВВ на 1 полугодие | BE4: НВВ на 2 полугодие | BM4: расходы на 1 полугодие | BN4: расходы на 2 полугодие
C5: % | D5: % | E5: у.е. | F5: у.е. | G5: у.е. | H5: у.е. | I5: у.е. | J5: % | M5: тыс.руб | N5: тыс.руб | O5: тыс.руб | P5: тыс.руб | Q5: тыс.руб | R5: тыс.руб | S5: тыс.руб | T5: тыс.руб | U5: тыс.руб | V5: тыс.руб | W5: тыс.руб | X5: тыс.руб | Y5: тыс.руб | Z5: тыс.руб | AA5: тыс.руб | AB5: тыс.руб | AC5: тыс.руб | AD5: тыс.руб | AE5: тыс.руб | AF5: тыс.руб | AG5: тыс.руб | AH5: тыс.руб | AI5: тыс.руб | AJ5: тыс.руб | AK5: тыс.руб | AL5: тыс.руб | AM5: тыс.руб | AN5: тыс.руб | AO5: тыс.руб | AP5: тыс.руб | AQ5: тыс.руб | AR5: тыс.руб | AS5: тыс.руб | AT5: тыс.руб | AU5: тыс.руб | AV5: тыс.руб | AW5: тыс.руб | AX5: тыс.руб | AY5: тыс.руб | AZ5: % | BA5: тыс.руб | BB5: тыс.руб | BC5: тыс.руб | BD5: тыс.руб | BE5: тыс.руб | BF5: % | BG5: % | BH5: млн.кВтч | BI5: млн.кВтч | BJ5: руб./МВтч | BK5: % | BL5: тыс.руб | BM5: тыс.руб | BN5: тыс.руб | BO5: % | BP5: МВт
A6: А | B6: Б | C6: 0.1 | D6: 0.2 | E6: 0.3 | F6: 0.3.1 | G6: 0.3.2 | H6: 0.3.3 | I6: 0.3.4 | J6: 0.4 | K6: 0.5 | L6: 0.6 | M6: 1.1 | N6: 1.1.1 | O6: 1.1.2 | P6: 1.2 | Q6: 1.3 | R6: 1.3.1 | S6: 1.3.2 | T6: 1.3.2.1 | U6: 1.3.2.2 | V6: 1.3.2.3 | W6: 1.3.2.4 | X6: 1.3.2.5 | Y6: 1.3.2.6 | Z6: 1.3.3 | AA6: 1.3.4 | AB6: 1.3.5 | AC6: 1.3.6 | AD6: 1.3.7 | AE6: 1.4 | AF6: 1.5 | AG6: 1.6 | AH6: 2.1 | AI6: 2.1.1 | AJ6: 2.1.2 | AK6: 2.2 | AL6: 2.3 | AM6: 2.3.1 | AN6: 2.4 | AO6: 2.4.1 | AP6: 2.4.2 | AQ6: 2.4.3 | AR6: 2.5 | AS6: 2.6 | AT6: 2.7 | AU6: 2.7.1 | AV6: 2.8 | AW6: 2.9 | AX6: 2.10 | AY6: 2.11 | AZ6: 2.12 | BA6: 2.13 | BB6: 3 | BC6: 4 | BD6: 4.1 | BE6: 4.2 | BF6: 5 | BG6: 6 | BH6: 7 | BI6: 8 | BJ6: 9 | BK6: 10 | BL6: 11 | BM6: 11.1 | BN6: 11.2 | BO6: 12 | BP6: 13 | BQ6: 14 | BR6: 15.1 | BS6: 15.2
A7: =#REF! ->  | B7: 2020 | C7: ='НВВ по данным предпр.'!G17 -> 0.038 | D7: ='НВВ по данным предпр.'!G10 -> 0.01 | E7: =SUM(F7:I7) -> 98.2961 | F7: ='УЕ ТП 2017-2024'!R56 -> 0 | G7: ='УЕ ТП 2017-2024'!R57 -> 0 | H7: ='УЕ ТП 2017-2024'!R58 -> 76.0265 | I7: ='УЕ ТП 2017-2024'!R59 -> 22.2696 | M7: =SUM(N7:O7) -> 2845.266733 | N7: ='НВВ по данным предпр.'!G30 -> 0 | O7: ='НВВ по данным предпр.'!G32+'НВВ по данным предпр.'!G33 -> 2845.266733 | P7: ='НВВ по данным предпр.'!G29 -> 1771.66359 | Q7: =R7+S7+Z7+AA7+AB7+AC7+AD7+AE7+AF7 -> 865.9852088 | R7: ='НВВ по данным предпр.'!G31 -> 822.6798488 | S7: =SUM(T7:Y7) -> 0 | Y7: ='НВВ по данным предпр.'!G34 -> 0 | AF7: ='НВВ по данным предпр.'!G35 -> 43.30536 | AG7: =M7+P7+Q7 -> 5482.915532 | AH7: =AI7+AJ7 -> 0 | AI7: ='Услуги ФСК'!J17 -> 0 | AJ7: ='Услуги ФСК'!K17 -> 0 | AK7: ='НВВ по данным предпр.'!G40 -> 0 | AL7: ='НВВ по данным предпр.'!G47 -> 0 | AN7: =SUM(AO7:AQ7) -> 80.29836009 | AO7: ='НВВ по данным предпр.'!G42 -> 0 | AP7: ='НВВ по данным предпр.'!G44 -> 80.29836009 | AQ7: ='НВВ по данным предпр.'!$G$43+'НВВ по данным предпр.'!$G$45 -> 0 | AR7: ='НВВ по данным предпр.'!$G$39 -> 560.8254056 | AS7: ='НВВ по данным предпр.'!$G$49 -> 107.9433638 | AT7: ='НВВ по данным предпр.'!$G$46 -> 0 | AU7: =$AX$7/0.8*0.2 -> 0 | AV7: ='НВВ по данным предпр.'!$G$51 -> 0 | AW7: ='НВВ по данным предпр.'!$G$38 -> 297.95309 | AX7: ='НВВ по данным предпр.'!$G$50 -> 0 | AY7: ='НВВ по данным предпр.'!$G$52 -> 0 | AZ7: =((AX7+AY7)/(BC7-AH7-AU7-AX7-AY7-AM7)) -> 0 | BA7: =AH7+AK7+AL7+AN7+AS7+AT7+AV7+AR7+AW7+AX7+AY7 -> 1047.020219 | BB7: ='НВВ по данным предпр.'!G66+'НВВ по данным предпр.'!G67 -> -1168.12 | BC7: =SUM(BA7,BB7,AG7) -> 5361.815752 | BH7: ='Баланс энергии'!R9/1000 -> 11.4999758 | BI7: ='НВВ на потери'!I11 -> 0.8291394418 | BJ7: ='НВВ на потери'!I12 -> 2877.5831 | BK7: =IF(BH7=0,0,BI7/BH7) -> 0.07209923362 | BL7: ='НВВ на потери'!I13 -> 2385.917645 | BM7: ='НВВ на потери'!G13 -> 1096.383764 | BN7: =BL7-BM7 -> 1289.533881 | BP7: ='Баланс мощности'!C10 -> 0 | BQ7: ='НВВ по данным предпр.'!G13 -> х | BR7: ='НВВ по данным предпр.'!G14 -> х | BS7: ='НВВ по данным предпр.'!G15 -> х
B8: 2021 | C8: ='Подконтрольные расходы'!R12 -> 0.04 | D8: =D7 -> 0.01 | E8: =SUM(F8:I8) -> 98.2961 | F8: ='УЕ ТП 2017-2024'!V56 -> 0 | G8: ='УЕ ТП 2017-2024'!V57 -> 0 | H8: ='УЕ ТП 2017-2024'!V58 -> 76.0265 | I8: ='УЕ ТП 2017-2024'!V59 -> 22.2696 | J8: =IF(E7=0,0,(E8-E7)/E7*K8) -> 0 | K8: 0.75 | L8: =(1+C8)*(1-D8)*(1+J8) -> 1.0296 | M8: =SUM(N8:O8) -> 2929.486629 | N8: =N7*$L8 -> 0 | O8: =O7*L8 -> 2929.486629 | P8: =P7*$L8 -> 1824.104832 | Q8: =R8+S8+Z8+AA8+AB8+AC8+AD8+AE8+AF8 -> 891.618371 | R8: =R7*$L8 -> 847.0311723 | S8: =SUM(T8:Y8) -> 0 | T8: =T7*$L8 -> 0 | U8: =U7*L8 -> 0 | V8: =V7*L8 -> 0 | W8: =W7*$L8 -> 0 | X8: =X7*$L8 -> 0 | Y8: 0 | Z8: 0 | AA8: 0 | AB8: 0 | AC8: 0 | AD8: 0 | AE8: 0 | AF8: 44.58719866 | AG8: =M8+P8+Q8 -> 5645.209832 | AH8: =AI8+AJ8 -> 0 | AI8: ='Услуги ФСК'!P17/2 -> 0 | AJ8: =AI8 -> 0 | AK8: ='Расходы рег. орг-ий'!H10 -> 0 | AL8: ='Аренда имущества'!V33 -> 0 | AM8: ='Аренда имущества'!V38 -> 0 | AN8: =SUM(AO8:AQ8) -> 77.02087734 | AO8: ='Плата за землю'!H18 -> 0 | AP8: ='НВВ по данным предпр.'!H44 -> 77.02087734 | AQ8: ='НВВ по данным предпр.'!$H$43+'НВВ по данным предпр.'!$H$45 -> 0 | AR8: ='НВВ по данным предпр.'!$H$39 -> 577.4258376 | AS8: ='НВВ по данным предпр.'!$H$49 -> 112.2610984 | AT8: ='НВВ по данным предпр.'!$H$46 -> 0 | AU8: =$AX$7/0.8*0.2 -> 0 | AV8: ='НВВ по данным предпр.'!$H$51 -> х | AW8: ='НВВ по данным предпр.'!$H$38 -> 297.95309 | AX8: ='НВВ по данным предпр.'!$H$50 -> 0 | AY8: ='НВВ по данным предпр.'!$H$52 -> 0 | AZ8: =nerr((AX8+AY8)/(BC8-AH8-AU8-AX8-AY8-AM8)) ->  | BA8: =AH8+AK8+AL8+AN8+AS8+AT8+AV8+AR8+AW8+AX8+AY8 ->  | BB8: ='НВВ по данным предпр.'!$H$60 -> x | BC8: =SUM(BA8,BB8,AG8) ->  | BF8: =nerr((BD8+BE8)/BC8) ->  | BG8: =nerr((BC8-BC7)/BC7) ->  | BH8: =BH7 -> 11.4999758 | BI8: =BI7 -> 0.8291394418 | BJ8: ='НВВ на потери'!M12 -> 2963.910593 | BK8: =IF(BH8=0,0,BI8/BH8) -> 0.07209923362 | BL8: =BI8*BJ8 -> 2457.495175 | BM8: =BL8/2 -> 1228.747587 | BN8: =BL8-BM8 -> 1228.747587 | BO8: =nerr((BL8-BL7)/BL7) ->  | BP8: =BP7 -> 0 | BQ8: ='НВВ по данным предпр.'!$H$13 -> х | BR8: ='НВВ по данным предпр.'!$H$14 -> х | BS8: ='НВВ по данным предпр.'!$H$15 -> х
